Workbook

Sheet Pres & Prop Rev
B2: =IF(Base1_Billing2=2,"BILLED","") -> 
A4: WORK PAPER | D4: RESIDENTIAL | E4: GENERAL SVC. | F4: LG. GEN. SVC. | G4: EX LG GEN SVC | H4: PUMPING | I4: ST & AREA LTG
A5: REFERENCE | C5: TOTAL | D5: SCHEDULE 1,2 | E5: SCH. 11,12 | F5: SCH. 21,22 | G5: SCHEDULE 25 | H5: SCH. 30, 31, 32 | I5: SCH. 41-48 | P5: Print Header for all printed pages on this worksheet:
B6: PRESENT BILL DETERMINANTS | L6: Calculate all revenue exhibits using ____ rates: | P6: ="AVISTA UTILITIES WASHINGTON ELECTRIC PRO FORMA REVENUE UNDER PRESENT AND PROPOSED "&N9&" RATES 12 MONTHS ENDED DECEMBER 31, 2016" -> AVISTA UTILITIES WASHINGTON ELECTRIC PRO FORMA REVENUE UNDER PRESENT AND PROPOSED BASE TARIFF RATES 12 MONTHS ENDED DECEMBER 31, 2016
B7: KILOWATT HOURS (KWHS) | K7: 1) | L7: BASE TARIFF
A8: PDE-E-10 | B8: BLOCK 1 | D8: ='Bill Determ'!$B$9 -> 1563076768 | E8: ='Bill Determ'!$B$17 -> 419807178.3 | F8: ='Bill Determ'!$B$28 -> 1239435303 | G8: ='Bill Determ'!$B$37 -> 125975035 | H8: =SUM('Bill Determ'!$B$43:$C$43) -> 46317791.52 | L8: or | N8: 1
A9: PDE-E-10 | B9: BLOCK 2 | D9: ='Bill Determ'!$C$9 -> 458131072 | E9: ='Bill Determ'!$C$17 -> 192006795.7 | F9: ='Bill Determ'!$C$28 -> 158308532.8 | G9: ='Bill Determ'!$C$37 -> 560260096 | H9: ='Bill Determ'!$D$43 -> 87259938.65 | K9: 2) | L9: BILLING | N9: =CHOOSE(Base1_Billing2,L7,L9) -> BASE TARIFF
A10: PDE-E-10 | B10: BLOCK 3 | D10: ='Bill Determ'!$D$9 -> 247853663.6 | G10: ='Bill Determ'!$D$37 -> 421173027 | N10: =CHOOSE(Base1_Billing2,"Base","Billing") -> Base
B11: BLOCK 4
A12: PDE-E-20 | B12: STREET & AREA LIGHTS | I12: ='REVRUNS 12ME1216'!P274 -> 23121170.8
B14: SUBTOTAL | C14: =SUM(D14:I14) -> 5542726373 | D14: =SUM(D8:D12) -> 2269061504 | E14: 611813974 | F14: 1397743836 | G14: 1107408158 | H14: 133577730.2 | I14: 23121170.8
B17: SUBTOTAL | C17: =SUM(D17:I17) -> 5542726373 | D17: =D14+D15 -> 2269061504 | E17: =E14+E15 -> 611813974 | F17: 1397743836 | G17: 1107408158 | H17: 133577730.2 | I17: 23121170.8
A18: PDE-E-10 | B18: ADJUSTMENT TO ACTUAL | C18: =SUM(D18:I18) -> 0 | D18: ='Bill Determ'!$E$11 -> 0 | E18: ='Bill Determ'!$D$21 -> 0 | F18: ='Bill Determ'!$D$33 -> 0 | G18: 0 | H18: ='Bill Determ'!$E$45 -> 0 | I18: 0
B20: TOTAL BEFORE ADJUSTMENT | C20: =SUM(D20:I20) -> 5542726373 | D20: =D17+D18 -> 2269061504 | E20: 611813974 | F20: 1397743836 | G20: 1107408158 | H20: 133577730.2 | I20: 23121170.8
A21: PDE-E-3 | B21: WEATHER & UNBILLED ADJ. KWHS | C21: =SUM(D21:I21) -> 115887339 | D21: =D142+D145 -> 92824485 | E21: 11429909 | F21: 11715365 | G21: 0 | H21: -82420 | I21: =I142+I145 -> 0
B23: TOTAL PROFORMA KWHS | C23: =IF(ROUND(SUM(D23:I23),3)<>ROUND(SUM(C20:C21),3),#VALUE!,SUM(D23:I23)) -> 5658613712 | D23: =D20+D21 -> 2361885989 | E23: 623243883 | F23: 1409459201 | G23: 1107408158 | H23: 133495310.2 | I23: 23121170.8
A25: PDE-E-10 | B25: TOTAL BILLS | D25: ='Bill Determ'!$F$9 -> 2518371 | E25: ='Bill Determ'!$F$17 -> 375436 | F25: ='Bill Determ'!$F$28 -> 22836 | G25: ='Bill Determ'!$G$37 -> 252 | H25: ='Bill Determ'!$F$41 -> 29193
B26: MINIMUM BILLS
A27: PDE-E-10 | B27: EXCESS DEMAND | E27: ='Bill Determ'!$E$17 -> 435096.7683 | F27: ='Bill Determ'!$E$28 -> 2762242.363 | G27: ='Bill Determ'!$F$37+'Bill Determ'!F38 -> 1296625
B29: PROPOSED BILL DETERMINANTS
B30: KILOWATT HOURS (KWHS)
B31: BLOCK 1 | D31: =D8 -> 1563076768 | E31: 419807178.3 | F31: 1239435303 | G31: 125975035 | H31: 46317791.52 | I31: 0
B32: BLOCK 2 | D32: =D9 -> 458131072 | E32: 192006795.7 | F32: 158308532.8 | G32: ='Bill Determ'!$C$37 -> 560260096 | H32: 87259938.65 | I32: 0
B33: BLOCK 3 | D33: 247853663.6 | E33: 0 | F33: 0 | G33: ='Bill Determ'!$D$37 -> 421173027 | H33: 0 | I33: 0
B34: BLOCK 4 | D34: 0 | E34: 0 | F34: 0 | G34: 0 | H34: 0 | I34: 0
B35: STREET & AREA LIGHTS | D35: 0 | E35: 0 | F35: 0 | G35: 0 | H35: 0 | I35: =I12 -> 23121170.8
B37: SUBTOTAL | C37: =SUM(D37:I37) -> 5542726373 | D37: =SUM(D31:D35) -> 2269061504 | E37: 611813974 | F37: 1397743836 | G37: 1107408158 | H37: 133577730.2 | I37: 23121170.8
C38: =SUM(D38:I38) -> 0 | D38: =D15 -> 0 | E38: =E15 -> 0 | F38: 0 | G38: 0 | H38: 0 | I38: 0
B40: SUBTOTAL | C40: =SUM(D40:I40) -> 5542726373 | D40: =D37+D38 -> 2269061504 | E40: 611813974 | F40: 1397743836 | G40: 1107408158 | H40: 133577730.2 | I40: 23121170.8
B41: ADJUSTMENT TO ACTUAL | C41: =SUM(D41:I41) -> 0 | D41: =D18 -> 0 | E41: 0 | F41: 0 | G41: 0 | H41: 0 | I41: 0
B43: TOTAL BEFORE ADJUSTMENT | C43: =SUM(D43:I43) -> 5542726373 | D43: =D40+D41 -> 2269061504 | E43: 611813974 | F43: 1397743836 | G43: 1107408158 | H43: 133577730.2 | I43: 23121170.8
B44: WEATHER & UNBILLED ADJ. KWHS | C44: =SUM(D44:I44) -> 115887339 | D44: =D21 -> 92824485 | E44: 11429909 | F44: 11715365 | G44: 0 | H44: -82420 | I44: 0
B46: TOTAL PROFORMA KWHS | C46: =IF(ROUND(SUM(D46:I46),3)<>ROUND(SUM(C43:C44),3),#VALUE!,SUM(D46:I46)) -> 5658613712 | D46: =D43+D44 -> 2361885989 | E46: 623243883 | F46: 1409459201 | G46: 1107408158 | H46: 133495310.2 | I46: 23121170.8
B48: TOTAL BILLS | D48: =D25 -> 2518371 | E48: =E25 -> 375436 | F48: =F25 -> 22836 | G48: =G25 -> 252 | H48: =H25 -> 29193
B49: MINIMUM BILLS
B50: EXCESS DEMAND | E50: =E27 -> 435096.7683 | F50: =F27 -> 2762242.363 | G50: =G27 -> 1296625
D55: 1 | E55: 2 | F55: 3 | G55: 4 | H55: 5 | I55: 6 | L55: =SUMPRODUCT(--(ISBLANK(D55:I55))) -> 0
A56: WORK PAPER | D56: RESIDENTIAL | E56: GENERAL SVC. | F56: LG. GEN. SVC. | G56: EX LG GEN SVC | H56: PUMPING | I56: ST & AREA LTG | L56: ="selected in cell "&CELL("address",Base1_Billing2)&":" -> selected in cell $N$8:
A57: REFERENCE | C57: TOTAL | D57: SCHEDULE 1 | E57: SCH. 11,12 | F57: SCH. 21,22 | G57: SCHEDULE 25 | H57: SCH. 30, 31, 32 | I57: SCH. 41-48 | L57: =N10 -> Base
B58: PRESENT RATES | L58: ="Rates_"&$L$57&"_Present" -> Rates_Base_Present | N58: - range name where Present Rates table can be found
A59: PDE-E-21 | B59: BASIC CHARGE | D59: =INDEX(INDIRECT($L$58),$K59,D$55) -> 8.5 | E59: 18 | F59: 0 | G59: 0 | H59: 18 | I59: 0 | K59: 1 | L59: ="Rates_"&$L$57&"_Proposed" -> Rates_Base_Proposed | N59: - range name where Proposed Rates table can be found
B60: MONTHLY MINIMUM
A62: PDE-E-21 | B62: BLOCK 1 PER KWH | D62: =INDEX(INDIRECT($L$58),$K62,D$55) -> 7.39 | E62: 11.293 | F62: 7.089 | G62: 5.505 | H62: 9.546 | I62: 0 | K62: 2
A63: PDE-E-21 | B63: BLOCK 2 PER KWH | D63: 8.598 | E63: 8.298 | F63: 6.34 | G63: 4.953 | H63: 6.818 | I63: 0 | K63: 3
A64: PDE-E-21 | B64: BLOCK 3 PER KWH | D64: 10.08 | E64: 0 | F64: 0 | G64: 4.235 | H64: 0 | I64: 0 | K64: 4
B65: BLOCK 4 PER KWH | K65: 5
B67: ADJUST TO ACTUAL PER KWH | D67: =(D124-D111)/D14*100 -> 7.927732754 | E67: =(E124-E111-SUM(E117:E120))/E14*100 -> 10.3530732 | F67: =(F124-F111-SUM(F117:F120))/F14*100 -> 7.004168224 | H67: =(H124-H111-SUM(H117:H120))/H14*100 -> 7.763928154
A69: PDE-E-21 | B69: DEMAND BLOCK 1 | D69: =INDEX(INDIRECT($L$58),$K69,D$55) -> 0 | E69: 0 | F69: 500 | G69: 21000 | H69: 0 | I69: 0 | K69: 6
A70: PDE-E-21 | B70: DEMAND BLOCK 2 | D70: 0 | E70: 6 | F70: 6 | G70: 6 | H70: 0 | I70: 0 | K70: 7
B75: PROPOSED RATES
B76: BASIC CHARGE | D76: =INDEX(INDIRECT($L$59),$K76,D$55) -> 9 | E76: =INDEX(INDIRECT($L$59),$K76,E$55) -> 20 | H76: =INDEX(INDIRECT($L$59),$K76,H$55) -> 20 | K76: 1
B77: MONTHLY MINIMUM
B79: BLOCK 1 PER KWH | D79: =INDEX(INDIRECT($L$59),$K79,D$55) -> 7.533 | E79: 11.349 | F79: 7.189 | G79: 5.505 | H79: 9.712 | K79: 2
B80: BLOCK 2 PER KWH | D80: 8.765 | E80: 8.341 | F80: 6.43 | G80: 4.953 | H80: 6.936 | K80: 3
B81: BLOCK 3 PER KWH | D81: 10.276 | G81: 4.235 | K81: 4
B82: BLOCK 4 PER KWH | K82: 5
B84: ADJUST TO ACTUAL PER KWH | D84: =(D177-D164)/D37*100 -> 8.081367719 | E84: =(E177-E164-SUM(E170:E173))/E37*100 -> 10.40499338 | F84: =(F177-F164-SUM(F170:F173))/F37*100 -> 7.103035624 | H84: =(H177-H164-SUM(H170:H173))/H37*100 -> 7.898572043
B86: DEMAND BLOCK 1 | F86: =INDEX(INDIRECT($L$59),$K86,F$55) -> 500 | G86: =INDEX(INDIRECT($L$59),$K86,G$55) -> 24000 | K86: 6
B87: DEMAND BLOCK 2 | E87: =INDEX(INDIRECT($L$59),$K87,E$55) -> 6.5 | F87: =INDEX(INDIRECT($L$59),$K87,F$55) -> 6.5 | G87: =INDEX(INDIRECT($L$59),$K87,G$55) -> 6.5 | K87: 7
B95: =CHOOSE(Base1_Billing2,"Note: Rates do not include BPA Residential Exchange Program Schedule 59, , Decoupling Schedule 75, Public Purpose Adjustment Schedules 89,91,92, REC Revenue Adjustment Schedule 98 or Power Cost Surcharge Schedule 93.","") -> Note: Rates do not include BPA Residential Exchange Program Schedule 59, , Decoupling Schedule 75, Public Purpose Adjustment Schedules 89,91,92, REC Revenue Adjustment Schedule 98 or Power Cost Surcharge Schedule 93.
A107: WORK PAPER | D107: RESIDENTIAL | E107: GENERAL SVC. | F107: LG. GEN. SVC. | G107: EX LG GEN SVC | H107: PUMPING | I107: ST & AREA LTG
A108: REFERENCE | C108: TOTAL | D108: SCHEDULE 1 | E108: SCH. 11,12 | F108: SCH. 21,22 | G108: SCHEDULE 25 | H108: SCH. 30, 31, 32 | I108: SCH. 41-48
B109: PRESENT REVENUE
B110: =UPPER(CHOOSE(Base1_Billing2,$N$9,$N$10))&" REVENUE" -> BASE TARIFF REVENUE
B111: BASIC CHARGE | C111: =SUM(D111:I111) -> 28689475.5 | D111: =D25*D59 -> 21406153.5 | E111: =E25*E59 -> 6757848 | H111: =H25*H59 -> 525474
B112: MONTHLY MINIMUM | C112: 0
B113: BLOCK 1 | C113: 262140188.5 | D113: =ROUND(D8*D62/100,2) -> 115511373.2 | E113: 47408824.65 | F113: 87863568.64 | G113: 6934925.68 | H113: 4421496.38
B114: BLOCK 2 | C114: 99058659.62 | D114: 39390109.57 | E114: 15932723.9 | F114: 10036760.98 | G114: 27749682.55 | H114: 5949382.62
B115: BLOCK 3 | C115: 42820326.99 | D115: =ROUND(D10*D64/100,2) -> 24983649.3 | G115: 17836677.69
B116: BLOCK 4 | C116: 0
B117: DEMAND BLOCK 1 | C117: 16710000 | F117: =F25*F69 -> 11418000 | G117: =G25*G69 -> 5292000
B118: DEMAND BLOCK 2 | C118: 26963784.79 | E118: =E27*E70 -> 2610580.61 | F118: =F27*F70 -> 16573454.18 | G118: =G27*G70 -> 7779750
A119: PDE-E-22/23 | B119: POWER FACTOR ADJUSTMENT | C119: 135159.55 | E119: ='Bill Determ'!G17*0.5 -> 6908.65 | F119: =('Bill Determ'!G28)*0.5 -> 124107.08 | H119: ='Bill Determ'!G41*0.5 -> 4143.82
A120: PDE-E-29/8 | B120: PRIMARY VOLTAGE DISCOUNT | C120: -1310502.52 | F120: ='REVRUNS 12ME1216'!P418 -> -65768.12 | G120: ='WA Sch 25'!P110 -> -1244734.4
B121: ANNUAL MINIMUM ADJUSTMENT | C121: 0
A122: PDE-E-11 | B122: STREET & AREA LIGHT REVENUE | C122: 6870468.12 | I122: ='Lighting summary'!D19 -> 6870468.12
B124: SUBTOTAL | C124: =IF(ROUND(SUM(C111:C122),3)<>ROUND(SUM(D124:I124),3),#VALUE!,SUM(D124:I124)) -> 482077560.6 | D124: =SUM(D111:D122) -> 201291285.5 | E124: 72716885.81 | F124: 125950122.8 | G124: 64348301.52 | H124: 10900496.82 | I124: 6870468.12
C125: =SUM(D125:I125) -> 0 | D125: =ROUND(D15*D67/100,2) -> 0 | E125: =ROUND(E15*E67/100,2) -> 0 | F125: 0 | G125: =ROUND(G15*G63/100,2) -> 0 | H125: 0
B127: SUBTOTAL | C127: =SUM(D127:I127) -> 482077560.6 | D127: =D124+D125 -> 201291285.5 | E127: 72716885.81 | F127: 125950122.8 | G127: 64348301.52 | H127: 10900496.82 | I127: 6870468.12
B128: ADJUST TO ACTUAL | C128: =SUM(D128:I128) -> 0 | D128: =ROUND(D18*D67/100,2) -> 0 | E128: =ROUND(E18*E67/100,2) -> 0 | F128: 0 | G128: 0 | H128: 0 | I128: 0
B130: ="TOTAL "&UPPER(CHOOSE(Base1_Billing2,$N$9,$N$10))&" REVENUE" -> TOTAL BASE TARIFF REVENUE | C130: =IF(ROUND(SUM(D130:I130),3)<>ROUND(SUM(C127:C128),3),#VALUE!,SUM(D130:I130)) -> 482077560.6 | D130: =D127+D128 -> 201291285.5 | E130: 72716885.81 | F130: 125950122.8 | G130: 64348301.52 | H130: 10900496.82 | I130: 6870468.12
B132: ADJUSTMENT REVENUE | L132: Schedule 1,2 | Q132: Schedule 11,12 | V132: Schedule 21,22 | AA132: Schedule 31,32
B133: UNBILLED REVENUE ADJUSTMENT | L133: =D8/$D$14 -> 0.6888648745 | N133: =$D$134*L133 -> 13202251.69 | O133: =N133*(D62/100) -> 975646.4001 | Q133: =E8/$E$14 -> 0.6861680122 | S133: =$E$134*Q133 -> 3356000.402 | T133: =S133*(E62/100) -> 378993.1254 | V133: =F8/$F$14 -> 0.8867399528 | X133: =$F$134*V133 -> 9802074.869 | Y133: =X133*(F62/100) -> 694869.0875 | AA133: =H8/$H$14 -> 0.3467478558 | AC133: =$H$134*AA133 -> -28578.95828 | AD133: =AC133*(H62/100) -> -2728.147357
A134: PDE-E-15 | B134: UNBILLED LOAD KWHS | C134: =SUM(D134:I134) -> 35027796 | D134: ='REVRUNS 12ME1216'!P327 -> 19165227 | E134: ='REVRUNS 12ME1216'!P328 -> 4890931 | F134: ='REVRUNS 12ME1216'!P329 -> 11054058 | H134: ='REVRUNS 12ME1216'!P331 -> -82420 | L134: =D9/$D$14 -> 0.2019033293 | N134: =$D$134*L134 -> 3869523.138 | O134: =N134*(D63/100) -> 332701.5994 | Q134: =E9/$E$14 -> 0.3138319878 | S134: =$E$134*Q134 -> 1534930.598 | T134: =S134*(E63/100) -> 127368.541 | V134: =F9/$F$14 -> 0.1132600472 | X134: =$F$134*V134 -> 1251983.131 | Y134: =X134*(F63/100) -> 79375.73049 | AA134: =H9/$H$14 -> 0.6532521442 | AC134: =$H$134*AA134 -> -53841.04172 | AD134: =AC134*(H63/100) -> -3670.882225
A135: PDE-E-5/6 | B135: UNBILLED LOAD RATE | D135: =D67 -> 7.927732754 | E135: =E67 -> 10.3530732 | F135: =F67 -> 7.004168224 | H135: =H67 -> 7.763928154 | L135: =D10/$D$14 -> 0.1092317962 | N135: 2093452.169 | O135: =N135*(D64/100) -> 211019.9786
B136: UNBILLED LOAD REVENUE | C136: =SUM(D136:I136) -> 2793575.44 | D136: =ROUND(D134*D135/100,2) -> 1519367.98 | E136: =ROUND(E134*E135/100,2) -> 506361.67 | F136: =ROUND(F134*F135/100,2) -> 774244.82 | H136: =ROUND(H134*H135/100,2) -> -6399.03 | L136: =SUM(L133:L135) -> 1 | N136: =SUM(N133:N135) -> 19165227 | O136: =SUM(O133:O135) -> 1519367.978 | Q136: =SUM(Q133:Q135) -> 1 | S136: =SUM(S133:S135) -> 4890931 | T136: =SUM(T133:T135) -> 506361.6664 | V136: =SUM(V133:V135) -> 1 | X136: =SUM(X133:X135) -> 11054058 | Y136: =SUM(Y133:Y135) -> 774244.818 | AA136: =SUM(AA133:AA135) -> 1 | AC136: =SUM(AC133:AC135) -> -82420 | AD136: =SUM(AD133:AD135) -> -6399.029582
A138: PDE-E-17 | B138: WEATHER-SENSITIVE KWHS | C138: =SUM(D138:I138) -> 0 | D138: 0 | E138: 0 | F138: 0
A139: PDE-E-5/6 | B139: WEATHER-SENSITIVE RATE | D139: =I226 -> 9.066446492 | E139: =I245 -> 8.298 | F139: =I278 -> 6.34
B140: WEATHER-SENSITIVE REVENUE | C140: =SUM(D140:I140) -> 0 | D140: =ROUND(D138*D139/100,2) -> 0 | E140: =ROUND(E138*E139/100,2) -> 0 | F140: =ROUND(F138*F139/100,2) -> 0
A142: PDE-E-15 | B142: TOTAL UNBILLED KWH ADJUST | C142: =IF(ROUND(C134+C138,3)<>ROUND(SUM(D142:I142),3),#VALUE!,C134+C138) -> 35027796 | D142: =D134+D138 -> 19165227 | E142: =E134+E138 -> 4890931 | F142: =F134+F138 -> 11054058 | H142: =H134+H138 -> -82420 | I142: =I134+I138 -> 0
B143: TOTAL UNBILLED REVENUE ADJ | C143: =IF(ROUND(C136+C140,3)<>ROUND(SUM(D143:I143),3),#VALUE!,C136+C140) -> 2793575.44 | D143: =D136+D140 -> 1519367.98 | E143: =E136+E140 -> 506361.67 | F143: =F136+F140 -> 774244.82 | H143: =H136+H140 -> -6399.03
B144: WEATHER NORMALIZATION ADJ | L144: Sch 1,2 | Q144: Sch 11,12 | V144: Sch 21,22
A145: PDE-E-17 | B145: WEATHER-SENSITIVE KWHS | C145: =SUM(D145:I145) -> 80859543 | D145: 73659258 | E145: 6538978 | F145: 661307 | L145: =H221/$H$225 -> 0.02999884921 | N145: =$D$145*L145 -> 2209692.974 | O145: =N145*(D62/100) -> 163296.3107 | Q145: =H241/$H$244 -> 0 | S145: =$E$145*Q145 -> 0 | T145: =S145*(E62/100) -> 0 | V145: =H274/$H$277 -> 0 | X145: =$F$145*V145 -> 0 | Y145: =X145*(F62/100) -> 0
A146: PDE-E-5/6 | B146: WEATHER-SENSITIVE RATE | D146: =I226 -> 9.066446492 | E146: =I245 -> 8.298 | F146: =I278 -> 6.34 | L146: =H222/$H$225 -> 0.629457897 | N146: =$D$145*L146 -> 46365401.64 | O146: =N146*(D63/100) -> 3986497.233 | Q146: =H242/$H$244 -> 1 | S146: =$E$145*Q146 -> 6538978 | T146: =S146*(E63/100) -> 542604.3944 | V146: =H275/$H$277 -> 1 | X146: =$F$145*V146 -> 661307 | Y146: =X146*(F63/100) -> 41926.8638
B147: WEATHER-SENSITIVE REVENUE | C147: =SUM(D147:I147) -> 7262808.46 | D147: =ROUND(D145*D146/100,2) -> 6678277.21 | E147: =ROUND(E145*E146/100,2) -> 542604.39 | F147: =ROUND(F145*F146/100,2) -> 41926.86 | L147: 0.3405432537 | N147: 25084163.39 | O147: 2528483.67
B149: TOTAL ADJUSTMENT REVENUE | C149: =IF(ROUND(C143+C147,3)<>ROUND(SUM(D149:I149),3),#VALUE!,C143+C147) -> 10056383.9 | D149: =D147+D143 -> 8197645.19 | E149: =E147+E143 -> 1048966.06 | F149: =F147+F143 -> 816171.68 | H149: =H147+H143 -> -6399.03
B150: =B130 -> TOTAL BASE TARIFF REVENUE | C150: =C130 -> 482077560.6 | D150: 201291285.5 | E150: 72716885.81 | F150: 125950122.8 | G150: 64348301.52 | H150: 10900496.82 | I150: 6870468.12 | N150: =SUM(N145:N149) -> 73659258 | O150: =SUM(O145:O149) -> 6678277.213 | S150: =SUM(S145:S149) -> 6538978 | T150: =SUM(T145:T149) -> 542604.3944 | X150: =SUM(X145:X149) -> 661307 | Y150: =SUM(Y145:Y149) -> 41926.8638
B152: TOTAL PRESENT REVENUE | C152: =IF(ROUND(C149+C150,3)<>ROUND(SUM(D152:I152),3),#VALUE!,SUM(D152:I152)) -> 492133944.5 | D152: =D149+D150 -> 209488930.7 | E152: 73765851.87 | F152: 126766294.4 | G152: 64348301.52 | H152: 10894097.79 | I152: 6870468.12
A160: WORK PAPER | D160: RESIDENTIAL | E160: GENERAL SVC. | F160: LG. GEN. SVC. | G160: EX LG GEN SVC | H160: PUMPING | I160: ST & AREA LTG
A161: REFERENCE | C161: TOTAL | D161: SCHEDULE 1 | E161: SCH. 11,12 | F161: SCH. 21,22 | G161: SCHEDULE 25 | H161: SCH. 30, 31, 32 | I161: SCH. 41-48
B162: PROPOSED REVENUE
B163: =UPPER(CHOOSE(Base1_Billing2,$N$9,$N$10))&" REVENUE" -> BASE TARIFF REVENUE
B164: BASIC CHARGE | C164: =SUM(D164:I164) -> 30757919 | D164: =D48*D76 -> 22665339 | E164: =E48*E76 -> 7508720 | H164: =H48*H76 -> 583860
B165: MONTHLY MINIMUM | C165: 0 | D165: =D49*D77 -> 0
B166: BLOCK 1 | C166: 265926803.1 | D166: =ROUND(D31*D79/100,2) -> 117746572.9 | E166: 47643916.67 | F166: 89103003.94 | G166: 6934925.68 | H166: =ROUND(H31*H79/100,2) -> 4498383.91
B167: BLOCK 2 | C167: 100151745.8 | D167: 40155188.46 | E167: 16015286.83 | F167: 10179238.66 | G167: 27749682.55 | H167: 6052349.34
B168: BLOCK 3 | C168: 43306120.17 | D168: =ROUND(D33*D81/100,2) -> 25469442.48 | G168: 17836677.69
B169: BLOCK 4 | C169: 0 | D169: =ROUND(D34*D82/100,2) -> 0
B170: DEMAND BLOCK 1 | C170: 17466000 | F170: =ROUND(F48*F86,2) -> 11418000 | G170: =ROUND(G48*G86,2) -> 6048000
B171: DEMAND BLOCK 2 | C171: 29210766.85 | E171: =ROUND(E50*E87,2) -> 2828128.99 | F171: =ROUND(F50*F87,2) -> 17954575.36 | G171: =ROUND(G50*G87,2) -> 8428062.5
B172: POWER FACTOR ADJUSTMENT | C172: 135159.55 | E172: =E119 -> 6908.65 | F172: =F119 -> 124107.08 | H172: =H119 -> 4143.82
B173: PRIMARY VOLTAGE DISCOUNT | C173: -1310502.52 | F173: =F120 -> -65768.12 | G173: ='WA Sch 25'!P110 -> -1244734.4
B174: ANNUAL MINIMUM ADJUSTMENT | C174: 0
A175: PDE-E-11 | B175: STREET & AREA LIGHT REVENUE | C175: 7020171.361 | I175: ='Lighting summary'!G19 -> 7020171.361
B177: SUBTOTAL | C177: =IF(ROUND(SUM(C164:C175),3)<>ROUND(SUM(D177:I177),3),#VALUE!,SUM(D177:I177)) -> 492664183.4 | D177: =SUM(D164:D175) -> 206036542.9 | E177: 74002961.14 | F177: 128713156.9 | G177: 65752614.02 | H177: 11138737.07 | I177: 7020171.361
C178: =SUM(D178:I178) -> 0 | D178: =ROUND(D38*D84/100,2) -> 0 | E178: =ROUND(E38*E84/100,2) -> 0 | F178: 0 | G178: =ROUND(G38*G80/100,2) -> 0 | H178: 0 | I178: 0
B180: SUBTOTAL | C180: =SUM(D180:I180) -> 492664183.4 | D180: =D177+D178 -> 206036542.9 | E180: 74002961.14 | F180: 128713156.9 | G180: 65752614.02 | H180: 11138737.07 | I180: 7020171.361
B181: ADJUST TO ACTUAL | C181: =SUM(D181:I181) -> 0 | D181: =ROUND(D41*D84/100,2) -> 0 | E181: 0 | F181: 0 | G181: 0 | H181: 0 | I181: 0
B183: ="SUBTOTAL "&UPPER(CHOOSE(Base1_Billing2,$N$9,$N$10))&" REVENUE" -> SUBTOTAL BASE TARIFF REVENUE | C183: =IF(ROUND(SUM(D183:I183),3)<>ROUND(SUM(C180:C181),3),#VALUE!,SUM(D183:I183)) -> 492664183.4 | D183: =D180+D181 -> 206036542.9 | E183: 74002961.14 | F183: 128713156.9 | G183: 65752614.02 | H183: 11138737.07 | I183: 7020171.361
B185: ADJUSTMENT REVENUE
B186: UNBILLED REVENUE ADJUSTMENT
B187: UNBILLED LOAD KWHS | C187: =SUM(D187:I187) -> 35027796 | D187: =D134 -> 19165227 | E187: =E134 -> 4890931 | F187: =F134 -> 11054058 | H187: =H134 -> -82420
B188: UNBILLED LOAD RATE | D188: =D84 -> 8.081367719 | E188: 10.40499338 | F188: =F84 -> 7.103035624 | H188: =H84 -> 7.898572043
B189: UNBILLED LOAD REVENUE | C189: =SUM(D189:I189) -> 2836377.2 | D189: =ROUND(D187*D188/100,2) -> 1548812.47 | E189: =ROUND(E187*E188/100,2) -> 508901.05 | F189: =ROUND(F187*F188/100,2) -> 785173.68 | H189: =ROUND(H187*H188/100,2) -> -6510
B191: WEATHER-SENSITIVE KWHS | C191: =SUM(D191:I191) -> 0 | D191: =D138 -> 0 | E191: =E138 -> 0 | F191: =F138 -> 0
B192: WEATHER-SENSITIVE RATE | D192: =I235 -> 9.242602274 | E192: =I253 -> 8.341 | F192: =I286 -> 6.43
B193: WEATHER-SENSITIVE REVENUE | C193: =SUM(D193:I193) -> 0 | D193: =ROUND(D191*D192/100,2) -> 0 | E193: =ROUND(E191*E192/100,2) -> 0 | F193: =ROUND(F191*F192/100,2) -> 0
B195: TOTAL UNBILLED KWH ADJUST | C195: =IF(ROUND(C187+C191,3)<>ROUND(SUM(D195:I195),3),#VALUE!,SUM(D195:I195)) -> 35027796 | D195: =D187+D191 -> 19165227 | E195: =E187+E191 -> 4890931 | F195: =F187+F191 -> 11054058 | H195: =H187+H191 -> -82420
B196: TOTAL UNBILLED REVENUE ADJ | C196: =IF(ROUND(C189+C193,3)<>ROUND(SUM(D196:I196),3),#VALUE!,SUM(D196:I196)) -> 2836377.2 | D196: =D189+D193 -> 1548812.47 | E196: =E189+E193 -> 508901.05 | F196: =F189+F193 -> 785173.68 | H196: =H189+H193 -> -6510
B197: WEATHER NORMALIZATION ADJ
B198: WEATHER-SENSITIVE KWHS | C198: =SUM(D198:I198) -> 80859543 | D198: =D145 -> 73659258 | E198: =E145 -> 6538978 | F198: =F145 -> 661307
B199: WEATHER-SENSITIVE RATE | D199: =I235 -> 9.242602274 | E199: =I253 -> 8.341 | F199: =I286 -> 6.43
B200: WEATHER-SENSITIVE REVENUE | C200: =SUM(D200:I200) -> 7395970.45 | D200: =ROUND(D198*D199/100,2) -> 6808032.26 | E200: =ROUND(E198*E199/100,2) -> 545416.15 | F200: =ROUND(F198*F199/100,2) -> 42522.04
B202: TOTAL ADJUSTMENT REVENUE | C202: =IF(ROUND(SUM(D202:I202),3)<>ROUND(C196+C200,3),#VALUE!,SUM(D202:I202)) -> 10232347.65 | D202: =D200+D196 -> 8356844.73 | E202: =E200+E196 -> 1054317.2 | F202: =F200+F196 -> 827695.72 | H202: =H200+H196 -> -6510
B203: ="TOTAL "&UPPER(CHOOSE(Base1_Billing2,$N$9,$N$10))&" REVENUE" -> TOTAL BASE TARIFF REVENUE | C203: =SUM(D203:I203) -> 492664183.4 | D203: =D183 -> 206036542.9 | E203: 74002961.14 | F203: 128713156.9 | G203: 65752614.02 | H203: 11138737.07 | I203: 7020171.361
B204: TOTAL PROPOSED REVENUE | C204: =IF(ROUND(SUM(D204:I204),3)<>ROUND(SUM(C202:C203),3),#VALUE!,SUM(D204:I204)) -> 502896531 | D204: =D202+D203 -> 214393387.6 | E204: 75057278.34 | F204: 129540852.6 | G204: 65752614.02 | H204: 11132227.07 | I204: 7020171.361
B205: TOTAL PRESENT REVENUE | C205: =SUM(D205:I205) -> 492133944.5 | D205: =D152 -> 209488930.7 | E205: 73765851.87 | F205: 126766294.4 | G205: 64348301.52 | H205: 10894097.79 | I205: =I152 -> 6870468.12
B207: TOTAL REVENUE INCREASE | C207: =SUM(D207:I207) -> 10762586.58 | D207: =D204-D205 -> 4904456.89 | E207: 1291426.47 | F207: 2774558.2 | G207: 1404312.5 | H207: 238129.28 | I207: 149703.2404
B208: PERCENT REVENUE INCREASE | C208: =C207/C205 -> 0.02186922219 | D208: =D207/D205 -> 0.02341153241 | E208: 0.0175071044 | F208: 0.0218871918 | G208: 0.02182361409 | H208: 0.02185855906 | I208: =I207/I205 -> 0.02178937996
B209: =IF(Base1_Billing2=2,"Pres and Prop Revenues may be incorrect due to Sch 59--for example all of Sch 11 gets benefit of Sch 59 but it s/only be Sch 12; see Billing Rev on Exhibit page for fix","") -> 
C210: =C4 -> 
A216: WORK PAPER | D216: TOTAL | E216: TOTAL | F216: BASELOAD | G216: BASELOAD | H216: WTHR-SENS. | I216: WTHR-SENS.
A217: REFERENCE | C217: RATES | D217: KWHS | E217: REVENUE | F217: KWHS | G217: REVENUE | H217: KWHS | I217: REVENUE
B219: PRESENT BASELOAD AND WEATHER-SENSITIVE RATES
B220: SCHEDULE 1
B221: 0-800 KWHS | C221: =D62 -> 7.39 | D221: =D8 -> 1563076768 | E221: =C221*D221/100 -> 115511373.2 | F221: =MIN(D221,F225) -> 1541243052 | G221: =F221*C221/100 -> 113897861.5 | H221: =D221-F221 -> 21833715.98 | I221: =H221*C221/100 -> 1613511.611 | L221: =H221/$H$225 -> 0.02999884921 | N221: =L221*$D$145 -> 2209692.974 | O221: =N221*(C221/100) -> 163296.3107
B222: 801-1500 KWHS | C222: =D63 -> 8.598 | D222: =D9 -> 458131072 | E222: =C222*D222/100 -> 39390109.57 | F222: =MIN(F225-F221,D222) -> 0 | G222: =F222*C222/100 -> 0 | H222: =D222-F222 -> 458131072 | I222: =H222*C222/100 -> 39390109.57 | L222: =H222/$H$225 -> 0.629457897 | N222: =L222*$D$145 -> 46365401.64 | O222: =N222*(C222/100) -> 3986497.233
B223: OVER 100 KWHS | C223: =D64 -> 10.08 | D223: =D10 -> 247853663.6 | E223: =C223*D223/100 -> 24983649.3 | F223: =MIN(F225-F221-F222,D223) -> 0 | G223: =F223*C223/100 -> 0 | H223: =D223-F223 -> 247853663.6 | I223: =H223*C223/100 -> 24983649.3 | L223: =H223/$H$225 -> 0.3405432537 | N223: =L223*$D$145 -> 25084163.39 | O223: =N223*(C223/100) -> 2528483.67
N224: =SUM(N221:N223) -> 73659258 | O224: =SUM(O221:O223) -> 6678277.213
B225: TOTAL | D225: =D221+D222+D223 -> 2269061504 | E225: 179885132 | F225: =612*D25 -> 1541243052 | G225: 113897861.5 | H225: 727818451.6 | I225: 65987270.47
B226: AVERAGE RATE | E226: =E225/D225*100 -> 7.927732753 | G226: =G225/F225*100 -> 7.39 | I226: =I225/H225*100 -> 9.066446492
B228: PROPOSED BASELOAD AND WEATHER-SENSITIVE RATES
B229: SCHEDULE 1
B230: 0-800 KWHS | C230: =D79 -> 7.533 | D230: =D221 -> 1563076768 | E230: =C230*D230/100 -> 117746572.9 | F230: =MIN(D230,F234) -> 1541243052 | G230: =F230*C230/100 -> 116101839.1 | H230: =H221 -> 21833715.98 | I230: =H230*C230/100 -> 1644733.825
B231: 801-1500 KWHS | C231: =D80 -> 8.765 | D231: =D222 -> 458131072 | E231: =C231*D231/100 -> 40155188.46 | F231: =MIN(F234-F230,D231) -> 0 | G231: =F231*C231/100 -> 0 | H231: =H222 -> 458131072 | I231: =H231*C231/100 -> 40155188.46
B232: OVER 1500 KWHS | C232: =D81 -> 10.276 | D232: =D223 -> 247853663.6 | E232: =C232*D232/100 -> 25469442.48 | F232: =MIN(F234-F230-F231,D232) -> 0 | G232: =F232*C232/100 -> 0 | H232: =H223 -> 247853663.6 | I232: =H232*C232/100 -> 25469442.48
B234: TOTAL | D234: =D230+D231+D232 -> 2269061504 | E234: 183371203.9 | F234: =F225 -> 1541243052 | G234: 116101839.1 | H234: 727818451.6 | I234: 67269364.76
B235: AVERAGE RATE | E235: =E234/D234*100 -> 8.081367719 | G235: =G234/F234*100 -> 7.533 | I235: =I234/H234*100 -> 9.242602274
B239: PRESENT BASELOAD AND WEATHER-SENSITIVE RATES
B240: SCHEDULE 11
B241: 0-3650 KWHS | C241: =E62 -> 11.293 | D241: =E8 -> 419807178.3 | E241: =C241*D241/100 -> 47408824.65 | F241: =MIN(D241,F244) -> 419807178.3 | G241: =F241*C241/100 -> 47408824.65 | H241: =D241-F241 -> 0 | I241: =H241*C241/100 -> 0
B242: over 3650 KWHS | C242: =E63 -> 8.298 | D242: =E9 -> 192006795.7 | E242: =C242*D242/100 -> 15932723.9 | F242: =MIN(F244-F241,D242) -> 95666449.65 | G242: =F242*C242/100 -> 7938401.992 | H242: =D242-F242 -> 96340346 | I242: =H242*C242/100 -> 7994321.911
B244: TOTAL | D244: =D241+D242 -> 611813974 | E244: 63341548.55 | F244: =1373*E25 -> 515473628 | G244: 55347226.64 | H244: 96340346 | I244: 7994321.911
B245: AVERAGE RATE | E245: =E244/D244*100 -> 10.3530732 | G245: =G244/F244*100 -> 10.7371597 | I245: =I244/H244*100 -> 8.298
B247: PROPOSED BASELOAD AND WEATHER-SENSITIVE RATES
B248: SCHEDULE 11
B249: 0-3650 KWHS | C249: =E79 -> 11.349 | D249: =E31 -> 419807178.3 | E249: =C249*D249/100 -> 47643916.67 | F249: =MIN(D249,F252) -> 419807178.3 | G249: =F249*C249/100 -> 47643916.67 | H249: =D249-F249 -> 0 | I249: =H249*C249/100 -> 0
B250: over 3650 KWHS | C250: =E80 -> 8.341 | D250: =E32 -> 192006795.7 | E250: =C250*D250/100 -> 16015286.83 | F250: =MIN(F252-F249,D250) -> 95666449.65 | G250: =F250*C250/100 -> 7979538.565 | H250: =D250-F250 -> 96340346 | I250: =H250*C250/100 -> 8035748.26
B252: TOTAL | D252: =D249+D250 -> 611813974 | E252: 63659203.5 | F252: =F244 -> 515473628 | G252: 55623455.24 | H252: 96340346 | I252: 8035748.26
B253: AVERAGE RATE | E253: =E252/D252*100 -> 10.40499338 | G253: =G252/F252*100 -> 10.79074704 | I253: =I252/H252*100 -> 8.341
B261: Note: Total Base Load for Sch. 1 = Base Load per bill times total billings (base load per bill on PDE-E-18) =
B262: ="663 X "&TEXT(D25,"#,##0")&" = "&TEXT(F225,"#,##0") -> 663 X 2,518,371 = 1,541,243,052
B263: ="Total Base Load for Sch. 11 = 1,338 X "&TEXT(E25,"#,##0")&" = "&TEXT(F244,"#,##0") -> Total Base Load for Sch. 11 = 1,338 X 375,436 = 515,473,628
B264: =IF(Base1_Billing2=2,"Pres and Prop Revenues may be incorrect due to Sch 59--for example all of Sch 11 gets benefit of Sch 59 but it s/only be Sch 12; see Billing Rev on Exhibit page for fix","") -> 
A269: WORK PAPER | D269: TOTAL | E269: TOTAL | F269: BASELOAD | G269: BASELOAD | H269: WTHR-SENS. | I269: WTHR-SENS.
A270: REFERENCE | C270: RATES | D270: KWHS | E270: REVENUE | F270: KWHS | G270: REVENUE | H270: KWHS | I270: REVENUE
B272: PRESENT BASELOAD AND WEATHER-SENSITIVE RATES
B273: SCHEDULE 21
B274: 0-250000 KWHS | C274: =F62 -> 7.089 | D274: =F8 -> 1239435303 | E274: =C274*D274/100 -> 87863568.64 | F274: =MIN(D274,F277) -> 1239435303 | G274: =F274*C274/100 -> 87863568.64 | H274: =D274-F274 -> 0 | I274: =H274*C274/100 -> 0
B275: OVER 250000 KWHS | C275: =F63 -> 6.34 | D275: =F9 -> 158308532.8 | E275: =C275*D275/100 -> 10036760.98 | F275: =MIN(F277-F274,D275) -> 85144040.83 | G275: =F275*C275/100 -> 5398132.189 | H275: =D275-F275 -> 73164492 | I275: =H275*C275/100 -> 4638628.793
B277: TOTAL | D277: =D274+D275 -> 1397743836 | E277: =E274+E275 -> 97900329.62 | F277: =58004*F25 -> 1324579344 | G277: =G274+G275 -> 93261700.83 | H277: =H274+H275 -> 73164492 | I277: =I274+I275 -> 4638628.793
B278: AVERAGE RATE | E278: =E277/D277*100 -> 7.004168225 | G278: =G277/F277*100 -> 7.040854234 | I278: =I277/H277*100 -> 6.34
B280: PROPOSED BASELOAD AND WEATHER-SENSITIVE RATES
B281: SCHEDULE 21
B282: 0-250000 KWHS | C282: =F79 -> 7.189 | D282: =D274 -> 1239435303 | E282: =C282*D282/100 -> 89103003.94 | F282: =MIN(D282,F285) -> 1239435303 | G282: =F282*C282/100 -> 89103003.94 | H282: =H274 -> 0 | I282: =H282*C282/100 -> 0
B283: OVER 250000 KWHS | C283: =F80 -> 6.43 | D283: =D275 -> 158308532.8 | E283: =C283*D283/100 -> 10179238.66 | F283: =MIN(F285-F282,D283) -> 85144040.83 | G283: =F283*C283/100 -> 5474761.825 | H283: =H275 -> 73164492 | I283: =H283*C283/100 -> 4704476.836
B285: TOTAL | D285: =D282+D283 -> 1397743836 | E285: =E282+E283 -> 99282242.61 | F285: =F277 -> 1324579344 | G285: =G282+G283 -> 94577765.77 | H285: =H282+H283 -> 73164492 | I285: =I282+I283 -> 4704476.836
B286: AVERAGE RATE | G286: =G285/F285*100 -> 7.140211434 | I286: =I285/H285*100 -> 6.43
B294: Note: Total Base Load for Sch. 21 = Base Load per bill times total billings (base load per bill on PDE-E-18) =
B295: ="53,800 X "&TEXT(F25,"#,##0")&" = "&TEXT(F277,"#,##0") -> 53,800 X 22,836 = 1,324,579,344
D299: =D207/D48 -> 1.947471953 | E299: =E207/E48 -> 3.439804574 | F299: =F207/F48 -> 121.4993081 | G299: =G207/G48 -> 5572.668651 | H299: =H207/H48 -> 8.15706779
D300: =D23/D25 -> 937.8626059 | E300: =E23/E25 -> 1660.053599 | F300: =F23/F25 -> 61720.93191 | G300: 4394476.817 | H300: 4572.853429
C301: PRCA | D301: =D300*-#REF! ->  | E301: =E300*-#REF! ->  | F301: =F300*-#REF! ->  | G301: =G300*-#REF! ->  | H301: =H300*-#REF! -> 
D302: =(800*((D79-D62)/100))+(165*((D80-D63)/100))+(D76-D59) -> 1.91955
D305: =D299+D301 ->  | E305: =E299+E301 -> 

Sheet Rate Design
A1: PRESENT RATES | D1: 1 | E1: 2 | F1: 3 | G1: 4 | H1: 5 | I1: 6 | N1: Tiers - used for bill comparisons
C2: TOTAL | D2: SCH. 1,2 | E2: SCH. 11,12 | F2: SCH. 21,22 | G2: SCH. 25 | H2: SCH. 30, 31, 32 | L2: Range Name | N2: SCHEDULE 1,2 | O2: SCH. 11,12 | P2: SCH. 21,22 | Q2: SCHEDULE 25 | R2: SCH. 30, 31, 32
B3: Base Tariff Rates
A4: 1 | B4: BASIC CHARGE | D4: 8.5 | E4: 18 | F4: 0 | G4: 0 | H4: 18
A5: 2 | B5: BLOCK 1 PER KWH | D5: 7.39 | E5: 11.293 | F5: 7.089 | G5: 5.505 | H5: 9.546 | N5: 800 | O5: 3650 | P5: 250000 | Q5: 500000
A6: 3 | B6: BLOCK 2 PER KWH | D6: 8.598 | E6: 8.298 | F6: 6.34 | G6: 4.953 | H6: 6.818 | N6: 1500 | O6: 9999999 | P6: 9999999 | Q6: 9999999
A7: 4 | B7: BLOCK 3 PER KWH | D7: 10.08 | E7: 0 | F7: 0 | G7: 4.235 | H7: 0 | L7: Rates_Base_Present | N7: 9999999 | O7: 9999999 | P7: 9999999 | Q7: 9999999
A8: 5 | B8: BLOCK 4 PER KWH
A9: 6 | B9: DEMAND CHARGE | D9: 0 | E9: 0 | F9: 500 | G9: 21000 | H9: 0
A10: 7 | B10: DEMAND BLOCK 1 | D10: 0 | E10: 6 | F10: 6 | G10: 6 | H10: 0 | N10: 0 | O10: 20 | P10: 50 | Q10: 3000
B12: Billing Rates | D12: =IF(D13<>'Pres & Prop Rev'!D$5,#VALUE!,"") ->  | E12: =IF(E13<>'Pres & Prop Rev'!E$5,#VALUE!,"") ->  | F12: =IF(F13<>'Pres & Prop Rev'!F$5,#VALUE!,"") ->  | G12: =IF(G13<>'Pres & Prop Rev'!G$5,#VALUE!,"") ->  | H12: =IF(H13<>'Pres & Prop Rev'!H$5,#VALUE!,"") -> 
D13: SCHEDULE 1,2 | E13: SCH. 11,12 | F13: SCH. 21,22 | G13: SCHEDULE 25 | H13: SCH. 30, 31, 32
A14: 1 | B14: BASIC CHARGE | D14: =D4 -> 8.5 | E14: =E4 -> 18 | F14: =F4 -> 0 | G14: =G4 -> 0 | H14: =H4 -> 18
A15: 2 | B15: BLOCK 1 PER KWH | D15: =D5-0.081+0.445+0.344+0.105-0.057 -> 8.146 | E15: =E5+0.04+0.463+0.152-0.057 -> 11.891 | F15: =F5+0.04+0.366+0.11-0.059 -> 7.546 | G15: =G5+0.232+0.069-0.057 -> 5.749 | H15: =H5+0.04+0.341+0.096-0.061 -> 9.962 | N15: =N5 -> 800 | O15: =O5 -> 3650 | P15: =P5 -> 250000 | Q15: =Q5 -> 500000
A16: 3 | B16: BLOCK 2 PER KWH | D16: =D6-0.081+0.445+0.344+0.105-0.057 -> 9.354 | E16: =E6+0.04+0.463+0.152-0.057 -> 8.896 | F16: =F6+0.04+0.366+0.11-0.059 -> 6.797 | G16: =G6+0.232+0.069-0.057 -> 5.197 | H16: =H6+0.04+0.341+0.096-0.061 -> 7.234 | N16: =N6 -> 1500 | O16: 9999999 | P16: 9999999 | Q16: 9999999
A17: 4 | B17: BLOCK 3 PER KWH | D17: 10.836 | G17: =G7+0.232-0.057 -> 4.41 | L17: Rates_Billing_Present | N17: 9999999 | O17: 9999999 | P17: 9999999 | Q17: 9999999
A18: 5 | B18: BLOCK 4 PER KWH
A19: 6 | B19: DEMAND CHARGE | F19: =F9 -> 500 | G19: =G9 -> 21000
A20: 7 | B20: DEMAND BLOCK 1 | E20: =E10 -> 6 | F20: =F10 -> 6 | G20: =G10 -> 6 | N20: =N10 -> 0 | O20: =O10 -> 20 | P20: =P10 -> 50 | Q20: =Q10 -> 3000
A22: PROPOSED RATES
B24: Base Tariff Rates | D24: =IF(D25<>'Pres & Prop Rev'!D$5,#VALUE!,"") ->  | E24: =IF(E25<>'Pres & Prop Rev'!E$5,#VALUE!,"") ->  | F24: =IF(F25<>'Pres & Prop Rev'!F$5,#VALUE!,"") ->  | G24: =IF(G25<>'Pres & Prop Rev'!G$5,#VALUE!,"") ->  | H24: =IF(H25<>'Pres & Prop Rev'!H$5,#VALUE!,"") -> 
D25: SCHEDULE 1,2 | E25: SCH. 11,12 | F25: SCH. 21,22 | G25: SCHEDULE 25 | H25: SCH. 30, 31, 32 | T25: Rounding
A26: 1 | B26: BASIC CHARGE | D26: =ROUND(D62,$T26) -> 9 | E26: =ROUND(E62,$T26) -> 20 | F26: =ROUND(F62,$T26) -> 0 | G26: =ROUND(G62,$T26) -> 0 | H26: =ROUND(H62,$T26) -> 20 | T26: 2 | U26: 2
A27: 2 | B27: BLOCK 1 PER KWH | D27: =ROUND(D85,$T27) -> 7.533 | E27: =ROUND(E85,$T27) -> 11.349 | F27: 7.189 | G27: 5.505 | H27: 9.712 | N27: 800 | O27: 3650 | P27: 250000 | Q27: 500000 | T27: 3 | U27: 3
A28: 3 | B28: BLOCK 2 PER KWH | D28: 8.765 | E28: 8.341 | F28: 6.43 | G28: 4.953 | H28: 6.936 | N28: 1500 | O28: 9999999 | P28: 9999999 | Q28: 6000000 | T28: 3 | U28: 3
A29: 4 | B29: BLOCK 3 PER KWH | D29: 10.276 | E29: 0 | F29: 0 | G29: 4.235 | H29: 0 | L29: Rates_Base_Proposed | N29: 9999999 | O29: 9999999 | P29: 9999999 | Q29: 99999999 | T29: 3 | U29: 3
A30: 5 | B30: BLOCK 4 PER KWH | T30: 3 | U30: 3
A31: 6 | B31: DEMAND CHARGE | D31: =ROUND(D66,$T31) -> 0 | E31: =ROUND(E66,$T31) -> 0 | F31: =ROUND(F66,$T31) -> 500 | G31: =ROUND(G66,$T31) -> 24000 | H31: =ROUND(H66,$T31) -> 0 | T31: 2 | U31: 2
A32: 7 | B32: DEMAND BLOCK 1 | D32: =ROUND(D69,$T32) -> 0 | E32: =ROUND(E69,$T32) -> 6.5 | F32: =ROUND(F69,$T32) -> 6.5 | G32: =ROUND(G69,$T32) -> 6.5 | H32: =ROUND(H69,$T32) -> 0 | N32: 0 | O32: 20 | P32: 50 | Q32: 3000 | T32: 2 | U32: 2
B34: Billing Rates | D34: =IF(D35<>'Pres & Prop Rev'!D$5,#VALUE!,"") ->  | E34: =IF(E35<>'Pres & Prop Rev'!E$5,#VALUE!,"") ->  | F34: =IF(F35<>'Pres & Prop Rev'!F$5,#VALUE!,"") ->  | G34: =IF(G35<>'Pres & Prop Rev'!G$5,#VALUE!,"") ->  | H34: =IF(H35<>'Pres & Prop Rev'!H$5,#VALUE!,"") -> 
D35: SCHEDULE 1,2 | E35: SCH. 11,12 | F35: SCH. 21,22 | G35: SCHEDULE 25 | H35: SCH. 30, 31, 32 | S35: LIRAP/DSM increase
A36: 1 | B36: BASIC CHARGE | D36: =D26 -> 9 | E36: =E26 -> 20 | F36: =F26 -> 0 | G36: =G26 -> 0 | H36: =H26 -> 20 | S36: 1 | T36: 11 | U36: 21 | V36: 25 | W36: 31
A37: 2 | B37: BLOCK 1 PER KWH | D37: =D27-0.081+0.445+0.344+0.105-0.057 -> 8.289 | E37: =E27+0.04+0.463+0.152-0.057 -> 11.947 | F37: =F27+0.04+0.366+0.11-0.059 -> 7.646 | G37: =G27+0.232+0.069-0.057 -> 5.749 | H37: =H27+0.04+0.341+0.096-0.061 -> 10.128 | N37: =N27 -> 800 | O37: 3650 | P37: 250000 | Q37: 500000 | S37: 0 | T37: 0 | U37: 0 | V37: 0 | W37: 0
A38: 3 | B38: BLOCK 2 PER KWH | D38: =D28-0.081+0.445+0.344+0.105-0.057 -> 9.521 | E38: =E28+0.04+0.463+0.152-0.057 -> 8.939 | F38: =F28+0.04+0.366+0.11-0.059 -> 6.887 | G38: =G28+0.232+0.069-0.057 -> 5.197 | H38: =H28+0.04+0.341+0.096-0.061 -> 7.352 | N38: 1500 | O38: 9999999 | P38: 9999999 | Q38: 6000000 | S38: =S$37 -> 0 | T38: =T$37 -> 0 | U38: =U$37 -> 0 | V38: =V$37 -> 0 | W38: =W$37 -> 0
A39: 4 | B39: BLOCK 3 PER KWH | D39: 11.032 | G39: =G29+0.232-0.057 -> 4.41 | L39: Rates_Billing_Proposed | N39: 9999999 | O39: 9999999 | P39: 9999999 | Q39: 99999999 | S39: =S$37 -> 0 | T39: 0 | U39: 0 | V39: 0 | W39: 0
A40: 5 | B40: BLOCK 4 PER KWH | S40: 0 | T40: 0 | U40: 0 | V40: 0 | W40: 0
A41: 6 | B41: DEMAND CHARGE | F41: =F31 -> 500 | G41: =G31 -> 24000
A42: 7 | B42: DEMAND BLOCK 1 | E42: =E32 -> 6.5 | F42: =F32 -> 6.5 | G42: =G32 -> 6.5 | N42: =N32 -> 0 | O42: =O32 -> 20 | P42: =P32 -> 50 | Q42: =Q32 -> 3000
D45: 0 | E45: 0) ERM=0; 1) ERM as is
B47: Proposed Rate Workup - from Pres & Prop Rev tab
B49: KILOWATT HOURS (KWHS)
B50: BLOCK 1 | C50: =SUM(D50:H50) -> 3394612076 | D50: ='Pres & Prop Rev'!D31 -> 1563076768 | E50: ='Pres & Prop Rev'!E31 -> 419807178.3 | F50: ='Pres & Prop Rev'!F31 -> 1239435303 | G50: ='Pres & Prop Rev'!G31 -> 125975035 | H50: ='Pres & Prop Rev'!H31 -> 46317791.52
B51: BLOCK 2 | C51: =SUM(D51:H51) -> 1455966435 | D51: ='Pres & Prop Rev'!D32 -> 458131072 | E51: ='Pres & Prop Rev'!E32 -> 192006795.7 | F51: ='Pres & Prop Rev'!F32 -> 158308532.8 | G51: ='Pres & Prop Rev'!G32 -> 560260096 | H51: ='Pres & Prop Rev'!H32 -> 87259938.65
B52: BLOCK 3 | C52: =SUM(D52:H52) -> 669026690.6 | D52: ='Pres & Prop Rev'!D33 -> 247853663.6 | E52: ='Pres & Prop Rev'!E33 -> 0 | F52: ='Pres & Prop Rev'!F33 -> 0 | G52: ='Pres & Prop Rev'!G33 -> 421173027 | H52: ='Pres & Prop Rev'!H33 -> 0
B53: ADJ. TO ACTUAL/EE ADJ | C53: =SUM(D53:H53) -> 0 | D53: ='Pres & Prop Rev'!D41+'Pres & Prop Rev'!D38 -> 0 | E53: ='Pres & Prop Rev'!E41+'Pres & Prop Rev'!E38 -> 0 | F53: ='Pres & Prop Rev'!F41+'Pres & Prop Rev'!F38 -> 0 | G53: ='Pres & Prop Rev'!G41+'Pres & Prop Rev'!G38 -> 0 | H53: ='Pres & Prop Rev'!H41+'Pres & Prop Rev'!H38 -> 0
B54: WEATHER & U/B KWHS | C54: =SUM(D54:H54) -> 115887339 | D54: ='Pres & Prop Rev'!D44 -> 92824485 | E54: ='Pres & Prop Rev'!E44 -> 11429909 | F54: ='Pres & Prop Rev'!F44 -> 11715365 | G54: ='Pres & Prop Rev'!G44 -> 0 | H54: ='Pres & Prop Rev'!H44 -> -82420
B55: TOTAL PROFORMA KWHS | C55: =IF(ROUND(SUM(D55:I55),3)<>ROUND(SUM(C50:C54),3),#VALUE!,SUM(D55:I55)) -> 5635492541 | D55: =SUM(D50:D54) -> 2361885989 | E55: =SUM(E50:E54) -> 623243883 | F55: =SUM(F50:F54) -> 1409459201 | G55: =SUM(G50:G54) -> 1107408158 | H55: =SUM(H50:H54) -> 133495310.2
B56: TOTAL BILLS | D56: ='Pres & Prop Rev'!D48 -> 2518371 | E56: ='Pres & Prop Rev'!E48 -> 375436 | F56: ='Pres & Prop Rev'!F48 -> 22836 | G56: ='Pres & Prop Rev'!G48 -> 252 | H56: ='Pres & Prop Rev'!H48 -> 29193
B57: EXCESS DEMAND | D57: ='Pres & Prop Rev'!D50 -> 0 | E57: ='Pres & Prop Rev'!E50 -> 435096.7683 | F57: ='Pres & Prop Rev'!F50 -> 2762242.363 | G57: ='Pres & Prop Rev'!G50 -> 1296625 | H57: ='Pres & Prop Rev'!H50 -> 0
J58: Proposed rates: | K58: Formulas to copy
B59: Proposed Revenue | C59: =SUM(D59:I59) -> 495875867.7 | D59: ='Rate Spread GRC'!H15*1000 -> 214392969.5 | E59: ='Rate Spread GRC'!H17*1000 -> 75056462.63 | F59: ='Rate Spread GRC'!H19*1000 -> 129538680.6 | G59: ='Rate Spread GRC'!H21*1000 -> 65755402.59 | H59: ='Rate Spread GRC'!H23*1000 -> 11132352.34 | J59: same as current | K59: FLOOR | L59: CEILING | M59: OTHER
B60: Targeted Rate Increase | C60: =#REF! ->  | D60: =#REF! ->  | E60: =#REF! ->  | F60: =#REF! ->  | G60: =#REF! ->  | H60: =#REF! ->  | J60: diff than current
B61: Present Basic Charge | D61: =D4 -> 8.5 | E61: =E4 -> 18 | F61: =F4 -> 0 | G61: =G4 -> 0 | H61: =H4 -> 18
B62: BASIC CHARGE | D62: 9 | E62: 20 | F62: 0 | G62: 0 | H62: 20 | K62: =FLOOR(K61*(1+K$60),$K63) -> 0 | L62: =CEILING(L61*(1+L$60),$L63) -> 0 | M62: =M61*(1+M$60) -> 0
B63: % D in Basic Charge | D63: =IF(D61,D62/D61-1,0) -> 0.05882352941 | E63: =IF(E61,E62/E61-1,0) -> 0.1111111111 | F63: =IF(F61,F62/F61-1,0) -> 0 | G63: =IF(G61,G62/G61-1,0) -> 0 | H63: =IF(H61,H62/H61-1,0) -> 0.1111111111 | K63: 0.05 | L63: 0.05
B64: Basic Charge Revenue | C64: =SUM(D64:I64) -> 30757919 | D64: =D56*D62 -> 22665339 | E64: =E56*E62 -> 7508720 | F64: =F56*F62 -> 0 | G64: =G56*G62 -> 0 | H64: =H56*H62 -> 583860
B65: Present Demand Block 1 | D65: =D9 -> 0 | E65: =E9 -> 0 | F65: =F9 -> 500 | G65: =G9 -> 21000 | H65: =H9 -> 0
B66: DEMAND BLOCK 1 | F66: 500 | G66: 24000 | K66: =FLOOR(K65*(1+K$60),$K67) -> 0 | L66: =CEILING(L65*(1+L$60),$L67) -> 0 | M66: =M65*(1+M$60) -> 0
B67: % D in Demand Block 1 | D67: =IF(D65,D66/D65-1,0) -> 0 | E67: =IF(E65,E66/E65-1,0) -> 0 | F67: =IF(F65,F66/F65-1,0) -> 0 | G67: =IF(G65,G66/G65-1,0) -> 0.1428571429 | H67: =IF(H65,H66/H65-1,0) -> 0 | K67: 5 | L67: 10
B68: Present Demand Block 2 | D68: =D10 -> 0 | E68: =E10 -> 6 | F68: =F10 -> 6 | G68: =G10 -> 6 | H68: =H10 -> 0
B69: DEMAND BLOCK 2 | E69: 6.5 | F69: 6.5 | G69: 6.5 | H69: 0 | K69: =FLOOR(K68*(1+K$60),$K70) -> 0 | L69: =CEILING(L68*(1+L$60),$L70) -> 0 | M69: =M68*(1+M$60) -> 0
B70: % D in Demand Block 2 | D70: =IF(D68,D69/D68-1,0) -> 0 | E70: =IF(E68,E69/E68-1,0) -> 0.08333333333 | F70: =IF(F68,F69/F68-1,0) -> 0.08333333333 | G70: =IF(G68,G69/G68-1,0) -> 0.08333333333 | H70: =IF(H68,H69/H68-1,0) -> 0 | K70: 0.05 | L70: 0.05
B71: Demand Revenue | C71: =SUM(D71:I71) -> 46676766.86 | D71: =D56*D66+D57*D69 -> 0 | E71: =E56*E66+E57*E69 -> 2828128.994 | F71: =F56*F66+F57*F69 -> 29372575.36 | G71: =G56*G66+G57*G69 -> 14476062.5 | H71: =H56*H66+H57*H69 -> 0
B72: Pwr Fctr/Prim Voltg Disc | C72: =SUM(D72:I72) -> -1175342.97 | D72: ='Pres & Prop Rev'!D172+'Pres & Prop Rev'!D173 -> 0 | E72: ='Pres & Prop Rev'!E172+'Pres & Prop Rev'!E173 -> 6908.65 | F72: ='Pres & Prop Rev'!F172+'Pres & Prop Rev'!F173 -> 58338.96 | G72: ='Pres & Prop Rev'!G172+'Pres & Prop Rev'!G173 -> -1244734.4 | H72: ='Pres & Prop Rev'!H172+'Pres & Prop Rev'!H173 -> 4143.82
B74: Present Block 1 Base Rate | D74: =D5 -> 7.39 | E74: =E5 -> 11.293 | F74: =F5 -> 7.089 | G74: =G5 -> 5.505 | H74: =H5 -> 9.546
B75: Present Block 2 Base Rate | D75: =D6 -> 8.598 | E75: 8.298 | F75: 6.34 | G75: 4.953 | H75: 6.818
B76: Present Block 3 Base Rate | D76: 10.08 | E76: 0 | F76: 0 | G76: 4.235 | H76: 0
B78: 1) Flat Rate Increase | D78: 0 | E78: 1 | F78: 1 | G78: 1 | H78: 1
B79: 2) % Rate Increase | D79: 0.01937861968 | E79: 0.005003099265 | F79: 0.01409351835 | G79: 5.309406987e-05 | H79: 0.01735431711 | M79: =M$60 -> 0
B80: Method ---> | D80: 2 | E80: 2 | F80: 2 | G80: 2 | H80: 2
A82: Calculated | B82: BLOCK 1 PER KWH | D82: =CHOOSE(D$80,D74+D$78,D74*(1+D$79)) -> 7.533207999 | E82: =CHOOSE(E$80,E74+E$78,E74*(1+E$79)) -> 11.3495 | F82: =CHOOSE(F$80,F74+F$78,F74*(1+F$79)) -> 7.188908952 | G82: =CHOOSE(G$80,G74+G$78,G74*(1+G$79)) -> 5.505292283 | H82: =CHOOSE(H$80,H74+H$78,H74*(1+H$79)) -> 9.711664311
B83: BLOCK 2 PER KWH | D83: 8.764617372 | E83: 8.339515718 | F83: 6.429352906 | G83: =CHOOSE(G$80,G75+G$78,G75*(1+G$79)) -> 4.953262975 | H83: =CHOOSE(H$80,H75+H$78,H75*(1+H$79)) -> 6.936321734 | M83: =0.75*M82 -> 0
B84: BLOCK 3 PER KWH | D84: 10.27533649 | E84: 0 | F84: 0 | G84: =CHOOSE(G$80,G76+G$78,G76*(1+(G$79*1))) -> 4.235224853 | H84: 0
A85: Input | B85: BLOCK 1 PER KWH | D85: =D82 -> 7.533207999 | E85: =E82 -> 11.3495 | F85: =F82 -> 7.188908952 | G85: =G82 -> 5.505292283 | H85: =H82 -> 9.711664311 | M85: =M82 -> 0
B86: BLOCK 2 PER KWH | D86: =D83 -> 8.764617372 | E86: =E83+0.001 -> 8.340515718 | F86: =F83+0.001 -> 6.430352906 | G86: =G83 -> 4.953262975 | H86: =H83 -> 6.936321734 | J86: =G86-G85 -> -0.5520293079 | M86: =M83 -> 0 | N86: =0.75*(N85-N74)+N75 -> 0
B87: BLOCK 3 PER KWH | D87: =D84+0.001 -> 10.27633649 | E87: =E84 -> 0 | F87: 0 | G87: =G84 -> 4.235224853 | H87: 0 | J87: =G87-G86 -> -0.7180381215 | M87: =M84 -> 0
B88: Blocks 1-3 Revenue | C88: =SUM(D88:I88) -> 409390514.6 | D88: =SUMPRODUCT(D50:D52,D85:D87)/100 -> 183373536.1 | E88: =SUMPRODUCT(E50:E52,E85:E87)/100 -> 63660372.68 | F88: =SUMPRODUCT(F50:F52,F85:F87)/100 -> 99281672.8 | G88: =SUMPRODUCT(G50:G52,G85:G87)/100 -> 52524074.49 | H88: =SUMPRODUCT(H50:H52,H85:H87)/100 -> 10550858.52
B89: Adj. to Actual Revenue | C89: =SUM(D89:I89) -> 0 | D89: ='Pres & Prop Rev'!D181+'Pres & Prop Rev'!D178 -> 0 | E89: ='Pres & Prop Rev'!E181+'Pres & Prop Rev'!E178 -> 0 | F89: ='Pres & Prop Rev'!F181+'Pres & Prop Rev'!F178 -> 0 | G89: ='Pres & Prop Rev'!G181+'Pres & Prop Rev'!G178 -> 0 | H89: ='Pres & Prop Rev'!H181+'Pres & Prop Rev'!H178 -> 0
B90: Weather & U/B Revenue | C90: =SUM(D90:I90) -> 10232347.65 | D90: ='Pres & Prop Rev'!D202 -> 8356844.73 | E90: ='Pres & Prop Rev'!E202 -> 1054317.2 | F90: ='Pres & Prop Rev'!F202 -> 827695.72 | G90: ='Pres & Prop Rev'!G202 -> 0 | H90: ='Pres & Prop Rev'!H202 -> -6510
B92: Revenue Remaining | C92: =IF(ROUND(C59-C64-C71-C72-SUM(C88:C90),3)<>ROUND(SUM(D92:I92),3),#VALUE!,SUM(D92:I92)) -> -6337.437369 | D92: =D59-D64-D71-D72-SUM(D88:D90) -> -2750.326636 | E92: =E59-E64-E71-E72-SUM(E88:E90) -> -1984.895638 | F92: =F59-F64-F71-F72-SUM(F88:F90) -> -1602.215328 | G92: =G59-G64-G71-G72-SUM(G88:G90) -> 0 | H92: =H59-H64-H71-H72-SUM(H88:H90) -> 0.0002332367003 | J92: there will be some remainder in Schs. 21 & 25 because some components of their revenue don't change w/a rate change.
B93: Revenue Remaining - ¢/kWh | C93: =C92/C55*100 -> -0.0001124557849 | D93: =D92/D55*100 -> -0.0001164462065 | E93: -0.0003184781579 | F93: -0.0001136758927 | G93: 0 | H93: 1.747152765e-10
B94: check - < $6k is rounding | C94: =SUM(D94:I94) -> 5845.469284 | D94: =D59-'Pres & Prop Rev'!D204-D92 -> 2332.243547 | E94: =E59-'Pres & Prop Rev'!E204-E92 -> 1169.181191 | F94: =F59-'Pres & Prop Rev'!F204-F92 -> -569.7975268 | G94: =G59-'Pres & Prop Rev'!G204-G92 -> 2788.573904 | H94: =H59-'Pres & Prop Rev'!H204-H92 -> 125.2681688
A95: =IF(Base1_Billing2=2,"MAKE SURE TO CHANGE Base1_Billing2 to '1' before designing Base Rates","") -> 
B96: Proposed Target | C96: =SUM(D96:I96) -> 495875867.7 | D96: =D59 -> 214392969.5 | E96: =E59 -> 75056462.63 | F96: =F59 -> 129538680.6 | G96: =G59 -> 65755402.59 | H96: =H59 -> 11132352.34
B97: Proposed Actual | C97: =SUM(D97:I97) -> 495876359.7 | D97: ='Pres & Prop Rev'!D204 -> 214393387.6 | E97: ='Pres & Prop Rev'!E204 -> 75057278.34 | F97: ='Pres & Prop Rev'!F204 -> 129540852.6 | G97: ='Pres & Prop Rev'!G204 -> 65752614.02 | H97: ='Pres & Prop Rev'!H204 -> 11132227.07
C98: =SUM(D98:H98) -> 491.9680846 | D98: =D97-D96 -> 418.0830891 | E98: =E97-E96 -> 815.7144468 | F98: =F97-F96 -> 2172.012855 | G98: =G97-G96 -> -2788.573904 | H98: =H97-H96 -> -125.268402
B99: Rate D Check
B100: Basic Charge | C100: ='Pres & Prop Rev'!C164/'Pres & Prop Rev'!C111-1 -> 0.07209764082 | D100: ='Pres & Prop Rev'!D164/'Pres & Prop Rev'!D111-1 -> 0.05882352941 | E100: ='Pres & Prop Rev'!E164/'Pres & Prop Rev'!E111-1 -> 0.1111111111 | F100: ='Pres & Prop Rev'!F164/'Pres & Prop Rev'!F111-1 ->  | G100: ='Pres & Prop Rev'!G164/'Pres & Prop Rev'!G111-1 ->  | H100: ='Pres & Prop Rev'!H164/'Pres & Prop Rev'!H111-1 -> 0.1111111111
B101: Demand Charge | C101: =SUM('Pres & Prop Rev'!C170:C171)/SUM('Pres & Prop Rev'!C117:C118)-1 -> 0.06875937303 | D101: =SUM('Pres & Prop Rev'!D170:D171)/SUM('Pres & Prop Rev'!D117:D118)-1 ->  | E101: =SUM('Pres & Prop Rev'!E170:E171)/SUM('Pres & Prop Rev'!E117:E118)-1 -> 0.08333333174 | F101: =SUM('Pres & Prop Rev'!F170:F171)/SUM('Pres & Prop Rev'!F117:F118)-1 -> 0.04934081563 | G101: =SUM('Pres & Prop Rev'!G170:G171)/SUM('Pres & Prop Rev'!G117:G118)-1 -> 0.1074311014 | H101: =SUM('Pres & Prop Rev'!H170:H171)/SUM('Pres & Prop Rev'!H117:H118)-1 -> 
B102: Adj. to Actual Revenue | C102: ='Pres & Prop Rev'!C181/'Pres & Prop Rev'!C128-1 ->  | D102: ='Pres & Prop Rev'!D181/'Pres & Prop Rev'!D128-1 ->  | E102: ='Pres & Prop Rev'!E181/'Pres & Prop Rev'!E128-1 ->  | F102: ='Pres & Prop Rev'!F181/'Pres & Prop Rev'!F128-1 ->  | G102: ='Pres & Prop Rev'!G181/'Pres & Prop Rev'!G128-1 ->  | H102: ='Pres & Prop Rev'!H181/'Pres & Prop Rev'!H128-1 -> 
B103: Weather & U/B Revenue | C103: ='Pres & Prop Rev'!C202/'Pres & Prop Rev'!C149-1 -> 0.01749771605 | D103: ='Pres & Prop Rev'!D202/'Pres & Prop Rev'!D149-1 -> 0.01942015497 | E103: ='Pres & Prop Rev'!E202/'Pres & Prop Rev'!E149-1 -> 0.00510134713 | F103: ='Pres & Prop Rev'!F202/'Pres & Prop Rev'!F149-1 -> 0.01411962738 | G103: ='Pres & Prop Rev'!G202/'Pres & Prop Rev'!G149-1 ->  | H103: ='Pres & Prop Rev'!H202/'Pres & Prop Rev'!H149-1 -> 0.01734169085
B104: Block Energy Charges | C104: =SUM('Pres & Prop Rev'!C166:C169)/SUM('Pres & Prop Rev'!C113:C116)-1 -> 0.01328029549 | D104: =SUM('Pres & Prop Rev'!D166:D169)/SUM('Pres & Prop Rev'!D113:D116)-1 -> 0.01937943292 | E104: =SUM('Pres & Prop Rev'!E166:E169)/SUM('Pres & Prop Rev'!E113:E116)-1 -> 0.005014953964 | F104: =SUM('Pres & Prop Rev'!F166:F169)/SUM('Pres & Prop Rev'!F113:F116)-1 -> 0.01411550896 | G104: =SUM('Pres & Prop Rev'!G166:G169)/SUM('Pres & Prop Rev'!G113:G116)-1 -> 0 | H104: =SUM('Pres & Prop Rev'!H166:H169)/SUM('Pres & Prop Rev'!H113:H116)-1 -> 0.01734223782
B105: Overall Revenue | C105: ='Pres & Prop Rev'!C208 -> 0.02186922219 | D105: ='Pres & Prop Rev'!D208 -> 0.02341153241 | E105: ='Pres & Prop Rev'!E208 -> 0.0175071044 | F105: ='Pres & Prop Rev'!F208 -> 0.0218871918 | G105: ='Pres & Prop Rev'!G208 -> 0.02182361409 | H105: ='Pres & Prop Rev'!H208 -> 0.02185855906
B107: Avg. Usage | D107: =D55/D56 -> 937.8626059 | E107: =E55/E56 -> 1660.053599 | F107: =F55/F56 -> 61720.93191 | G107: =G55/G56 -> 4394476.817 | H107: =H55/H56 -> 4572.853429
B108: Bill Compare: | C108: =INDEX($D$2:$I$2,K108) -> SCH. 1,2 | F108: =INDEX($D$2:$I$2,L108) -> SCH. 11,12 | K108: 1 | L108: 2
B109: =IF(Base1_Billing2=2,"BILLING RATES","BASE RATES") -> BASE RATES | C109: Pres | D109: Prop | E109: % Incr | F109: Pres | G109: Prop | H109: % Incr
B110: 100
B111: 200
B112: 300
B113: 400
B114: 500
B115: 600
B116: 700
B117: 800
B118: 900
B119: 1000 | C119: =ROUND(D14+600*D15/100+400*D16/100,2) -> 94.79 | D119: =ROUND(D36+600*D37/100+400*D38/100,2) -> 96.82 | E119: =D119/C119-1 -> 0.02141576116 | F119: =D119-C119 -> 2.03
B120: 1100
B121: 1200
B122: 1300
B123: 1400
B124: 1500
D125: 2425727000 | E125: =395341000+52692000 -> 448033000
D126: =205474*12 -> 2465688 | E126: =(19967+8691)*12 -> 343896
D127: =D125/D126 -> 983.7931644 | E127: =E125/E126 -> 1302.815386

Sheet Yr 1 RS
A1: AVISTA UTILITIES | T1: This worksheet pulls data from 'Pres & Prop Rev' tab.
A2: WASHINGTON ELECTRIC
A3: PROPOSED INCREASE BY SERVICE SCHEDULE
A4: 12 MONTHS ENDED DECEMBER 31, 2016
A5: (000s of Dollars)
D10: Base Tariff | F10: Base Tariff | G10: Base | H10: Total Billed | J10: Total Billed | L10: Schedule 93 | M10: Percent | Q10: Percent | U10: Percent | V10: Total Billed
D11: Revenue | E11: Proposed | F11: Revenue | G11: Tariff | H11: Revenue | I11: Power Cost | J11: Revenue | K11: Total | L11: Power Cost | M11: Increase | N11: Sch. 98 | O11: Sch. 93 | P11: Proposed | Q11: Increase | U11: Increase | V11: Revenue
B12: Type of | C12: Schedule | D12: Under Present | E12: General | F12: Under Proposed | G12: Percent | H12: at Present | I12: Rate Adjustment | J12: at Present | K12: General | L12: Rate Adjustment | M12: on Billed | N12: REC Revenue | O12: ERM | P12: General | Q12: on Billed | U12: on Base | V12: at Proposed | AC12: Present
A13: No. | B13: Service | C13: Number | D13: Rates(1) | E13: Increase | F13: Rates(1) | G13: Increase | H13: Rates (2) | I13: Increase | J13: Rates (2) | K13: Increase | L13: Expiration | M13: Revenue | N13: Decrease | O13: Increase | P13: Increase | Q13: Revenue | U13: Revenue | V13: Rates (2) | X13: GRC | Y13: PCRA | Z13: ERM | AB13: # of Customers | AC13: Average Bill
B14: (a) | C14: (b) | D14: (c) | E14: (d) | F14: (e) | G14: (f) | H14: (g) | I14: (h) | J14: (h) | K14: (i) | L14: (k) | M14: (j) | N14: (j) | O14: (k) | P14: (j) | Q14: (k) | S14: ="col (m) source" -> col (m) source
D15: =IF(Base1_Billing2<>1,"ERROR","") -> 
A16: 1 | B16: Residential | C16: 1/2 | D16: ='Pres & Prop Rev'!$D$152/1000 -> 209488.9307 | E16: ='Pres & Prop Rev'!$D$207/1000 -> 4904.45689 | F16: =D16+E16 -> 214393.3876 | G16: =E16/D16 -> 0.02341153241 | H16: =227344.78877-167 -> 227177.7888 | I16: =#REF!/1000 ->  | J16: =H16+I16 ->  | K16: =E16 -> 4904.45689 | L16: =-#REF!/1000 ->  | M16: =(K16)/H16 -> 0.02158862852 | N16: =#REF!/1000 ->  | O16: =('Pres & Prop Rev'!D23*(0))/1000 -> 0 | P16: =E16+O16 -> 4904.45689 | Q16: =(P16)/H16 -> 0.02158862852 | S16: from Pres & Prop Rev tab | U16: =(E16+O16)/D16 -> 0.02341153241 | V16: =H16+K16 -> 232082.2457 | X16: =K16/H16 -> 0.02158862852 | AB16: ='Pres & Prop Rev'!D48 -> 2518371 | AC16: ='Bill Impact'!E18 -> 86.58
A18: 2 | B18: General Service | C18: 11/12 | D18: ='Pres & Prop Rev'!$E$152/1000 -> 73765.85187 | E18: ='Pres & Prop Rev'!$E$207/1000 -> 1291.42647 | F18: =D18+E18+0.2 -> 75057.47834 | G18: =E18/D18 -> 0.0175071044 | H18: =77492.85029-42 -> 77450.85029 | I18: =#REF!/1000 ->  | J18: =H18+I18 ->  | K18: =E18 -> 1291.42647 | L18: =-#REF!/1000 ->  | M18: =(K18)/H18 -> 0.01667414193 | N18: =#REF!/1000 ->  | O18: =('Pres & Prop Rev'!E23*(0))/1000 -> 0 | P18: =E18+O18 -> 1291.42647 | Q18: =(P18)/H18 -> 0.01667414193 | S18: from below | U18: =(E18+O18)/D18 -> 0.0175071044 | V18: =H18+K18 -> 78742.27676 | X18: =K18/H18 -> 0.01667414193 | AB18: ='Pres & Prop Rev'!E48 -> 375436 | AC18: =(H18*1000)/AB18 -> 206.2957476
A20: 3 | B20: Large General Service | C20: 21/22 | D20: ='Pres & Prop Rev'!$F$152/1000 -> 126766.2944 | E20: ='Pres & Prop Rev'!$F$207/1000 -> 2774.5582 | F20: =D20+E20-0.1 -> 129540.7526 | G20: =E20/D20 -> 0.0218871918 | H20: =133207.523-24 -> 133183.523 | I20: =#REF!/1000 ->  | K20: =E20 -> 2774.5582 | L20: =-#REF!/1000 ->  | M20: =(K20)/H20 -> 0.02083259353 | N20: =#REF!/1000 ->  | O20: =('Pres & Prop Rev'!F23*(0))/1000 -> 0 | P20: =E20+O20 -> 2774.5582 | Q20: =(P20)/H20 -> 0.02083259353 | S20: from below | U20: =(E20+O20)/D20 -> 0.0218871918 | V20: =H20+K20 -> 135958.0812 | X20: =K20/H20 -> 0.02083259353 | AB20: ='Pres & Prop Rev'!F25 -> 22836 | AC20: =(H20*1000)/AB20 -> 5832.173892
A22: 4 | B22: Extra Large General Service | C22: 25 | D22: ='Pres & Prop Rev'!$G$152/1000 -> 64348.30152 | E22: ='Pres & Prop Rev'!$G$207/1000+0.7 -> 1405.0125 | F22: =D22+E22-0.3 -> 65753.01402 | G22: =E22/D22+0.0001 -> 0.02193449239 | H22: 67050.37743 | I22: =#REF!/1000 ->  | K22: =E22 -> 1405.0125 | L22: =-#REF!/1000 ->  | M22: =(K22)/H22 -> 0.02095458003 | N22: =#REF!/1000 ->  | O22: =('Pres & Prop Rev'!G23*(0))/1000 -> 0 | P22: =E22+O22 -> 1405.0125 | Q22: =(P22)/H22 -> 0.02095458003 | S22: from Pres & Prop Rev tab | U22: =(E22+O22)/D22 -> 0.02183449239 | V22: =H22+K22 -> 68455.38993 | X22: =K22/H22 -> 0.02095458003 | AB22: ='Pres & Prop Rev'!G48 -> 252 | AC22: =(H22*1000)/AB22 -> 266072.9263
A24: 5 | B24: Pumping Service | C24: 30/31/32 | D24: ='Pres & Prop Rev'!$H$152/1000 -> 10894.09779 | E24: ='Pres & Prop Rev'!$H$207/1000 -> 238.12928 | F24: =D24+E24 -> 11132.22707 | G24: =E24/D24 -> 0.02185855906 | H24: =11449.43827-6 -> 11443.43827 | I24: =#REF!/1000 ->  | K24: =E24 -> 238.12928 | L24: =-#REF!/1000 ->  | M24: =(K24)/H24 -> 0.02080924233 | N24: =#REF!/1000 ->  | O24: =('Pres & Prop Rev'!H23*(0))/1000 -> 0 | P24: =E24+O24 -> 238.12928 | Q24: =(P24)/H24 -> 0.02080924233 | S24: from below | U24: =(E24+O24)/D24 -> 0.02185855906 | V24: =H24+K24 -> 11681.56755 | X24: =K24/H24 -> 0.02080924233 | AB24: ='Pres & Prop Rev'!H48 -> 29193 | AC24: =(H24*1000)/AB24 -> 391.9925417
A26: 6 | B26: Street & Area Lights | C26: 41-48 | D26: ='Pres & Prop Rev'!$I$152/1000+0.1 -> 6870.56812 | E26: ='Pres & Prop Rev'!$I$207/1000 -> 149.7032404 | F26: =D26+E26+0.3 -> 7020.571361 | G26: =E26/D26 -> 0.02178906282 | H26: =6959.88420584323+263 -> 7222.884206 | I26: =#REF!/1000 ->  | J26: =H26+I26+0.3 ->  | K26: =E26 -> 149.7032404 | L26: =-#REF!/1000 ->  | M26: =(K26)/H26 -> 0.02072624122 | N26: =#REF!/1000 ->  | O26: =('Pres & Prop Rev'!I23*(0))/1000 -> 0 | P26: =E26+O26 -> 149.7032404 | Q26: =(P26)/H26 -> 0.02072624122 | S26: from Pres & Prop Rev tab | U26: =(E26+O26)/D26 -> 0.02178906282 | V26: =H26+K26 -> 7372.587446 | X26: =K26/H26 -> 0.02072624122
A28: 7 | B28: Total | D28: =SUM(D16:D26) -> 492134.0445 | E28: =SUM(E16:E26) -> 10763.28658 | F28: =SUM(F16:F26) -> 502897.431 | G28: =E28/D28 -> 0.02187064013 | H28: =SUM(H16:H26)+0.2 -> 523529.062 | I28: =SUM(I16:I26) ->  | K28: =E28 -> 10763.28658 | L28: =SUM(L16:L26) ->  | M28: =(K28)/H28 -> 0.02055910046 | N28: =SUM(N16:N27) ->  | O28: =SUM(O16:O26) -> 0 | P28: =E28+O28 -> 10763.28658 | Q28: =(P28)/H28 -> 0.02055910046 | S28: from below | U28: =(E28+O28)/D28 -> 0.02187064013 | V28: =E28+H28+O28 -> 534292.3485 | X28: =K28/H28 -> 0.02055910046
D29: =ROUND(D28-'Pres & Prop Rev'!C205/1000,0) -> 0
D30: =IF(Base1_Billing2=2,"Exhibit won't work until Base1_Billing2 range set to '1'","") -> 
A33: (1) Excludes all present rate adjustments: Schedule 59 (BPA Residential Exchange), Schedule 75 (Decoupling), Schedule 91 (DSM),
A34: Schedule 92 (LIRAP), Schedule 93 (ERM), and Schedule 98 (REC Revenue).
A36: (2) Includes all present rate adjustments: Schedule 59 (BPA Residential Exchange), Schedule 75 (Decoupling), Schedule 91 (DSM),
A37: Schedule 92 (LIRAP), Schedule 93 (ERM), and Schedule 98 (REC Revenue).
B40: reduce billed revenue for BPA ResEx (already accounted for in Schs 1 & 48)
F41: Billing | K41: Billed Revenue
F42: Determinants | H42: Sch 59 Rate | K42: Impact
B43: Schedule 12 only | F43: ='REVRUNS 12ME1216'!P114+'REVRUNS 12ME1216'!P290+'REVRUNS 12ME1216'!P309 -> 51973984 | H43: -0.00081 | K43: =F43*H43 -> -42098.92704
B44: Schedule 22 only | F44: ='REVRUNS 12ME1216'!P142+'REVRUNS 12ME1216'!P293+'REVRUNS 12ME1216'!P312 -> 29703777 | H44: -0.00081 | K44: =F44*H44 -> -24060.05937
B45: Schedule 32 only | F45: ='REVRUNS 12ME1216'!P193+'REVRUNS 12ME1216'!P296+'REVRUNS 12ME1216'!P315 -> 7885750.233 | H45: -0.00081 | K45: -6387.457689
B46: Schedule 48 only | F46: ='REVRUNS 12ME1216'!P252 -> 2962727.953 | H46: -0.00081 | K46: =F46*H46 -> -2399.809642
B47: Total | F47: =SUM(F43:F46) -> 92526239.19 | K47: =SUM(K43:K46) -> -74946.25374 | M47: Manually deducted in Column H
B49: Schedule 98 (REC Revenue Rebate) | H49: Sch 98 Rate
B50: Schedule 41-48 only | F50: ='REVRUNS 12ME1216'!P274 -> 23121170.8 | H50: -0.00065 | K50: =F50*H50 -> -15028.76102
B52: Schedule 91 (DSM) | H52: Sch 91 Rate
B53: Schedule 41-48 only | F53: ='REVRUNS 12ME1216'!P274 -> 23121170.8 | H53: 0.01215 | K53: =F53*H53 -> 280922.2253
Q54: ERM Reduction Calc
H55: Sch 89 Rate
B56: Schedule 2 only | F56: ='REVRUNS 12ME1216'!P82+'REVRUNS 12ME1216'!P287+'REVRUNS 12ME1216'!P306 -> 5293971 | H56: -0.03153 | K56: =F56*H56 -> -166918.9056 | O56: 0 | P56: 1 | Q56: =-D16*$O$57 -> 0 | S56: =0/'Pres & Prop Rev'!D23 -> 0 | T56: =(D16/$D$28)*$Q$62 -> 0
O57: =O56/D28 -> 0 | P57: 11 | Q57: =-D18*O57 -> 0 | T57: =(D18/$D$28)*$Q$62 -> 0
P58: 21 | Q58: =-D20*O57 -> 0 | T58: =(D20/$D$28)*$Q$62 -> 0
P59: 25 | Q59: =-D22*O57 -> 0 | T59: =(D22/$D$28)*$Q$62 -> 0
B60: Schedule 41-48 only Total | K60: =K46+K50+K53 -> 263493.6546 | P60: 31 | Q60: =-D24*O57 -> 0 | T60: =(D24/$D$28)*$Q$62 -> 0
P61: 41-48 | Q61: =-D26*O57 -> 0 | T61: =(D26/$D$28)*$Q$62 -> 0
Q62: =SUM(Q56:Q61) -> 0 | T62: =SUM(T56:T61) -> 0

Sheet Yr 1 RD
A1: AVISTA UTILITIES | P1: This worksheet uses Base & Billing rates from 'Rate Design' tab.
A2: WASHINGTON ELECTRIC
A3: PRESENT AND PROPOSED RATE COMPONENTS BY SCHEDULE
A7: May 1, 2018 Increase
H9: General | I9: Sch. 93 | J9: Proposed | K9: Proposed | L9: Sch. 98 | M9: Sch. 93/94 | N9: Proposed Billing
D10: Base Tariff | E10: Present | F10: Present | H10: Rate | I10: PCRA | J10: Billing | K10: Base Tariff | L10: REC Revenue | M10: ERM/BPA | N10: Rate With
A11: Type of Service | D11: Sch. Rate | E11: Other Adj.(1) | F11: Billing Rate | H11: Inc/Dec | I11: Decrease | J11: Rate | K11: Rate | L11: Decrease | M11: Increase | N11: ERM Decrease (2) | O11: non-printing | R11: Present | S11: Proposed | T11: Proposed
B12: (a) | D12: (b) | E12: (c) | F12: (d) | H12: (e) | I12: (h) | J12: (g) | K12: (h) | L12: (h) | M12: (i) | N12: (j) | O12: Base | P12: Billing | R12: Billing | S12: Base | T12: Billing
A13: Residential Service - Schedule 1
A14: Basic Charge | D14: ='Rate Design'!D4 -> 8.5 | E14: =F14-D14 -> 0 | F14: ='Rate Design'!D14 -> 8.5 | H14: =IF(ROUND(J14-F14,5)<>ROUND(K14-D14,5),#VALUE!,K14-D14) -> 0.5 | J14: ='Rate Design'!D36 -> 9 | K14: ='Rate Design'!D26 -> 9 | N14: =K14 -> 9 | O14: =H14/D14 -> 0.05882352941 | P14: =H14/F14 -> 0.05882352941
A15: Energy Charge:
A16: ="First "&TEXT('Rate Design'!N5,"#,##0")&" kWhs" -> First 800 kWhs | D16: ='Rate Design'!D5/100 -> 0.0739 | E16: =F16-D16 -> 0.00756 | F16: ='Rate Design'!D15/100 -> 0.08146 | H16: =K16-D16 -> 0.00143 | I16: =-#REF! ->  | J16: =F16+H16 -> 0.08289 | K16: ='Rate Design'!D27/100 -> 0.07533 | L16: =#REF! ->  | M16: =0.00164+0.00083 -> 0.00247 | N16: =J16+L16+M16 ->  | O16: =H16/D16 -> 0.01935047361 | P16: =H16/F16 -> 0.01755462804 | R16: =D16+E16-F16 -> 0 | S16: =D16+H16-K16 -> 0 | T16: =F16+H16-J16 -> 0
A17: =TEXT('Rate Design'!N5,"#,##0")&" - "&TEXT('Rate Design'!N6,"#,##0")&" kWhs" -> 800 - 1,500 kWhs | D17: ='Rate Design'!D6/100 -> 0.08598 | E17: =F17-D17 -> 0.00756 | F17: ='Rate Design'!D16/100 -> 0.09354 | H17: =K17-D17 -> 0.00167 | I17: =I16 ->  | J17: =F17+H17 -> 0.09521 | K17: ='Rate Design'!D28/100 -> 0.08765 | L17: =L16 ->  | M17: =M16 -> 0.00247 | N17: =J17+L17 ->  | O17: =H17/D17 -> 0.01942312166 | P17: =H17/F17 -> 0.01785332478 | R17: =D17+E17-F17 -> 0 | S17: =D17+H17-K17 -> 0 | T17: =F17+H17-J17 -> 0
A18: ="All over "&TEXT('Rate Design'!N6,"#,##0")&" kWhs" -> All over 1,500 kWhs | D18: ='Rate Design'!D7/100 -> 0.1008 | E18: =F18-D18 -> 0.00756 | F18: ='Rate Design'!D17/100 -> 0.10836 | H18: =K18-D18 -> 0.00196 | I18: =I16 ->  | J18: 0.11032 | K18: ='Rate Design'!D29/100 -> 0.10276 | L18: =L16 ->  | M18: =M16 -> 0.00247 | N18: =J18+L18 ->  | O18: =H18/D18 -> 0.01944444444 | P18: =H18/F18 -> 0.0180878553 | R18: =D18+E18-F18 -> 0 | S18: =D18+H18-K18 -> 0 | T18: =F18+H18-J18 -> 0
A20: General Services - Schedule 11
A21: Basic Charge | D21: ='Rate Design'!E4 -> 18 | E21: =F21-D21 -> 0 | F21: ='Rate Design'!E14 -> 18 | H21: =IF(ROUND(J21-F21,5)<>ROUND(K21-D21,5),#VALUE!,K21-D21) -> 2 | J21: ='Rate Design'!E36 -> 20 | K21: ='Rate Design'!E26 -> 20 | N21: =K21 -> 20 | O21: =H21/D21 -> 0.1111111111 | P21: =H21/F21 -> 0.1111111111
A22: Energy Charge:
A23: ="First "&TEXT('Rate Design'!O5,"#,##0")&" kWhs" -> First 3,650 kWhs | D23: ='Rate Design'!E5/100 -> 0.11293 | E23: =F23-D23 -> 0.00598 | F23: ='Rate Design'!E15/100 -> 0.11891 | H23: =K23-D23 -> 0.00056 | I23: =-#REF! ->  | J23: =F23+H23 -> 0.11947 | K23: ='Rate Design'!E27/100 -> 0.11349 | L23: =L16 ->  | M23: =M16 -> 0.00247 | N23: =J23+L23 ->  | O23: =H23/D23 -> 0.00495882405 | P23: =H23/F23 -> 0.004709444117 | R23: =D23+E23-F23 -> 0 | S23: =D23+H23-K23 -> 0 | T23: =F23+H23-J23 -> 0
A24: ="All over "&TEXT('Rate Design'!O5,"#,##0")&" kWhs" -> All over 3,650 kWhs | D24: ='Rate Design'!E6/100 -> 0.08298 | E24: =F24-D24 -> 0.00598 | F24: ='Rate Design'!E16/100 -> 0.08896 | H24: =K24-D24 -> 0.00043 | I24: =I23 ->  | J24: 0.08939 | K24: ='Rate Design'!E28/100 -> 0.08341 | L24: =L23 ->  | M24: =M23 -> 0.00247 | N24: =J24+L24 ->  | O24: =H24/D24 -> 0.005181971559 | P24: =H24/F24 -> 0.004833633094 | R24: =D24+E24-F24 -> 0 | S24: =D24+H24-K24 -> 0 | T24: =F24+H24-J24 -> 0
A25: Demand Charge:
A26: =TEXT('Rate Design'!O10,"#,##0")&" kW or less" -> 20 kW or less | D26: no charge | F26: no charge | H26: no charge | K26: no charge | N26: no charge
A27: ="Over "&TEXT('Rate Design'!O10,"#,##0")&" kW" -> Over 20 kW | D27: ='Rate Design'!E10 -> 6 | E27: =F27-D27 -> 0 | F27: ='Rate Design'!E20 -> 6 | H27: =IF(ROUND(J27-F27,5)<>ROUND(K27-D27,5),#VALUE!,K27-D27) -> 0.5 | J27: ='Rate Design'!E42 -> 6.5 | K27: ='Rate Design'!E32 -> 6.5 | N27: ='Rate Design'!E32 -> 6.5 | O27: =H27/D27 -> 0.08333333333 | P27: =H27/F27 -> 0.08333333333
A28: Minimums: | D28: $15.00 Single Phase Service | J28: $15.00 Single Phase Service
D29: $25.35 Three Phase Service | J29: $25.35 Three Phase Service
A31: Large General Service - Schedule 21
A32: Energy Charge:
A33: ="First "&TEXT('Rate Design'!P5,"#,##0")&" kWhs" -> First 250,000 kWhs | D33: ='Rate Design'!F5/100 -> 0.07089 | E33: =F33-D33 -> 0.00457 | F33: ='Rate Design'!F15/100 -> 0.07546 | H33: =K33-D33 -> 0.001 | I33: =-#REF! ->  | J33: =F33+H33 -> 0.07646 | K33: ='Rate Design'!F27/100 -> 0.07189 | L33: =L16 ->  | M33: =M16 -> 0.00247 | N33: =J33+L33 ->  | O33: =H33/D33 -> 0.01410636197 | P33: =H33/F33 -> 0.01325205407 | R33: =D33+E33-F33 -> 0 | S33: =D33+H33-K33 -> 0 | T33: =F33+H33-J33 -> 0
A34: ="All over "&TEXT('Rate Design'!P5,"#,##0")&" kWhs" -> All over 250,000 kWhs | D34: ='Rate Design'!F6/100 -> 0.0634 | E34: =F34-D34 -> 0.00457 | F34: ='Rate Design'!F16/100 -> 0.06797 | H34: =K34-D34 -> 0.0009 | I34: =I33 ->  | J34: 0.06887 | K34: ='Rate Design'!F28/100 -> 0.0643 | L34: =L33 ->  | M34: =M33 -> 0.00247 | N34: =J34+L34 ->  | O34: =H34/D34 -> 0.0141955836 | P34: =H34/F34 -> 0.0132411358 | R34: =D34+E34-F34 -> 0 | S34: =D34+H34-K34 -> 0 | T34: =F34+H34-J34 -> 0
A35: Demand Charge:
A36: =TEXT('Rate Design'!P10,"#,##0")&" kW or less" -> 50 kW or less | D36: ='Rate Design'!F9 -> 500 | E36: =F36-D36 -> 0 | F36: ='Rate Design'!F19 -> 500 | H36: =IF(ROUND(J36-F36,5)<>ROUND(K36-D36,5),#VALUE!,K36-D36) -> 0 | J36: ='Rate Design'!F41 -> 500 | K36: ='Rate Design'!F31 -> 500 | N36: =K36 -> 500 | O36: =H36/D36 -> 0 | P36: =H36/F36 -> 0
A37: ="Over "&TEXT('Rate Design'!P10,"#,##0")&" kW" -> Over 50 kW | D37: ='Rate Design'!F10 -> 6 | E37: =F37-D37 -> 0 | F37: ='Rate Design'!F20 -> 6 | H37: =IF(ROUND(J37-F37,5)<>ROUND(K37-D37,5),#VALUE!,K37-D37) -> 0.5 | J37: ='Rate Design'!F42 -> 6.5 | K37: ='Rate Design'!F32 -> 6.5 | N37: ='Rate Design'!F32 -> 6.5 | O37: =H37/D37 -> 0.08333333333 | P37: =H37/F37 -> 0.08333333333
A38: Primary Voltage Discount | D38: 0.2 | E38: =F38-D38 -> 0 | F38: 0.2 | H38: =IF(ROUND(J38-F38,5)<>ROUND(K38-D38,5),#VALUE!,K38-D38) -> 0 | J38: 0.2 | K38: 0.2 | N38: 0.2 | O38: =H38/D38 -> 0 | P38: =H38/F38 -> 0
A40: Extra Large General Service - Schedule 25
A41: Energy Charge:
A42: ="First "&TEXT('Rate Design'!Q5,"#,##0")&" kWhs" -> First 500,000 kWhs | D42: ='Rate Design'!G5/100 -> 0.05505 | E42: =F42-D42 -> 0.00244 | F42: ='Rate Design'!G15/100 -> 0.05749 | H42: =K42-D42 -> 0 | I42: =-#REF! ->  | J42: =F42+H42 -> 0.05749 | K42: ='Rate Design'!G27/100 -> 0.05505 | L42: =L16 ->  | M42: =M16 -> 0.00247 | N42: =J42+L42 ->  | O42: =H42/D42 -> 0 | P42: =H42/F42 -> 0 | R42: =D42+E42-F42 -> 0 | S42: =D42+H42-K42 -> 0 | T42: =F42+H42-J42 -> 0
A43: =TEXT('Rate Design'!Q27,"#,##0")&" - "&TEXT('Rate Design'!Q28,"#,##0")&" kWhs" -> 500,000 - 6,000,000 kWhs | D43: ='Rate Design'!G6/100 -> 0.04953 | E43: =F43-D43 -> 0.00244 | F43: ='Rate Design'!G16/100 -> 0.05197 | H43: =K43-D43 -> 0 | I43: =I42 ->  | J43: 0.05197 | K43: ='Rate Design'!G28/100 -> 0.04953 | L43: =L42 ->  | M43: =M42 -> 0.00247 | N43: =J43+L43 ->  | O43: =H43/D43 -> 0 | P43: =H43/F43 -> 0 | R43: =D43+E43-F43 -> 0 | S43: =D43+H43-K43 -> 0 | T43: =F43+H43-J43 -> 0
A44: ="All over "&TEXT('Rate Design'!Q28,"#,##0")&" kWhs" -> All over 6,000,000 kWhs | D44: ='Rate Design'!G7/100 -> 0.04235 | E44: =F44-D44 -> 0.00175 | F44: ='Rate Design'!G17/100 -> 0.0441 | H44: =K44-D44 -> 0 | I44: =I43 ->  | J44: 0.0441 | K44: ='Rate Design'!G29/100 -> 0.04235 | L44: =L42 ->  | M44: =M42 -> 0.00247 | O44: =H44/D44 -> 0 | P44: =H44/F44 -> 0 | R44: =D44+E44-F44 -> 0 | S44: =D44+H44-K44 -> 0 | T44: =F44+H44-J44 -> 0
A45: Demand Charge:
A46: =TEXT('Rate Design'!Q10,"#,##0")&" kva or less" -> 3,000 kva or less | D46: ='Rate Design'!G9 -> 21000 | E46: =F46-D46 -> 0 | F46: ='Rate Design'!G19 -> 21000 | H46: =IF(ROUND(J46-F46,5)<>ROUND(K46-D46,5),#VALUE!,K46-D46) -> 3000 | J46: ='Rate Design'!G41 -> 24000 | K46: ='Rate Design'!G31 -> 24000 | N46: ='Rate Design'!G31 -> 24000 | O46: =H46/D46 -> 0.1428571429 | P46: =H46/F46 -> 0.1428571429
A47: ="Over "&TEXT('Rate Design'!Q10,"#,##0")&" kva" -> Over 3,000 kva | D47: ='Rate Design'!G10 -> 6 | E47: =F47-D47 -> 0 | F47: ='Rate Design'!G20 -> 6 | H47: =IF(ROUND(J47-F47,5)<>ROUND(K47-D47,5),#VALUE!,K47-D47) -> 0.5 | J47: ='Rate Design'!G42 -> 6.5 | K47: ='Rate Design'!G32 -> 6.5 | N47: ='Rate Design'!G32 -> 6.5 | O47: =H47/D47 -> 0.08333333333 | P47: =H47/F47 -> 0.08333333333
A48: Primary Volt. Discount
A49: 11 - 60 kv | D49: 0.2 | E49: =F49-D49 -> 0 | F49: 0.2 | H49: =IF(ROUND(J49-F49,5)<>ROUND(K49-D49,5),#VALUE!,K49-D49) -> 0 | J49: 0.2 | K49: 0.2 | N49: =K49 -> 0.2 | O49: =H49/D49 -> 0 | P49: =H49/F49 -> 0
A50: 60 - 115 kv | D50: 1.1 | E50: =F50-D50 -> 0 | F50: 1.1 | H50: =IF(ROUND(J50-F50,5)<>ROUND(K50-D50,5),#VALUE!,K50-D50) -> 0 | J50: 1.1 | K50: 1.1 | N50: =K50 -> 1.1 | O50: =H50/D50 -> 0 | P50: =H50/F50 -> 0
A51: 115 or higher kv | D51: 1.4 | E51: =F51-D51 -> 0 | F51: 1.4 | H51: =IF(ROUND(J51-F51,5)<>ROUND(K51-D51,5),#VALUE!,K51-D51) -> 0 | J51: 1.4 | K51: 1.4 | N51: 1.4 | O51: =H51/D51 -> 0 | P51: =H51/F51 -> 0
A52: Annual Minimum | D52: Present: | E52: =6000000*D42+5000000*D43+12*F46 -> 829950 | I52: Proposed: | J52: 829950 | N52: =J52 -> 829950 | O52: =J52/E52-1 -> 0
A54: Pumping Service - Schedule 31
A55: Basic Charge | D55: ='Rate Design'!H4 -> 18 | E55: =F55-D55 -> 0 | F55: ='Rate Design'!H14 -> 18 | H55: =IF(ROUND(J55-F55,5)<>ROUND(K55-D55,5),#VALUE!,K55-D55) -> 2 | J55: ='Rate Design'!H36 -> 20 | K55: ='Rate Design'!H26 -> 20 | N55: =K55 -> 20 | O55: =H55/D55 -> 0.1111111111 | P55: =H55/F55 -> 0.1111111111
A56: Energy Charge:
A57: First 85 kW/kWh | D57: ='Rate Design'!H5/100 -> 0.09546 | E57: =F57-D57 -> 0.00416 | F57: ='Rate Design'!H15/100 -> 0.09962 | H57: =K57-D57 -> 0.00166 | I57: =-#REF! ->  | J57: =F57+H57 -> 0.10128 | K57: ='Rate Design'!H27/100 -> 0.09712 | L57: =L16 ->  | M57: =M16 -> 0.00247 | N57: =J57+L57 ->  | O57: =H57/D57 -> 0.01738948251 | P57: =H57/F57 -> 0.01666332062 | R57: =D57+E57-F57 -> 0 | S57: =D57+H57-K57 -> 0 | T57: =F57+H57-J57 -> 0
A58: Next 80 kW/kWh | D58: ='Rate Design'!H5/100 -> 0.09546 | E58: =F57-D57 -> 0.00416 | F58: ='Rate Design'!H15/100 -> 0.09962 | H58: =K57-D57 -> 0.00166 | I58: =I57 ->  | J58: 0.10128 | K58: ='Rate Design'!H27/100 -> 0.09712 | O58: =H58/D58 -> 0.01738948251 | P58: =H58/F58 -> 0.01666332062 | R58: =D58+E58-F58 -> 0 | S58: =D58+H58-K58 -> 0 | T58: =F58+H58-J58 -> 0
A59: All additional kWhs | D59: ='Rate Design'!H6/100 -> 0.06818 | E59: =F59-D59 -> 0.00416 | F59: ='Rate Design'!H16/100 -> 0.07234 | H59: =K59-D59 -> 0.00118 | I59: =I57 ->  | J59: 0.07352 | K59: ='Rate Design'!H28/100 -> 0.06936 | L59: =L57 ->  | M59: =M57 -> 0.00247 | N59: =J59+L59 ->  | O59: =H59/D59 -> 0.01730712819 | P59: =H59/F59 -> 0.01631186066 | R59: =D59+E59-F59 -> 0 | S59: =D59+H59-K59 -> 0 | T59: =F59+H59-J59 -> 0
A63: (1) Includes all present rate adjustments: Schedule 59 (BPA Residential Exchange), Schedule 75 (Decoupling), Schedule 91 (DSM),
A64: Schedule 92 (LIRAP), Schedule 93 (ERM), and Schedule 98 (REC Revenue).

Sheet Rate Spread GRC
A3: Avista
A4: Electric
A5: Rate Spread
D9: Base Tariff | F9: Base
D10: Revenue | E10: Percentage | F10: Tariff | G10: Proposed | H10: Proposed
B11: Type of | C11: Schedule | D11: Under Present | E11: of Base | F11: Percent | G11: General | H11: Base Tariff
A12: No. | B12: Service | C12: Number | D12: Rates(1) | E12: Increase | F12: Increase | G12: Increase | H12: Revenue
B13: (a) | C13: (b) | D13: (c) | E13: (d) | F13: (e) | G13: (f) | H13: (g)
D14: =IF(Base1_Billing2<>1,"ERROR","") -> 
A15: 1 | B15: Residential | C15: 1/2 | D15: ='Pres & Prop Rev'!$D$152/1000 -> 209488.9307 | E15: =ROUND(F15,3)/ROUND(E30,3) -> 1.045454545 | F15: 0.02340810462 | G15: =F15*D15 -> 4903.738807 | H15: =D15+G15+0.3 -> 214392.9695
A17: 2 | B17: General Service | C17: 11/12 | D17: ='Pres & Prop Rev'!$E$152/1000 -> 73765.85187 | E17: 0.8 | F17: =E17*$E$30 -> 0.01749604624 | G17: =F17*D17 -> 1290.610756 | H17: =D17+G17 -> 75056.46263
A19: 3 | B19: Large General Service | C19: 21/22 | D19: ='Pres & Prop Rev'!$F$152/1000 -> 126766.2944 | E19: 1 | F19: =E19*$E$30 -> 0.02187005781 | G19: =F19*D19 -> 2772.386187 | H19: 129538.6806
A21: 4 | B21: Extra Large General Service | C21: 25 | D21: ='Pres & Prop Rev'!$G$152/1000 -> 64348.30152 | E21: 1 | F21: 0.02187005781 | G21: =F21*D21 -> 1407.301074 | H21: =D21+G21-0.2 -> 65755.40259
A23: 5 | B23: Pumping Service | C23: 30/31/32 | D23: ='Pres & Prop Rev'!$H$152/1000 -> 10894.09779 | E23: 1 | F23: 0.02187005781 | G23: 238.2545484 | H23: 11132.35234
A25: 6 | B25: Street & Area Lights | C25: 41-48 | D25: ='Pres & Prop Rev'!$I$152/1000+0.1 -> 6870.56812 | E25: 1 | F25: 0.02187005781 | G25: 150.2597219 | H25: 7020.827842
A27: 7 | B27: Total | D27: =SUM(D15:D25) -> 492134.0445 | F27: =D30/$D$27 -> 0.02187005781 | G27: =SUM(G15:G25) -> 10762.55109 | H27: 502896.5955
D28: =ROUND(D27-'Pres & Prop Rev'!C205/1000,0) -> 0 | G28: =ROUND(G27-D30,0) -> 0
B30: Revenue Requirement | D30: 10763 | E30: =D30/D27 -> 0.02187005781
H31: =G27/511823 -> 0.02102787701

Sheet Bill Determ
A1: AVISTA UTILITIES
A2: WASHINGTON ELECTRIC
A3: ACTUAL / PRO FORMA BILLING DETERMINANTS BY RATE SCHEDULE
A4: 12 MONTHS ENDED DECEMBER 31, 2016
A8: Schedule 1, 2 | B8: 0-800 kWhs | C8: 801-1500 kWhs | D8: over 1500 kWhs | E8: Total kWhs | F8: Total Billings(2)
A9: kWhs per billing run(1) | B9: ='Block Data'!O21 -> 1563076768 | C9: ='Block Data'!O22 -> 458131072 | D9: ='Block Data'!O23 -> 247853663.6 | E9: =B9+C9+D9 -> 2269061504 | F9: ='REVRUNS 12ME1216'!P36 -> 2518371
A10: Total kWhs per Rev. Run(2) | E10: ='Block Data'!O13 -> 2269061504
A11: Adjust. kWhs to Actual | E11: =E10-E9 -> 0
A14: Schedule 11,12 | B14: 0-3,650 kWhs | C14: over 3,650 kWhs | D14: Total kWhs | E14: kw over 20(1) | F14: Total Billings(2) | G14: kvar billed(1)
A15: kWhs per Revenue Run(1) | B15: ='Block Data'!O38 -> 419807178.3 | C15: ='Block Data'!O39 -> 192006795.7 | D15: =B15+C15 -> 611813974 | E15: ='Block Data'!O45 -> 435096.7683 | F15: ='REVRUNS 12ME1216'!P37 -> 375436 | G15: ='Block Data'!O49 -> 13817.3
A16: Shifted from Sch 21 | B16: 0 | C16: 0 | D16: =SUM(B16:C16) -> 0 | E16: 0 | F16: 0 | G16: 0
A17: Total by Block | B17: =SUM(B15:B16) -> 419807178.3 | C17: =SUM(C15:C16) -> 192006795.7 | D17: 611813974 | E17: 435096.7683 | F17: 375436 | G17: 13817.3
A18: Total kWhs per Rev. Run(2) | D18: ='Block Data'!O31 -> 611813974
A19: Schedule Shifting from 21 | D19: =D16 -> 0
A20: Total Adjusted kWhs | D20: =D18+D19 -> 611813974
A21: Adjust. kWhs to Actual | D21: =D20-D17 -> 0
A24: Schedule 21,22 | B24: 0-250,000 kWhs | C24: over 250,000 kWhs | D24: Total kWhs | E24: kw over 50(1) | F24: Total Billings(2) | G24: kvar billed(1)
A25: kWhs per Revenue Run(1) | B25: ='Block Data'!O64 -> 1239435303 | C25: ='Block Data'!O65 -> 158308532.8 | D25: =B25+C25 -> 1397743836 | E25: ='Block Data'!O71 -> 2762242.363 | F25: ='REVRUNS 12ME1216'!P38 -> 22836 | G25: ='Block Data'!O75 -> 248214.16
A26: Special Contract Shifted to Sched 21 | B26: 0 | C26: 0 | D26: =SUM(B26:C26) -> 0 | E26: 0 | F26: 0 | G26: 0
A27: Shifted to Sch 011(4) | B27: =-D16 -> 0 | C27: 0 | D27: =SUM(B27:C27) -> 0 | E27: 0 | F27: =-F16 -> 0 | G27: 0
A28: Total | B28: =SUM(B25:B27) -> 1239435303 | C28: =SUM(C25:C27) -> 158308532.8 | D28: =SUM(B28:C28) -> 1397743836 | E28: =SUM(E25:E27) -> 2762242.363 | F28: =SUM(F25:F27) -> 22836 | G28: =SUM(G25:G27) -> 248214.16
A29: Total kWhs per Rev. Run(2) | D29: ='Block Data'!O57 -> 1397743836
A30: Schedule Shifting to Sch. 21 | D30: =D26 -> 0
A31: Schedule Shifting to Sch. 11 | D31: =D27 -> 0
A32: Total adjusted kWhs | D32: =D29+D30+D31 -> 1397743836
A33: Adjust. kWhs to Actual | D33: =D32-D28 -> 0
A36: Schedule 25(3) | B36: 0-500,000 kWhs | C36: 500,001-6M kWhs | D36: > 6M kWhs | E36: Total kWhs | F36: kva over 3,000 | G36: Total Billings(2)
A37: Total | B37: ='WA Sch 25'!Q25 -> 125975035 | C37: ='WA Sch 25'!R25 -> 560260096 | D37: ='WA Sch 25'!S25 -> 421173027 | E37: =SUM(B37:D37) -> 1107408158 | F37: ='WA Sch 25'!P85 -> 1296625 | G37: =21*12 -> 252
A40: Schedule 30, 31, & 32 | B40: Block 1 kWhs | C40: Block 2 kWhs | D40: Block 3 kWhs | E40: Total kWhs | F40: Total Billings(2) | G40: kvar billed(1)
A41: kWhs per billing run (30,31& 32)(1) | B41: ='Block Data'!O92 -> 36656050.13 | C41: ='Block Data'!O93 -> 11436163.39 | D41: ='Block Data'!O94 -> 85485516.65 | E41: =B41+C41+D41 -> 133577730.2 | F41: ='REVRUNS 12ME1216'!P40 -> 29193 | G41: ='Block Data'!O99 -> 8287.64
A42: Schedule 31 to 30 Shifting Adj | B42: -1484257 | C42: -290165 | D42: =-B42-C42 -> 1774422 | E42: =SUM(B42:D42) -> 0
A43: Total Schs. 30,31&32 | B43: =B41+B42 -> 35171793.13 | C43: 11145998.39 | D43: =D41+D42 -> 87259938.65 | E43: =E41+E42 -> 133577730.2
A44: Total kWhs per Rev. Run(2) | E44: ='Block Data'!O84 -> 133577730.2
A45: Adjust kWhs to Actual | E45: =E44-E43 -> 0
A49: (1) From workpaper PDE-E-22/23
A50: (2) From workpaper PDE-E-19
A51: (3) From workpaper PDE-E-7/8
A62: Revenue Runs from this sheet | B62: =E10+D18+D29+E44+E37 -> 5519605202
A64: actual Revenue Runs | B64: ='REVRUNS 12ME1216'!P275 -> 5541391505
A65: less:
A66: Sch 25 Adj | B66: ='REVRUNS 12ME1216'!P272-'Bill Determ'!E37 -> -1334868 | C66: rev. runs too high
A68: Sch shifting | B68: =D26 -> 0 | C68: not shown on this sheet
A69: Schs 41-48 St & Area Lt | B69: ='REVRUNS 12ME1216'!P274 -> 23121170.8 | C69: not shown on this sheet
B70: =B64-SUM(B66:B69) -> 5519605202
A71: Diff | B71: =B62-B70 -> 0
A73: from Present Rev tab | B73: ='Pres & Prop Rev'!C20-'Pres & Prop Rev'!C15 -> 5542726373
A74: this sheet + SAL | B74: =B62+B69+B68 -> 5542726373
A75: Diff | B75: =B73-B74 -> 0
A78: Rev. Run customers | B78: ='REVRUNS 12ME1216'!P42 -> 2950994
A79: less:
A80: normalize Sch 25 | B80: ='REVRUNS 12ME1216'!P39-G37 -> -2 | C80: rev. runs too low
A81: Sch Shifting | B81: =-F26 -> 0 | C81: not shown on this sheet
A82: Schs 41-48 St & Area Lt | B82: ='REVRUNS 12ME1216'!P41 -> 4908 | C82: not shown on this sheet
B83: =B78-SUM(B79:B82) -> 2946088
A85: from Present Rev tab | B85: =SUM('Pres & Prop Rev'!D25:I25) -> 2946088
A86: Diff | B86: =B83-B85 -> 0

Sheet Sch 25 - Billing Rate
A1: WA 2017 GRC | D1: Billing Rates | J1: =D1 -> Billing Rates
J2: PRESENT RATES | L2: Block1 | M2: Block2 | N2: Block3
A3: PRESENT | J3: Base--> | K3: ='Rate Design'!G9 -> 21000 | L3: ='Rate Design'!G5/100 -> 0.05505 | M3: ='Rate Design'!G6/100 -> 0.04953 | N3: ='Rate Design'!G7/100 -> 0.04235 | O3: ='Rate Design'!G10 -> 6 | P3: -0.2 | Q3: -1.1 | R3: -1.4
C4: Kwh usage | F4: kva usage | G4: KVA usage | J4: Billing--> | K4: ='Rate Design'!G19 -> 21000 | L4: ='Rate Design'!G15/100 -> 0.05749 | M4: ='Rate Design'!G16/100 -> 0.05197 | N4: ='Rate Design'!G17/100 -> 0.0441 | O4: ='Rate Design'!G20 -> 6 | P4: -0.2 | Q4: -1.1 | R4: -1.4
C5: Block1 | D5: Block2 | E5: Block3 | F5: > 3000 | G5: >= 11 kv | H5: >= 60 kv | I5: >= 115 kv | K5: Cust Chg | L5: Energy | O5: Demand | P5: PV Discount | S5: Total
A6: 1 | C6: ='WA Sch 25'!Q4 -> 6000000 | D6: ='WA Sch 25'!R4 -> 64070115 | E6: ='WA Sch 25'!S4 -> 2325531 | F6: ='WA Sch 25'!P64 -> 101638 | G6: ='WA Sch 25'!P39 -> 137638 | K6: =$K$4*12 -> 252000 | L6: =C6*$L$4 -> 344940 | M6: =D6*$M$4 -> 3329723.877 | N6: =E6*$N$4 -> 102555.9171 | O6: =F6*$O$4 -> 609828 | P6: =G6*$P$4 -> -27527.6 | Q6: =H6*$Q$4 -> 0 | R6: =I6*$R$4 -> 0 | S6: =SUM(K6:R6) -> 4611520.194
A7: 2 | C7: ='WA Sch 25'!Q5 -> 6000000 | D7: ='WA Sch 25'!R5 -> 29509714 | E7: ='WA Sch 25'!S5 -> 0 | F7: ='WA Sch 25'!P65 -> 25168 | G7: ='WA Sch 25'!P40 -> 61168 | K7: =$K$4*12 -> 252000 | L7: =C7*$L$4 -> 344940 | M7: =D7*$M$4 -> 1533619.837 | N7: =E7*$N$4 -> 0 | O7: =F7*$O$4 -> 151008 | P7: =G7*$P$4 -> -12233.6 | Q7: =H7*$Q$4 -> 0 | R7: =I7*$R$4 -> 0 | S7: =SUM(K7:R7) -> 2269334.237
A8: 3 | C8: ='WA Sch 25'!Q6 -> 6000000 | D8: ='WA Sch 25'!R6 -> 9708007 | E8: ='WA Sch 25'!S6 -> 0 | F8: ='WA Sch 25'!P66 -> 759 | G8: ='WA Sch 25'!P41 -> 36050 | K8: 252000 | L8: 344940 | M8: 504525.1238 | N8: 0 | O8: 4554 | P8: -7210 | Q8: 0 | R8: 0 | S8: =SUM(K8:R8) -> 1098809.124
A9: 4 | C9: ='WA Sch 25'!Q7 -> 6000000 | D9: ='WA Sch 25'!R7 -> 11077206 | E9: ='WA Sch 25'!S7 -> 0 | F9: ='WA Sch 25'!P67 -> 252 | G9: ='WA Sch 25'!P42 -> 34478 | K9: 252000 | L9: =C9*$L$4 -> 344940 | M9: 575682.3958 | N9: 0 | O9: 1512 | P9: -6895.6 | Q9: 0 | R9: 0 | S9: 1167238.796
A10: 5 | C10: ='WA Sch 25'!Q8 -> 6000000 | D10: ='WA Sch 25'!R8 -> 15884353 | E10: ='WA Sch 25'!S8 -> 0 | F10: ='WA Sch 25'!P68 -> 4225 | G10: ='WA Sch 25'!P43 -> 39707 | K10: 252000 | L10: 344940 | M10: 825509.8254 | N10: 0 | O10: 25350 | P10: -7941.4 | Q10: 0 | R10: 0 | S10: 1439858.425
A11: 6 | C11: ='WA Sch 25'!Q9 -> 6000000 | D11: ='WA Sch 25'!R9 -> 19847780 | E11: ='WA Sch 25'!S9 -> 0 | F11: ='WA Sch 25'!P69 -> 24595 | G11: ='WA Sch 25'!P44 -> 60595 | K11: 252000 | L11: 344940 | M11: 1031489.127 | N11: 0 | O11: 147570 | P11: -12119 | Q11: 0 | R11: 0 | S11: 1763880.127
A12: 7 | C12: ='WA Sch 25'!Q10 -> 6000000 | D12: ='WA Sch 25'!R10 -> 8891049 | E12: ='WA Sch 25'!S10 -> 0 | F12: ='WA Sch 25'!P70 -> 1679 | G12: ='WA Sch 25'!P45 -> 37032 | K12: 252000 | L12: 344940 | M12: 462067.8165 | N12: 0 | O12: 10074 | P12: -7406.4 | Q12: 0 | R12: 0 | S12: 1061675.417
A13: 8 | C13: ='WA Sch 25'!Q11 -> 6000000 | D13: ='WA Sch 25'!R11 -> 5972065 | E13: ='WA Sch 25'!S11 -> 0 | F13: ='WA Sch 25'!P71 -> 14078 | G13: ='WA Sch 25'!P46 -> 50078 | K13: 252000 | L13: =C13*$L$4 -> 344940 | M13: 310368.2181 | N13: 0 | O13: 84468 | P13: -10015.6 | Q13: 0 | R13: 0 | S13: 981760.6181
A14: 9 | C14: ='WA Sch 25'!Q12 -> 6000000 | D14: ='WA Sch 25'!R12 -> 66000000 | E14: ='WA Sch 25'!S12 -> 418825726 | F14: ='WA Sch 25'!P72 -> 709365 | H14: ='WA Sch 25'!P97 -> 115072 | I14: ='WA Sch 25'!P99 -> 630720 | K14: 252000 | L14: 344940 | M14: 3430020 | N14: 18470214.52 | O14: 4256190 | P14: 0 | Q14: -126579.2 | R14: -883008 | S14: 25743777.32
A15: 10 | C15: ='WA Sch 25'!Q13 -> 6000000 | D15: ='WA Sch 25'!R13 -> 53895412 | E15: ='WA Sch 25'!S13 -> 0 | F15: ='WA Sch 25'!P73 -> 63798 | G15: ='WA Sch 25'!P48 -> 99798 | K15: 252000 | L15: 344940 | M15: 2800944.562 | N15: 0 | O15: 382788 | P15: -19959.6 | Q15: 0 | R15: 0 | S15: 3760712.962
A16: 11 | C16: ='WA Sch 25'!Q14 -> 6000000 | D16: ='WA Sch 25'!R14 -> 57237813 | E16: ='WA Sch 25'!S14 -> 21770 | F16: ='WA Sch 25'!P74 -> 72788 | G16: ='WA Sch 25'!P49 -> 108788 | K16: 252000 | L16: 344940 | M16: 2974649.142 | N16: 960.057 | O16: 436728 | P16: -21757.6 | Q16: 0 | R16: 0 | S16: 3987519.599
A17: 12 | C17: ='WA Sch 25'!Q15 -> 6000000 | D17: ='WA Sch 25'!R15 -> 37417583 | E17: ='WA Sch 25'!S15 -> 0 | F17: ='WA Sch 25'!P75 -> 45004 | G17: ='WA Sch 25'!P50 -> 81004 | K17: 252000 | L17: 344940 | M17: 1944591.789 | N17: 0 | O17: 270024 | P17: -16200.8 | Q17: 0 | R17: 0 | S17: 2795354.989
A18: 13 | C18: ='WA Sch 25'!Q16 -> 6000000 | D18: ='WA Sch 25'!R16 -> 6312137 | E18: ='WA Sch 25'!S16 -> 0 | F18: ='WA Sch 25'!P76 -> 118 | G18: ='WA Sch 25'!P51 -> 29301 | K18: 252000 | L18: 344940 | M18: 328041.7599 | N18: 0 | O18: 708 | P18: -5860.2 | Q18: 0 | R18: 0 | S18: 919829.5599
A19: 14 | C19: ='WA Sch 25'!Q17 -> 5975035 | D19: ='WA Sch 25'!R17 -> 3176808 | E19: ='WA Sch 25'!S17 -> 0 | F19: ='WA Sch 25'!P77 -> 36278 | G19: ='WA Sch 25'!P52 -> 72278 | K19: 252000 | L19: 343504.7622 | M19: 165098.7118 | N19: 0 | O19: 217668 | P19: -14455.6 | Q19: 0 | R19: 0 | S19: 963815.8739
A20: 15 | C20: ='WA Sch 25'!Q18 -> 6000000 | D20: ='WA Sch 25'!R18 -> 11776096 | E20: ='WA Sch 25'!S18 -> 0 | F20: ='WA Sch 25'!P78 -> 3821 | G20: ='WA Sch 25'!P53 -> 39821 | K20: 252000 | L20: 344940 | M20: 612003.7091 | N20: 0 | O20: 22926 | P20: -7964.2 | Q20: 0 | R20: 0 | S20: 1223905.509
A21: 16 | C21: ='WA Sch 25'!Q19 -> 6000000 | D21: ='WA Sch 25'!R19 -> 16825191 | E21: ='WA Sch 25'!S19 -> 0 | F21: ='WA Sch 25'!P79 -> 18057 | G21: ='WA Sch 25'!P54 -> 54057 | K21: 252000 | L21: 344940 | M21: 874405.1763 | N21: 0 | O21: 108342 | P21: -10811.4 | Q21: 0 | R21: 0 | S21: 1568875.776
A22: 17 | C22: ='WA Sch 25'!Q20 -> 6000000 | D22: ='WA Sch 25'!R20 -> 20911948 | E22: ='WA Sch 25'!S20 -> 0 | F22: ='WA Sch 25'!P80 -> 13589 | G22: ='WA Sch 25'!P55 -> 49589 | K22: 252000 | L22: 344940 | M22: 1086793.938 | N22: 0 | O22: 81534 | P22: -9917.8 | Q22: 0 | R22: 0 | S22: 1755350.138
A23: 18 | C23: ='WA Sch 25'!Q21 -> 6000000 | D23: ='WA Sch 25'!R21 -> 45318581 | E23: ='WA Sch 25'!S21 -> 0 | F23: ='WA Sch 25'!P81 -> 79433 | G23: ='WA Sch 25'!P56 -> 115433 | K23: 252000 | L23: 344940 | M23: 2355206.655 | N23: 0 | O23: 476598 | P23: -23086.6 | Q23: 0 | R23: 0 | S23: 3405658.055
A24: 19 | C24: ='WA Sch 25'!Q22 -> 6000000 | D24: ='WA Sch 25'!R22 -> 29441051 | E24: ='WA Sch 25'!S22 -> 0 | F24: ='WA Sch 25'!P82 -> 32921 | G24: ='WA Sch 25'!P57 -> 68921 | K24: 252000 | L24: 344940 | M24: 1530051.42 | N24: 0 | O24: 197526 | P24: -13784.2 | Q24: 0 | R24: 0 | S24: 2310733.22
A25: 20 | C25: ='WA Sch 25'!Q23 -> 6000000 | D25: ='WA Sch 25'!R23 -> 23304320 | E25: ='WA Sch 25'!S23 -> 0 | F25: ='WA Sch 25'!P83 -> 20470 | K25: 252000 | L25: 344940 | M25: 1211125.51 | N25: 0 | O25: 122820 | P25: 0 | Q25: 0 | R25: 0 | S25: 1930885.51
A26: 21 | C26: ='WA Sch 25'!Q24 -> 6000000 | D26: ='WA Sch 25'!R24 -> 23682867 | E26: ='WA Sch 25'!S24 -> 0 | F26: ='WA Sch 25'!P84 -> 28589 | K26: 252000 | L26: 344940 | M26: 1230798.598 | N26: 0 | O26: 171534 | P26: 0 | Q26: 0 | R26: 0 | S26: 1999272.598
C27: =SUM(C6:C26) -> 125975035 | D27: 560260096 | E27: 421173027 | F27: 1296625 | G27: 1175736 | H27: 115072 | I27: 630720 | K27: =SUM(K6:K26) -> 5292000 | L27: 7242304.762 | M27: 29116717.19 | N27: 18573730.49 | O27: 7779750 | P27: -235147.2 | Q27: -126579.2 | R27: -883008 | S27: 66759768.04
A30: PROPOSED | J30: PROP. RATES | L30: Block1 | M30: Block2 | N30: Block3
J31: Base--> | K31: ='Rate Design'!G31 -> 24000 | L31: ='Rate Design'!G27/100 -> 0.05505 | M31: ='Rate Design'!G28/100 -> 0.04953 | N31: ='Rate Design'!G29/100 -> 0.04235 | O31: ='Rate Design'!G32 -> 6.5 | P31: -0.2 | Q31: -1.1 | R31: -1.4
J32: Billing--> | K32: ='Rate Design'!G41 -> 24000 | L32: ='Yr 1 RD'!J42 -> 0.05749 | M32: ='Rate Design'!G38/100 -> 0.05197 | N32: ='Rate Design'!G39/100 -> 0.0441 | O32: ='Rate Design'!G42 -> 6.5 | P32: -0.2 | Q32: -1.1 | R32: -1.4 | W32: Dollar Increase
K33: Cust Chg | L33: Energy | O33: Demand | P33: PV Discount | S33: Total | T33: Increase | U33: % D | V33: Cust Charge | W33: 1st Block | X33: 2nd Block | Y33: 3rd Block | Z33: Demand | AA33: Overall
A34: 1 | C34: =C6 -> 6000000 | D34: =D6 -> 64070115 | E34: =E6 -> 2325531 | F34: =F6 -> 101638 | G34: 137638 | H34: 0 | I34: 0 | K34: =$K$32*12 -> 288000 | L34: =C34*$L$32 -> 344940 | M34: =D34*$M$32 -> 3329723.877 | N34: =E34*$N$32 -> 102555.9171 | O34: =F34*$O$32 -> 660647 | P34: =G34*$P$32 -> -27527.6 | Q34: =H34*$Q$32 -> 0 | R34: =I34*$R$32 -> 0 | S34: =SUM(K34:R34) -> 4698339.194 | T34: =S34-S6 -> 86819 | U34: =S34/S6-1 -> 0.01882654664 | V34: =K34-K6 -> 36000 | W34: 0 | X34: 0 | Y34: 0 | Z34: 50819 | AA34: =S34-S6 -> 86819 | AB34: =SUM(V34:Z34)-AA34 -> 0
A35: 2 | C35: =C7 -> 6000000 | D35: 29509714 | E35: 0 | F35: 25168 | G35: 61168 | H35: 0 | I35: 0 | K35: =$K$32*12 -> 288000 | L35: =C35*$L$32 -> 344940 | M35: =D35*$M$32 -> 1533619.837 | N35: =E35*$N$32 -> 0 | O35: =F35*$O$32 -> 163592 | P35: =G35*$P$32 -> -12233.6 | Q35: =H35*$Q$32 -> 0 | R35: =I35*$R$32 -> 0 | S35: =SUM(K35:R35) -> 2317918.237 | T35: =S35-S7 -> 48584 | U35: 0.02140892215 | V35: 36000 | W35: 0 | X35: 0 | Y35: 0 | Z35: 12584 | AA35: 48584 | AB35: =SUM(V35:Z35)-AA35 -> 0
A36: 3 | C36: 6000000 | D36: 9708007 | E36: 0 | F36: 759 | G36: 36050 | H36: 0 | I36: 0 | K36: 288000 | L36: 344940 | M36: 504525.1238 | N36: 0 | O36: 4933.5 | P36: -7210 | Q36: 0 | R36: 0 | S36: =SUM(K36:R36) -> 1135188.624 | T36: 36379.5 | U36: 0.03310811606 | V36: 36000 | W36: 0 | X36: 0 | Y36: 0 | Z36: 379.5 | AA36: 36379.5 | AB36: 0
A37: 4 | C37: 6000000 | D37: 11077206 | E37: 0 | F37: 252 | G37: 34478 | H37: 0 | I37: 0 | K37: 288000 | L37: 344940 | M37: 575682.3958 | N37: 0 | O37: 1638 | P37: -6895.6 | Q37: 0 | R37: 0 | S37: 1203364.796 | T37: 36126 | U37: 0.03094996511 | V37: 36000 | W37: 0 | X37: 0 | Y37: 0 | Z37: 126 | AA37: 36126 | AB37: 0
A38: 5 | C38: 6000000 | D38: 15884353 | E38: 0 | F38: 4225 | G38: 39707 | H38: 0 | I38: 0 | K38: 288000 | L38: 344940 | M38: 825509.8254 | N38: 0 | O38: 27462.5 | P38: -7941.4 | Q38: 0 | R38: 0 | S38: 1477970.925 | T38: 38112.5 | U38: 0.02646961627 | V38: 36000 | W38: 0 | X38: 0 | Y38: 0 | Z38: 2112.5 | AA38: 38112.5 | AB38: 0
A39: 6 | C39: 6000000 | D39: 19847780 | E39: 0 | F39: 24595 | G39: 60595 | H39: 0 | I39: 0 | K39: 288000 | L39: 344940 | M39: 1031489.127 | N39: 0 | O39: 159867.5 | P39: -12119 | Q39: 0 | R39: 0 | S39: 1812177.627 | T39: 48297.5 | U39: 0.02738139586 | V39: 36000 | W39: 0 | X39: 0 | Y39: 0 | Z39: 12297.5 | AA39: 48297.5 | AB39: 0
A40: 7 | C40: 6000000 | D40: 8891049 | E40: 0 | F40: 1679 | G40: 37032 | H40: 0 | I40: 0 | K40: 288000 | L40: 344940 | M40: 462067.8165 | N40: 0 | O40: 10913.5 | P40: -7406.4 | Q40: 0 | R40: 0 | S40: 1098514.917 | T40: 36839.5 | U40: 0.03469940005 | V40: 36000 | W40: 0 | X40: 0 | Y40: 0 | Z40: 839.5 | AA40: 36839.5 | AB40: 0
A41: 8 | C41: 6000000 | D41: 5972065 | E41: 0 | F41: 14078 | G41: 50078 | H41: 0 | I41: 0 | K41: 288000 | L41: 344940 | M41: 310368.2181 | N41: 0 | O41: 91507 | P41: -10015.6 | Q41: 0 | R41: 0 | S41: 1024799.618 | T41: 43039 | U41: 0.04383858876 | V41: 36000 | W41: 0 | X41: 0 | Y41: 0 | Z41: 7039 | AA41: 43039 | AB41: 0
A42: 9 | C42: 6000000 | D42: 66000000 | E42: 418825726 | F42: 709365 | G42: 0 | H42: 115072 | I42: 630720 | K42: 288000 | L42: 344940 | M42: 3430020 | N42: 18470214.52 | O42: 4610872.5 | P42: 0 | Q42: -126579.2 | R42: -883008 | S42: 26134459.82 | T42: 390682.5 | U42: =S42/S14-1 -> 0.01517580327 | V42: 36000 | W42: 0 | X42: 0 | Y42: 0 | Z42: 354682.5 | AA42: 390682.5 | AB42: 0
A43: 10 | C43: 6000000 | D43: 53895412 | E43: 0 | F43: 63798 | G43: 99798 | H43: 0 | I43: 0 | K43: 288000 | L43: 344940 | M43: 2800944.562 | N43: 0 | O43: 414687 | P43: -19959.6 | Q43: 0 | R43: 0 | S43: 3828611.962 | T43: 67899 | U43: 0.01805482117 | V43: 36000 | W43: 0 | X43: 0 | Y43: 0 | Z43: 31899 | AA43: 67899 | AB43: 0
A44: 11 | C44: 6000000 | D44: 57237813 | E44: 21770 | F44: 72788 | G44: 108788 | H44: 0 | I44: 0 | K44: 288000 | L44: 344940 | M44: 2974649.142 | N44: 960.057 | O44: 473122 | P44: -21757.6 | Q44: 0 | R44: 0 | S44: 4059913.599 | T44: 72394 | U44: 0.01815514588 | V44: 36000 | W44: 0 | X44: 0 | Y44: 0 | Z44: 36394 | AA44: 72394 | AB44: 0
A45: 12 | C45: 6000000 | D45: 37417583 | E45: 0 | F45: 45004 | G45: 81004 | H45: 0 | I45: 0 | K45: 288000 | L45: 344940 | M45: 1944591.789 | N45: 0 | O45: 292526 | P45: -16200.8 | Q45: 0 | R45: 0 | S45: 2853856.989 | T45: 58502 | U45: 0.02092829005 | V45: 36000 | W45: 0 | X45: 0 | Y45: 0 | Z45: 22502 | AA45: 58502 | AB45: 0
A46: 13 | C46: 6000000 | D46: 6312137 | E46: 0 | F46: 118 | G46: 29301 | H46: 0 | I46: 0 | K46: 288000 | L46: 344940 | M46: 328041.7599 | N46: 0 | O46: 767 | P46: -5860.2 | Q46: 0 | R46: 0 | S46: 955888.5599 | T46: 36059 | U46: 0.03920182779 | V46: 36000 | W46: 0 | X46: 0 | Y46: 0 | Z46: 59 | AA46: 36059 | AB46: 0
A47: 14 | C47: 5975035 | D47: 3176808 | E47: 0 | F47: 36278 | G47: 72278 | H47: 0 | I47: 0 | K47: 288000 | L47: 343504.7622 | M47: 165098.7118 | N47: 0 | O47: 235807 | P47: -14455.6 | Q47: 0 | R47: 0 | S47: 1017954.874 | T47: 54139 | U47: 0.05617151726 | V47: 36000 | W47: 0 | X47: 0 | Y47: 0 | Z47: 18139 | AA47: 54139 | AB47: 0
A48: 15 | C48: 6000000 | D48: 11776096 | E48: 0 | F48: 3821 | G48: 39821 | H48: 0 | I48: 0 | K48: 288000 | L48: 344940 | M48: 612003.7091 | N48: 0 | O48: 24836.5 | P48: -7964.2 | Q48: 0 | R48: 0 | S48: 1261816.009 | T48: 37910.5 | U48: 0.03097502194 | V48: 36000 | W48: 0 | X48: 0 | Y48: 0 | Z48: 1910.5 | AA48: 37910.5 | AB48: 0
A49: 16 | C49: 6000000 | D49: 16825191 | E49: 0 | F49: 18057 | G49: 54057 | H49: 0 | I49: 0 | K49: 288000 | L49: 344940 | M49: 874405.1763 | N49: 0 | O49: 117370.5 | P49: -10811.4 | Q49: 0 | R49: 0 | S49: 1613904.276 | T49: 45028.5 | U49: 0.02870112515 | V49: 36000 | W49: 0 | X49: 0 | Y49: 0 | Z49: 9028.5 | AA49: 45028.5 | AB49: 0
A50: 17 | C50: 6000000 | D50: 20911948 | E50: 0 | F50: 13589 | G50: 49589 | H50: 0 | I50: 0 | K50: 288000 | L50: 344940 | M50: 1086793.938 | N50: 0 | O50: 88328.5 | P50: -9917.8 | Q50: 0 | R50: 0 | S50: 1798144.638 | T50: 42794.5 | U50: 0.02437946657 | V50: 36000 | W50: 0 | X50: 0 | Y50: 0 | Z50: 6794.5 | AA50: 42794.5 | AB50: 0
A51: 18 | C51: =C23 -> 6000000 | D51: 45318581 | E51: 0 | F51: 79433 | G51: 115433 | H51: 0 | I51: 0 | K51: 288000 | L51: 344940 | M51: 2355206.655 | N51: 0 | O51: 516314.5 | P51: -23086.6 | Q51: 0 | R51: 0 | S51: 3481374.555 | T51: 75716.5 | U51: 0.02223256087 | V51: 36000 | W51: 0 | X51: 0 | Y51: 0 | Z51: 39716.5 | AA51: 75716.5 | AB51: 0
A52: 19 | C52: 6000000 | D52: 29441051 | E52: 0 | F52: 32921 | G52: 68921 | H52: 0 | I52: 0 | K52: 288000 | L52: 344940 | M52: 1530051.42 | N52: 0 | O52: 213986.5 | P52: -13784.2 | Q52: 0 | R52: 0 | S52: 2363193.72 | T52: 52460.5 | U52: 0.02270296698 | V52: 36000 | W52: 0 | X52: 0 | Y52: 0 | Z52: 16460.5 | AA52: 52460.5 | AB52: 0
A53: 20 | C53: 6000000 | D53: 23304320 | E53: 0 | F53: 20470 | G53: 0 | H53: 0 | I53: 0 | K53: 288000 | L53: 344940 | M53: 1211125.51 | N53: 0 | O53: 133055 | P53: 0 | Q53: 0 | R53: 0 | S53: 1977120.51 | T53: 46235 | U53: 0.02394497227 | V53: 36000 | W53: 0 | X53: 0 | Y53: 0 | Z53: 10235 | AA53: 46235 | AB53: 0
A54: 21 | C54: 6000000 | D54: 23682867 | E54: 0 | F54: 28589 | G54: 0 | H54: 0 | I54: 0 | K54: 288000 | L54: 344940 | M54: 1230798.598 | N54: 0 | O54: 185828.5 | P54: 0 | Q54: 0 | R54: 0 | S54: 2049567.098 | T54: 50294.5 | U54: 0.02515639941 | V54: 36000 | W54: 0 | X54: 0 | Y54: 0 | Z54: 14294.5 | AA54: 50294.5 | AB54: 0
C55: =SUM(C34:C54) -> 125975035 | D55: 560260096 | E55: 421173027 | F55: 1296625 | G55: 1175736 | H55: 115072 | I55: 630720 | K55: =SUM(K34:K54) -> 6048000 | L55: 7242304.762 | M55: 29116717.19 | N55: 18573730.49 | O55: 8428062.5 | P55: -235147.2 | Q55: -126579.2 | R55: -883008 | S55: 68164080.54 | T55: 1404312.5 | U55: 0.02103531125 | V55: 756000 | W55: 0 | X55: 0 | Y55: 0 | Z55: 648312.5 | AA55: 1404312.5 | AB55: =SUM(V55:Z55)-AA55 -> -7.450580597e-09
AA56: =S55-S27-AA55 -> 0
D61: 2018

Sheet Bill Impact
A3: Schedule 001 Bill Impact
A7: Schedule 001 Present | G7: Schedule 001 Proposed
B8: Basic Charge | C8: Block 1 | D8: Block 2 | E8: Total Bill | G8: Basic Charge | H8: Block 1 | I8: Block 2 | J8: Total Bill | L8: Bill Impact | M8: % Change
B9: ='Yr 1 RD'!D14 -> 8.5 | C9: ='Yr 1 RD'!F16 -> 0.08146 | D9: ='Yr 1 RD'!F17 -> 0.09354 | G9: ='Yr 1 RD'!N14 -> 9 | H9: ='Yr 1 RD'!J16 -> 0.08289 | I9: ='Yr 1 RD'!J17 -> 0.09521
A10: 100 | B10: =$B$9 -> 8.5 | C10: =A10*$C$9 -> 8.146 | E10: =SUM(B10:D10) -> 16.646 | G10: =$G$9 -> 9 | H10: =A10*$H$9 -> 8.289 | J10: =SUM(G10:I10) -> 17.289 | L10: =J10-E10 -> 0.643 | M10: =L10/E10 -> 0.03862789859
A11: 200 | B11: =$B$9 -> 8.5 | C11: =A11*$C$9 -> 16.292 | E11: =SUM(B11:D11) -> 24.792 | G11: =$G$9 -> 9 | H11: =A11*$H$9 -> 16.578 | J11: =SUM(G11:I11) -> 25.578 | L11: =J11-E11 -> 0.786 | M11: =L11/E11 -> 0.03170377541
A12: 300 | B12: 8.5 | C12: 24.438 | E12: 32.938 | G12: 9 | H12: 24.867 | J12: 33.867 | L12: 0.929 | M12: 0.02820450543
A13: 400 | B13: 8.5 | C13: 32.584 | E13: 41.084 | G13: 9 | H13: 33.156 | J13: 42.156 | L13: 1.072 | M13: 0.02609288287
A14: 500 | B14: 8.5 | C14: 40.73 | E14: 49.23 | G14: 9 | H14: 41.445 | J14: 50.445 | L14: 1.215 | M14: 0.02468007313
A15: 600 | B15: =$B$9 -> 8.5 | C15: =A15*$C$9 -> 48.876 | E15: =SUM(B15:D15) -> 57.376 | G15: =$G$9 -> 9 | H15: =A15*$H$9 -> 49.734 | J15: =SUM(G15:I15) -> 58.734 | L15: 1.358 | M15: =L15/E15 -> 0.02366843279
A16: 700 | B16: 8.5 | C16: =A16*$C$9 -> 57.022 | E16: =SUM(B16:D16) -> 65.522 | G16: 9 | H16: =A16*$H$9 -> 58.023 | J16: =SUM(G16:I16) -> 67.023 | L16: 1.501 | M16: =L16/E16 -> 0.02290833613
A17: 800 | B17: 8.5 | C17: =A17*$C$9 -> 65.168 | E17: 73.668 | G17: 9 | H17: =A17*$H$9 -> 66.312 | J17: 75.312 | L17: 1.644 | M17: 0.02231633817
A18: =ROUND('Pres & Prop Rev'!D46/'Pres & Prop Rev'!D48,0) -> 938 | B18: 8.5 | C18: =ROUND($C$17,2) -> 65.17 | D18: =ROUND((A18-$A$17)*$D$9,2) -> 12.91 | E18: 86.58 | G18: 9 | H18: =ROUND($H$17,2) -> 66.31 | I18: =ROUND((A18-$A$17)*$I$9,2) -> 13.14 | J18: =SUM(G18:I18) -> 88.45 | L18: 1.87 | M18: 0.0215985216 | P18: 957 2016 case
A19: 1000 | B19: 8.5 | C19: =ROUND($C$17,2) -> 65.17 | D19: =ROUND((A19-$A$17)*$D$9,2) -> 18.71 | E19: 92.38 | G19: 9 | H19: =ROUND($H$17,2) -> 66.31 | I19: =ROUND((A19-$A$17)*$I$9,2) -> 19.04 | J19: 94.35 | L19: 1.97 | M19: 0.02132496211
A20: 1100 | B20: 8.5 | C20: =$C$17 -> 65.168 | D20: =(A20-$A$17)*$D$9 -> 28.062 | E20: =SUM(B20:D20) -> 101.73 | G20: 9 | H20: =$H$17 -> 66.312 | I20: =(A20-$A$17)*$I$9 -> 28.563 | J20: =SUM(G20:I20) -> 103.875 | L20: 2.145 | M20: =L20/E20 -> 0.0210852256
A21: 1200 | B21: 8.5 | C21: 65.168 | D21: =(A21-$A$17)*$D$9 -> 37.416 | E21: 111.084 | G21: 9 | H21: 66.312 | I21: =(A21-$A$17)*$I$9 -> 38.084 | J21: 113.396 | L21: 2.312 | M21: 0.02081307839
A22: 1300 | B22: 8.5 | C22: 65.168 | D22: =(A22-$A$17)*$D$9 -> 46.77 | E22: =SUM(B22:D22) -> 120.438 | G22: 9 | H22: 66.312 | I22: =(A22-$A$17)*$I$9 -> 47.605 | J22: =SUM(G22:I22) -> 122.917 | L22: 2.479 | M22: =L22/E22 -> 0.02058320464
A23: 1400 | B23: 8.5 | C23: 65.168 | D23: =(A23-$A$17)*$D$9 -> 56.124 | E23: 129.792 | G23: 9 | H23: 66.312 | I23: 57.126 | J23: 132.438 | L23: 2.646 | M23: 0.0203864645
A24: 1500 | B24: 8.5 | C24: 65.168 | D24: 65.478 | E24: 139.146 | G24: 9 | H24: 66.312 | I24: 66.647 | J24: 141.959 | L24: 2.813 | M24: 0.02021617582

Sheet WA Sch 25
A1: Washington Schedule 25 Billing Determinants | Q1: 1st | R1: =Q2 -> 500000 | S1: =R2 -> 6000000
P2: 12-mo Ended | Q2: 500000 | R2: 6000000 | S2: 99999999
A3: KWHs | C3: Acct No. | D3: 2016-01-01 | E3: 2016-02-01 | F3: 2016-03-01 | G3: 2016-04-01 | H3: 2016-05-01 | I3: 2016-06-01 | J3: 2016-07-01 | K3: 2016-08-01 | L3: 2016-09-01 | M3: 2016-10-01 | N3: 2016-11-01 | O3: 2016-12-01 | P3: Total | Q3: kwhs/mo | R3: kwhs/mo | S3: kwhs/mo
A4: 1 | D4: 5944684 | E4: 5687484 | F4: 5985071 | G4: 6549182 | H4: 6748753 | I4: 6526653 | J4: 6417310 | K4: 6083633 | L4: 5148267 | M4: 5901483 | N4: 5729997 | O4: 5673129 | P4: =SUM(D4:O4) -> 72395646 | Q4: =Q$2*12-SUMPRODUCT(--($D4:$O4<=Q$2),Q$2-$D4:$O4) -> 6000000 | R4: =R$2*12-SUM($Q4:Q4)-SUMPRODUCT(--($D4:$O4<=R$2),R$2-$D4:$O4) -> 64070115 | S4: =S$2*12-SUM($Q4:R4)-SUMPRODUCT(--($D4:$O4<=S$2),S$2-$D4:$O4) -> 2325531
A5: 2 | D5: 3318907 | E5: 3067797 | F5: 3266613 | G5: 3135564 | H5: 3094136 | I5: 2916467 | J5: 2561194 | K5: 3042291 | L5: 2878151 | M5: 3102477 | N5: 2989875 | O5: 2136242 | P5: 35509714 | Q5: =Q$2*12-SUMPRODUCT(--($D5:$O5<=Q$2),Q$2-$D5:$O5) -> 6000000 | R5: =R$2*12-SUM($Q5:Q5)-SUMPRODUCT(--($D5:$O5<=R$2),R$2-$D5:$O5) -> 29509714 | S5: =S$2*12-SUM($Q5:R5)-SUMPRODUCT(--($D5:$O5<=S$2),S$2-$D5:$O5) -> 0
A6: 3 | D6: 1391295 | E6: 1338046 | F6: 1435413 | G6: 1294216 | H6: 1271885 | I6: 1269992 | J6: 1155249 | K6: 1299417 | L6: 1165206 | M6: 1334945 | N6: 1288563 | O6: 1463780 | P6: 15708007 | Q6: 6000000 | R6: =R$2*12-SUM($Q6:Q6)-SUMPRODUCT(--($D6:$O6<=R$2),R$2-$D6:$O6) -> 9708007 | S6: =S$2*12-SUM($Q6:R6)-SUMPRODUCT(--($D6:$O6<=S$2),S$2-$D6:$O6) -> 0
A7: 4 | D7: 1524703 | E7: 1444680 | F7: 1624936 | G7: 1407048 | H7: 1463662 | I7: 1355193 | J7: 1380866 | K7: 1342047 | L7: 1347433 | M7: 1373049 | N7: 1331770 | O7: 1481819 | P7: 17077206 | Q7: 6000000 | R7: =R$2*12-SUM($Q7:Q7)-SUMPRODUCT(--($D7:$O7<=R$2),R$2-$D7:$O7) -> 11077206 | S7: =S$2*12-SUM($Q7:R7)-SUMPRODUCT(--($D7:$O7<=S$2),S$2-$D7:$O7) -> 0
A8: 5 | D8: 1786888 | E8: 1658540 | F8: 1754416 | G8: =3398446/2 -> 1699223 | H8: 1746020 | I8: 1867767 | J8: 2095195 | K8: 2175778 | L8: 1891955 | M8: 1730020 | N8: 1647544 | O8: 1831007 | P8: 21884353 | Q8: 6000000 | R8: =R$2*12-SUM($Q8:Q8)-SUMPRODUCT(--($D8:$O8<=R$2),R$2-$D8:$O8) -> 15884353 | S8: =S$2*12-SUM($Q8:R8)-SUMPRODUCT(--($D8:$O8<=S$2),S$2-$D8:$O8) -> 0
A9: 6 | D9: 2533401 | E9: 2374439 | F9: 2214996 | G9: 2190303 | H9: 1790029 | I9: 1806344 | J9: 1943192 | K9: 2097057 | L9: 2140090 | M9: 2146021 | N9: 2109106 | O9: 2502802 | P9: 25847780 | Q9: 6000000 | R9: =R$2*12-SUM($Q9:Q9)-SUMPRODUCT(--($D9:$O9<=R$2),R$2-$D9:$O9) -> 19847780 | S9: =S$2*12-SUM($Q9:R9)-SUMPRODUCT(--($D9:$O9<=S$2),S$2-$D9:$O9) -> 0
A10: 7 | D10: 1162921 | E10: 1100126 | F10: 1190907 | G10: 1174055 | H10: 1233770 | I10: 1282205 | J10: 1351577 | K10: =2826266/2 -> 1413133 | L10: 1252964 | M10: 1260417 | N10: 1245332 | O10: 1223642 | P10: 14891049 | Q10: 6000000 | R10: =R$2*12-SUM($Q10:Q10)-SUMPRODUCT(--($D10:$O10<=R$2),R$2-$D10:$O10) -> 8891049 | S10: =S$2*12-SUM($Q10:R10)-SUMPRODUCT(--($D10:$O10<=S$2),S$2-$D10:$O10) -> 0
A11: 8 | D11: 944398 | E11: 957525 | F11: 1024816 | G11: 962599 | H11: 1036847 | I11: 1060165 | J11: 952716 | K11: 1102772 | L11: 996321 | M11: 997912 | N11: 947847 | O11: 988147 | P11: 11972065 | Q11: 6000000 | R11: =R$2*12-SUM($Q11:Q11)-SUMPRODUCT(--($D11:$O11<=R$2),R$2-$D11:$O11) -> 5972065 | S11: =S$2*12-SUM($Q11:R11)-SUMPRODUCT(--($D11:$O11<=S$2),S$2-$D11:$O11) -> 0
A12: 9 | D12: 40156324 | E12: 38595590 | F12: 42858412 | G12: 39518398 | H12: 42567916 | I12: 40722854 | J12: 41564086 | K12: 42434260 | L12: 40156422 | M12: 41355664 | N12: 39354180 | O12: 41541620 | P12: 490825726 | Q12: 6000000 | R12: =R$2*12-SUM($Q12:Q12)-SUMPRODUCT(--($D12:$O12<=R$2),R$2-$D12:$O12) -> 66000000 | S12: =S$2*12-SUM($Q12:R12)-SUMPRODUCT(--($D12:$O12<=S$2),S$2-$D12:$O12) -> 418825726
A13: 10 | D13: 4828551 | E13: 4976786 | F13: 4437300 | G13: 5164449 | H13: 4603628 | I13: 5476325 | J13: 4970334 | K13: 5498535 | L13: 5105247 | M13: 5327666 | N13: 4559348 | O13: 4947243 | P13: 59895412 | Q13: 6000000 | R13: =R$2*12-SUM($Q13:Q13)-SUMPRODUCT(--($D13:$O13<=R$2),R$2-$D13:$O13) -> 53895412 | S13: =S$2*12-SUM($Q13:R13)-SUMPRODUCT(--($D13:$O13<=S$2),S$2-$D13:$O13) -> 0
A14: 11 | D14: 5708629 | E14: 5073746 | F14: 4884253 | G14: 3788691 | H14: 5792875 | I14: 5346970 | J14: 5592451 | K14: 5479578 | L14: 5385083 | M14: 6021770 | N14: 5153310 | O14: 5032227 | P14: 63259583 | Q14: 6000000 | R14: =R$2*12-SUM($Q14:Q14)-SUMPRODUCT(--($D14:$O14<=R$2),R$2-$D14:$O14) -> 57237813 | S14: =S$2*12-SUM($Q14:R14)-SUMPRODUCT(--($D14:$O14<=S$2),S$2-$D14:$O14) -> 21770
A15: 12 | D15: 3325707 | E15: 3111798 | F15: 3298293 | G15: 3530120 | H15: 3848439 | I15: 4059804 | J15: 4394315 | K15: 4506428 | L15: 3658930 | M15: 3324182 | N15: 3110340 | O15: 3249227 | P15: 43417583 | Q15: 6000000 | R15: =R$2*12-SUM($Q15:Q15)-SUMPRODUCT(--($D15:$O15<=R$2),R$2-$D15:$O15) -> 37417583 | S15: =S$2*12-SUM($Q15:R15)-SUMPRODUCT(--($D15:$O15<=S$2),S$2-$D15:$O15) -> 0
A16: 13 | D16: 967044 | E16: 884257 | F16: 942950 | G16: 1010835 | H16: 988642 | I16: 1165546 | J16: 1218399 | K16: 1255149 | L16: 1060865 | M16: 965933 | N16: 906226 | O16: 946291 | P16: 12312137 | Q16: 6000000 | R16: =R$2*12-SUM($Q16:Q16)-SUMPRODUCT(--($D16:$O16<=R$2),R$2-$D16:$O16) -> 6312137 | S16: =S$2*12-SUM($Q16:R16)-SUMPRODUCT(--($D16:$O16<=S$2),S$2-$D16:$O16) -> 0
A17: 14 | D17: 475035 | E17: 559973 | F17: 677314 | G17: 638813 | H17: 986767 | I17: 1004685 | J17: 902201 | K17: 994934 | L17: 643931 | M17: 663210 | N17: 750804 | O17: 854176 | P17: 9151843 | Q17: 5975035 | R17: =R$2*12-SUM($Q17:Q17)-SUMPRODUCT(--($D17:$O17<=R$2),R$2-$D17:$O17) -> 3176808 | S17: =S$2*12-SUM($Q17:R17)-SUMPRODUCT(--($D17:$O17<=S$2),S$2-$D17:$O17) -> 0
A18: 15 | D18: 1373614 | E18: 1378805 | F18: 1481634 | G18: 1518682 | H18: 1643792 | I18: 1827424 | J18: 1681268 | K18: 1701538 | L18: 1395836 | M18: 1387214 | N18: 1215619 | O18: 1170670 | P18: 17776096 | Q18: 6000000 | R18: =R$2*12-SUM($Q18:Q18)-SUMPRODUCT(--($D18:$O18<=R$2),R$2-$D18:$O18) -> 11776096 | S18: =S$2*12-SUM($Q18:R18)-SUMPRODUCT(--($D18:$O18<=S$2),S$2-$D18:$O18) -> 0
A19: 16 | D19: 2077852 | E19: 2003596 | F19: 2099720 | G19: 1190145 | H19: 1970427 | I19: 2019410 | J19: 1125068 | K19: 2138590 | L19: 1879069 | M19: 1940221 | N19: 2114672 | O19: 2266421 | P19: 22825191 | Q19: 6000000 | R19: =R$2*12-SUM($Q19:Q19)-SUMPRODUCT(--($D19:$O19<=R$2),R$2-$D19:$O19) -> 16825191 | S19: =S$2*12-SUM($Q19:R19)-SUMPRODUCT(--($D19:$O19<=S$2),S$2-$D19:$O19) -> 0
A20: 17 | D20: 2449742 | E20: 2134132 | F20: 2212706 | G20: 2116016 | H20: 2091258 | I20: 2024557 | J20: 2032302 | K20: 2158419 | L20: =4290250/2 -> 2145125 | M20: 2279911 | N20: 2347957 | O20: 2919823 | P20: 26911948 | Q20: 6000000 | R20: =R$2*12-SUM($Q20:Q20)-SUMPRODUCT(--($D20:$O20<=R$2),R$2-$D20:$O20) -> 20911948 | S20: =S$2*12-SUM($Q20:R20)-SUMPRODUCT(--($D20:$O20<=S$2),S$2-$D20:$O20) -> 0
A21: 18 | D21: 4151290 | E21: 3890795 | F21: 4182678 | G21: 3932018 | H21: 4128258 | I21: 4392432 | J21: 4639573 | K21: 5108907 | L21: 4399998 | M21: 4158350 | N21: 3940889 | O21: 4393393 | P21: 51318581 | Q21: 6000000 | R21: =R$2*12-SUM($Q21:Q21)-SUMPRODUCT(--($D21:$O21<=R$2),R$2-$D21:$O21) -> 45318581 | S21: =S$2*12-SUM($Q21:R21)-SUMPRODUCT(--($D21:$O21<=S$2),S$2-$D21:$O21) -> 0
A22: 19 | D22: 3214478 | E22: 2914506 | F22: 2997922 | G22: 2915069 | H22: 2848536 | I22: 2655101 | J22: 2759862 | K22: 2726867 | L22: 2799980 | M22: 3068028 | N22: 3094938 | O22: 3445764 | P22: 35441051 | Q22: 6000000 | R22: =R$2*12-SUM($Q22:Q22)-SUMPRODUCT(--($D22:$O22<=R$2),R$2-$D22:$O22) -> 29441051 | S22: =S$2*12-SUM($Q22:R22)-SUMPRODUCT(--($D22:$O22<=S$2),S$2-$D22:$O22) -> 0
A23: 20 | D23: 2625512 | E23: 2491448 | F23: 2636456 | G23: 2383136 | H23: 2320920 | I23: 2227080 | J23: 2222552 | K23: 2370400 | L23: 2355064 | M23: 2507680 | N23: 2420592 | O23: 2743480 | P23: 29304320 | Q23: 6000000 | R23: =R$2*12-SUM($Q23:Q23)-SUMPRODUCT(--($D23:$O23<=R$2),R$2-$D23:$O23) -> 23304320 | S23: =S$2*12-SUM($Q23:R23)-SUMPRODUCT(--($D23:$O23<=S$2),S$2-$D23:$O23) -> 0
A24: 21 | D24: 2259032 | E24: 2151344 | F24: 2165512 | G24: 2438288 | H24: 2344016 | I24: 2659968 | J24: 3002488 | K24: 3390624 | L24: 2637832 | M24: 2313088 | N24: 2057793 | O24: 2262882 | P24: 29682867 | Q24: 6000000 | R24: =R$2*12-SUM($Q24:Q24)-SUMPRODUCT(--($D24:$O24<=R$2),R$2-$D24:$O24) -> 23682867 | S24: =S$2*12-SUM($Q24:R24)-SUMPRODUCT(--($D24:$O24<=S$2),S$2-$D24:$O24) -> 0
B25: Schedule 25 Total | D25: =SUM(D4:D24) -> 92220007 | E25: 87795413 | F25: 93372318 | G25: 88556850 | H25: 94520576 | I25: 93666942 | J25: 93962198 | K25: 98320357 | L25: 90443769 | M25: 93159241 | N25: 88316702 | O25: 93073785 | P25: =IF(ROUND(SUM(P4:P24),0)<>ROUND(SUM(D25:O25),0),#VALUE!,SUM(P4:P24)) -> 1107408158 | Q25: =SUM(Q4:Q24) -> 125975035 | R25: =SUM(R4:R24) -> 560260096 | S25: =SUM(S4:S24) -> 421173027
S26: =SUM(Q25:S25) -> 1107408158
B27: Revenue Run Total | D27: 93759560 | E27: 89320116 | F27: 92724920 | G27: 81644231 | H27: 98986457 | I27: 55033539 | J27: 135689737 | K27: 98320357 | L27: 86043771 | M27: 91087801 | N27: 88451909 | O27: 95010892 | P27: =SUM(D27:O27) -> 1106073290
B28: Booked Unbilled Reversal | D28: -2654594 | E28: -1524703 | F28: 0 | G28: 952096 | H28: 3247263 | I28: 41610047 | J28: 0 | K28: 0 | L28: 4399998 | M28: 6727326 | N28: 6387957 | O28: 4573701 | P28: =SUM(D28:O28) -> 63719091
B29: Gross Booked Unbilled | D29: 1524703 | E29: 0 | F29: 0 | G29: 0 | H29: -952096 | I29: -3247263 | J29: -41610047 | K29: 0 | L29: 0 | M29: -4399998 | N29: -6727326 | O29: -6387957 | P29: -61799984
B30: Gross Unbilled True-up | D30: 0 | E30: 0 | F30: 647398 | G30: 6607921 | H30: -153127 | I30: 117492 | J30: 0 | K30: 0 | L30: 0 | M30: -255888 | N30: -51726 | O30: -174577 | P30: 6737493
B31: Unbilled Reversal True-up | D31: -409662 | E31: 0 | F31: 0 | G31: -647398 | H31: -6607921 | I31: 153127 | J31: -117492 | K31: 0 | L31: 0 | N31: 255888 | O31: 51726 | P31: -7321732
P32: 0
P33: 0
B34: Adj Revenue Runs, Sch 25 | D34: =SUM(D27:D33) -> 92220007 | E34: 87795413 | F34: 93372318 | G34: 88556850 | H34: 94520576 | I34: 93666942 | J34: 93962198 | K34: =SUM(K27:K33) -> 98320357 | L34: =SUM(L27:L33) -> 90443769 | M34: =SUM(M27:M33) -> 93159241 | N34: 88316702 | O34: 93073785 | P34: =IF(ROUND(SUM(P27:P33),0)<>ROUND(SUM(D34:O34),0),#VALUE!,SUM(P27:P33)) -> 1107408158
D35: =D34-D25 -> 0 | E35: 0 | F35: 0 | G35: 0 | H35: 0 | I35: 0 | J35: 0 | K35: 0 | L35: 0 | M35: 0 | N35: 0 | O35: 0 | P35: 0
B38: KVA | D38: =D$3 -> 2016-01-01 | E38: =E$3 -> 2016-02-01 | F38: 2016-03-01 | G38: 2016-04-01 | H38: 2016-05-01 | I38: 2016-06-01 | J38: 2016-07-01 | K38: 2016-08-01 | L38: 2016-09-01 | M38: 2016-10-01 | N38: 2016-11-01 | O38: 2016-12-01 | P38: Total | Q38: Peak | R38: Month
A39: 1 | D39: 11834 | E39: 11531 | F39: 12241 | G39: 11661 | H39: 12180 | I39: 11803 | J39: 11755 | K39: 10867 | L39: 12004 | M39: 10279 | N39: 10945 | O39: 10538 | P39: =SUM(D39:O39) -> 137638 | Q39: =MAX(D39:O39) -> 12241 | R39: =INDEX($D$38:$O$38,MATCH(Q39,$D39:$O39,0)) -> 2016-03-01
A40: 2 | D40: 5262 | E40: 5183 | F40: 5102 | G40: 5107 | H40: 5048 | I40: 5023 | J40: 5065 | K40: 5151 | L40: 5014 | M40: 5055 | N40: 5093 | O40: 5065 | P40: 61168 | Q40: =MAX(D40:O40) -> 5262 | R40: =INDEX($D$38:$O$38,MATCH(Q40,$D40:$O40,0)) -> 2016-01-01
A41: 3 | D41: 3063 | E41: 3135 | F41: 3136 | G41: 3072 | H41: 2934 | I41: 2894 | J41: 2782 | K41: 2847 | L41: 2834 | M41: 3132 | N41: 3004 | O41: 3217 | P41: 36050 | Q41: =MAX(D41:O41) -> 3217 | R41: 2016-12-01
A42: 4 | D42: 2960 | E42: 3050 | F42: 3202 | G42: 2945 | H42: 2854 | I42: 2661 | J42: 2868 | K42: 2581 | L42: 2622 | M42: 2934 | N42: 2882 | O42: 2919 | P42: 34478 | Q42: 3202 | R42: 2016-03-01
A43: 5 | D43: 2941 | E43: 2935 | F43: 2881 | G43: 3326 | H43: 3309 | I43: 4018 | J43: 3881 | K43: 3989 | L43: 3638 | M43: 3025 | N43: 2725 | O43: 3039 | P43: 39707 | Q43: 4018 | R43: 2016-06-01
A44: 6 | D44: 4995 | E44: 4978 | F44: 4571 | G44: 5570 | H44: 5216 | I44: 5157 | J44: 5310 | K44: 5608 | L44: 5384 | M44: 4099 | N44: 4477 | O44: 5230 | P44: 60595 | Q44: 5608 | R44: 2016-08-01
A45: 7 | D45: 2738 | E45: 2937 | F45: 2808 | G45: 2915 | H45: 3004 | I45: 3510 | J45: 3361 | K45: 3348 | L45: 3353 | M45: 3034 | N45: 2955 | O45: 3069 | P45: 37032 | Q45: 3510 | R45: 2016-06-01
A46: 8 | D46: 4176 | E46: 4212 | F46: 4138 | G46: 4159 | H46: 4182 | I46: 4224 | J46: 4148 | K46: 4134 | L46: 4173 | M46: 4256 | N46: 4152 | O46: 4124 | P46: 50078 | Q46: 4256 | R46: 2016-10-01
A47: 9 | D47: 60486 | E47: 61123 | F47: 63211 | G47: 62984 | H47: 62624 | I47: 62755 | J47: 61245 | K47: 63124 | L47: 62489 | M47: 61947 | N47: 62469 | O47: 60908 | P47: 745365 | Q47: 63211 | R47: 2016-03-01
A48: 10 | D48: 8155 | E48: 8251 | F48: 8204 | G48: 8284 | H48: 8262 | I48: 8461 | J48: 8625 | K48: 8480 | L48: 8241 | M48: 8276 | N48: 8296 | O48: 8263 | P48: 99798 | Q48: 8625 | R48: 2016-07-01
A49: 11 | D49: 9163 | E49: 8858 | F49: 8873 | G49: 8729 | H49: 9191 | I49: 9054 | J49: 9198 | K49: 8948 | L49: 9447 | M49: 9608 | N49: 8922 | O49: 8797 | P49: 108788 | Q49: 9608 | R49: 2016-10-01
A50: 12 | D50: 5432 | E50: 5402 | F50: 5497 | G50: 7520 | H50: 7745 | I50: 8505 | J50: 8364 | K50: 8291 | L50: 7164 | M50: 5890 | N50: 5964 | O50: 5230 | P50: 81004 | Q50: 8505 | R50: 2016-06-01
A51: 13 | D51: 1896 | E51: 1893 | F51: 2329 | G51: 2380 | H51: 2670 | I51: 2955 | J51: 3079 | K51: 3039 | L51: 2617 | M51: 2291 | N51: 2312 | O51: 1840 | P51: 29301 | Q51: 3079 | R51: 2016-07-01
A52: 14 | D52: 6224 | E52: 4550 | F52: 5432 | G52: 6114 | H52: 6221 | I52: 6229 | J52: 6508 | K52: 6233 | L52: 6074 | M52: 6112 | N52: 6235 | O52: 6346 | P52: 72278 | Q52: 6508 | R52: 2016-07-01
A53: 15 | D53: 3002 | E53: 3002 | F53: 3032 | G53: 3410 | H53: 3481 | I53: 3809 | J53: 3752 | K53: 3733 | L53: 3462 | M53: 3048 | N53: 3047 | O53: 3043 | P53: 39821 | Q53: 3809 | R53: 2016-06-01
A54: 16 | D54: 4562 | E54: 4730 | F54: 4715 | G54: 4297 | H54: 4419 | I54: 4353 | J54: 4343 | K54: 4429 | L54: 4248 | M54: 4561 | N54: 4723 | O54: 4677 | P54: 54057 | Q54: 4730 | R54: 2016-02-01
A55: 17 | D55: 4413 | E55: 4283 | F55: 4082 | G55: 4035 | H55: 3652 | I55: 3567 | J55: 3602 | K55: 3925 | L55: 3876 | M55: 4251 | N55: 4812 | O55: 5091 | P55: 49589 | Q55: 5091 | R55: 2016-12-01
A56: 18 | D56: 8944 | E56: 8047 | F56: 8457 | G56: 10835 | H56: 9777 | I56: 10898 | J56: 11665 | K56: 11741 | L56: 11311 | M56: 7632 | N56: 7852 | O56: 8274 | P56: 115433 | Q56: 11741 | R56: 2016-08-01
A57: 19 | D57: 7005 | E57: 5522 | F57: 5498 | G57: 5516 | H57: 5014 | I57: 4724 | J57: 8047 | K57: 4851 | L57: 5434 | M57: 5436 | N57: 5792 | O57: 6082 | P57: 68921 | Q57: 8047 | R57: 2016-07-01
A58: 20 | D58: 4895 | E58: 4962 | F58: 4959 | G58: 4689 | H58: 4424 | I58: 4401 | J58: 4200 | K58: 4596 | L58: 4612 | M58: 4632 | N58: 5009 | O58: 5091 | P58: 56470 | Q58: 5091 | R58: 2016-12-01
A59: 21 | D59: 4408 | E59: 4463 | F59: 4770 | G59: 5971 | H59: 6508 | I59: 6886 | J59: 6538 | K59: 7089 | L59: 5375 | M59: 4114 | N59: 4042 | O59: 4425 | P59: 64589 | Q59: 7089 | R59: 2016-08-01
B60: Schedule 25 Total | D60: =SUM(D39:D59) -> 166554 | E60: 163047 | F60: 167138 | G60: 173519 | H60: 172715 | I60: 175887 | J60: 178336 | K60: 177004 | L60: 173372 | M60: 163612 | N60: 165708 | O60: 165268 | P60: =IF(ROUND(SUM(P39:P59),0)<>ROUND(SUM(D60:O60),0),#VALUE!,SUM(P39:P59)) -> 2042160
P62: =P$2 -> 12-mo Ended
B63: KVA in excess of 3,000 | D63: =D$3 -> 2016-01-01 | E63: =E$3 -> 2016-02-01 | F63: 2016-03-01 | G63: 2016-04-01 | H63: 2016-05-01 | I63: 2016-06-01 | J63: 2016-07-01 | K63: 2016-08-01 | L63: 2016-09-01 | M63: 2016-10-01 | N63: 2016-11-01 | O63: 2016-12-01 | P63: Total
A64: 1 | D64: =IF(D39>3000,D39-3000,0) -> 8834 | E64: 8531 | F64: 9241 | G64: =MAX(0,G39-3000) -> 8661 | H64: =MAX(0,H39-3000) -> 9180 | I64: 8803 | J64: 8755 | K64: 7867 | L64: 9004 | M64: 7279 | N64: 7945 | O64: 7538 | P64: =SUM(D64:O64) -> 101638
A65: 2 | D65: 2262 | E65: 2183 | F65: 2102 | G65: 2107 | H65: =MAX(0,H40-3000) -> 2048 | I65: 2023 | J65: 2065 | K65: 2151 | L65: 2014 | M65: 2055 | N65: 2093 | O65: 2065 | P65: 25168
A66: 3 | D66: 63 | E66: 135 | F66: 136 | G66: 72 | H66: 0 | I66: 0 | J66: 0 | K66: 0 | L66: 0 | M66: 132 | N66: 4 | O66: 217 | P66: 759
A67: 4 | D67: 0 | E67: 50 | F67: 202 | G67: 0 | H67: 0 | I67: 0 | J67: 0 | K67: 0 | L67: 0 | M67: 0 | N67: 0 | O67: 0 | P67: 252
A68: 5 | D68: 0 | E68: 0 | F68: 0 | G68: 326 | H68: 309 | I68: 1018 | J68: 881 | K68: 989 | L68: 638 | M68: 25 | N68: 0 | O68: 39 | P68: 4225
A69: 6 | D69: 1995 | E69: 1978 | F69: 1571 | G69: 2570 | H69: 2216 | I69: 2157 | J69: 2310 | K69: 2608 | L69: 2384 | M69: 1099 | N69: 1477 | O69: 2230 | P69: 24595
A70: 7 | D70: 0 | E70: 0 | F70: 0 | G70: 0 | H70: 4 | I70: 510 | J70: 361 | K70: 348 | L70: 353 | M70: 34 | N70: 0 | O70: 69 | P70: 1679
A71: 8 | D71: 1176 | E71: 1212 | F71: 1138 | G71: 1159 | H71: 1182 | I71: 1224 | J71: 1148 | K71: 1134 | L71: 1173 | M71: 1256 | N71: 1152 | O71: 1124 | P71: 14078
A72: 9 | D72: =MAX(0,D47-3000) -> 57486 | E72: 58123 | F72: 60211 | G72: 59984 | H72: 59624 | I72: 59755 | J72: 58245 | K72: 60124 | L72: 59489 | M72: 58947 | N72: 59469 | O72: 57908 | P72: 709365
A73: 10 | D73: 5155 | E73: 5251 | F73: 5204 | G73: 5284 | H73: 5262 | I73: 5461 | J73: 5625 | K73: 5480 | L73: 5241 | M73: 5276 | N73: 5296 | O73: 5263 | P73: 63798
A74: 11 | D74: 6163 | E74: 5858 | F74: 5873 | G74: 5729 | H74: 6191 | I74: 6054 | J74: 6198 | K74: 5948 | L74: 6447 | M74: 6608 | N74: 5922 | O74: 5797 | P74: 72788
A75: 12 | D75: 2432 | E75: 2402 | F75: 2497 | G75: 4520 | H75: =MAX(0,H50-3000) -> 4745 | I75: 5505 | J75: 5364 | K75: 5291 | L75: 4164 | M75: 2890 | N75: 2964 | O75: 2230 | P75: 45004
A76: 13 | D76: 0 | E76: 0 | F76: 0 | G76: 0 | H76: 0 | I76: 0 | J76: 79 | K76: 39 | L76: 0 | M76: 0 | N76: 0 | O76: 0 | P76: 118
A77: 14 | D77: 3224 | E77: 1550 | F77: 2432 | G77: 3114 | H77: 3221 | I77: 3229 | J77: 3508 | K77: 3233 | L77: 3074 | M77: 3112 | N77: 3235 | O77: 3346 | P77: 36278
A78: 15 | D78: 2 | E78: 2 | F78: 32 | G78: 410 | H78: 481 | I78: 809 | J78: 752 | K78: 733 | L78: 462 | M78: 48 | N78: 47 | O78: 43 | P78: 3821
A79: 16 | D79: 1562 | E79: 1730 | F79: 1715 | G79: 1297 | H79: 1419 | I79: 1353 | J79: 1343 | K79: 1429 | L79: 1248 | M79: 1561 | N79: 1723 | O79: 1677 | P79: 18057
A80: 17 | D80: 1413 | E80: 1283 | F80: 1082 | G80: 1035 | H80: 652 | I80: 567 | J80: 602 | K80: 925 | L80: 876 | M80: 1251 | N80: 1812 | O80: 2091 | P80: 13589
A81: 18 | D81: 5944 | E81: 5047 | F81: 5457 | G81: 7835 | H81: 6777 | I81: 7898 | J81: 8665 | K81: 8741 | L81: 8311 | M81: 4632 | N81: 4852 | O81: 5274 | P81: 79433
A82: 19 | D82: 4005 | E82: 2522 | F82: 2498 | G82: 2516 | H82: 2014 | I82: 1724 | J82: 5047 | K82: 1851 | L82: 2434 | M82: 2436 | N82: 2792 | O82: 3082 | P82: 32921
A83: 20 | D83: 1895 | E83: 1962 | F83: 1959 | G83: 1689 | H83: 1424 | I83: 1401 | J83: 1200 | K83: 1596 | L83: 1612 | M83: 1632 | N83: 2009 | O83: 2091 | P83: 20470
A84: 21 | D84: 1408 | E84: 1463 | F84: 1770 | G84: 2971 | H84: 3508 | I84: 3886 | J84: 3538 | K84: 4089 | L84: 2375 | M84: 1114 | N84: 1042 | O84: 1425 | P84: 28589
B85: Schedule 25 Total | D85: =SUM(D64:D84) -> 105019 | E85: 101282 | F85: 105120 | G85: 111279 | H85: 110257 | I85: 113377 | J85: 115686 | K85: 114576 | L85: 111299 | M85: 101387 | N85: 103834 | O85: 103509 | P85: =IF(ROUND(SUM(P64:P84),0)<>ROUND(SUM(D85:O85),0),#VALUE!,SUM(P64:P84)) -> 1296625
B90: 9 KWHs | D90: =D$3 -> 2016-01-01 | E90: =E$3 -> 2016-02-01 | F90: 2016-03-01 | G90: 2016-04-01 | H90: 2016-05-01 | I90: 2016-06-01 | J90: 2016-07-01 | K90: 2016-08-01 | L90: 2016-09-01 | M90: 2016-10-01 | N90: 2016-11-01 | O90: 2016-12-01 | P90: Total
B91: 60 KV | D91: 4638312 | E91: 4383324 | F91: 4592880 | G91: 4669488 | H91: 5033340 | I91: 4957632 | J91: 5230116 | K91: 5403240 | L91: 5043132 | M91: 5105088 | N91: 4811868 | O91: 5264892 | P91: =SUM(D91:O91) -> 59133312
B92: 4.16 KV | D92: 1463380 | E92: 1382930 | F92: 1465540 | G92: 1341910 | H92: 1402600 | I92: 1378310 | J92: 1370410 | K92: 1389940 | L92: 1356090 | M92: 1439800 | N92: 1527720 | O92: 1438520 | P92: =SUM(D92:O92) -> 16957150
B93: 115 KV | D93: 34054632 | E93: 32829336 | F93: 36799992 | G93: 33507000 | H93: 36131976 | I93: 34386912 | J93: 34963560 | K93: 35641080 | L93: 33757200 | M93: 34810776 | N93: 33014592 | O93: 34838208 | P93: =SUM(D93:O93) -> 414735264
A94: * | B94: Total | D94: =SUM(D91:D93) -> 40156324 | E94: 38595590 | F94: 42858412 | G94: 39518398 | H94: 42567916 | I94: 40722854 | J94: 41564086 | K94: 42434260 | L94: 40156422 | M94: 41355664 | N94: 39354180 | O94: 41541620 | P94: 490825726
D95: =D12 -> 40156324 | E95: 38595590 | F95: 42858412 | G95: 39518398 | H95: 42567916 | I95: 40722854 | J95: 41564086 | K95: 42434260 | L95: 40156422 | M95: 41355664 | N95: 39354180 | O95: 41541620 | P95: =SUM(D95:O95) -> 490825726
B96: 9 KVA
B97: 60 KV | D97: 8320 | E97: 8539 | F97: 8312 | G97: 9672 | H97: 9360 | I97: 9533 | J97: 9693 | K97: 9990 | L97: 9557 | M97: 9459 | N97: 11311 | O97: 11326 | P97: =SUM(D97:O97) -> 115072
B98: 4.16 KV | D98: 6846 | E98: 2771 | F98: 7537 | G98: 3708 | H98: 3711 | I98: 7653 | J98: 2596 | K98: 7301 | L98: 7398 | M98: 7588 | N98: 8157 | O98: 2624 | P98: =SUM(D98:O98) -> 67890
B99: 115 KV | D99: 51840 | E99: 52848 | F99: 54864 | G99: 54000 | H99: 53424 | I99: 52560 | J99: 53568 | K99: 52704 | L99: 51552 | M99: 50832 | N99: 50688 | O99: 51840 | P99: =SUM(D99:O99) -> 630720
A100: * | B100: Total | D100: =SUM(D97:D99) -> 67006 | E100: 64158 | F100: 70713 | G100: 67380 | H100: 66495 | I100: 69746 | J100: 65857 | K100: 69995 | L100: 68507 | M100: 67879 | N100: 70156 | O100: 65790 | P100: 813682
D101: =D47 -> 60486 | E101: =E47 -> 61123 | F101: 63211 | G101: =G47 -> 62984 | H101: 62624 | I101: 62755 | J101: 61245 | K101: 63124 | L101: 62489 | M101: 61947 | N101: 62469 | O101: 60908 | P101: =SUM(D101:O101) -> 745365
B103: Calc Revenue for 9 | D103: =500000*0.0575+MIN(5500000,D12-500000)*0.05177+MAX(0,D12-6000000)*0.04433+15000+D72*5.25-D97*1.1-D99*1.4 -> 2062708.343 | E103: =500000*0.0575+MIN(5500000,E12-500000)*0.05177+MAX(0,E12-6000000)*0.04433+15000+E72*5.25-E97*1.1-E99*1.4 -> 1995213.155 | F103: =500000*0.0575+MIN(5500000,F12-500000)*0.05177+MAX(0,F12-6000000)*0.04433+15000+F72*5.25-F97*1.1-F99*1.4 -> 2192573.354 | G103: =500000*0.05616+MIN(5500000,G12-500000)*0.05053+MAX(0,G12-6000000)*0.0432+21000+G72*6-G97*1.1-G99*1.4 -> 2048654.594 | H103: =500000*0.05616+MIN(5500000,H12-500000)*0.05053+MAX(0,H12-6000000)*0.0432+21000+H72*6-H97*1.1-H99*1.4 -> 2179383.371 | I103: 2101481.993 | J103: 2127176.015 | K103: 2176924.432 | L103: 2076800.93 | M103: 2126471.985 | N103: 2041304.276 | O103: 2124806.384 | P103: =SUM(D103:O103) -> 25253498.83
B104: Revenue for 9 per Handbill Report | P104: =SUM(D104:O104) -> 0
D105: =D103-D104 -> 2062708.343 | E105: =E103-E104 -> 1995213.155 | F105: 2192573.354 | G105: 2048654.594 | H105: 2179383.371 | I105: 2101481.993 | J105: 2127176.015 | K105: 2176924.432 | L105: 2076800.93 | M105: 2126471.985 | N105: 2041304.276 | O105: 2124806.384
B106: Primary Voltage Discount
B107: >11 and <60 | C107: -0.2 | D107: =(D60-D58-D59-D47)*$C107 -> -19353 | E107: -18499.8 | F107: =(F60-F58-F59-F47)*$C107 -> -18839.6 | G107: -19975 | H107: -19831.8 | I107: -20369 | J107: -21270.6 | K107: -20439 | L107: -20179.2 | M107: -18583.8 | N107: -18837.6 | O107: -18968.8 | P107: =SUM(D107:O107) -> -235147.2
B108: >60 and <115 | C108: =-1.1 -> -1.1 | D108: =D97*$C108 -> -9152 | E108: -9392.9 | F108: =F97*$C108 -> -9143.2 | G108: -10639.2 | H108: -10296 | I108: -10486.3 | J108: -10662.3 | K108: -10989 | L108: -10512.7 | M108: -10404.9 | N108: -12442.1 | O108: -12458.6 | P108: =SUM(D108:O108) -> -126579.2
B109: >115 | C109: -1.4 | D109: =D99*$C109 -> -72576 | E109: -73987.2 | F109: =F99*$C109 -> -76809.6 | G109: -75600 | H109: -74793.6 | I109: -73584 | J109: -74995.2 | K109: -73785.6 | L109: -72172.8 | M109: -71164.8 | N109: -70963.2 | O109: -72576 | P109: =SUM(D109:O109) -> -883008
D110: =SUM(D107:D109) -> -101081 | E110: -101879.9 | F110: -104792.4 | G110: -106214.2 | H110: -104921.4 | I110: -104439.3 | J110: -106928.1 | K110: -105213.6 | L110: -102864.7 | M110: -100153.5 | N110: -102242.9 | O110: -104003.4 | P110: -1244734.4
B112: Base Revenues
D113: =500000*('Rate Design'!$G$5/100)+MIN(5500000,D4-500000)*('Rate Design'!$G$6/100)+MAX(0,D4-6000000)*('Rate Design'!$G$7/100)+'Rate Design'!$G$9+D64*'Rate Design'!$G$10-0.2*D39 -> 368837.3985 | E113: =500000*('Rate Design'!$G$5/100)+MIN(5500000,E4-500000)*('Rate Design'!$G$6/100)+MAX(0,E4-6000000)*('Rate Design'!$G$7/100)+'Rate Design'!$G$9+E64*'Rate Design'!$G$10-0.2*E39 -> 354340.8825 | F113: =500000*('Rate Design'!$G$5/100)+MIN(5500000,F4-500000)*('Rate Design'!$G$6/100)+MAX(0,F4-6000000)*('Rate Design'!$G$7/100)+'Rate Design'!$G$9+F64*'Rate Design'!$G$10-0.2*F39 -> 373198.3666 | G113: =500000*('Rate Design'!$G$5/100)+MIN(5500000,G4-500000)*('Rate Design'!$G$6/100)+MAX(0,G4-6000000)*('Rate Design'!$G$7/100)+'Rate Design'!$G$9+G64*'Rate Design'!$G$10-0.2*G39 -> 393831.6577 | H113: =500000*('Rate Design'!$G$5/100)+MIN(5500000,H4-500000)*('Rate Design'!$G$6/100)+MAX(0,H4-6000000)*('Rate Design'!$G$7/100)+'Rate Design'!$G$9+H64*'Rate Design'!$G$10-0.2*H39 -> 405293.6896 | I113: =500000*('Rate Design'!$G$5/100)+MIN(5500000,I4-500000)*('Rate Design'!$G$6/100)+MAX(0,I4-6000000)*('Rate Design'!$G$7/100)+'Rate Design'!$G$9+I64*'Rate Design'!$G$10-0.2*I39 -> 393701.1546 | J113: =500000*('Rate Design'!$G$5/100)+MIN(5500000,J4-500000)*('Rate Design'!$G$6/100)+MAX(0,J4-6000000)*('Rate Design'!$G$7/100)+'Rate Design'!$G$9+J64*'Rate Design'!$G$10-0.2*J39 -> 388792.0785 | K113: =500000*('Rate Design'!$G$5/100)+MIN(5500000,K4-500000)*('Rate Design'!$G$6/100)+MAX(0,K4-6000000)*('Rate Design'!$G$7/100)+'Rate Design'!$G$9+K64*'Rate Design'!$G$10-0.2*K39 -> 369510.4575 | L113: =500000*('Rate Design'!$G$5/100)+MIN(5500000,L4-500000)*('Rate Design'!$G$6/100)+MAX(0,L4-6000000)*('Rate Design'!$G$7/100)+'Rate Design'!$G$9+L64*'Rate Design'!$G$10-0.2*L39 -> 330376.8645 | M113: =500000*('Rate Design'!$G$5/100)+MIN(5500000,M4-500000)*('Rate Design'!$G$6/100)+MAX(0,M4-6000000)*('Rate Design'!$G$7/100)+'Rate Design'!$G$9+M64*'Rate Design'!$G$10-0.2*M39 -> 357678.653 | N113: =500000*('Rate Design'!$G$5/100)+MIN(5500000,N4-500000)*('Rate Design'!$G$6/100)+MAX(0,N4-6000000)*('Rate Design'!$G$7/100)+'Rate Design'!$G$9+N64*'Rate Design'!$G$10-0.2*N39 -> 353047.7514 | O113: =500000*('Rate Design'!$G$5/100)+MIN(5500000,O4-500000)*('Rate Design'!$G$6/100)+MAX(0,O4-6000000)*('Rate Design'!$G$7/100)+'Rate Design'!$G$9+O64*'Rate Design'!$G$10-0.2*O39 -> 347870.4794 | P113: =SUM(D113:O113) -> 4436479.434
D114: =500000*('Rate Design'!$G$5/100)+MIN(5500000,D5-500000)*('Rate Design'!$G$6/100)+MAX(0,D5-6000000)*('Rate Design'!$G$7/100)+'Rate Design'!$G$9+D65*'Rate Design'!$G$10-0.2*D40 -> 200665.0637 | E114: =500000*('Rate Design'!$G$5/100)+MIN(5500000,E5-500000)*('Rate Design'!$G$6/100)+MAX(0,E5-6000000)*('Rate Design'!$G$7/100)+'Rate Design'!$G$9+E65*'Rate Design'!$G$10-0.2*E40 -> 187769.3854 | F114: =500000*('Rate Design'!$G$5/100)+MIN(5500000,F5-500000)*('Rate Design'!$G$6/100)+MAX(0,F5-6000000)*('Rate Design'!$G$7/100)+'Rate Design'!$G$9+F65*'Rate Design'!$G$10-0.2*F40 -> 197146.9419 | G114: =500000*('Rate Design'!$G$5/100)+MIN(5500000,G5-500000)*('Rate Design'!$G$6/100)+MAX(0,G5-6000000)*('Rate Design'!$G$7/100)+'Rate Design'!$G$9+G65*'Rate Design'!$G$10-0.2*G40 -> 190685.0849 | H114: =500000*('Rate Design'!$G$5/100)+MIN(5500000,H5-500000)*('Rate Design'!$G$6/100)+MAX(0,H5-6000000)*('Rate Design'!$G$7/100)+'Rate Design'!$G$9+H65*'Rate Design'!$G$10-0.2*H40 -> 188290.9561 | I114: =500000*('Rate Design'!$G$5/100)+MIN(5500000,I5-500000)*('Rate Design'!$G$6/100)+MAX(0,I5-6000000)*('Rate Design'!$G$7/100)+'Rate Design'!$G$9+I65*'Rate Design'!$G$10-0.2*I40 -> 179346.0105 | J114: =500000*('Rate Design'!$G$5/100)+MIN(5500000,J5-500000)*('Rate Design'!$G$6/100)+MAX(0,J5-6000000)*('Rate Design'!$G$7/100)+'Rate Design'!$G$9+J65*'Rate Design'!$G$10-0.2*J40 -> 161992.9388 | K114: =500000*('Rate Design'!$G$5/100)+MIN(5500000,K5-500000)*('Rate Design'!$G$6/100)+MAX(0,K5-6000000)*('Rate Design'!$G$7/100)+'Rate Design'!$G$9+K65*'Rate Design'!$G$10-0.2*K40 -> 186320.4732 | L114: =500000*('Rate Design'!$G$5/100)+MIN(5500000,L5-500000)*('Rate Design'!$G$6/100)+MAX(0,L5-6000000)*('Rate Design'!$G$7/100)+'Rate Design'!$G$9+L65*'Rate Design'!$G$10-0.2*L40 -> 177396.019 | M114: =500000*('Rate Design'!$G$5/100)+MIN(5500000,M5-500000)*('Rate Design'!$G$6/100)+MAX(0,M5-6000000)*('Rate Design'!$G$7/100)+'Rate Design'!$G$9+M65*'Rate Design'!$G$10-0.2*M40 -> 188744.6858 | N114: =500000*('Rate Design'!$G$5/100)+MIN(5500000,N5-500000)*('Rate Design'!$G$6/100)+MAX(0,N5-6000000)*('Rate Design'!$G$7/100)+'Rate Design'!$G$9+N65*'Rate Design'!$G$10-0.2*N40 -> 183387.9088 | O114: =500000*('Rate Design'!$G$5/100)+MIN(5500000,O5-500000)*('Rate Design'!$G$6/100)+MAX(0,O5-6000000)*('Rate Design'!$G$7/100)+'Rate Design'!$G$9+O65*'Rate Design'!$G$10-0.2*O40 -> 140945.0663 | P114: =SUM(D114:O114) -> 2182690.534
D115: =500000*('Rate Design'!$G$5/100)+MIN(5500000,D6-500000)*('Rate Design'!$G$6/100)+MAX(0,D6-6000000)*('Rate Design'!$G$7/100)+'Rate Design'!$G$9+D66*'Rate Design'!$G$10-0.2*D41 -> 92436.24135 | E115: =500000*('Rate Design'!$G$5/100)+MIN(5500000,E6-500000)*('Rate Design'!$G$6/100)+MAX(0,E6-6000000)*('Rate Design'!$G$7/100)+'Rate Design'!$G$9+E66*'Rate Design'!$G$10-0.2*E41 -> 90216.41838 | F115: =500000*('Rate Design'!$G$5/100)+MIN(5500000,F6-500000)*('Rate Design'!$G$6/100)+MAX(0,F6-6000000)*('Rate Design'!$G$7/100)+'Rate Design'!$G$9+F66*'Rate Design'!$G$10-0.2*F41 -> 95044.80589 | G115: =500000*('Rate Design'!$G$5/100)+MIN(5500000,G6-500000)*('Rate Design'!$G$6/100)+MAX(0,G6-6000000)*('Rate Design'!$G$7/100)+'Rate Design'!$G$9+G66*'Rate Design'!$G$10-0.2*G41 -> 87680.11848 | H115: =500000*('Rate Design'!$G$5/100)+MIN(5500000,H6-500000)*('Rate Design'!$G$6/100)+MAX(0,H6-6000000)*('Rate Design'!$G$7/100)+'Rate Design'!$G$9+H66*'Rate Design'!$G$10-0.2*H41 -> 86169.66405 | I115: =500000*('Rate Design'!$G$5/100)+MIN(5500000,I6-500000)*('Rate Design'!$G$6/100)+MAX(0,I6-6000000)*('Rate Design'!$G$7/100)+'Rate Design'!$G$9+I66*'Rate Design'!$G$10-0.2*I41 -> 86083.90376 | J115: =500000*('Rate Design'!$G$5/100)+MIN(5500000,J6-500000)*('Rate Design'!$G$6/100)+MAX(0,J6-6000000)*('Rate Design'!$G$7/100)+'Rate Design'!$G$9+J66*'Rate Design'!$G$10-0.2*J41 -> 80423.08297 | K115: =500000*('Rate Design'!$G$5/100)+MIN(5500000,K6-500000)*('Rate Design'!$G$6/100)+MAX(0,K6-6000000)*('Rate Design'!$G$7/100)+'Rate Design'!$G$9+K66*'Rate Design'!$G$10-0.2*K41 -> 87550.72401 | L115: =500000*('Rate Design'!$G$5/100)+MIN(5500000,L6-500000)*('Rate Design'!$G$6/100)+MAX(0,L6-6000000)*('Rate Design'!$G$7/100)+'Rate Design'!$G$9+L66*'Rate Design'!$G$10-0.2*L41 -> 80905.85318 | M115: =500000*('Rate Design'!$G$5/100)+MIN(5500000,M6-500000)*('Rate Design'!$G$6/100)+MAX(0,M6-6000000)*('Rate Design'!$G$7/100)+'Rate Design'!$G$9+M66*'Rate Design'!$G$10-0.2*M41 -> 90045.42585 | N115: =500000*('Rate Design'!$G$5/100)+MIN(5500000,N6-500000)*('Rate Design'!$G$6/100)+MAX(0,N6-6000000)*('Rate Design'!$G$7/100)+'Rate Design'!$G$9+N66*'Rate Design'!$G$10-0.2*N41 -> 87005.72539 | O115: =500000*('Rate Design'!$G$5/100)+MIN(5500000,O6-500000)*('Rate Design'!$G$6/100)+MAX(0,O6-6000000)*('Rate Design'!$G$7/100)+'Rate Design'!$G$9+O66*'Rate Design'!$G$10-0.2*O41 -> 96919.6234 | P115: 1060481.587
D116: =500000*('Rate Design'!$G$5/100)+MIN(5500000,D7-500000)*('Rate Design'!$G$6/100)+MAX(0,D7-6000000)*('Rate Design'!$G$7/100)+'Rate Design'!$G$9+D67*'Rate Design'!$G$10-0.2*D42 -> 98686.53959 | E116: =500000*('Rate Design'!$G$5/100)+MIN(5500000,E7-500000)*('Rate Design'!$G$6/100)+MAX(0,E7-6000000)*('Rate Design'!$G$7/100)+'Rate Design'!$G$9+E67*'Rate Design'!$G$10-0.2*E42 -> 95005.0004 | F116: =500000*('Rate Design'!$G$5/100)+MIN(5500000,F7-500000)*('Rate Design'!$G$6/100)+MAX(0,F7-6000000)*('Rate Design'!$G$7/100)+'Rate Design'!$G$9+F67*'Rate Design'!$G$10-0.2*F42 -> 104814.6801 | G116: =500000*('Rate Design'!$G$5/100)+MIN(5500000,G7-500000)*('Rate Design'!$G$6/100)+MAX(0,G7-6000000)*('Rate Design'!$G$7/100)+'Rate Design'!$G$9+G67*'Rate Design'!$G$10-0.2*G42 -> 92862.08744 | H116: =500000*('Rate Design'!$G$5/100)+MIN(5500000,H7-500000)*('Rate Design'!$G$6/100)+MAX(0,H7-6000000)*('Rate Design'!$G$7/100)+'Rate Design'!$G$9+H67*'Rate Design'!$G$10-0.2*H42 -> 95684.37886 | I116: =500000*('Rate Design'!$G$5/100)+MIN(5500000,I7-500000)*('Rate Design'!$G$6/100)+MAX(0,I7-6000000)*('Rate Design'!$G$7/100)+'Rate Design'!$G$9+I67*'Rate Design'!$G$10-0.2*I42 -> 90350.50929 | J116: =500000*('Rate Design'!$G$5/100)+MIN(5500000,J7-500000)*('Rate Design'!$G$6/100)+MAX(0,J7-6000000)*('Rate Design'!$G$7/100)+'Rate Design'!$G$9+J67*'Rate Design'!$G$10-0.2*J42 -> 91580.69298 | K116: =500000*('Rate Design'!$G$5/100)+MIN(5500000,K7-500000)*('Rate Design'!$G$6/100)+MAX(0,K7-6000000)*('Rate Design'!$G$7/100)+'Rate Design'!$G$9+K67*'Rate Design'!$G$10-0.2*K42 -> 89715.38791 | L116: =500000*('Rate Design'!$G$5/100)+MIN(5500000,L7-500000)*('Rate Design'!$G$6/100)+MAX(0,L7-6000000)*('Rate Design'!$G$7/100)+'Rate Design'!$G$9+L67*'Rate Design'!$G$10-0.2*L42 -> 89973.95649 | M116: =500000*('Rate Design'!$G$5/100)+MIN(5500000,M7-500000)*('Rate Design'!$G$6/100)+MAX(0,M7-6000000)*('Rate Design'!$G$7/100)+'Rate Design'!$G$9+M67*'Rate Design'!$G$10-0.2*M42 -> 91180.31697 | N116: =500000*('Rate Design'!$G$5/100)+MIN(5500000,N7-500000)*('Rate Design'!$G$6/100)+MAX(0,N7-6000000)*('Rate Design'!$G$7/100)+'Rate Design'!$G$9+N67*'Rate Design'!$G$10-0.2*N42 -> 89146.1681 | O116: =500000*('Rate Design'!$G$5/100)+MIN(5500000,O7-500000)*('Rate Design'!$G$6/100)+MAX(0,O7-6000000)*('Rate Design'!$G$7/100)+'Rate Design'!$G$9+O67*'Rate Design'!$G$10-0.2*O42 -> 96570.69507 | P116: 1125570.413
D117: =500000*('Rate Design'!$G$5/100)+MIN(5500000,D8-500000)*('Rate Design'!$G$6/100)+MAX(0,D8-6000000)*('Rate Design'!$G$7/100)+'Rate Design'!$G$9+D68*'Rate Design'!$G$10-0.2*D43 -> 111676.3626 | E117: =500000*('Rate Design'!$G$5/100)+MIN(5500000,E8-500000)*('Rate Design'!$G$6/100)+MAX(0,E8-6000000)*('Rate Design'!$G$7/100)+'Rate Design'!$G$9+E68*'Rate Design'!$G$10-0.2*E43 -> 105320.4862 | F117: =500000*('Rate Design'!$G$5/100)+MIN(5500000,F8-500000)*('Rate Design'!$G$6/100)+MAX(0,F8-6000000)*('Rate Design'!$G$7/100)+'Rate Design'!$G$9+F68*'Rate Design'!$G$10-0.2*F43 -> 110080.0245 | G117: =500000*('Rate Design'!$G$5/100)+MIN(5500000,G8-500000)*('Rate Design'!$G$6/100)+MAX(0,G8-6000000)*('Rate Design'!$G$7/100)+'Rate Design'!$G$9+G68*'Rate Design'!$G$10-0.2*G43 -> 109213.3152 | H117: =500000*('Rate Design'!$G$5/100)+MIN(5500000,H8-500000)*('Rate Design'!$G$6/100)+MAX(0,H8-6000000)*('Rate Design'!$G$7/100)+'Rate Design'!$G$9+H68*'Rate Design'!$G$10-0.2*H43 -> 111432.5706 | I117: =500000*('Rate Design'!$G$5/100)+MIN(5500000,I8-500000)*('Rate Design'!$G$6/100)+MAX(0,I8-6000000)*('Rate Design'!$G$7/100)+'Rate Design'!$G$9+I68*'Rate Design'!$G$10-0.2*I43 -> 121574.8995 | J117: =500000*('Rate Design'!$G$5/100)+MIN(5500000,J8-500000)*('Rate Design'!$G$6/100)+MAX(0,J8-6000000)*('Rate Design'!$G$7/100)+'Rate Design'!$G$9+J68*'Rate Design'!$G$10-0.2*J43 -> 132044.8084 | K117: =500000*('Rate Design'!$G$5/100)+MIN(5500000,K8-500000)*('Rate Design'!$G$6/100)+MAX(0,K8-6000000)*('Rate Design'!$G$7/100)+'Rate Design'!$G$9+K68*'Rate Design'!$G$10-0.2*K43 -> 136662.4843 | L117: =500000*('Rate Design'!$G$5/100)+MIN(5500000,L8-500000)*('Rate Design'!$G$6/100)+MAX(0,L8-6000000)*('Rate Design'!$G$7/100)+'Rate Design'!$G$9+L68*'Rate Design'!$G$10-0.2*L43 -> 120568.9312 | M117: =500000*('Rate Design'!$G$5/100)+MIN(5500000,M8-500000)*('Rate Design'!$G$6/100)+MAX(0,M8-6000000)*('Rate Design'!$G$7/100)+'Rate Design'!$G$9+M68*'Rate Design'!$G$10-0.2*M43 -> 108992.8906 | N117: =500000*('Rate Design'!$G$5/100)+MIN(5500000,N8-500000)*('Rate Design'!$G$6/100)+MAX(0,N8-6000000)*('Rate Design'!$G$7/100)+'Rate Design'!$G$9+N68*'Rate Design'!$G$10-0.2*N43 -> 104817.8543 | O117: =500000*('Rate Design'!$G$5/100)+MIN(5500000,O8-500000)*('Rate Design'!$G$6/100)+MAX(0,O8-6000000)*('Rate Design'!$G$7/100)+'Rate Design'!$G$9+O68*'Rate Design'!$G$10-0.2*O43 -> 114075.9767 | P117: 1386460.604
D118: =500000*('Rate Design'!$G$5/100)+MIN(5500000,D9-500000)*('Rate Design'!$G$6/100)+MAX(0,D9-6000000)*('Rate Design'!$G$7/100)+'Rate Design'!$G$9+D69*'Rate Design'!$G$10-0.2*D44 -> 160210.3515 | E118: =500000*('Rate Design'!$G$5/100)+MIN(5500000,E9-500000)*('Rate Design'!$G$6/100)+MAX(0,E9-6000000)*('Rate Design'!$G$7/100)+'Rate Design'!$G$9+E69*'Rate Design'!$G$10-0.2*E44 -> 152238.3637 | F118: =500000*('Rate Design'!$G$5/100)+MIN(5500000,F9-500000)*('Rate Design'!$G$6/100)+MAX(0,F9-6000000)*('Rate Design'!$G$7/100)+'Rate Design'!$G$9+F69*'Rate Design'!$G$10-0.2*F44 -> 141980.5519 | G118: =500000*('Rate Design'!$G$5/100)+MIN(5500000,G9-500000)*('Rate Design'!$G$6/100)+MAX(0,G9-6000000)*('Rate Design'!$G$7/100)+'Rate Design'!$G$9+G69*'Rate Design'!$G$10-0.2*G44 -> 146551.7076 | H118: =500000*('Rate Design'!$G$5/100)+MIN(5500000,H9-500000)*('Rate Design'!$G$6/100)+MAX(0,H9-6000000)*('Rate Design'!$G$7/100)+'Rate Design'!$G$9+H69*'Rate Design'!$G$10-0.2*H44 -> 124672.9364 | I118: =500000*('Rate Design'!$G$5/100)+MIN(5500000,I9-500000)*('Rate Design'!$G$6/100)+MAX(0,I9-6000000)*('Rate Design'!$G$7/100)+'Rate Design'!$G$9+I69*'Rate Design'!$G$10-0.2*I44 -> 125138.8183 | J118: =500000*('Rate Design'!$G$5/100)+MIN(5500000,J9-500000)*('Rate Design'!$G$6/100)+MAX(0,J9-6000000)*('Rate Design'!$G$7/100)+'Rate Design'!$G$9+J69*'Rate Design'!$G$10-0.2*J44 -> 132804.2998 | K118: =500000*('Rate Design'!$G$5/100)+MIN(5500000,K9-500000)*('Rate Design'!$G$6/100)+MAX(0,K9-6000000)*('Rate Design'!$G$7/100)+'Rate Design'!$G$9+K69*'Rate Design'!$G$10-0.2*K44 -> 142153.6332 | L118: =500000*('Rate Design'!$G$5/100)+MIN(5500000,L9-500000)*('Rate Design'!$G$6/100)+MAX(0,L9-6000000)*('Rate Design'!$G$7/100)+'Rate Design'!$G$9+L69*'Rate Design'!$G$10-0.2*L44 -> 142985.8577 | M118: =500000*('Rate Design'!$G$5/100)+MIN(5500000,M9-500000)*('Rate Design'!$G$6/100)+MAX(0,M9-6000000)*('Rate Design'!$G$7/100)+'Rate Design'!$G$9+M69*'Rate Design'!$G$10-0.2*M44 -> 135826.6201 | N118: =500000*('Rate Design'!$G$5/100)+MIN(5500000,N9-500000)*('Rate Design'!$G$6/100)+MAX(0,N9-6000000)*('Rate Design'!$G$7/100)+'Rate Design'!$G$9+N69*'Rate Design'!$G$10-0.2*N44 -> 136190.6202 | O118: =500000*('Rate Design'!$G$5/100)+MIN(5500000,O9-500000)*('Rate Design'!$G$6/100)+MAX(0,O9-6000000)*('Rate Design'!$G$7/100)+'Rate Design'!$G$9+O69*'Rate Design'!$G$10-0.2*O44 -> 160057.7831 | P118: 1700811.543
D119: =500000*('Rate Design'!$G$5/100)+MIN(5500000,D10-500000)*('Rate Design'!$G$6/100)+MAX(0,D10-6000000)*('Rate Design'!$G$7/100)+'Rate Design'!$G$9+D70*'Rate Design'!$G$10-0.2*D45 -> 80811.87713 | E119: =500000*('Rate Design'!$G$5/100)+MIN(5500000,E10-500000)*('Rate Design'!$G$6/100)+MAX(0,E10-6000000)*('Rate Design'!$G$7/100)+'Rate Design'!$G$9+E70*'Rate Design'!$G$10-0.2*E45 -> 77661.84078 | F119: =500000*('Rate Design'!$G$5/100)+MIN(5500000,F10-500000)*('Rate Design'!$G$6/100)+MAX(0,F10-6000000)*('Rate Design'!$G$7/100)+'Rate Design'!$G$9+F70*'Rate Design'!$G$10-0.2*F45 -> 82184.02371 | G119: =500000*('Rate Design'!$G$5/100)+MIN(5500000,G10-500000)*('Rate Design'!$G$6/100)+MAX(0,G10-6000000)*('Rate Design'!$G$7/100)+'Rate Design'!$G$9+G70*'Rate Design'!$G$10-0.2*G45 -> 81327.94415 | H119: =500000*('Rate Design'!$G$5/100)+MIN(5500000,H10-500000)*('Rate Design'!$G$6/100)+MAX(0,H10-6000000)*('Rate Design'!$G$7/100)+'Rate Design'!$G$9+H70*'Rate Design'!$G$10-0.2*H45 -> 84291.8281 | I119: =500000*('Rate Design'!$G$5/100)+MIN(5500000,I10-500000)*('Rate Design'!$G$6/100)+MAX(0,I10-6000000)*('Rate Design'!$G$7/100)+'Rate Design'!$G$9+I70*'Rate Design'!$G$10-0.2*I45 -> 89625.61365 | J119: =500000*('Rate Design'!$G$5/100)+MIN(5500000,J10-500000)*('Rate Design'!$G$6/100)+MAX(0,J10-6000000)*('Rate Design'!$G$7/100)+'Rate Design'!$G$9+J70*'Rate Design'!$G$10-0.2*J45 -> 92197.40881 | K119: =500000*('Rate Design'!$G$5/100)+MIN(5500000,K10-500000)*('Rate Design'!$G$6/100)+MAX(0,K10-6000000)*('Rate Design'!$G$7/100)+'Rate Design'!$G$9+K70*'Rate Design'!$G$10-0.2*K45 -> 95170.87749 | L119: =500000*('Rate Design'!$G$5/100)+MIN(5500000,L10-500000)*('Rate Design'!$G$6/100)+MAX(0,L10-6000000)*('Rate Design'!$G$7/100)+'Rate Design'!$G$9+L70*'Rate Design'!$G$10-0.2*L45 -> 87266.70692 | M119: =500000*('Rate Design'!$G$5/100)+MIN(5500000,M10-500000)*('Rate Design'!$G$6/100)+MAX(0,M10-6000000)*('Rate Design'!$G$7/100)+'Rate Design'!$G$9+M70*'Rate Design'!$G$10-0.2*M45 -> 85785.65401 | N119: =500000*('Rate Design'!$G$5/100)+MIN(5500000,N10-500000)*('Rate Design'!$G$6/100)+MAX(0,N10-6000000)*('Rate Design'!$G$7/100)+'Rate Design'!$G$9+N70*'Rate Design'!$G$10-0.2*N45 -> 84850.29396 | O119: =500000*('Rate Design'!$G$5/100)+MIN(5500000,O10-500000)*('Rate Design'!$G$6/100)+MAX(0,O10-6000000)*('Rate Design'!$G$7/100)+'Rate Design'!$G$9+O70*'Rate Design'!$G$10-0.2*O45 -> 84167.18826 | P119: 1025341.257
D120: =500000*('Rate Design'!$G$5/100)+MIN(5500000,D11-500000)*('Rate Design'!$G$6/100)+MAX(0,D11-6000000)*('Rate Design'!$G$7/100)+'Rate Design'!$G$9+D71*'Rate Design'!$G$10-0.2*D46 -> 76756.83294 | E120: =500000*('Rate Design'!$G$5/100)+MIN(5500000,E11-500000)*('Rate Design'!$G$6/100)+MAX(0,E11-6000000)*('Rate Design'!$G$7/100)+'Rate Design'!$G$9+E71*'Rate Design'!$G$10-0.2*E46 -> 77615.81325 | F120: =500000*('Rate Design'!$G$5/100)+MIN(5500000,F11-500000)*('Rate Design'!$G$6/100)+MAX(0,F11-6000000)*('Rate Design'!$G$7/100)+'Rate Design'!$G$9+F71*'Rate Design'!$G$10-0.2*F46 -> 80519.53648 | G120: =500000*('Rate Design'!$G$5/100)+MIN(5500000,G11-500000)*('Rate Design'!$G$6/100)+MAX(0,G11-6000000)*('Rate Design'!$G$7/100)+'Rate Design'!$G$9+G71*'Rate Design'!$G$10-0.2*G46 -> 77559.72847 | H120: =500000*('Rate Design'!$G$5/100)+MIN(5500000,H11-500000)*('Rate Design'!$G$6/100)+MAX(0,H11-6000000)*('Rate Design'!$G$7/100)+'Rate Design'!$G$9+H71*'Rate Design'!$G$10-0.2*H46 -> 81370.63191 | I120: =500000*('Rate Design'!$G$5/100)+MIN(5500000,I11-500000)*('Rate Design'!$G$6/100)+MAX(0,I11-6000000)*('Rate Design'!$G$7/100)+'Rate Design'!$G$9+I71*'Rate Design'!$G$10-0.2*I46 -> 82769.17245 | J120: =500000*('Rate Design'!$G$5/100)+MIN(5500000,J11-500000)*('Rate Design'!$G$6/100)+MAX(0,J11-6000000)*('Rate Design'!$G$7/100)+'Rate Design'!$G$9+J71*'Rate Design'!$G$10-0.2*J46 -> 77006.42348 | K120: =500000*('Rate Design'!$G$5/100)+MIN(5500000,K11-500000)*('Rate Design'!$G$6/100)+MAX(0,K11-6000000)*('Rate Design'!$G$7/100)+'Rate Design'!$G$9+K71*'Rate Design'!$G$10-0.2*K46 -> 84357.49716 | L120: =500000*('Rate Design'!$G$5/100)+MIN(5500000,L11-500000)*('Rate Design'!$G$6/100)+MAX(0,L11-6000000)*('Rate Design'!$G$7/100)+'Rate Design'!$G$9+L71*'Rate Design'!$G$10-0.2*L46 -> 79311.17913 | M120: =500000*('Rate Design'!$G$5/100)+MIN(5500000,M11-500000)*('Rate Design'!$G$6/100)+MAX(0,M11-6000000)*('Rate Design'!$G$7/100)+'Rate Design'!$G$9+M71*'Rate Design'!$G$10-0.2*M46 -> 79871.38136 | N120: =500000*('Rate Design'!$G$5/100)+MIN(5500000,N11-500000)*('Rate Design'!$G$6/100)+MAX(0,N11-6000000)*('Rate Design'!$G$7/100)+'Rate Design'!$G$9+N71*'Rate Design'!$G$10-0.2*N46 -> 76788.46191 | O120: =500000*('Rate Design'!$G$5/100)+MIN(5500000,O11-500000)*('Rate Design'!$G$6/100)+MAX(0,O11-6000000)*('Rate Design'!$G$7/100)+'Rate Design'!$G$9+O71*'Rate Design'!$G$10-0.2*O46 -> 78622.12091 | P120: 952548.7795
D121: =500000*('Rate Design'!$G$5/100)+MIN(5500000,D12-500000)*('Rate Design'!$G$6/100)+MAX(0,D12-6000000)*('Rate Design'!$G$7/100)+'Rate Design'!$G$9+D72*'Rate Design'!$G$10-1.1*D97-1.4*D99 -> 2030648.321 | E121: =500000*('Rate Design'!$G$5/100)+MIN(5500000,E12-500000)*('Rate Design'!$G$6/100)+MAX(0,E12-6000000)*('Rate Design'!$G$7/100)+'Rate Design'!$G$9+E72*'Rate Design'!$G$10-1.1*E97-1.4*E99 -> 1966721.137 | F121: =500000*('Rate Design'!$G$5/100)+MIN(5500000,F12-500000)*('Rate Design'!$G$6/100)+MAX(0,F12-6000000)*('Rate Design'!$G$7/100)+'Rate Design'!$G$9+F72*'Rate Design'!$G$10-1.1*F97-1.4*F99 -> 2157206.948 | G121: =500000*('Rate Design'!$G$5/100)+MIN(5500000,G12-500000)*('Rate Design'!$G$6/100)+MAX(0,G12-6000000)*('Rate Design'!$G$7/100)+'Rate Design'!$G$9+G72*'Rate Design'!$G$10-1.1*G97-1.4*G99 -> 2014108.955 | H121: =500000*('Rate Design'!$G$5/100)+MIN(5500000,H12-500000)*('Rate Design'!$G$6/100)+MAX(0,H12-6000000)*('Rate Design'!$G$7/100)+'Rate Design'!$G$9+H72*'Rate Design'!$G$10-1.1*H97-1.4*H99 -> 2142245.643 | I121: =500000*('Rate Design'!$G$5/100)+MIN(5500000,I12-500000)*('Rate Design'!$G$6/100)+MAX(0,I12-6000000)*('Rate Design'!$G$7/100)+'Rate Design'!$G$9+I72*'Rate Design'!$G$10-1.1*I97-1.4*I99 -> 2065912.567 | J121: =500000*('Rate Design'!$G$5/100)+MIN(5500000,J12-500000)*('Rate Design'!$G$6/100)+MAX(0,J12-6000000)*('Rate Design'!$G$7/100)+'Rate Design'!$G$9+J72*'Rate Design'!$G$10-1.1*J97-1.4*J99 -> 2090891.542 | K121: =500000*('Rate Design'!$G$5/100)+MIN(5500000,K12-500000)*('Rate Design'!$G$6/100)+MAX(0,K12-6000000)*('Rate Design'!$G$7/100)+'Rate Design'!$G$9+K72*'Rate Design'!$G$10-1.1*K97-1.4*K99 -> 2139900.311 | L121: =500000*('Rate Design'!$G$5/100)+MIN(5500000,L12-500000)*('Rate Design'!$G$6/100)+MAX(0,L12-6000000)*('Rate Design'!$G$7/100)+'Rate Design'!$G$9+L72*'Rate Design'!$G$10-1.1*L97-1.4*L99 -> 2041712.972 | M121: =500000*('Rate Design'!$G$5/100)+MIN(5500000,M12-500000)*('Rate Design'!$G$6/100)+MAX(0,M12-6000000)*('Rate Design'!$G$7/100)+'Rate Design'!$G$9+M72*'Rate Design'!$G$10-1.1*M97-1.4*M99 -> 2090364.67 | N121: =500000*('Rate Design'!$G$5/100)+MIN(5500000,N12-500000)*('Rate Design'!$G$6/100)+MAX(0,N12-6000000)*('Rate Design'!$G$7/100)+'Rate Design'!$G$9+N72*'Rate Design'!$G$10-1.1*N97-1.4*N99 -> 2006898.223 | O121: =500000*('Rate Design'!$G$5/100)+MIN(5500000,O12-500000)*('Rate Design'!$G$6/100)+MAX(0,O12-6000000)*('Rate Design'!$G$7/100)+'Rate Design'!$G$9+O72*'Rate Design'!$G$10-1.1*O97-1.4*O99 -> 2088541.007 | P121: 24835152.3
D122: =500000*('Rate Design'!$G$5/100)+MIN(5500000,D13-500000)*('Rate Design'!$G$6/100)+MAX(0,D13-6000000)*('Rate Design'!$G$7/100)+'Rate Design'!$G$9+D73*'Rate Design'!$G$10-0.2*D48 -> 292217.131 | E122: =500000*('Rate Design'!$G$5/100)+MIN(5500000,E13-500000)*('Rate Design'!$G$6/100)+MAX(0,E13-6000000)*('Rate Design'!$G$7/100)+'Rate Design'!$G$9+E73*'Rate Design'!$G$10-0.2*E48 -> 300116.0106 | F122: =500000*('Rate Design'!$G$5/100)+MIN(5500000,F13-500000)*('Rate Design'!$G$6/100)+MAX(0,F13-6000000)*('Rate Design'!$G$7/100)+'Rate Design'!$G$9+F73*'Rate Design'!$G$10-0.2*F48 -> 273122.669 | G122: =500000*('Rate Design'!$G$5/100)+MIN(5500000,G13-500000)*('Rate Design'!$G$6/100)+MAX(0,G13-6000000)*('Rate Design'!$G$7/100)+'Rate Design'!$G$9+G73*'Rate Design'!$G$10-0.2*G48 -> 309602.359 | H122: =500000*('Rate Design'!$G$5/100)+MIN(5500000,H13-500000)*('Rate Design'!$G$6/100)+MAX(0,H13-6000000)*('Rate Design'!$G$7/100)+'Rate Design'!$G$9+H73*'Rate Design'!$G$10-0.2*H48 -> 281697.2948 | I122: =500000*('Rate Design'!$G$5/100)+MIN(5500000,I13-500000)*('Rate Design'!$G$6/100)+MAX(0,I13-6000000)*('Rate Design'!$G$7/100)+'Rate Design'!$G$9+I73*'Rate Design'!$G$10-0.2*I48 -> 326076.1773 | J122: =500000*('Rate Design'!$G$5/100)+MIN(5500000,J13-500000)*('Rate Design'!$G$6/100)+MAX(0,J13-6000000)*('Rate Design'!$G$7/100)+'Rate Design'!$G$9+J73*'Rate Design'!$G$10-0.2*J48 -> 301965.643 | K122: =500000*('Rate Design'!$G$5/100)+MIN(5500000,K13-500000)*('Rate Design'!$G$6/100)+MAX(0,K13-6000000)*('Rate Design'!$G$7/100)+'Rate Design'!$G$9+K73*'Rate Design'!$G$10-0.2*K48 -> 327286.4386 | L122: =500000*('Rate Design'!$G$5/100)+MIN(5500000,L13-500000)*('Rate Design'!$G$6/100)+MAX(0,L13-6000000)*('Rate Design'!$G$7/100)+'Rate Design'!$G$9+L73*'Rate Design'!$G$10-0.2*L48 -> 306420.6839 | M122: =500000*('Rate Design'!$G$5/100)+MIN(5500000,M13-500000)*('Rate Design'!$G$6/100)+MAX(0,M13-6000000)*('Rate Design'!$G$7/100)+'Rate Design'!$G$9+M73*'Rate Design'!$G$10-0.2*M48 -> 317640.097 | N122: =500000*('Rate Design'!$G$5/100)+MIN(5500000,N13-500000)*('Rate Design'!$G$6/100)+MAX(0,N13-6000000)*('Rate Design'!$G$7/100)+'Rate Design'!$G$9+N73*'Rate Design'!$G$10-0.2*N48 -> 279701.3064 | O122: =500000*('Rate Design'!$G$5/100)+MIN(5500000,O13-500000)*('Rate Design'!$G$6/100)+MAX(0,O13-6000000)*('Rate Design'!$G$7/100)+'Rate Design'!$G$9+O73*'Rate Design'!$G$10-0.2*O48 -> 298722.3458 | P122: 3614568.156
D123: =500000*('Rate Design'!$G$5/100)+MIN(5500000,D14-500000)*('Rate Design'!$G$6/100)+MAX(0,D14-6000000)*('Rate Design'!$G$7/100)+'Rate Design'!$G$9+D74*'Rate Design'!$G$10-0.2*D49 -> 341653.7944 | E123: =500000*('Rate Design'!$G$5/100)+MIN(5500000,E14-500000)*('Rate Design'!$G$6/100)+MAX(0,E14-6000000)*('Rate Design'!$G$7/100)+'Rate Design'!$G$9+E74*'Rate Design'!$G$10-0.2*E49 -> 308439.0394 | F123: =500000*('Rate Design'!$G$5/100)+MIN(5500000,F14-500000)*('Rate Design'!$G$6/100)+MAX(0,F14-6000000)*('Rate Design'!$G$7/100)+'Rate Design'!$G$9+F74*'Rate Design'!$G$10-0.2*F49 -> 299140.4511 | G123: =500000*('Rate Design'!$G$5/100)+MIN(5500000,G14-500000)*('Rate Design'!$G$6/100)+MAX(0,G14-6000000)*('Rate Design'!$G$7/100)+'Rate Design'!$G$9+G74*'Rate Design'!$G$10-0.2*G49 -> 244042.0652 | H123: =500000*('Rate Design'!$G$5/100)+MIN(5500000,H14-500000)*('Rate Design'!$G$6/100)+MAX(0,H14-6000000)*('Rate Design'!$G$7/100)+'Rate Design'!$G$9+H74*'Rate Design'!$G$10-0.2*H49 -> 345988.8987 | I123: =500000*('Rate Design'!$G$5/100)+MIN(5500000,I14-500000)*('Rate Design'!$G$6/100)+MAX(0,I14-6000000)*('Rate Design'!$G$7/100)+'Rate Design'!$G$9+I74*'Rate Design'!$G$10-0.2*I49 -> 323108.6241 | J123: =500000*('Rate Design'!$G$5/100)+MIN(5500000,J14-500000)*('Rate Design'!$G$6/100)+MAX(0,J14-6000000)*('Rate Design'!$G$7/100)+'Rate Design'!$G$9+J74*'Rate Design'!$G$10-0.2*J49 -> 336102.498 | K123: =500000*('Rate Design'!$G$5/100)+MIN(5500000,K14-500000)*('Rate Design'!$G$6/100)+MAX(0,K14-6000000)*('Rate Design'!$G$7/100)+'Rate Design'!$G$9+K74*'Rate Design'!$G$10-0.2*K49 -> 329061.8983 | L123: =500000*('Rate Design'!$G$5/100)+MIN(5500000,L14-500000)*('Rate Design'!$G$6/100)+MAX(0,L14-6000000)*('Rate Design'!$G$7/100)+'Rate Design'!$G$9+L74*'Rate Design'!$G$10-0.2*L49 -> 327275.761 | M123: =500000*('Rate Design'!$G$5/100)+MIN(5500000,M14-500000)*('Rate Design'!$G$6/100)+MAX(0,M14-6000000)*('Rate Design'!$G$7/100)+'Rate Design'!$G$9+M74*'Rate Design'!$G$10-0.2*M49 -> 359588.3595 | N123: =500000*('Rate Design'!$G$5/100)+MIN(5500000,N14-500000)*('Rate Design'!$G$6/100)+MAX(0,N14-6000000)*('Rate Design'!$G$7/100)+'Rate Design'!$G$9+N74*'Rate Design'!$G$10-0.2*N49 -> 312751.0443 | O123: =500000*('Rate Design'!$G$5/100)+MIN(5500000,O14-500000)*('Rate Design'!$G$6/100)+MAX(0,O14-6000000)*('Rate Design'!$G$7/100)+'Rate Design'!$G$9+O74*'Rate Design'!$G$10-0.2*O49 -> 306028.8033 | P123: 3833181.237
D124: =500000*('Rate Design'!$G$5/100)+MIN(5500000,D15-500000)*('Rate Design'!$G$6/100)+MAX(0,D15-6000000)*('Rate Design'!$G$7/100)+'Rate Design'!$G$9+D75*'Rate Design'!$G$10-0.2*D50 -> 201987.8677 | E124: =500000*('Rate Design'!$G$5/100)+MIN(5500000,E15-500000)*('Rate Design'!$G$6/100)+MAX(0,E15-6000000)*('Rate Design'!$G$7/100)+'Rate Design'!$G$9+E75*'Rate Design'!$G$10-0.2*E50 -> 191218.9549 | F124: =500000*('Rate Design'!$G$5/100)+MIN(5500000,F15-500000)*('Rate Design'!$G$6/100)+MAX(0,F15-6000000)*('Rate Design'!$G$7/100)+'Rate Design'!$G$9+F75*'Rate Design'!$G$10-0.2*F50 -> 201007.0523 | G124: =500000*('Rate Design'!$G$5/100)+MIN(5500000,G15-500000)*('Rate Design'!$G$6/100)+MAX(0,G15-6000000)*('Rate Design'!$G$7/100)+'Rate Design'!$G$9+G75*'Rate Design'!$G$10-0.2*G50 -> 224222.8436 | H124: =500000*('Rate Design'!$G$5/100)+MIN(5500000,H15-500000)*('Rate Design'!$G$6/100)+MAX(0,H15-6000000)*('Rate Design'!$G$7/100)+'Rate Design'!$G$9+H75*'Rate Design'!$G$10-0.2*H50 -> 241294.1837 | I124: =500000*('Rate Design'!$G$5/100)+MIN(5500000,I15-500000)*('Rate Design'!$G$6/100)+MAX(0,I15-6000000)*('Rate Design'!$G$7/100)+'Rate Design'!$G$9+I75*'Rate Design'!$G$10-0.2*I50 -> 256171.0921 | J124: =500000*('Rate Design'!$G$5/100)+MIN(5500000,J15-500000)*('Rate Design'!$G$6/100)+MAX(0,J15-6000000)*('Rate Design'!$G$7/100)+'Rate Design'!$G$9+J75*'Rate Design'!$G$10-0.2*J50 -> 271921.622 | K124: =500000*('Rate Design'!$G$5/100)+MIN(5500000,K15-500000)*('Rate Design'!$G$6/100)+MAX(0,K15-6000000)*('Rate Design'!$G$7/100)+'Rate Design'!$G$9+K75*'Rate Design'!$G$10-0.2*K50 -> 277051.1788 | L124: =500000*('Rate Design'!$G$5/100)+MIN(5500000,L15-500000)*('Rate Design'!$G$6/100)+MAX(0,L15-6000000)*('Rate Design'!$G$7/100)+'Rate Design'!$G$9+L75*'Rate Design'!$G$10-0.2*L50 -> 228538.0029 | M124: =500000*('Rate Design'!$G$5/100)+MIN(5500000,M15-500000)*('Rate Design'!$G$6/100)+MAX(0,M15-6000000)*('Rate Design'!$G$7/100)+'Rate Design'!$G$9+M75*'Rate Design'!$G$10-0.2*M50 -> 204568.7345 | N124: =500000*('Rate Design'!$G$5/100)+MIN(5500000,N15-500000)*('Rate Design'!$G$6/100)+MAX(0,N15-6000000)*('Rate Design'!$G$7/100)+'Rate Design'!$G$9+N75*'Rate Design'!$G$10-0.2*N50 -> 194406.3402 | O124: =500000*('Rate Design'!$G$5/100)+MIN(5500000,O15-500000)*('Rate Design'!$G$6/100)+MAX(0,O15-6000000)*('Rate Design'!$G$7/100)+'Rate Design'!$G$9+O75*'Rate Design'!$G$10-0.2*O50 -> 197028.2133 | P124: 2689416.086
D125: =500000*('Rate Design'!$G$5/100)+MIN(5500000,D16-500000)*('Rate Design'!$G$6/100)+MAX(0,D16-6000000)*('Rate Design'!$G$7/100)+'Rate Design'!$G$9+D76*'Rate Design'!$G$10-0.2*D51 -> 71278.48932 | E125: =500000*('Rate Design'!$G$5/100)+MIN(5500000,E16-500000)*('Rate Design'!$G$6/100)+MAX(0,E16-6000000)*('Rate Design'!$G$7/100)+'Rate Design'!$G$9+E76*'Rate Design'!$G$10-0.2*E51 -> 67178.64921 | F125: =500000*('Rate Design'!$G$5/100)+MIN(5500000,F16-500000)*('Rate Design'!$G$6/100)+MAX(0,F16-6000000)*('Rate Design'!$G$7/100)+'Rate Design'!$G$9+F76*'Rate Design'!$G$10-0.2*F51 -> 69998.5135 | G125: =500000*('Rate Design'!$G$5/100)+MIN(5500000,G16-500000)*('Rate Design'!$G$6/100)+MAX(0,G16-6000000)*('Rate Design'!$G$7/100)+'Rate Design'!$G$9+G76*'Rate Design'!$G$10-0.2*G51 -> 73350.65755 | H125: =500000*('Rate Design'!$G$5/100)+MIN(5500000,H16-500000)*('Rate Design'!$G$6/100)+MAX(0,H16-6000000)*('Rate Design'!$G$7/100)+'Rate Design'!$G$9+H76*'Rate Design'!$G$10-0.2*H51 -> 72193.43826 | I125: =500000*('Rate Design'!$G$5/100)+MIN(5500000,I16-500000)*('Rate Design'!$G$6/100)+MAX(0,I16-6000000)*('Rate Design'!$G$7/100)+'Rate Design'!$G$9+I76*'Rate Design'!$G$10-0.2*I51 -> 80898.49338 | J125: =500000*('Rate Design'!$G$5/100)+MIN(5500000,J16-500000)*('Rate Design'!$G$6/100)+MAX(0,J16-6000000)*('Rate Design'!$G$7/100)+'Rate Design'!$G$9+J76*'Rate Design'!$G$10-0.2*J51 -> 83965.50247 | K125: =500000*('Rate Design'!$G$5/100)+MIN(5500000,K16-500000)*('Rate Design'!$G$6/100)+MAX(0,K16-6000000)*('Rate Design'!$G$7/100)+'Rate Design'!$G$9+K76*'Rate Design'!$G$10-0.2*K51 -> 85553.72997 | L125: =500000*('Rate Design'!$G$5/100)+MIN(5500000,L16-500000)*('Rate Design'!$G$6/100)+MAX(0,L16-6000000)*('Rate Design'!$G$7/100)+'Rate Design'!$G$9+L76*'Rate Design'!$G$10-0.2*L51 -> 75781.24345 | M125: =500000*('Rate Design'!$G$5/100)+MIN(5500000,M16-500000)*('Rate Design'!$G$6/100)+MAX(0,M16-6000000)*('Rate Design'!$G$7/100)+'Rate Design'!$G$9+M76*'Rate Design'!$G$10-0.2*M51 -> 71144.46149 | N125: =500000*('Rate Design'!$G$5/100)+MIN(5500000,N16-500000)*('Rate Design'!$G$6/100)+MAX(0,N16-6000000)*('Rate Design'!$G$7/100)+'Rate Design'!$G$9+N76*'Rate Design'!$G$10-0.2*N51 -> 68182.97378 | O125: =500000*('Rate Design'!$G$5/100)+MIN(5500000,O16-500000)*('Rate Design'!$G$6/100)+MAX(0,O16-6000000)*('Rate Design'!$G$7/100)+'Rate Design'!$G$9+O76*'Rate Design'!$G$10-0.2*O51 -> 70261.79323 | P125: 889787.9456
D126: =500000*('Rate Design'!$G$5/100)+MIN(5500000,D17-500000)*('Rate Design'!$G$6/100)+MAX(0,D17-6000000)*('Rate Design'!$G$7/100)+'Rate Design'!$G$9+D77*'Rate Design'!$G$10-0.2*D52 -> 65387.68355 | E126: =500000*('Rate Design'!$G$5/100)+MIN(5500000,E17-500000)*('Rate Design'!$G$6/100)+MAX(0,E17-6000000)*('Rate Design'!$G$7/100)+'Rate Design'!$G$9+E77*'Rate Design'!$G$10-0.2*E52 -> 59885.46269 | F126: =500000*('Rate Design'!$G$5/100)+MIN(5500000,F17-500000)*('Rate Design'!$G$6/100)+MAX(0,F17-6000000)*('Rate Design'!$G$7/100)+'Rate Design'!$G$9+F77*'Rate Design'!$G$10-0.2*F52 -> 70812.96242 | G126: =500000*('Rate Design'!$G$5/100)+MIN(5500000,G17-500000)*('Rate Design'!$G$6/100)+MAX(0,G17-6000000)*('Rate Design'!$G$7/100)+'Rate Design'!$G$9+G77*'Rate Design'!$G$10-0.2*G52 -> 72861.60789 | H126: =500000*('Rate Design'!$G$5/100)+MIN(5500000,H17-500000)*('Rate Design'!$G$6/100)+MAX(0,H17-6000000)*('Rate Design'!$G$7/100)+'Rate Design'!$G$9+H77*'Rate Design'!$G$10-0.2*H52 -> 90716.36951 | I126: =500000*('Rate Design'!$G$5/100)+MIN(5500000,I17-500000)*('Rate Design'!$G$6/100)+MAX(0,I17-6000000)*('Rate Design'!$G$7/100)+'Rate Design'!$G$9+I77*'Rate Design'!$G$10-0.2*I52 -> 91650.24805 | J126: =500000*('Rate Design'!$G$5/100)+MIN(5500000,J17-500000)*('Rate Design'!$G$6/100)+MAX(0,J17-6000000)*('Rate Design'!$G$7/100)+'Rate Design'!$G$9+J77*'Rate Design'!$G$10-0.2*J52 -> 88192.41553 | K126: =500000*('Rate Design'!$G$5/100)+MIN(5500000,K17-500000)*('Rate Design'!$G$6/100)+MAX(0,K17-6000000)*('Rate Design'!$G$7/100)+'Rate Design'!$G$9+K77*'Rate Design'!$G$10-0.2*K52 -> 91190.48102 | L126: =500000*('Rate Design'!$G$5/100)+MIN(5500000,L17-500000)*('Rate Design'!$G$6/100)+MAX(0,L17-6000000)*('Rate Design'!$G$7/100)+'Rate Design'!$G$9+L77*'Rate Design'!$G$10-0.2*L52 -> 72883.10243 | M126: =500000*('Rate Design'!$G$5/100)+MIN(5500000,M17-500000)*('Rate Design'!$G$6/100)+MAX(0,M17-6000000)*('Rate Design'!$G$7/100)+'Rate Design'!$G$9+M77*'Rate Design'!$G$10-0.2*M52 -> 74058.3913 | N126: =500000*('Rate Design'!$G$5/100)+MIN(5500000,N17-500000)*('Rate Design'!$G$6/100)+MAX(0,N17-6000000)*('Rate Design'!$G$7/100)+'Rate Design'!$G$9+N77*'Rate Design'!$G$10-0.2*N52 -> 79110.32212 | O126: =500000*('Rate Design'!$G$5/100)+MIN(5500000,O17-500000)*('Rate Design'!$G$6/100)+MAX(0,O17-6000000)*('Rate Design'!$G$7/100)+'Rate Design'!$G$9+O77*'Rate Design'!$G$10-0.2*O52 -> 84874.13728 | P126: 941623.1838
D127: =500000*('Rate Design'!$G$5/100)+MIN(5500000,D18-500000)*('Rate Design'!$G$6/100)+MAX(0,D18-6000000)*('Rate Design'!$G$7/100)+'Rate Design'!$G$9+D78*'Rate Design'!$G$10-0.2*D53 -> 91206.70142 | E127: =500000*('Rate Design'!$G$5/100)+MIN(5500000,E18-500000)*('Rate Design'!$G$6/100)+MAX(0,E18-6000000)*('Rate Design'!$G$7/100)+'Rate Design'!$G$9+E78*'Rate Design'!$G$10-0.2*E53 -> 91463.81165 | F127: =500000*('Rate Design'!$G$5/100)+MIN(5500000,F18-500000)*('Rate Design'!$G$6/100)+MAX(0,F18-6000000)*('Rate Design'!$G$7/100)+'Rate Design'!$G$9+F78*'Rate Design'!$G$10-0.2*F53 -> 96730.93202 | G127: =500000*('Rate Design'!$G$5/100)+MIN(5500000,G18-500000)*('Rate Design'!$G$6/100)+MAX(0,G18-6000000)*('Rate Design'!$G$7/100)+'Rate Design'!$G$9+G78*'Rate Design'!$G$10-0.2*G53 -> 100758.3195 | H127: =500000*('Rate Design'!$G$5/100)+MIN(5500000,H18-500000)*('Rate Design'!$G$6/100)+MAX(0,H18-6000000)*('Rate Design'!$G$7/100)+'Rate Design'!$G$9+H78*'Rate Design'!$G$10-0.2*H53 -> 107366.8178 | I127: =500000*('Rate Design'!$G$5/100)+MIN(5500000,I18-500000)*('Rate Design'!$G$6/100)+MAX(0,I18-6000000)*('Rate Design'!$G$7/100)+'Rate Design'!$G$9+I78*'Rate Design'!$G$10-0.2*I53 -> 118364.5107 | J127: =500000*('Rate Design'!$G$5/100)+MIN(5500000,J18-500000)*('Rate Design'!$G$6/100)+MAX(0,J18-6000000)*('Rate Design'!$G$7/100)+'Rate Design'!$G$9+J78*'Rate Design'!$G$10-0.2*J53 -> 110794.804 | K127: =500000*('Rate Design'!$G$5/100)+MIN(5500000,K18-500000)*('Rate Design'!$G$6/100)+MAX(0,K18-6000000)*('Rate Design'!$G$7/100)+'Rate Design'!$G$9+K78*'Rate Design'!$G$10-0.2*K53 -> 111688.5771 | L127: =500000*('Rate Design'!$G$5/100)+MIN(5500000,L18-500000)*('Rate Design'!$G$6/100)+MAX(0,L18-6000000)*('Rate Design'!$G$7/100)+'Rate Design'!$G$9+L78*'Rate Design'!$G$10-0.2*L53 -> 94975.35708 | M127: =500000*('Rate Design'!$G$5/100)+MIN(5500000,M18-500000)*('Rate Design'!$G$6/100)+MAX(0,M18-6000000)*('Rate Design'!$G$7/100)+'Rate Design'!$G$9+M78*'Rate Design'!$G$10-0.2*M53 -> 92147.10942 | N127: =500000*('Rate Design'!$G$5/100)+MIN(5500000,N18-500000)*('Rate Design'!$G$6/100)+MAX(0,N18-6000000)*('Rate Design'!$G$7/100)+'Rate Design'!$G$9+N78*'Rate Design'!$G$10-0.2*N53 -> 83642.20907 | O127: =500000*('Rate Design'!$G$5/100)+MIN(5500000,O18-500000)*('Rate Design'!$G$6/100)+MAX(0,O18-6000000)*('Rate Design'!$G$7/100)+'Rate Design'!$G$9+O78*'Rate Design'!$G$10-0.2*O53 -> 81392.6851 | P127: 1180531.835
D128: =500000*('Rate Design'!$G$5/100)+MIN(5500000,D19-500000)*('Rate Design'!$G$6/100)+MAX(0,D19-6000000)*('Rate Design'!$G$7/100)+'Rate Design'!$G$9+D79*'Rate Design'!$G$10-0.2*D54 -> 135135.6096 | E128: =500000*('Rate Design'!$G$5/100)+MIN(5500000,E19-500000)*('Rate Design'!$G$6/100)+MAX(0,E19-6000000)*('Rate Design'!$G$7/100)+'Rate Design'!$G$9+E79*'Rate Design'!$G$10-0.2*E54 -> 132432.1099 | F128: =500000*('Rate Design'!$G$5/100)+MIN(5500000,F19-500000)*('Rate Design'!$G$6/100)+MAX(0,F19-6000000)*('Rate Design'!$G$7/100)+'Rate Design'!$G$9+F79*'Rate Design'!$G$10-0.2*F54 -> 137106.1316 | G128: =500000*('Rate Design'!$G$5/100)+MIN(5500000,G19-500000)*('Rate Design'!$G$6/100)+MAX(0,G19-6000000)*('Rate Design'!$G$7/100)+'Rate Design'!$G$9+G79*'Rate Design'!$G$10-0.2*G54 -> 89630.48185 | H128: =500000*('Rate Design'!$G$5/100)+MIN(5500000,H19-500000)*('Rate Design'!$G$6/100)+MAX(0,H19-6000000)*('Rate Design'!$G$7/100)+'Rate Design'!$G$9+H79*'Rate Design'!$G$10-0.2*H54 -> 128985.4493 | I128: =500000*('Rate Design'!$G$5/100)+MIN(5500000,I19-500000)*('Rate Design'!$G$6/100)+MAX(0,I19-6000000)*('Rate Design'!$G$7/100)+'Rate Design'!$G$9+I79*'Rate Design'!$G$10-0.2*I54 -> 131028.7773 | J128: =500000*('Rate Design'!$G$5/100)+MIN(5500000,J19-500000)*('Rate Design'!$G$6/100)+MAX(0,J19-6000000)*('Rate Design'!$G$7/100)+'Rate Design'!$G$9+J79*'Rate Design'!$G$10-0.2*J54 -> 86674.01804 | K128: =500000*('Rate Design'!$G$5/100)+MIN(5500000,K19-500000)*('Rate Design'!$G$6/100)+MAX(0,K19-6000000)*('Rate Design'!$G$7/100)+'Rate Design'!$G$9+K79*'Rate Design'!$G$10-0.2*K54 -> 137372.5627 | L128: =500000*('Rate Design'!$G$5/100)+MIN(5500000,L19-500000)*('Rate Design'!$G$6/100)+MAX(0,L19-6000000)*('Rate Design'!$G$7/100)+'Rate Design'!$G$9+L79*'Rate Design'!$G$10-0.2*L54 -> 123468.6876 | M128: =500000*('Rate Design'!$G$5/100)+MIN(5500000,M19-500000)*('Rate Design'!$G$6/100)+MAX(0,M19-6000000)*('Rate Design'!$G$7/100)+'Rate Design'!$G$9+M79*'Rate Design'!$G$10-0.2*M54 -> 128312.9461 | N128: =500000*('Rate Design'!$G$5/100)+MIN(5500000,N19-500000)*('Rate Design'!$G$6/100)+MAX(0,N19-6000000)*('Rate Design'!$G$7/100)+'Rate Design'!$G$9+N79*'Rate Design'!$G$10-0.2*N54 -> 137893.1042 | O128: =500000*('Rate Design'!$G$5/100)+MIN(5500000,O19-500000)*('Rate Design'!$G$6/100)+MAX(0,O19-6000000)*('Rate Design'!$G$7/100)+'Rate Design'!$G$9+O79*'Rate Design'!$G$10-0.2*O54 -> 145142.4321 | P128: 1513182.31
D129: =500000*('Rate Design'!$G$5/100)+MIN(5500000,D20-500000)*('Rate Design'!$G$6/100)+MAX(0,D20-6000000)*('Rate Design'!$G$7/100)+'Rate Design'!$G$9+D80*'Rate Design'!$G$10-0.2*D55 -> 152691.1213 | E129: =500000*('Rate Design'!$G$5/100)+MIN(5500000,E20-500000)*('Rate Design'!$G$6/100)+MAX(0,E20-6000000)*('Rate Design'!$G$7/100)+'Rate Design'!$G$9+E80*'Rate Design'!$G$10-0.2*E55 -> 136304.958 | F129: =500000*('Rate Design'!$G$5/100)+MIN(5500000,F20-500000)*('Rate Design'!$G$6/100)+MAX(0,F20-6000000)*('Rate Design'!$G$7/100)+'Rate Design'!$G$9+F80*'Rate Design'!$G$10-0.2*F55 -> 139030.9282 | G129: =500000*('Rate Design'!$G$5/100)+MIN(5500000,G20-500000)*('Rate Design'!$G$6/100)+MAX(0,G20-6000000)*('Rate Design'!$G$7/100)+'Rate Design'!$G$9+G80*'Rate Design'!$G$10-0.2*G55 -> 133969.2725 | H129: =500000*('Rate Design'!$G$5/100)+MIN(5500000,H20-500000)*('Rate Design'!$G$6/100)+MAX(0,H20-6000000)*('Rate Design'!$G$7/100)+'Rate Design'!$G$9+H80*'Rate Design'!$G$10-0.2*H55 -> 130521.6087 | I129: =500000*('Rate Design'!$G$5/100)+MIN(5500000,I20-500000)*('Rate Design'!$G$6/100)+MAX(0,I20-6000000)*('Rate Design'!$G$7/100)+'Rate Design'!$G$9+I80*'Rate Design'!$G$10-0.2*I55 -> 126724.9082 | J129: =500000*('Rate Design'!$G$5/100)+MIN(5500000,J20-500000)*('Rate Design'!$G$6/100)+MAX(0,J20-6000000)*('Rate Design'!$G$7/100)+'Rate Design'!$G$9+J80*'Rate Design'!$G$10-0.2*J55 -> 127311.5181 | K129: =500000*('Rate Design'!$G$5/100)+MIN(5500000,K20-500000)*('Rate Design'!$G$6/100)+MAX(0,K20-6000000)*('Rate Design'!$G$7/100)+'Rate Design'!$G$9+K80*'Rate Design'!$G$10-0.2*K55 -> 135431.4931 | L129: =500000*('Rate Design'!$G$5/100)+MIN(5500000,L20-500000)*('Rate Design'!$G$6/100)+MAX(0,L20-6000000)*('Rate Design'!$G$7/100)+'Rate Design'!$G$9+L80*'Rate Design'!$G$10-0.2*L55 -> 134488.8412 | M129: =500000*('Rate Design'!$G$5/100)+MIN(5500000,M20-500000)*('Rate Design'!$G$6/100)+MAX(0,M20-6000000)*('Rate Design'!$G$7/100)+'Rate Design'!$G$9+M80*'Rate Design'!$G$10-0.2*M55 -> 143339.7918 | N129: =500000*('Rate Design'!$G$5/100)+MIN(5500000,N20-500000)*('Rate Design'!$G$6/100)+MAX(0,N20-6000000)*('Rate Design'!$G$7/100)+'Rate Design'!$G$9+N80*'Rate Design'!$G$10-0.2*N55 -> 149963.9102 | O129: =500000*('Rate Design'!$G$5/100)+MIN(5500000,O20-500000)*('Rate Design'!$G$6/100)+MAX(0,O20-6000000)*('Rate Design'!$G$7/100)+'Rate Design'!$G$9+O80*'Rate Design'!$G$10-0.2*O55 -> 179906.6332 | P129: 1689684.984
D130: =500000*('Rate Design'!$G$5/100)+MIN(5500000,D21-500000)*('Rate Design'!$G$6/100)+MAX(0,D21-6000000)*('Rate Design'!$G$7/100)+'Rate Design'!$G$9+D81*'Rate Design'!$G$10-0.2*D56 -> 263248.5937 | E130: =500000*('Rate Design'!$G$5/100)+MIN(5500000,E21-500000)*('Rate Design'!$G$6/100)+MAX(0,E21-6000000)*('Rate Design'!$G$7/100)+'Rate Design'!$G$9+E81*'Rate Design'!$G$10-0.2*E56 -> 245143.6764 | F130: =500000*('Rate Design'!$G$5/100)+MIN(5500000,F21-500000)*('Rate Design'!$G$6/100)+MAX(0,F21-6000000)*('Rate Design'!$G$7/100)+'Rate Design'!$G$9+F81*'Rate Design'!$G$10-0.2*F56 -> 261978.6413 | G130: =500000*('Rate Design'!$G$5/100)+MIN(5500000,G21-500000)*('Rate Design'!$G$6/100)+MAX(0,G21-6000000)*('Rate Design'!$G$7/100)+'Rate Design'!$G$9+G81*'Rate Design'!$G$10-0.2*G56 -> 263355.8515 | H130: =500000*('Rate Design'!$G$5/100)+MIN(5500000,H21-500000)*('Rate Design'!$G$6/100)+MAX(0,H21-6000000)*('Rate Design'!$G$7/100)+'Rate Design'!$G$9+H81*'Rate Design'!$G$10-0.2*H56 -> 266939.2187 | I130: =500000*('Rate Design'!$G$5/100)+MIN(5500000,I21-500000)*('Rate Design'!$G$6/100)+MAX(0,I21-6000000)*('Rate Design'!$G$7/100)+'Rate Design'!$G$9+I81*'Rate Design'!$G$10-0.2*I56 -> 286525.557 | J130: =500000*('Rate Design'!$G$5/100)+MIN(5500000,J21-500000)*('Rate Design'!$G$6/100)+MAX(0,J21-6000000)*('Rate Design'!$G$7/100)+'Rate Design'!$G$9+J81*'Rate Design'!$G$10-0.2*J56 -> 303215.0507 | K130: =500000*('Rate Design'!$G$5/100)+MIN(5500000,K21-500000)*('Rate Design'!$G$6/100)+MAX(0,K21-6000000)*('Rate Design'!$G$7/100)+'Rate Design'!$G$9+K81*'Rate Design'!$G$10-0.2*K56 -> 326901.9637 | L130: =500000*('Rate Design'!$G$5/100)+MIN(5500000,L21-500000)*('Rate Design'!$G$6/100)+MAX(0,L21-6000000)*('Rate Design'!$G$7/100)+'Rate Design'!$G$9+L81*'Rate Design'!$G$10-0.2*L56 -> 289295.7009 | M130: =500000*('Rate Design'!$G$5/100)+MIN(5500000,M21-500000)*('Rate Design'!$G$6/100)+MAX(0,M21-6000000)*('Rate Design'!$G$7/100)+'Rate Design'!$G$9+M81*'Rate Design'!$G$10-0.2*M56 -> 255988.6755 | N130: =500000*('Rate Design'!$G$5/100)+MIN(5500000,N21-500000)*('Rate Design'!$G$6/100)+MAX(0,N21-6000000)*('Rate Design'!$G$7/100)+'Rate Design'!$G$9+N81*'Rate Design'!$G$10-0.2*N56 -> 246493.8322 | O130: =500000*('Rate Design'!$G$5/100)+MIN(5500000,O21-500000)*('Rate Design'!$G$6/100)+MAX(0,O21-6000000)*('Rate Design'!$G$7/100)+'Rate Design'!$G$9+O81*'Rate Design'!$G$10-0.2*O56 -> 271353.9553 | P130: 3280440.717
D131: =500000*('Rate Design'!$G$5/100)+MIN(5500000,D22-500000)*('Rate Design'!$G$6/100)+MAX(0,D22-6000000)*('Rate Design'!$G$7/100)+'Rate Design'!$G$9+D82*'Rate Design'!$G$10-0.2*D57 -> 205602.0953 | E131: =500000*('Rate Design'!$G$5/100)+MIN(5500000,E22-500000)*('Rate Design'!$G$6/100)+MAX(0,E22-6000000)*('Rate Design'!$G$7/100)+'Rate Design'!$G$9+E82*'Rate Design'!$G$10-0.2*E57 -> 182143.0822 | F131: =500000*('Rate Design'!$G$5/100)+MIN(5500000,F22-500000)*('Rate Design'!$G$6/100)+MAX(0,F22-6000000)*('Rate Design'!$G$7/100)+'Rate Design'!$G$9+F82*'Rate Design'!$G$10-0.2*F57 -> 186135.4767 | G131: =500000*('Rate Design'!$G$5/100)+MIN(5500000,G22-500000)*('Rate Design'!$G$6/100)+MAX(0,G22-6000000)*('Rate Design'!$G$7/100)+'Rate Design'!$G$9+G82*'Rate Design'!$G$10-0.2*G57 -> 182136.1676 | H131: =500000*('Rate Design'!$G$5/100)+MIN(5500000,H22-500000)*('Rate Design'!$G$6/100)+MAX(0,H22-6000000)*('Rate Design'!$G$7/100)+'Rate Design'!$G$9+H82*'Rate Design'!$G$10-0.2*H57 -> 175929.1881 | I131: =500000*('Rate Design'!$G$5/100)+MIN(5500000,I22-500000)*('Rate Design'!$G$6/100)+MAX(0,I22-6000000)*('Rate Design'!$G$7/100)+'Rate Design'!$G$9+I82*'Rate Design'!$G$10-0.2*I57 -> 164666.3525 | J131: =500000*('Rate Design'!$G$5/100)+MIN(5500000,J22-500000)*('Rate Design'!$G$6/100)+MAX(0,J22-6000000)*('Rate Design'!$G$7/100)+'Rate Design'!$G$9+J82*'Rate Design'!$G$10-0.2*J57 -> 189128.5649 | K131: =500000*('Rate Design'!$G$5/100)+MIN(5500000,K22-500000)*('Rate Design'!$G$6/100)+MAX(0,K22-6000000)*('Rate Design'!$G$7/100)+'Rate Design'!$G$9+K82*'Rate Design'!$G$10-0.2*K57 -> 168957.5225 | L131: =500000*('Rate Design'!$G$5/100)+MIN(5500000,L22-500000)*('Rate Design'!$G$6/100)+MAX(0,L22-6000000)*('Rate Design'!$G$7/100)+'Rate Design'!$G$9+L82*'Rate Design'!$G$10-0.2*L57 -> 175960.2094 | M131: =500000*('Rate Design'!$G$5/100)+MIN(5500000,M22-500000)*('Rate Design'!$G$6/100)+MAX(0,M22-6000000)*('Rate Design'!$G$7/100)+'Rate Design'!$G$9+M82*'Rate Design'!$G$10-0.2*M57 -> 189248.2268 | N131: =500000*('Rate Design'!$G$5/100)+MIN(5500000,N22-500000)*('Rate Design'!$G$6/100)+MAX(0,N22-6000000)*('Rate Design'!$G$7/100)+'Rate Design'!$G$9+N82*'Rate Design'!$G$10-0.2*N57 -> 192645.8791 | O131: =500000*('Rate Design'!$G$5/100)+MIN(5500000,O22-500000)*('Rate Design'!$G$6/100)+MAX(0,O22-6000000)*('Rate Design'!$G$7/100)+'Rate Design'!$G$9+O82*'Rate Design'!$G$10-0.2*O57 -> 211704.2909 | P131: 2224257.056
D132: =500000*('Rate Design'!$G$5/100)+MIN(5500000,D23-500000)*('Rate Design'!$G$6/100)+MAX(0,D23-6000000)*('Rate Design'!$G$7/100)+'Rate Design'!$G$9+D83*'Rate Design'!$G$10 -> 165171.6094 | E132: =500000*('Rate Design'!$G$5/100)+MIN(5500000,E23-500000)*('Rate Design'!$G$6/100)+MAX(0,E23-6000000)*('Rate Design'!$G$7/100)+'Rate Design'!$G$9+E83*'Rate Design'!$G$10 -> 158933.4194 | F132: =500000*('Rate Design'!$G$5/100)+MIN(5500000,F23-500000)*('Rate Design'!$G$6/100)+MAX(0,F23-6000000)*('Rate Design'!$G$7/100)+'Rate Design'!$G$9+F83*'Rate Design'!$G$10 -> 166097.6657 | G132: =500000*('Rate Design'!$G$5/100)+MIN(5500000,G23-500000)*('Rate Design'!$G$6/100)+MAX(0,G23-6000000)*('Rate Design'!$G$7/100)+'Rate Design'!$G$9+G83*'Rate Design'!$G$10 -> 151930.7261 | H132: =500000*('Rate Design'!$G$5/100)+MIN(5500000,H23-500000)*('Rate Design'!$G$6/100)+MAX(0,H23-6000000)*('Rate Design'!$G$7/100)+'Rate Design'!$G$9+H83*'Rate Design'!$G$10 -> 147259.1676 | I132: =500000*('Rate Design'!$G$5/100)+MIN(5500000,I23-500000)*('Rate Design'!$G$6/100)+MAX(0,I23-6000000)*('Rate Design'!$G$7/100)+'Rate Design'!$G$9+I83*'Rate Design'!$G$10 -> 142473.2724 | J132: =500000*('Rate Design'!$G$5/100)+MIN(5500000,J23-500000)*('Rate Design'!$G$6/100)+MAX(0,J23-6000000)*('Rate Design'!$G$7/100)+'Rate Design'!$G$9+J83*'Rate Design'!$G$10 -> 141043.0006 | K132: =500000*('Rate Design'!$G$5/100)+MIN(5500000,K23-500000)*('Rate Design'!$G$6/100)+MAX(0,K23-6000000)*('Rate Design'!$G$7/100)+'Rate Design'!$G$9+K83*'Rate Design'!$G$10 -> 150741.912 | L132: =500000*('Rate Design'!$G$5/100)+MIN(5500000,L23-500000)*('Rate Design'!$G$6/100)+MAX(0,L23-6000000)*('Rate Design'!$G$7/100)+'Rate Design'!$G$9+L83*'Rate Design'!$G$10 -> 150078.3199 | M132: =500000*('Rate Design'!$G$5/100)+MIN(5500000,M23-500000)*('Rate Design'!$G$6/100)+MAX(0,M23-6000000)*('Rate Design'!$G$7/100)+'Rate Design'!$G$9+M83*'Rate Design'!$G$10 -> 157757.3904 | N132: =500000*('Rate Design'!$G$5/100)+MIN(5500000,N23-500000)*('Rate Design'!$G$6/100)+MAX(0,N23-6000000)*('Rate Design'!$G$7/100)+'Rate Design'!$G$9+N83*'Rate Design'!$G$10 -> 155705.9218 | O132: =500000*('Rate Design'!$G$5/100)+MIN(5500000,O23-500000)*('Rate Design'!$G$6/100)+MAX(0,O23-6000000)*('Rate Design'!$G$7/100)+'Rate Design'!$G$9+O83*'Rate Design'!$G$10 -> 172190.5644 | P132: 1859382.97
D133: =500000*('Rate Design'!$G$5/100)+MIN(5500000,D24-500000)*('Rate Design'!$G$6/100)+MAX(0,D24-6000000)*('Rate Design'!$G$7/100)+'Rate Design'!$G$9+D84*'Rate Design'!$G$10 -> 144097.855 | E133: =500000*('Rate Design'!$G$5/100)+MIN(5500000,E24-500000)*('Rate Design'!$G$6/100)+MAX(0,E24-6000000)*('Rate Design'!$G$7/100)+'Rate Design'!$G$9+E84*'Rate Design'!$G$10 -> 139094.0683 | F133: =500000*('Rate Design'!$G$5/100)+MIN(5500000,F24-500000)*('Rate Design'!$G$6/100)+MAX(0,F24-6000000)*('Rate Design'!$G$7/100)+'Rate Design'!$G$9+F84*'Rate Design'!$G$10 -> 141637.8094 | G133: =500000*('Rate Design'!$G$5/100)+MIN(5500000,G24-500000)*('Rate Design'!$G$6/100)+MAX(0,G24-6000000)*('Rate Design'!$G$7/100)+'Rate Design'!$G$9+G84*'Rate Design'!$G$10 -> 162354.4046 | H133: =500000*('Rate Design'!$G$5/100)+MIN(5500000,H24-500000)*('Rate Design'!$G$6/100)+MAX(0,H24-6000000)*('Rate Design'!$G$7/100)+'Rate Design'!$G$9+H84*'Rate Design'!$G$10 -> 160907.1125 | I133: =500000*('Rate Design'!$G$5/100)+MIN(5500000,I24-500000)*('Rate Design'!$G$6/100)+MAX(0,I24-6000000)*('Rate Design'!$G$7/100)+'Rate Design'!$G$9+I84*'Rate Design'!$G$10 -> 178824.215 | J133: =500000*('Rate Design'!$G$5/100)+MIN(5500000,J24-500000)*('Rate Design'!$G$6/100)+MAX(0,J24-6000000)*('Rate Design'!$G$7/100)+'Rate Design'!$G$9+J84*'Rate Design'!$G$10 -> 193701.2306 | K133: =500000*('Rate Design'!$G$5/100)+MIN(5500000,K24-500000)*('Rate Design'!$G$6/100)+MAX(0,K24-6000000)*('Rate Design'!$G$7/100)+'Rate Design'!$G$9+K84*'Rate Design'!$G$10 -> 216231.6067 | L133: =500000*('Rate Design'!$G$5/100)+MIN(5500000,L24-500000)*('Rate Design'!$G$6/100)+MAX(0,L24-6000000)*('Rate Design'!$G$7/100)+'Rate Design'!$G$9+L84*'Rate Design'!$G$10 -> 168661.819 | M133: =500000*('Rate Design'!$G$5/100)+MIN(5500000,M24-500000)*('Rate Design'!$G$6/100)+MAX(0,M24-6000000)*('Rate Design'!$G$7/100)+'Rate Design'!$G$9+M84*'Rate Design'!$G$10 -> 145011.2486 | N133: =500000*('Rate Design'!$G$5/100)+MIN(5500000,N24-500000)*('Rate Design'!$G$6/100)+MAX(0,N24-6000000)*('Rate Design'!$G$7/100)+'Rate Design'!$G$9+N84*'Rate Design'!$G$10 -> 131934.4873 | O133: =500000*('Rate Design'!$G$5/100)+MIN(5500000,O24-500000)*('Rate Design'!$G$6/100)+MAX(0,O24-6000000)*('Rate Design'!$G$7/100)+'Rate Design'!$G$9+O84*'Rate Design'!$G$10 -> 144390.5455 | P133: 1926846.403
B134: Schedule 25 Total | P134: =SUM(P113:P133) -> 64348439.33 | Q134: =P134-'Pres & Prop Rev'!G152 -> 137.81188
D138: 24 | E138: 24 | F138: 24 | G138: 24 | H138: 24 | I138: 24 | J138: 24 | K138: 24 | L138: 24 | M138: 24 | N138: 24 | O138: 24
D139: 31 | E139: 30 | F139: 31 | G139: 31 | H139: 28 | I139: 31 | J139: 30 | K139: 31 | L139: 30 | M139: 31 | N139: 31 | O139: 30 | P139: =SUM(D139:O139) -> 365
D140: =D138*D139 -> 744 | E140: =E138*E139 -> 720 | F140: =F138*F139 -> 744 | G140: 744 | H140: 672 | I140: 744 | J140: 720 | K140: 744 | L140: 720 | M140: 744 | N140: 744 | O140: 720 | P140: =SUM(D140:O140) -> 8760
B141: Load Factor | D141: =D3 -> 2016-01-01 | E141: =E3 -> 2016-02-01 | F141: 2016-03-01 | G141: 2016-04-01 | H141: 2016-05-01 | I141: 2016-06-01 | J141: 2016-07-01 | K141: 2016-08-01 | L141: 2016-09-01 | M141: 2016-10-01 | N141: 2016-11-01 | O141: 2016-12-01 | P141: Monthly Average | Q141: Annual Peak
A142: 1 | B142: BF Goodrich | D142: =(D4/D$140)/D39 -> 0.6751873134 | E142: 0.685047553 | F142: 0.6571726386 | G142: 0.7548807116 | H142: 0.824530969 | I142: 0.743233336 | J142: 0.7582246325 | K142: 0.7524547783 | L142: 0.5956656809 | M142: 0.771680203 | N142: 0.7036645839 | O142: 0.7477078984 | P142: =AVERAGE(D142:O142) -> 0.7224541915 | Q142: =(P4/8760)/Q39 -> 0.6751362757
A143: 2 | B143: Boise Cascade Plywood | D143: =(D5/D$140)/D40 -> 0.8477568425 | E143: 0.8220777864 | F143: 0.8605662232 | G143: 0.8252335504 | H143: 0.9121174817 | I143: 0.7804066349 | J143: 0.7023127125 | K143: 0.7938460117 | L143: 0.7972540775 | M143: 0.8249250183 | N143: 0.7890534446 | O143: 0.5857853461 | P143: =AVERAGE(D143:O143) -> 0.7951112608 | Q143: =(P5/8760)/Q40 -> 0.7703573393
A144: 3 | B144: Boise Cascade Sawmill | D144: =(D6/D$140)/D41 -> 0.6105191516 | E144: 0.5927901825 | F144: 0.6152163738 | G144: 0.5662557404 | H144: 0.645087257 | I144: 0.5898336194 | J144: 0.5767478433 | K144: 0.6134626715 | L144: 0.5710450482 | M144: 0.5728866264 | N144: 0.5765444461 | O144: 0.6319638725 | P144: 0.5968627361 | Q144: 0.5573986584
A145: 4 | B145: City of Spokane Sewage Treatment Plt | D145: =(D7/D$140)/D42 -> 0.6923418883 | E145: 0.6578688525 | F145: 0.6820904945 | G145: 0.6421709842 | H145: 0.7631634381 | I145: 0.6845155835 | J145: 0.6687131954 | K145: 0.6988867156 | L145: 0.7137432198 | M145: 0.6290033973 | N145: 0.6211011245 | O145: 0.705064044 | P145: 0.6798885781 | Q145: 0.6088234665
A146: 5 | B146: Deaconess Medical Center | D146: =(D8/D$140)/D43 -> 0.8166376004 | E146: 0.7848476245 | F146: 0.8184956687 | G146: 0.6866812633 | H146: 0.7852052123 | I146: 0.6247982867 | J146: 0.7498049615 | K146: 0.7331242907 | L146: 0.7222966679 | M146: 0.768692793 | N146: 0.8126388478 | O146: 0.8368098973 | P146: 0.7616694262 | Q146: 0.6217555532
A147: 6 | B147: Gonzaga University | D147: =(D9/D$140)/D44 -> 0.6817034777 | E147: 0.6624813066 | F147: 0.6513115645 | G147: 0.5285378178 | H147: 0.5106851286 | I147: 0.4707934304 | J147: 0.508263235 | K147: 0.5026078816 | L147: 0.552070435 | M147: 0.7036928099 | N147: 0.6331963128 | O147: 0.6646489271 | P147: 0.5891660273 | Q147: 0.5261518933
A148: 7 | B148: Honeywell Electronics | D148: =(D10/D$140)/D45 -> 0.5708786926 | E148: 0.5202426891 | F148: 0.570043252 | G148: 0.5413485125 | H148: 0.6111741884 | I148: 0.4909953895 | J148: 0.5585213561 | K148: 0.5673155053 | L148: 0.5190061968 | M148: 0.5583747103 | N148: 0.5664410603 | O148: 0.553764346 | P148: 0.5523421582 | Q148: 0.4842995551
A149: 8 | B149: Huntwood Industries | D149: =(D11/D$140)/D46 -> 0.3039636376 | E149: 0.3157397515 | F149: 0.3328759933 | G149: 0.3110882088 | H149: 0.3689447832 | I149: 0.3373468175 | J149: 0.319001125 | K149: 0.3585438873 | L149: 0.3316029635 | M149: 0.3151502749 | N149: 0.3068371636 | O149: 0.332790104 | P149: 0.3278237258 | Q149: 0.3211170317
A150: 9 | B150: Inland Empire Paper | D150: =(D12/D$140)/D47 -> 0.8923313455 | E150: 0.8770018833 | F150: 0.9113191133 | G150: 0.8433272949 | H150: 1.011514964 | I150: 0.8722017181 | J150: 0.9425732259 | K150: 0.9035437504 | L150: 0.8925220172 | M150: 0.8973085039 | N150: 0.8467464378 | O150: 0.9472761287 | P150: 0.9031388652 | Q150: 0.8864016392
A151: 10 | B151: JR Simplot | D151: =(D13/D$140)/D48 -> 0.7958292953 | E151: 0.8377412166 | F151: 0.7269762193 | G151: 0.8379362276 | H151: 0.8291741594 | I151: 0.8699505829 | J151: 0.8003758454 | K151: 0.8715217019 | L151: 0.8604078186 | M151: 0.8652539147 | N151: 0.7386880321 | O151: 0.8315588568 | P151: 0.8221178225 | Q151: 0.7927392231
A152: 11 | B152: McCaine Foods Inc | D152: =(D14/D$140)/D49 -> 0.8373773263 | E152: 0.7955373046 | F152: 0.7398688361 | G152: 0.583380297 | H152: 0.9379120555 | I152: 0.7937693433 | J152: 0.8444545614 | K152: 0.8230916622 | L152: 0.7917097432 | M152: 0.8423997587 | N152: 0.7763384819 | O152: 0.794498598 | P152: 0.7966948307 | Q152: 0.7516042448
A153: 12 | B153: Sacred Heart Medical Center | D153: =(D15/D$140)/D50 -> 0.8229080063 | E153: 0.8000632482 | F153: 0.8064743526 | G153: 0.630955445 | H153: 0.7394246288 | I153: 0.6415903359 | J153: 0.7297005354 | K153: 0.7305544424 | L153: 0.7093589087 | M153: 0.758571572 | N153: 0.700966552 | O153: 0.86287099 | P153: 0.7444532514 | Q153: 0.5827566245
A154: 13 | B154: Spokane County Courthouse | D154: =(D16/D$140)/D51 -> 0.6855434191 | E154: 0.6487769267 | F154: 0.5441845917 | G154: 0.5708610057 | H154: 0.5510087837 | I154: 0.5301502829 | J154: 0.5496007903 | K154: 0.5551261026 | L154: 0.5630201036 | M154: 0.5666944753 | N154: 0.526836375 | O154: 0.7142897041 | P154: 0.5838410467 | Q154: 0.4564777822
A155: 14 | B155: Spokane Steel Foundry | D155: =(D17/D$140)/D52 -> 0.1025848174 | E155: 0.1709319292 | F155: 0.1675935713 | G155: 0.1404350055 | H155: 0.2360397482 | I155: 0.2167897037 | J155: 0.1925410179 | K155: 0.2145478713 | L155: 0.1472421158 | M155: 0.1458460881 | N155: 0.1618516698 | O155: 0.1869454074 | P155: 0.1736124121 | Q155: 0.1605302606
A156: 15 | B156: Triumph Composite / Boeing | D156: =(D18/D$140)/D53 -> 0.6150084531 | E156: 0.6379103746 | F156: 0.6568085582 | G156: 0.5986038848 | H156: 0.7027058453 | I156: 0.6448451178 | J156: 0.6223599266 | K156: 0.6126475866 | L156: 0.5599829899 | M156: 0.6117240637 | N156: 0.5362312128 | O156: 0.5343182897 | P156: 0.6110955253 | Q156: 0.5327473624
A157: 16 | B157: Vaagen Brothers Lumber | D157: =(D19/D$140)/D54 -> 0.6121902297 | E157: 0.588323937 | F157: 0.5985587065 | G157: 0.3722730412 | H157: 0.6635399492 | I157: 0.6235379629 | J157: 0.3597960959 | K157: 0.649006305 | L157: 0.614363949 | M157: 0.5717658243 | N157: 0.6017999312 | O157: 0.6730397572 | P157: 0.5773496408 | Q157: 0.5508700657
A158: 17 | B158: WSU - MP-A South Campus Feeder | D158: =(D20/D$140)/D55 -> 0.7461282525 | E158: 0.6920551534 | F158: 0.7285808928 | G158: 0.7048593623 | H158: 0.8521333711 | I158: 0.76287602 | J158: 0.7836317786 | K158: 0.7391339634 | L158: 0.7686636424 | M158: 0.7208648566 | N158: 0.6558304619 | O158: 0.7965644711 | P158: 0.7459435189 | Q158: 0.6034453315
A159: 18 | B159: WSU - MP-B East Campus EA | D159: =(D21/D$140)/D56 -> 0.6238473681 | E159: 0.6715399459 | F159: 0.664760439 | G159: 0.487768383 | H159: 0.6283359999 | I159: 0.54173302 | J159: 0.5524090346 | K159: 0.5848573787 | L159: 0.5402801108 | M159: 0.7323349197 | N159: 0.6745916731 | O159: 0.737483046 | P159: 0.6199951099 | Q159: 0.4989596714
A160: 19 | B160: WSU - MP-C East Campus EB | D160: =(D22/D$140)/D57 -> 0.6167787218 | E160: 0.733054147 | F160: 0.7328965176 | G160: 0.7103160795 | H160: 0.8454114195 | I160: 0.7554369475 | J160: 0.4763441862 | K160: 0.7555439739 | L160: 0.7156534985 | M160: 0.7585896888 | N160: 0.7182083742 | O160: 0.7868765757 | P160: 0.7170925109 | Q160: 0.5027689919
A161: 20 | B161: WSU - MP -D Casp East (no PVD) | D161: =(D23/D$140)/D58 -> 0.7209221611 | E161: 0.6973688925 | F161: 0.7145843226 | G161: 0.6831178897 | H161: 0.7806849005 | I161: 0.6801606673 | J161: 0.7349708995 | K161: 0.6932161674 | L161: 0.7092199094 | M161: 0.7276635653 | N161: 0.6495276245 | O161: 0.7484558807 | P161: 0.71165774 | Q161: 0.6570893752
A162: 21 | B162: WSU - MP-E Casp West (no PVD) | D162: =(D24/D$140)/D59 -> 0.6888233515 | E162: 0.6694998382 | F162: 0.6101958928 | G162: 0.5488643137 | H162: 0.5359740393 | I162: 0.5192021212 | J162: 0.6378284219 | K162: 0.6428678689 | L162: 0.6816103359 | M162: 0.7557095886 | N162: 0.6842777849 | O162: 0.7102580038 | P162: 0.6404259634 | Q162: 0.4779877468

Sheet Lighting summary
B1: AVISTA UTILITIES
B2: WASHINGTON ELECTRIC
B3: STREET & AREA LIGHT REVENUE UNDER PRESENT & PROPOSED RATES
B4: 12 MONTHS ENDED DECEMBER 31, 2016
C7: ="Present "&IF(Base1_Billing2=2,"Billing ","")&"Rates(1)" -> Present Rates(1) | D7: ="Present "&IF(Base1_Billing2=2,"Billing","")&" Rates" -> Present Rates | F7: ="Proposed "&IF(Base1_Billing2=2,"Billing ","")&"Rates(2)" -> Proposed Rates(2) | G7: ="Proposed "&IF(Base1_Billing2=2,"Billing ","")&"Rates" -> Proposed Rates | I7: % Revenue Change
C8: Monthly | D8: Annual | F8: Monthly | G8: Annual | L8: Target Base | N8: Annual | O8: Present | P8: Proposed
C9: Revenue | D9: Revenue | F9: Revenue | G9: Revenue | I9: Base Rates | J9: Billing Rates | L9: % Change | N9: kWh's | O9: kWh Rate | P9: kWh Rate
B11: Schedule 41 | C11: ='St Lts'!Y$91*IF(Base1_Billing2=2,(1+$I$39),1) -> 1356.75 | D11: =C11*12 -> 16281 | F11: ='St Lts'!AQ$91*IF(Base1_Billing2=2,1+$D$39,1) -> 1385.79 | G11: =F11*12 -> 16629.48 | I11: =G11/D11-1 -> 0.02140409066 | J11: 0 | L11: 0.0214 | N11: ='REVRUNS 12ME1216'!P201 -> 88927.67124
B12: Schedule 42 | C12: ='St Lts'!Z$91*IF(Base1_Billing2=2,1+$I$39,1) -> 378023.27 | D12: =C12*12 -> 4536279.24 | F12: ='St Lts'!AR$91*IF(Base1_Billing2=2,1+$D$39,1) -> 386333.32 | G12: =F12*12 -> 4635999.84 | I12: =G12/D12-1 -> 0.02198290597 | J12: 0 | L12: =L11 -> 0.0214 | N12: ='REVRUNS 12ME1216'!P209 -> 12317818.86
B13: Schedule 44 | C13: ='St Lts'!AA$91*IF(Base1_Billing2=2,1+$I$39,1) -> 3384.02 | D13: 40608.24 | F13: ='St Lts'!AS$91*IF(Base1_Billing2=2,1+$D$39,1) -> 3456.65 | G13: 41479.8 | I13: =G13/D13-1 -> 0.02146263911 | J13: 0 | L13: =L11 -> 0.0214 | N13: ='REVRUNS 12ME1216'!P217 -> 319790.6002
B14: Schedule 45 | C14: ='St Lts'!AB$91*IF(Base1_Billing2=2,1+$I$39,1) -> 4271.28 | D14: 51255.36 | F14: ='St Lts'!AT$91*IF(Base1_Billing2=2,1+$D$39,1) -> 4361.46 | G14: 52337.52 | I14: =G14/D14-1 -> 0.02111310895 | J14: 0 | L14: =L11 -> 0.0214 | N14: ='REVRUNS 12ME1216'!P225 -> 665289.2076
B15: Schedule 46 | C15: ='St Lts'!AC$91*IF(Base1_Billing2=2,1+$I$39,1) -> 10312.89 | D15: 123754.68 | F15: ='St Lts'!AU$91*IF(Base1_Billing2=2,1+$D$39,1) -> 10533.41 | G15: 126400.92 | I15: 0.02138294891 | J15: 0 | L15: =L11 -> 0.0214 | N15: ='REVRUNS 12ME1216'!P233 -> 1201589.249 | O15: =D15/N15 -> 0.1029924994 | P15: =G15/N15 -> 0.1051947827
B16: Schedule 47 | C16: ='Area Lts'!S53*IF(Base1_Billing2=2,1+$I$39,1) -> 111030.3 | D16: 1332363.6 | F16: =IF(Base1_Billing2=1,'Area Lts'!AG53,'Area Lts'!AG62) -> 113408.21 | G16: 1360898.52 | I16: =G16/D16-1 -> 0.02141676641 | J16: 0 | L16: =L11 -> 0.0214 | N16: ='REVRUNS 12ME1216'!P241 -> 5565027.259
B17: Schedule 48 | C17: ='Area Lts'!T53*IF(Base1_Billing2=2,1+$I$39,1) -> 64160.50002 | D17: 769926.0003 | F17: =IF(Base1_Billing2=1,'Area Lts'!AH53,'Area Lts'!AH62) -> 65535.44005 | G17: 786425.2806 | I17: 0.0214296963 | J17: 0 | L17: =L11 -> 0.0214 | N17: ='REVRUNS 12ME1216'!P252 -> 2962727.953
B19: Total | C19: =SUM(C11:C17) -> 572539.01 | D19: =SUM(D11:D17) -> 6870468.12 | F19: =SUM(F11:F17) -> 585014.2801 | G19: =SUM(G11:G17) -> 7020171.361 | I19: =G19/D19-1 -> 0.02178937996 | J19: 0 | L19: =L11 -> 0.0214 | N19: =SUM(N11:N18) -> 23121170.8
C20: =ROUND(C19-CHOOSE(Base1_Billing2,'St Lts'!AC101+'Area Lts'!T54,'St Lts'!AC107+'Area Lts'!T63+G52),0) -> 0 | F20: =ROUND(F19-CHOOSE(Base1_Billing2,'St Lts'!AU100+'Area Lts'!AH54,'St Lts'!AU106+'Area Lts'!AH63),0) -> 0 | L20: =I19-L19 -> 0.0003893799572
B21: Sch 46 Per kWh Rate | D21: =D15/N15 -> 0.1029924994 | G21: =G15/N15 -> 0.1051947827
B23: (1) from PDE-E-12/14 | L23: =G19-('Rate Spread GRC'!H25*1000) -> -656.4815882
B24: (2) from PDE-E-13/14
C26: Billed | D26: =D19*(1+I39)+'Area Lts'!T61*12 -> 6959784.206 | F26: b4 Sch 91/92 | G26: =G19*(1+J39)+'Area Lts'!AH61*12 -> 7107312.055 | I26: =G26/D26-1 -> 0.02119718733 | K26: =G26-D26 -> 147527.8496
C27: Diff | D27: =D26-D19 -> 89316.08556 | F27: b4 Sch 91/92 | G27: =G26-G19 -> 87140.6948
C28: Pres 91/92 | D28: =D$19*(I36+I37) -> 89316.08556 | F28: 91/92 b4 Sch 91/92 | G28: =G$19*(J36+J37) -> 89350.1348
C29: Pres 93 | D29: =D$19*I38 -> 0 | F29: 93 b4 Sch 93 | G29: =G$19*J38 -> 0
C30: add'l 91/92 | D30: =D28*($L$36+L37) -> 0
C31: Billed | D31: =D26 -> 6959784.206 | F31: w/Sch 91/92/93/98 | G31: =G19*(1+D39)+'Area Lts'!AH61*12 -> 7107312.055 | I31: =G31/D31-1 -> 0.02119718733 | K31: =G31-D26 -> 147527.8496 | L31: =K31-J$19 -> 147527.8496
J34: Revised
D35: Proposed | I35: Present | J35: Present | K35: Proposed
D36: =K36 -> 0 | G36: Sch 91-DSM | I36: 0 | J36: =(L19+(1+I36))/(1+L19)-1 -> 0 | K36: =J36*(1+L36) -> 0 | L36: 0
D37: =K37 -> 0.01272762874 | G37: Sch 92-LIRAP | I37: 0.013 | J37: =(L19+(1+I37))/(1+L19)-1 -> 0.01272762874 | K37: =J37*(1+L37) -> 0.01272762874 | L37: 0 | M37: Reflects additional LIRAP funding
D38: =K38 -> 0 | I38: 0 | J38: =(L19+(1+I38))/(1+L19)-1 -> 0 | K38: =J38*(1+$L$38) -> 0 | L38: 0
D39: =D36+D37+D38 -> 0.01272762874 | G39: Total adder | I39: =I36+I37+I38 -> 0.013 | J39: =J36+J37+J38 -> 0.01272762874 | K39: =K36+K37+K38 -> 0.01272762874
C41: Schedule 98 | D41: Schedule 91 | E41: Schedule 59 | G41: Total Revenue
B42: copy of Total above | C42: 488916.6501 | D42: 488917.65 | E42: 5866999.801 | G42: 556466.5401 | H42: 6677598.481
B43: diff from curr Total above | C43: =C19-C42 -> 83622.35997 | D43: =D19-D42 -> 6381550.47 | E43: =D19-E42 -> 1003468.32 | G43: =F19-G42 -> 28547.74 | H43: =G19-H42 -> 342572.88
B44: % diff | C44: =C43/C42 -> 0.1710360242 | D44: =D43/D42 -> 13.05240355 | E44: =E43/E42 -> 0.1710360242 | G44: =G43/G42 -> 0.05130180873 | H44: =H43/H42 -> 0.05130180873
B45: Schedule 41 | C45: ='REVRUNS 12ME1216'!P195*'Lighting summary'!$C$53 -> -57.80298631 | D45: ='REVRUNS 12ME1216'!P195*'Lighting summary'!$D$53 -> 1080.471206 | G45: =C45+D45+F45 -> 1022.668219
B46: Schedule 42 | C46: ='REVRUNS 12ME1216'!P203*'Lighting summary'!$C$53 -> -8006.582261 | D46: ='REVRUNS 12ME1216'!P203*'Lighting summary'!$D$53 -> 149661.4992 | G46: =C46+D46+F46 -> 141654.9169
B47: Schedule 44 | C47: ='REVRUNS 12ME1216'!P211*'Lighting summary'!$C$53 -> -207.8638901 | D47: ='REVRUNS 12ME1216'!P211*'Lighting summary'!$D$53 -> 3885.455792 | G47: 3677.591902
B48: Schedule 45 | C48: ='REVRUNS 12ME1216'!P219*'Lighting summary'!$C$53 -> -432.4379849 | D48: ='REVRUNS 12ME1216'!P219*'Lighting summary'!$D$53 -> 8083.263872 | G48: 7650.825887
B49: Schedule 46 | C49: ='REVRUNS 12ME1216'!P227*'Lighting summary'!$C$53 -> -781.0330119 | D49: ='REVRUNS 12ME1216'!P227*'Lighting summary'!$D$53 -> 14599.30938 | G49: 13818.27636
B50: Schedule 47 | C50: ='REVRUNS 12ME1216'!P235*'Lighting summary'!$C$53 -> -3617.267719 | D50: ='REVRUNS 12ME1216'!P235*'Lighting summary'!$D$53 -> 67615.0812 | G50: 63997.81348
B51: Schedule 48 | C51: ='REVRUNS 12ME1216'!P243*'Lighting summary'!$C$53 -> -1925.77317 | D51: ='REVRUNS 12ME1216'!P243*'Lighting summary'!$D$53 -> 35997.14463 | F51: ='REVRUNS 12ME1216'!P243*'Lighting summary'!$F$53 -> -2399.809642 | G51: 31671.56182
B52: Total | C52: =C45+C46+C47+C48+C49+C50+C51 -> -15028.76102 | D52: =D45+D46+D47+D48+D49+D50+D51 -> 280922.2253 | F52: =E45+E46+E47+E48+E49+E50+F51 -> -2399.809642 | G52: =C52+F52+D52 -> 263493.6546
C53: -0.00065 | D53: 0.01215 | F53: -0.00081
F55: Total Billed | G55: =D31+G52 -> 7223277.86

Sheet St Lts
A1: Street Light Summary | I1: WASHINGTON Street Lights | AJ1: % rate increase --> | AK1: ='Lighting summary'!L11 -> 0.0214 | AL1: ='Lighting summary'!L12 -> 0.0214 | AM1: ='Lighting summary'!L13 -> 0.0214 | AN1: ='Lighting summary'!L14 -> 0.0214 | AO1: ='Lighting summary'!L15 -> 0.0214 | BD1: =-0.00065 -> -0.00065 | BE1: compare input Present Billing Rates to calculated Present Billing Rates | BL1: =BE2 -> 1.013
A2: R-120291 Report as of 1/1/17 | M2: Number of Lights(1) | S2: Present Rates | Y2: Monthly Revenue at Present Rates | AE2: Number of Lights | AK2: Proposed Rates | AQ2: Monthly Revenue at Proposed Rates | AX2: Present Billing Rates | BD2: 0.01215 | BE2: =1+'Lighting summary'!I39 -> 1.013 | BF2: Sch 91 & 98 | BL2: New Billing Rates | BR2: Increase
I3: Fixture Type | J3: Pole Facility | K3: Size | L3: Sched | M3: 041 | N3: 042 | O3: 044 | P3: 045 | Q3: 046 | S3: 041 | T3: 042 | U3: 044 | V3: 045 | W3: 046 | Y3: 041 | Z3: 042 | AA3: 044 | AB3: 045 | AC3: 046 | AE3: 041 | AF3: 042 | AG3: 044 | AH3: 045 | AI3: 046 | AK3: 041 | AL3: 042 | AM3: 044 | AN3: 045 | AO3: 046 | AQ3: 041 | AR3: 042 | AS3: 044 | AT3: 045 | AU3: 046 | AW3: kwh | AX3: 041 | AY3: 042 | AZ3: 044 | BA3: 045 | BB3: 046 | BD3: Sch 93/94 | BE3: 041 | BF3: 042 | BG3: 044 | BH3: 045 | BI3: 046 | BL3: 041 | BM3: 042 | BN3: 044 | BO3: 045 | BP3: 046 | BR3: 041 | BS3: 042 | BT3: 044 | BU3: 045 | BV3: 046
I4: Single Mercury Vapor | J4: Direct Burial | K4: 4000 | L4: 214 | M4: =SUMIF($G:$G,TEXT(M$3,"000")&TEXT($L4,"000"),$E:$E) -> 72 | N4: 0 | O4: 0 | P4: 0 | Q4: 0 | S4: 13.99 | T4: 0 | U4: 0 | V4: 0 | W4: 0 | Y4: =IF(AND(M4<>0,S4=0),#VALUE!,M4*S4) -> 1007.28 | Z4: =IF(AND(N4<>0,T4=0),#VALUE!,N4*T4) -> 0 | AA4: =IF(AND(O4<>0,U4=0),#VALUE!,O4*U4) -> 0 | AB4: =IF(AND(P4<>0,V4=0),#VALUE!,P4*V4) -> 0 | AC4: =IF(AND(Q4<>0,W4=0),#VALUE!,Q4*W4) -> 0 | AE4: =M4 -> 72 | AF4: =N4 -> 0 | AG4: 0 | AH4: 0 | AI4: 0 | AK4: =ROUND(S4*(1+AK$1),2) -> 14.29 | AL4: 0 | AM4: =ROUND(U4*(1+AM$1),2) -> 0 | AN4: =ROUND(V4*(1+AN$1),2) -> 0 | AO4: =ROUND(W4*(1+AO$1),2) -> 0 | AQ4: =IF(AND(AE4<>0,AK4=0),#VALUE!,AE4*AK4) -> 1028.88 | AR4: =IF(AND(AF4<>0,AL4=0),#VALUE!,AF4*AL4) -> 0 | AS4: =IF(AND(AG4<>0,AM4=0),#VALUE!,AG4*AM4) -> 0 | AT4: =IF(AND(AH4<>0,AN4=0),#VALUE!,AH4*AN4) -> 0 | AU4: =IF(AND(AI4<>0,AO4=0),#VALUE!,AI4*AO4) -> 0 | AV4: =SUM(AQ4:AU4)-SUM(Y4:AC4) -> 21.6 | AW4: 42 | AX4: 14.5 | BD4: =ROUND(AW4*$BD$2,2)+ROUND(AW4*$BD$1,2) -> 0.48 | BE4: =ROUND((S4*$BE$2),2)+ROUND($BD4-AX4,2) -> 0.15 | BL4: =AK4*$BL$1 -> 14.47577 | BM4: =AL4*$BL$1 -> 0 | BN4: =AM4*$BL$1 -> 0 | BO4: =AN4*$BL$1 -> 0 | BP4: =AO4*$BL$1 -> 0 | BR4: =BL4-AX4 -> -0.02423 | BS4: =BM4-AY4 -> 0 | BT4: =BN4-AZ4 -> 0 | BU4: =BO4-BA4 -> 0 | BV4: =BP4-BB4 -> 0
B5: State | C5: Sched | D5: Rate Sub | E5: # of Lights | I5: Single High-Pressure Sodium Vapor | J5: Direct Burial | K5: 50W | L5: 234 | M5: 0 | N5: 125 | O5: 0 | P5: 0 | Q5: 0 | S5: 0 | T5: 13.14 | U5: 0 | V5: 0 | W5: 0 | Y5: =IF(AND(M5<>0,S5=0),#VALUE!,M5*S5) -> 0 | Z5: =IF(AND(N5<>0,T5=0),#VALUE!,N5*T5) -> 1642.5 | AA5: =IF(AND(O5<>0,U5=0),#VALUE!,O5*U5) -> 0 | AB5: =IF(AND(P5<>0,V5=0),#VALUE!,P5*V5) -> 0 | AC5: =IF(AND(Q5<>0,W5=0),#VALUE!,Q5*W5) -> 0 | AE5: =M5 -> 0 | AF5: 125 | AG5: 0 | AH5: 0 | AI5: 0 | AK5: 0 | AL5: 13.42 | AM5: 0 | AN5: 0 | AO5: 0 | AQ5: 0 | AR5: 1677.5 | AS5: 0 | AT5: 0 | AU5: 0 | AV5: 35 | AW5: 20 | AY5: 13.46 | BD5: =ROUND(AW5*$BD$2,2)+ROUND(AW5*$BD$1,2) -> 0.23 | BF5: =ROUND((T5*$BE$2)+$BD5-AY5,2) -> 0.08 | BL5: =AK5*$BL$1 -> 0 | BM5: =AL5*$BL$1 -> 13.59446 | BN5: =AM5*$BL$1 -> 0 | BO5: =AN5*$BL$1 -> 0 | BP5: =AO5*$BL$1 -> 0 | BR5: =BL5-AX5 -> 0 | BS5: =BM5-AY5 -> 0.13446 | BT5: =BN5-AZ5 -> 0 | BU5: =BO5-BA5 -> 0 | BV5: =BP5-BB5 -> 0
I6: High-Pressure Sodium Vapor | J6: Dusk to Dawn | K6: 70W | L6: 335 | M6: 0 | N6: 0 | O6: 0 | P6: 0 | Q6: 64 | S6: 0 | T6: 0 | U6: 0 | V6: 0 | W6: 3.38 | Y6: 0 | Z6: 0 | AA6: 0 | AB6: 0 | AC6: 216.32 | AE6: 0 | AF6: 0 | AG6: 0 | AH6: 0 | AI6: 64 | AK6: 0 | AL6: 0 | AM6: 0 | AN6: 0 | AO6: 3.45 | AQ6: 0 | AR6: 0 | AS6: 0 | AT6: 0 | AU6: 220.8 | AV6: 4.48 | AW6: 25 | BB6: 3.63 | BD6: 0.28 | BI6: =ROUND((W6*$BE$2)+$BD6-BB6,2) -> 0.07 | BL6: 0 | BM6: 0 | BN6: 0 | BO6: 0 | BP6: 3.49485 | BR6: 0 | BS6: 0 | BT6: 0 | BU6: 0 | BV6: -0.13515
B7: 2 | C7: 041 | D7: 214 | E7: 72 | G7: =IF(OR(ISBLANK(C7),ISBLANK(D7)),"",TEXT(C7,"000")&TEXT(D7,"000")) -> 041214 | I7: Single Mercury Vapor | J7: Wood Pole | K7: 7000 | L7: 411 | M7: 5 | N7: 0 | O7: 0 | P7: 0 | Q7: 0 | S7: 15.17 | T7: 0 | U7: 0 | V7: 0 | W7: 0 | Y7: 75.85 | Z7: 0 | AA7: 0 | AB7: 0 | AC7: 0 | AE7: 5 | AF7: 0 | AG7: 0 | AH7: 0 | AI7: 0 | AK7: 15.49 | AL7: 0 | AM7: 0 | AN7: 0 | AO7: 0 | AQ7: 77.45 | AR7: 0 | AS7: 0 | AT7: 0 | AU7: 0 | AV7: 1.6 | AW7: 80 | AX7: 16.01 | BD7: 0.92 | BE7: =ROUND((S7*$BE$2)+$BD7-AX7,2) -> 0.28 | BL7: 15.69137 | BM7: 0 | BN7: 0 | BO7: 0 | BP7: 0 | BR7: -0.31863 | BS7: 0 | BT7: 0 | BU7: 0 | BV7: 0
B8: 2 | C8: 041 | D8: 411 | E8: 5 | G8: 041411 | I8: Mercury Vapor | J8: Dusk to Dawn | K8: 7000 | L8: 415 | M8: 0 | N8: 0 | O8: 0 | P8: 66 | Q8: 0 | S8: 0 | T8: 0 | U8: 0 | V8: 6.66 | W8: 0 | Y8: 0 | Z8: 0 | AA8: 0 | AB8: 439.56 | AC8: 0 | AE8: 0 | AF8: 0 | AG8: 0 | AH8: 66 | AI8: 0 | AK8: 0 | AL8: 0 | AM8: 0 | AN8: 6.8 | AO8: 0 | AQ8: 0 | AR8: 0 | AS8: 0 | AT8: 448.8 | AU8: 0 | AV8: 9.24 | AW8: 80 | BA8: 7.4 | BD8: 0.92 | BH8: =ROUND((V8*$BE$2)+$BD8-BA8,2) -> 0.27 | BL8: 0 | BM8: 0 | BN8: 0 | BO8: 6.8884 | BP8: 0 | BR8: 0 | BS8: 0 | BT8: 0 | BU8: -0.5116 | BV8: 0
B9: 2 | C9: 041 | D9: 511 | E9: 2 | G9: 041511 | I9: Mercury Vapor | J9: Dusk to 1 AM | K9: 7000 | L9: 419 | M9: 0 | N9: 0 | O9: 0 | P9: 16 | Q9: 0 | S9: 0 | T9: 0 | U9: 0 | V9: 4.51 | W9: 0 | Y9: 0 | Z9: 0 | AA9: 0 | AB9: 72.16 | AC9: 0 | AE9: =M9 -> 0 | AF9: =N9 -> 0 | AG9: =O9 -> 0 | AH9: =P9 -> 16 | AI9: =Q9 -> 0 | AK9: 0 | AL9: 0 | AM9: 0 | AN9: 4.61 | AO9: 0 | AQ9: 0 | AR9: 0 | AS9: 0 | AT9: 73.76 | AU9: 0 | AV9: 1.6 | AW9: 80 | BA9: 5.22 | BD9: 0.92 | BH9: =ROUND((V9*$BE$2)+$BD9-BA9,2) -> 0.27 | BL9: 0 | BM9: 0 | BN9: =AM9*$BL$1 -> 0 | BO9: =AN9*$BL$1 -> 4.66993 | BP9: =AO9*$BL$1 -> 0 | BR9: 0 | BS9: 0 | BT9: 0 | BU9: -0.55007 | BV9: 0
B10: 2 | C10: 041 | D10: 611 | E10: 9 | G10: 041611 | I10: Single High-Pressure Sodium Vapor | J10: Wood Pole | K10: 100W | L10: 421 | M10: 0 | N10: 7 | O10: 0 | P10: 0 | Q10: 0 | S10: 0 | T10: 24.93 | U10: 0 | V10: 0 | W10: 0 | Y10: 0 | Z10: 174.51 | AA10: 0 | AB10: 0 | AC10: 0 | AE10: 0 | AF10: 7 | AG10: 0 | AH10: 0 | AI10: 0 | AK10: 0 | AL10: 25.46 | AM10: 0 | AN10: 0 | AO10: 0 | AQ10: 0 | AR10: 178.22 | AS10: 0 | AT10: 0 | AU10: 0 | AV10: 3.71 | AW10: 40 | AY10: 25.56 | BD10: 0.46 | BF10: =ROUND((T10*$BE$2)+$BD10-AY10,2) -> 0.15 | BL10: 0 | BM10: 25.79098 | BN10: 0 | BO10: 0 | BP10: 0 | BR10: 0 | BS10: 0.23098 | BT10: 0 | BU10: 0 | BV10: 0
B11: 2 | C11: 041 | E11: =SUM(E7:E10) -> 88 | I11: Single Light Emitting Diode (LED) | J11: Wood Pole | K11: 70W | L11: 421L | M11: 0 | N11: 1 | O11: 0 | P11: 0 | Q11: 0 | R11: =IF(SUM(M11:Q11)>0,0,1) -> 0 | S11: 0 | T11: =T10 -> 24.93 | Y11: =IF(AND(M11<>0,S11=0),#VALUE!,M11*S11) -> 0 | Z11: =IF(AND(N11<>0,T11=0),#VALUE!,N11*T11) -> 24.93 | AA11: =IF(AND(O11<>0,U11=0),#VALUE!,O11*U11) -> 0 | AB11: =IF(AND(P11<>0,V11=0),#VALUE!,P11*V11) -> 0 | AC11: =IF(AND(Q11<>0,W11=0),#VALUE!,Q11*W11) -> 0 | AE11: =SUMIF($G:$G,TEXT(AE$3,"000")&TEXT($L11,"000"),$E:$E) -> 0 | AF11: =SUMIF($G:$G,TEXT(AF$3,"000")&TEXT($L11,"000"),$E:$E) -> 1 | AG11: =SUMIF($G:$G,TEXT(AG$3,"000")&TEXT($L11,"000"),$E:$E) -> 0 | AH11: =SUMIF($G:$G,TEXT(AH$3,"000")&TEXT($L11,"000"),$E:$E) -> 0 | AI11: =SUMIF($G:$G,TEXT(AI$3,"000")&TEXT($L11,"000"),$E:$E) -> 0 | AK11: =ROUND(S11*(1+AK$1),2) -> 0 | AL11: =AL10 -> 25.46 | AM11: 0 | AN11: 0 | AO11: 0 | AQ11: 0 | AR11: 25.46 | AS11: 0 | AT11: 0 | AU11: 0 | AW11: 26 | AY11: 25.44 | BD11: =ROUND(AW11*$BD$2,2)+ROUND(AW11*$BD$1,2) -> 0.3 | BF11: 0.11 | BL11: 0 | BM11: 25.79098 | BN11: =AM11*$BL$1 -> 0 | BO11: =AN11*$BL$1 -> 0 | BP11: =AO11*$BL$1 -> 0 | BR11: =BL11-AX11 -> 0 | BS11: =BM11-AY11 -> 0.35098 | BT11: =BN11-AZ11 -> 0 | BU11: =BO11-BA11 -> 0 | BV11: =BP11-BB11 -> 0
I12: Single High-Pressure Sodium Vapor | J12: Wood Pole | K12: 100W | L12: 431 | M12: 0 | N12: 4157 | O12: 7 | P12: 0 | Q12: 0 | S12: 0 | T12: 15.13 | U12: 7.15 | V12: 0 | W12: 0 | Y12: 0 | Z12: =IF(AND(N12<>0,T12=0),#VALUE!,N12*T12) -> 62895.41 | AA12: 50.05 | AB12: 0 | AC12: 0 | AE12: 0 | AF12: 4157 | AG12: 7 | AH12: 0 | AI12: 0 | AK12: 0 | AL12: =ROUND(T12*(1+AL$1),2) -> 15.45 | AM12: 7.3 | AN12: 0 | AO12: 0 | AQ12: 0 | AR12: 64225.65 | AS12: 51.1 | AT12: 0 | AU12: 0 | AV12: =SUM(AQ12:AU12)-SUM(Y12:AC12) -> 1331.29 | AW12: 40 | AY12: 15.64 | AZ12: 7.57 | BD12: 0.46 | BF12: 0.15 | BG12: =ROUND((U12*$BE$2)+$BD12-AZ12,2) -> 0.13 | BL12: 0 | BM12: 15.65085 | BN12: 7.3949 | BO12: 0 | BP12: 0 | BR12: 0 | BS12: 0.01085 | BT12: -0.1751 | BU12: 0 | BV12: 0
B13: 2 | C13: 042 | D13: 234 | E13: 125 | G13: 042234 | I13: Single Light Emitting Diode (LED) | J13: Wood Pole | K13: 70W | L13: 431L | M13: 0 | N13: 3946 | O13: 0 | P13: 0 | Q13: 0 | R13: =IF(SUM(M13:Q13)>0,0,1) -> 0 | S13: 0 | T13: =T12 -> 15.13 | U13: 0 | Y13: =IF(AND(M13<>0,S13=0),#VALUE!,M13*S13) -> 0 | Z13: =IF(AND(N13<>0,T13=0),#VALUE!,N13*T13) -> 59702.98 | AA13: =IF(AND(O13<>0,U13=0),#VALUE!,O13*U13) -> 0 | AB13: =IF(AND(P13<>0,V13=0),#VALUE!,P13*V13) -> 0 | AC13: =IF(AND(Q13<>0,W13=0),#VALUE!,Q13*W13) -> 0 | AE13: =SUMIF($G:$G,TEXT(AE$3,"000")&TEXT($L13,"000"),$E:$E) -> 0 | AF13: =SUMIF($G:$G,TEXT(AF$3,"000")&TEXT($L13,"000"),$E:$E) -> 3946 | AG13: =SUMIF($G:$G,TEXT(AG$3,"000")&TEXT($L13,"000"),$E:$E) -> 0 | AH13: =SUMIF($G:$G,TEXT(AH$3,"000")&TEXT($L13,"000"),$E:$E) -> 0 | AI13: =SUMIF($G:$G,TEXT(AI$3,"000")&TEXT($L13,"000"),$E:$E) -> 0 | AK13: 0 | AL13: =AL12 -> 15.45 | AM13: 0 | AN13: 0 | AO13: 0 | AQ13: 0 | AR13: 60965.7 | AS13: 0 | AT13: 0 | AU13: 0 | AW13: 26 | AY13: 15.52 | BD13: 0.3 | BF13: 0.11 | BL13: 0 | BM13: 15.65085 | BN13: 0 | BO13: 0 | BP13: 0 | BR13: 0 | BS13: 0.13085 | BT13: 0 | BU13: 0 | BV13: 0
B14: 2 | C14: 042 | D14: 421 | E14: =7 -> 7 | G14: 042421 | I14: Single Light Emitting Diode (LED) | J14: Wood Pole | K14: 70W | L14: 431T | M14: =SUMIF($G:$G,TEXT(M$3,"000")&TEXT($L14,"000"),$E:$E) -> 0 | N14: 702 | O14: 0 | P14: 0 | Q14: 0 | S14: 0 | T14: =T12-T88 -> 9.9 | V14: 0 | W14: 0 | Y14: =IF(AND(M14<>0,S14=0),#VALUE!,M14*S14) -> 0 | Z14: =IF(AND(N14<>0,T14=0),#VALUE!,N14*T14) -> 6949.8 | AA14: =IF(AND(O14<>0,U14=0),#VALUE!,O14*U14) -> 0 | AB14: =IF(AND(P14<>0,V14=0),#VALUE!,P14*V14) -> 0 | AC14: =IF(AND(Q14<>0,W14=0),#VALUE!,Q14*W14) -> 0 | AE14: =M14 -> 0 | AF14: =N14 -> 702 | AG14: =O14 -> 0 | AH14: =P14 -> 0 | AI14: =Q14 -> 0 | AK14: =ROUND(S14*(1+AK$1),2) -> 0 | AL14: =AL13-AL88 -> 10.22 | AM14: 0 | AN14: 0 | AO14: 0 | AQ14: 0 | AR14: 7174.44 | AS14: 0 | AT14: 0 | AU14: 0 | AV14: =SUM(AQ14:AU14)-SUM(Y14:AC14) -> 224.64 | AW14: 26 | AY14: 10.23 | BD14: =ROUND(AW14*$BD$2,2)+ROUND(AW14*$BD$1,2) -> 0.3 | BF14: 0.1 | BL14: 0 | BM14: 10.35286 | BN14: =AM14*$BL$1 -> 0 | BO14: =AN14*$BL$1 -> 0 | BP14: =AO14*$BL$1 -> 0 | BR14: =BL14-AX14 -> 0 | BS14: =BM14-AY14 -> 0.12286 | BT14: =BN14-AZ14 -> 0 | BU14: =BO14-BA14 -> 0 | BV14: =BP14-BB14 -> 0
B15: 2 | C15: 042 | D15: 421L | E15: 1 | G15: =IF(OR(ISBLANK(C15),ISBLANK(D15)),"",TEXT(C15,"000")&TEXT(D15,"000")) -> 042421L | I15: Single High-Pressure Sodium Vapor | J15: Pedestal Base | K15: 100W | L15: 432 | M15: 0 | N15: 136 | O15: 20 | P15: 0 | Q15: 0 | S15: 0 | T15: 24.93 | U15: 7.15 | V15: 0 | W15: 0 | Y15: 0 | Z15: 3390.48 | AA15: 143 | AB15: 0 | AC15: 0 | AE15: 0 | AF15: 136 | AG15: 20 | AH15: 0 | AI15: 0 | AK15: 0 | AL15: =ROUND(T15*(1+AL$1),2) -> 25.46 | AM15: 7.3 | AN15: 0 | AO15: 0 | AQ15: 0 | AR15: 3462.56 | AS15: 146 | AT15: 0 | AU15: 0 | AV15: =SUM(AQ15:AU15)-SUM(Y15:AC15) -> 75.08 | AW15: 40 | AY15: 25.56 | AZ15: 7.57 | BD15: 0.46 | BF15: 0.15 | BG15: =ROUND((U15*$BE$2)+$BD15-AZ15,2) -> 0.13 | BL15: 0 | BM15: 25.79098 | BN15: 7.3949 | BO15: 0 | BP15: 0 | BR15: 0 | BS15: 0.23098 | BT15: -0.1751 | BU15: 0 | BV15: 0
B16: 2 | C16: 042 | D16: 431 | E16: 4157 | G16: 042431 | I16: Single Light Emitting Diode (LED) | J16: Pedestal Base | K16: 70W | L16: 432L | M16: 0 | N16: 121 | O16: 0 | P16: 0 | Q16: 0 | R16: =IF(SUM(M16:Q16)>0,0,1) -> 0 | S16: 0 | T16: =T15 -> 24.93 | U16: 0 | Y16: =IF(AND(M16<>0,S16=0),#VALUE!,M16*S16) -> 0 | Z16: =IF(AND(N16<>0,T16=0),#VALUE!,N16*T16) -> 3016.53 | AA16: =IF(AND(O16<>0,U16=0),#VALUE!,O16*U16) -> 0 | AB16: =IF(AND(P16<>0,V16=0),#VALUE!,P16*V16) -> 0 | AC16: =IF(AND(Q16<>0,W16=0),#VALUE!,Q16*W16) -> 0 | AE16: =SUMIF($G:$G,TEXT(AE$3,"000")&TEXT($L16,"000"),$E:$E) -> 0 | AF16: =SUMIF($G:$G,TEXT(AF$3,"000")&TEXT($L16,"000"),$E:$E) -> 121 | AG16: =SUMIF($G:$G,TEXT(AG$3,"000")&TEXT($L16,"000"),$E:$E) -> 0 | AH16: =SUMIF($G:$G,TEXT(AH$3,"000")&TEXT($L16,"000"),$E:$E) -> 0 | AI16: =SUMIF($G:$G,TEXT(AI$3,"000")&TEXT($L16,"000"),$E:$E) -> 0 | AK16: =ROUND(S16*(1+AK$1),2) -> 0 | AL16: =AL15 -> 25.46 | AM16: 0 | AN16: 0 | AO16: 0 | AQ16: 0 | AR16: 3080.66 | AS16: 0 | AT16: 0 | AU16: 0 | AW16: 26 | AY16: 25.44 | BD16: =ROUND(AW16*$BD$2,2)+ROUND(AW16*$BD$1,2) -> 0.3 | BF16: 0.11 | BL16: 0 | BM16: 25.79098 | BN16: =AM16*$BL$1 -> 0 | BO16: =AN16*$BL$1 -> 0 | BP16: =AO16*$BL$1 -> 0 | BR16: =BL16-AX16 -> 0 | BS16: =BM16-AY16 -> 0.35098 | BT16: =BN16-AZ16 -> 0 | BU16: =BO16-BA16 -> 0 | BV16: =BP16-BB16 -> 0
B17: 2 | C17: 042 | D17: 431L | E17: 3946 | G17: =IF(OR(ISBLANK(C17),ISBLANK(D17)),"",TEXT(C17,"000")&TEXT(D17,"000")) -> 042431L | I17: Single Light Emitting Diode (LED) | J17: Pedestal Base | K17: 70W | L17: 432T | M17: 0 | N17: 11 | O17: 0 | P17: 0 | Q17: 0 | S17: 0 | T17: =T15-T88 -> 19.7 | V17: 0 | W17: 0 | Y17: =IF(AND(M17<>0,S17=0),#VALUE!,M17*S17) -> 0 | Z17: =IF(AND(N17<>0,T17=0),#VALUE!,N17*T17) -> 216.7 | AA17: =IF(AND(O17<>0,U17=0),#VALUE!,O17*U17) -> 0 | AB17: =IF(AND(P17<>0,V17=0),#VALUE!,P17*V17) -> 0 | AC17: =IF(AND(Q17<>0,W17=0),#VALUE!,Q17*W17) -> 0 | AE17: =M17 -> 0 | AF17: =N17 -> 11 | AG17: =O17 -> 0 | AH17: =P17 -> 0 | AI17: =Q17 -> 0 | AK17: =ROUND(S17*(1+AK$1),2) -> 0 | AL17: =AL16-AL88 -> 20.23 | AM17: 0 | AN17: 0 | AO17: 0 | AQ17: 0 | AR17: 222.53 | AS17: 0 | AT17: 0 | AU17: 0 | AV17: =SUM(AQ17:AU17)-SUM(Y17:AC17) -> 5.83 | AW17: 26 | AY17: 20.15 | BD17: =ROUND(AW17*$BD$2,2)+ROUND(AW17*$BD$1,2) -> 0.3 | BF17: 0.11 | BL17: 0 | BM17: 20.49299 | BN17: =AM17*$BL$1 -> 0 | BO17: =AN17*$BL$1 -> 0 | BP17: =AO17*$BL$1 -> 0 | BR17: =BL17-AX17 -> 0 | BS17: =BM17-AY17 -> 0.34299 | BT17: =BN17-AZ17 -> 0 | BU17: =BO17-BA17 -> 0 | BV17: =BP17-BB17 -> 0
B18: 2 | C18: 042 | D18: 431T | E18: 702 | G18: =IF(OR(ISBLANK(C18),ISBLANK(D18)),"",TEXT(C18,"000")&TEXT(D18,"000")) -> 042431T | I18: Single High-Pressure Sodium Vapor | J18: Direct Burial | K18: 100W | L18: 433 | M18: 0 | N18: 81 | O18: 10 | P18: 0 | Q18: 0 | S18: 0 | T18: 24.93 | U18: 7.15 | V18: 0 | W18: 0 | Y18: 0 | Z18: 2019.33 | AA18: 71.5 | AB18: 0 | AC18: 0 | AE18: 0 | AF18: 81 | AG18: 10 | AH18: 0 | AI18: 0 | AK18: 0 | AL18: 25.46 | AM18: 7.3 | AN18: 0 | AO18: 0 | AQ18: 0 | AR18: 2062.26 | AS18: 73 | AT18: 0 | AU18: 0 | AV18: =SUM(AQ18:AU18)-SUM(Y18:AC18) -> 44.43 | AW18: 40 | AY18: 25.56 | AZ18: 7.57 | BD18: 0.46 | BF18: 0.15 | BG18: =ROUND((U18*$BE$2)+$BD18-AZ18,2) -> 0.13 | BL18: 0 | BM18: 25.79098 | BN18: 7.3949 | BO18: 0 | BP18: 0 | BR18: 0 | BS18: 0.23098 | BT18: -0.1751 | BU18: 0 | BV18: 0
B19: 2 | C19: 042 | D19: 432 | E19: 136 | G19: 042432 | I19: Single Light Emitting Diode (LED) | J19: Direct Burial | K19: 70W | L19: 433L | M19: 0 | N19: 21 | O19: 0 | P19: 0 | Q19: 0 | R19: =IF(SUM(M19:Q19)>0,0,1) -> 0 | S19: 0 | T19: =T18 -> 24.93 | U19: 0 | Y19: =IF(AND(M19<>0,S19=0),#VALUE!,M19*S19) -> 0 | Z19: =IF(AND(N19<>0,T19=0),#VALUE!,N19*T19) -> 523.53 | AA19: =IF(AND(O19<>0,U19=0),#VALUE!,O19*U19) -> 0 | AB19: =IF(AND(P19<>0,V19=0),#VALUE!,P19*V19) -> 0 | AC19: =IF(AND(Q19<>0,W19=0),#VALUE!,Q19*W19) -> 0 | AE19: =SUMIF($G:$G,TEXT(AE$3,"000")&TEXT($L19,"000"),$E:$E) -> 0 | AF19: =SUMIF($G:$G,TEXT(AF$3,"000")&TEXT($L19,"000"),$E:$E) -> 21 | AG19: =SUMIF($G:$G,TEXT(AG$3,"000")&TEXT($L19,"000"),$E:$E) -> 0 | AH19: =SUMIF($G:$G,TEXT(AH$3,"000")&TEXT($L19,"000"),$E:$E) -> 0 | AI19: =SUMIF($G:$G,TEXT(AI$3,"000")&TEXT($L19,"000"),$E:$E) -> 0 | AK19: =ROUND(S19*(1+AK$1),2) -> 0 | AL19: =AL18 -> 25.46 | AM19: 0 | AN19: 0 | AO19: 0 | AQ19: 0 | AR19: 534.66 | AS19: 0 | AT19: 0 | AU19: 0 | AW19: 26 | AY19: 25.44 | BD19: =ROUND(AW19*$BD$2,2)+ROUND(AW19*$BD$1,2) -> 0.3 | BF19: 0.11 | BL19: 0 | BM19: 25.79098 | BN19: =AM19*$BL$1 -> 0 | BO19: =AN19*$BL$1 -> 0 | BP19: =AO19*$BL$1 -> 0 | BR19: =BL19-AX19 -> 0 | BS19: =BM19-AY19 -> 0.35098 | BT19: =BN19-AZ19 -> 0 | BU19: =BO19-BA19 -> 0 | BV19: =BP19-BB19 -> 0
B20: 2 | C20: 042 | D20: 432L | E20: 121 | G20: =IF(OR(ISBLANK(C20),ISBLANK(D20)),"",TEXT(C20,"000")&TEXT(D20,"000")) -> 042432L | I20: Single Light Emitting Diode (LED) | J20: Direct Burial | K20: 70W | L20: 433T | M20: 0 | N20: 10 | O20: 0 | P20: 0 | Q20: 0 | S20: 0 | T20: =T18-T88 -> 19.7 | V20: 0 | W20: 0 | Y20: =IF(AND(M20<>0,S20=0),#VALUE!,M20*S20) -> 0 | Z20: =IF(AND(N20<>0,T20=0),#VALUE!,N20*T20) -> 197 | AA20: =IF(AND(O20<>0,U20=0),#VALUE!,O20*U20) -> 0 | AB20: =IF(AND(P20<>0,V20=0),#VALUE!,P20*V20) -> 0 | AC20: =IF(AND(Q20<>0,W20=0),#VALUE!,Q20*W20) -> 0 | AE20: =M20 -> 0 | AF20: =N20 -> 10 | AG20: =O20 -> 0 | AH20: =P20 -> 0 | AI20: =Q20 -> 0 | AK20: =ROUND(S20*(1+AK$1),2) -> 0 | AL20: =AL19-AL88 -> 20.23 | AM20: 0 | AN20: 0 | AO20: 0 | AQ20: 0 | AR20: 202.3 | AS20: 0 | AT20: 0 | AU20: 0 | AV20: =SUM(AQ20:AU20)-SUM(Y20:AC20) -> 5.3 | AW20: 26 | AY20: 20.15 | BD20: =ROUND(AW20*$BD$2,2)+ROUND(AW20*$BD$1,2) -> 0.3 | BF20: 0.11 | BL20: 0 | BM20: 20.49299 | BN20: =AM20*$BL$1 -> 0 | BO20: =AN20*$BL$1 -> 0 | BP20: =AO20*$BL$1 -> 0 | BR20: =BL20-AX20 -> 0 | BS20: =BM20-AY20 -> 0.34299 | BT20: =BN20-AZ20 -> 0 | BU20: =BO20-BA20 -> 0 | BV20: =BP20-BB20 -> 0
B21: 2 | C21: 042 | D21: 432T | E21: 11 | G21: =IF(OR(ISBLANK(C21),ISBLANK(D21)),"",TEXT(C21,"000")&TEXT(D21,"000")) -> 042432T | I21: Single High-Pressure Sodium Vapor | J21: Direct Burial | K21: 100W | L21: 434 | M21: 0 | N21: 2660 | O21: 0 | P21: 0 | Q21: 0 | S21: 0 | T21: 14.06 | U21: 0 | V21: 0 | W21: 0 | Y21: 0 | Z21: 37399.6 | AA21: 0 | AB21: 0 | AC21: 0 | AE21: 0 | AF21: 2660 | AG21: 0 | AH21: 0 | AI21: 0 | AK21: 0 | AL21: 14.36 | AM21: 0 | AN21: 0 | AO21: 0 | AQ21: 0 | AR21: 38197.6 | AS21: 0 | AT21: 0 | AU21: 0 | AV21: =SUM(AQ21:AU21)-SUM(Y21:AC21) -> 798 | AW21: 40 | AY21: 14.56 | BD21: 0.46 | BF21: 0.14 | BL21: 0 | BM21: 14.54668 | BN21: 0 | BO21: 0 | BP21: 0 | BR21: 0 | BS21: -0.01332 | BT21: 0 | BU21: 0 | BV21: 0
B22: 2 | C22: 042 | D22: 433 | E22: 81 | G22: 042433 | I22: Single Light Emitting Diode (LED) | J22: Direct Burial | K22: 70W | L22: 434L | M22: 0 | N22: 39 | O22: 0 | P22: 0 | Q22: 0 | R22: =IF(SUM(M22:Q22)>0,0,1) -> 0 | S22: 0 | T22: =T21 -> 14.06 | U22: 0 | Y22: =IF(AND(M22<>0,S22=0),#VALUE!,M22*S22) -> 0 | Z22: =IF(AND(N22<>0,T22=0),#VALUE!,N22*T22) -> 548.34 | AA22: =IF(AND(O22<>0,U22=0),#VALUE!,O22*U22) -> 0 | AB22: =IF(AND(P22<>0,V22=0),#VALUE!,P22*V22) -> 0 | AC22: =IF(AND(Q22<>0,W22=0),#VALUE!,Q22*W22) -> 0 | AE22: =SUMIF($G:$G,TEXT(AE$3,"000")&TEXT($L22,"000"),$E:$E) -> 0 | AF22: =SUMIF($G:$G,TEXT(AF$3,"000")&TEXT($L22,"000"),$E:$E) -> 39 | AG22: =SUMIF($G:$G,TEXT(AG$3,"000")&TEXT($L22,"000"),$E:$E) -> 0 | AH22: =SUMIF($G:$G,TEXT(AH$3,"000")&TEXT($L22,"000"),$E:$E) -> 0 | AI22: =SUMIF($G:$G,TEXT(AI$3,"000")&TEXT($L22,"000"),$E:$E) -> 0 | AK22: =ROUND(S22*(1+AK$1),2) -> 0 | AL22: =AL21 -> 14.36 | AM22: 0 | AN22: 0 | AO22: 0 | AQ22: 0 | AR22: 560.04 | AS22: 0 | AT22: 0 | AU22: 0 | AW22: 26 | AY22: 14.44 | BD22: =ROUND(AW22*$BD$2,2)+ROUND(AW22*$BD$1,2) -> 0.3 | BF22: 0.1 | BL22: 0 | BM22: 14.54668 | BN22: =AM22*$BL$1 -> 0 | BO22: =AN22*$BL$1 -> 0 | BP22: =AO22*$BL$1 -> 0 | BR22: =BL22-AX22 -> 0 | BS22: =BM22-AY22 -> 0.10668 | BT22: =BN22-AZ22 -> 0 | BU22: =BO22-BA22 -> 0 | BV22: =BP22-BB22 -> 0
B23: 2 | C23: 042 | D23: 433L | E23: 21 | G23: =IF(OR(ISBLANK(C23),ISBLANK(D23)),"",TEXT(C23,"000")&TEXT(D23,"000")) -> 042433L | I23: Single High-Pressure Sodium Vapor | J23: No Pole / Dusk to Dawn (046) | K23: 100W | L23: 435 | M23: 0 | N23: 1082 | O23: 46 | P23: 0 | Q23: 90 | S23: 0 | T23: 13.33 | U23: 7.15 | V23: 0 | W23: 4.78 | Y23: 0 | Z23: 14423.06 | AA23: 328.9 | AB23: 0 | AC23: 430.2 | AE23: 0 | AF23: 1082 | AG23: 46 | AH23: 0 | AI23: 90 | AK23: 0 | AL23: 13.62 | AM23: 7.3 | AN23: 0 | AO23: 4.88 | AQ23: 0 | AR23: 14736.84 | AS23: 335.8 | AT23: 0 | AU23: 439.2 | AV23: =SUM(AQ23:AU23)-SUM(Y23:AC23) -> 329.68 | AW23: 40 | AY23: 13.82 | AZ23: 7.57 | BB23: 5.17 | BD23: 0.46 | BF23: 0.14 | BG23: =ROUND((U23*$BE$2)+$BD23-AZ23,2) -> 0.13 | BI23: =ROUND((W23*$BE$2)+$BD23-BB23,2) -> 0.13 | BL23: 0 | BM23: 13.79706 | BN23: 7.3949 | BO23: 0 | BP23: 4.94344 | BR23: 0 | BS23: -0.02294 | BT23: -0.1751 | BU23: 0 | BV23: -0.22656
B24: 2 | C24: 042 | D24: 433T | E24: 10 | G24: =IF(OR(ISBLANK(C24),ISBLANK(D24)),"",TEXT(C24,"000")&TEXT(D24,"000")) -> 042433T | I24: Single Light Emitting Diode (LED) | J24: No Pole / Dusk to Dawn (046) | K24: 70W | L24: 435L | M24: =SUMIF($G:$G,TEXT(M$3,"000")&TEXT($L24,"000"),$E:$E) -> 0 | N24: 1767 | O24: 0 | P24: 0 | Q24: 0 | R24: =IF(SUM(M24:Q24)>0,0,1) -> 0 | S24: 0 | T24: =T23 -> 13.33 | U24: 0 | Y24: =IF(AND(M24<>0,S24=0),#VALUE!,M24*S24) -> 0 | Z24: =IF(AND(N24<>0,T24=0),#VALUE!,N24*T24) -> 23554.11 | AA24: =IF(AND(O24<>0,U24=0),#VALUE!,O24*U24) -> 0 | AB24: =IF(AND(P24<>0,V24=0),#VALUE!,P24*V24) -> 0 | AC24: =IF(AND(Q24<>0,W24=0),#VALUE!,Q24*W24) -> 0 | AE24: =SUMIF($G:$G,TEXT(AE$3,"000")&TEXT($L24,"000"),$E:$E) -> 0 | AF24: =SUMIF($G:$G,TEXT(AF$3,"000")&TEXT($L24,"000"),$E:$E) -> 1767 | AG24: =SUMIF($G:$G,TEXT(AG$3,"000")&TEXT($L24,"000"),$E:$E) -> 0 | AH24: =SUMIF($G:$G,TEXT(AH$3,"000")&TEXT($L24,"000"),$E:$E) -> 0 | AI24: =SUMIF($G:$G,TEXT(AI$3,"000")&TEXT($L24,"000"),$E:$E) -> 0 | AK24: =ROUND(S24*(1+AK$1),2) -> 0 | AL24: =AL23 -> 13.62 | AM24: 0 | AN24: 0 | AO24: 0 | AQ24: 0 | AR24: 24066.54 | AS24: 0 | AT24: 0 | AU24: 0 | AW24: 26 | AY24: 13.7 | BD24: =ROUND(AW24*$BD$2,2)+ROUND(AW24*$BD$1,2) -> 0.3 | BF24: 0.1 | BL24: 0 | BM24: 13.79706 | BN24: =AM24*$BL$1 -> 0 | BO24: =AN24*$BL$1 -> 0 | BP24: =AO24*$BL$1 -> 0 | BR24: =BL24-AX24 -> 0 | BS24: =BM24-AY24 -> 0.09706 | BT24: =BN24-AZ24 -> 0 | BU24: =BO24-BA24 -> 0 | BV24: =BP24-BB24 -> 0
B25: 2 | C25: 042 | D25: 434 | E25: 2660 | G25: 042434 | I25: Single Light Emitting Diode (LED) | J25: No Pole / Dusk to Dawn (046) | K25: 70W | L25: 435T | M25: 0 | N25: 1005 | O25: 0 | P25: 0 | Q25: 0 | S25: 0 | T25: =T23-T88 -> 8.1 | V25: 0 | Y25: =IF(AND(M25<>0,S25=0),#VALUE!,M25*S25) -> 0 | Z25: =IF(AND(N25<>0,T25=0),#VALUE!,N25*T25) -> 8140.5 | AA25: =IF(AND(O25<>0,U25=0),#VALUE!,O25*U25) -> 0 | AB25: =IF(AND(P25<>0,V25=0),#VALUE!,P25*V25) -> 0 | AC25: =IF(AND(Q25<>0,W25=0),#VALUE!,Q25*W25) -> 0 | AE25: =M25 -> 0 | AF25: =N25 -> 1005 | AG25: =O25 -> 0 | AH25: =P25 -> 0 | AI25: =Q25 -> 0 | AK25: =ROUND(S25*(1+AK$1),2) -> 0 | AL25: =AL24-AL88 -> 8.39 | AM25: 0 | AN25: 0 | AO25: 0 | AQ25: 0 | AR25: 8431.95 | AS25: 0 | AT25: 0 | AU25: 0 | AV25: =SUM(AQ25:AU25)-SUM(Y25:AC25) -> 291.45 | AW25: 26 | AY25: 8.41 | BD25: =ROUND(AW25*$BD$2,2)+ROUND(AW25*$BD$1,2) -> 0.3 | BF25: 0.1 | BL25: 0 | BM25: 8.49907 | BN25: =AM25*$BL$1 -> 0 | BO25: =AN25*$BL$1 -> 0 | BP25: =AO25*$BL$1 -> 0 | BR25: =BL25-AX25 -> 0 | BS25: =BM25-AY25 -> 0.08907 | BT25: =BN25-AZ25 -> 0 | BU25: =BO25-BA25 -> 0 | BV25: =BP25-BB25 -> 0
B26: 2 | C26: 042 | D26: 434L | E26: 39 | G26: =IF(OR(ISBLANK(C26),ISBLANK(D26)),"",TEXT(C26,"000")&TEXT(D26,"000")) -> 042434L | I26: Single High-Pressure Sodium Vapor | J26: Developer Contributed | K26: 100W | L26: 436 | M26: 0 | N26: 471 | O26: 0 | P26: 0 | Q26: 0 | S26: 0 | T26: 15.13 | U26: 0 | V26: 0 | W26: 0 | Y26: 0 | Z26: 7126.23 | AA26: 0 | AB26: 0 | AC26: 0 | AE26: 0 | AF26: 471 | AG26: 0 | AH26: 0 | AI26: 0 | AK26: 0 | AL26: =AL12 -> 15.45 | AM26: 0 | AN26: 0 | AO26: 0 | AQ26: 0 | AR26: 7276.95 | AS26: 0 | AT26: 0 | AU26: 0 | AV26: =SUM(AQ26:AU26)-SUM(Y26:AC26) -> 150.72 | AW26: 40 | AY26: 15.64 | BD26: 0.46 | BF26: 0.15 | BL26: 0 | BM26: 15.65085 | BN26: 0 | BO26: 0 | BP26: 0 | BR26: 0 | BS26: 0.01085 | BT26: 0 | BU26: 0 | BV26: 0
B27: 2 | C27: 042 | D27: 435 | E27: 1082 | G27: 042435 | I27: Single Light Emitting Diode (LED) | J27: Developer Contributed | K27: 70W | L27: 436L | M27: 0 | N27: 81 | O27: 0 | P27: 0 | Q27: 0 | R27: =IF(SUM(M27:Q27)>0,0,1) -> 0 | S27: 0 | T27: =T26 -> 15.13 | U27: 0 | Y27: =IF(AND(M27<>0,S27=0),#VALUE!,M27*S27) -> 0 | Z27: =IF(AND(N27<>0,T27=0),#VALUE!,N27*T27) -> 1225.53 | AA27: =IF(AND(O27<>0,U27=0),#VALUE!,O27*U27) -> 0 | AB27: =IF(AND(P27<>0,V27=0),#VALUE!,P27*V27) -> 0 | AC27: =IF(AND(Q27<>0,W27=0),#VALUE!,Q27*W27) -> 0 | AE27: =SUMIF($G:$G,TEXT(AE$3,"000")&TEXT($L27,"000"),$E:$E) -> 0 | AF27: =SUMIF($G:$G,TEXT(AF$3,"000")&TEXT($L27,"000"),$E:$E) -> 81 | AG27: =SUMIF($G:$G,TEXT(AG$3,"000")&TEXT($L27,"000"),$E:$E) -> 0 | AH27: =SUMIF($G:$G,TEXT(AH$3,"000")&TEXT($L27,"000"),$E:$E) -> 0 | AI27: =SUMIF($G:$G,TEXT(AI$3,"000")&TEXT($L27,"000"),$E:$E) -> 0 | AK27: =ROUND(S27*(1+AK$1),2) -> 0 | AL27: =AL26 -> 15.45 | AM27: 0 | AN27: 0 | AO27: 0 | AQ27: 0 | AR27: 1251.45 | AS27: 0 | AT27: 0 | AU27: 0 | AW27: 26 | AY27: 15.52 | BD27: =ROUND(AW27*$BD$2,2)+ROUND(AW27*$BD$1,2) -> 0.3 | BF27: 0.11 | BL27: 0 | BM27: 15.65085 | BN27: =AM27*$BL$1 -> 0 | BO27: =AN27*$BL$1 -> 0 | BP27: =AO27*$BL$1 -> 0 | BR27: =BL27-AX27 -> 0 | BS27: =BM27-AY27 -> 0.13085 | BT27: =BN27-AZ27 -> 0 | BU27: =BO27-BA27 -> 0 | BV27: =BP27-BB27 -> 0
B28: 2 | C28: 042 | D28: 435L | E28: 1767 | G28: =IF(OR(ISBLANK(C28),ISBLANK(D28)),"",TEXT(C28,"000")&TEXT(D28,"000")) -> 042435L | I28: Single Light Emitting Diode (LED) | J28: Developer Contributed | K28: 70W | L28: 436T | M28: 0 | N28: 38 | O28: 0 | P28: 0 | Q28: 0 | S28: 0 | T28: =T26-T88 -> 9.9 | U28: 0 | V28: 0 | W28: 0 | Y28: =IF(AND(M28<>0,S28=0),#VALUE!,M28*S28) -> 0 | Z28: =IF(AND(N28<>0,T28=0),#VALUE!,N28*T28) -> 376.2 | AA28: =IF(AND(O28<>0,U28=0),#VALUE!,O28*U28) -> 0 | AB28: =IF(AND(P28<>0,V28=0),#VALUE!,P28*V28) -> 0 | AC28: =IF(AND(Q28<>0,W28=0),#VALUE!,Q28*W28) -> 0 | AE28: =M28 -> 0 | AF28: =N28 -> 38 | AG28: =O28 -> 0 | AH28: =P28 -> 0 | AI28: =Q28 -> 0 | AK28: =ROUND(S28*(1+AK$1),2) -> 0 | AL28: =AL27-AL88 -> 10.22 | AM28: 0 | AN28: 0 | AO28: 0 | AQ28: 0 | AR28: 388.36 | AS28: 0 | AT28: 0 | AU28: 0 | AV28: =SUM(AQ28:AU28)-SUM(Y28:AC28) -> 12.16 | AW28: 26 | AY28: 10.23 | BD28: =ROUND(AW28*$BD$2,2)+ROUND(AW28*$BD$1,2) -> 0.3 | BF28: 0.1 | BL28: 0 | BM28: 10.35286 | BN28: =AM28*$BL$1 -> 0 | BO28: =AN28*$BL$1 -> 0 | BP28: =AO28*$BL$1 -> 0 | BR28: =BL28-AX28 -> 0 | BS28: =BM28-AY28 -> 0.12286 | BT28: =BN28-AZ28 -> 0 | BU28: =BO28-BA28 -> 0 | BV28: =BP28-BB28 -> 0
B29: 2 | C29: 042 | D29: 435T | E29: 1005 | G29: =IF(OR(ISBLANK(C29),ISBLANK(D29)),"",TEXT(C29,"000")&TEXT(D29,"000")) -> 042435T | I29: Decorative Sodium Vapor | J29: No Pole | K29: Kim Light 100W | L29: 438 | M29: 0 | N29: 11 | O29: 0 | P29: 0 | Q29: 0 | S29: 0 | T29: 14.06 | U29: 0 | V29: 0 | W29: 0 | Y29: 0 | Z29: 154.66 | AA29: 0 | AB29: 0 | AC29: 0 | AE29: 0 | AF29: 11 | AG29: 0 | AH29: 0 | AI29: 0 | AK29: 0 | AL29: =ROUND(T29*(1+AL$1),2) -> 14.36 | AM29: 0 | AN29: 0 | AO29: 0 | AQ29: 0 | AR29: 157.96 | AS29: 0 | AT29: 0 | AU29: 0 | AV29: =SUM(AQ29:AU29)-SUM(Y29:AC29) -> 3.3 | AW29: 40 | AY29: 14.56 | BD29: 0.46 | BF29: 0.14 | BL29: 0 | BM29: 14.54668 | BN29: 0 | BO29: 0 | BP29: 0 | BR29: 0 | BS29: -0.01332 | BT29: 0 | BU29: 0 | BV29: 0
B30: 2 | C30: 042 | D30: 436 | E30: 471 | G30: 042436 | I30: Double High-Pressure Sodium Vapor | J30: Wood Pole | K30: 100W | L30: 441 | M30: 0 | N30: 4 | O30: 0 | P30: 0 | Q30: 0 | S30: 0 | T30: 27.39 | U30: 12.55 | V30: 0 | W30: 0 | Y30: 0 | Z30: 109.56 | AA30: 0 | AB30: 0 | AC30: 0 | AE30: 0 | AF30: 4 | AG30: 0 | AH30: 0 | AI30: 0 | AK30: 0 | AL30: 27.98 | AM30: 12.82 | AN30: 0 | AO30: 0 | AQ30: 0 | AR30: 111.92 | AS30: 0 | AT30: 0 | AU30: 0 | AV30: =SUM(AQ30:AU30)-SUM(Y30:AC30) -> 2.36 | AW30: 80 | AY30: 28.38 | AZ30: 13.36 | BD30: 0.92 | BF30: 0.29 | BG30: =ROUND((U30*$BE$2)+$BD30-AZ30,2) -> 0.27 | BL30: 0 | BM30: 28.34374 | BN30: 12.98666 | BO30: 0 | BP30: 0 | BR30: 0 | BS30: -0.03626 | BT30: -0.37334 | BU30: 0 | BV30: 0
B31: 2 | C31: 042 | D31: 436L | E31: 81 | G31: =IF(OR(ISBLANK(C31),ISBLANK(D31)),"",TEXT(C31,"000")&TEXT(D31,"000")) -> 042436L | I31: Double Light Emitting Diode (LED) | J31: Wood Pole | K31: 70W | L31: 441L | M31: 0 | N31: 32 | O31: 0 | P31: 0 | Q31: 0 | R31: =IF(SUM(M31:Q31)>0,0,1) -> 0 | S31: 0 | T31: =T30 -> 27.39 | U31: 0 | Y31: =IF(AND(M31<>0,S31=0),#VALUE!,M31*S31) -> 0 | Z31: =IF(AND(N31<>0,T31=0),#VALUE!,N31*T31) -> 876.48 | AA31: =IF(AND(O31<>0,U31=0),#VALUE!,O31*U31) -> 0 | AB31: =IF(AND(P31<>0,V31=0),#VALUE!,P31*V31) -> 0 | AC31: =IF(AND(Q31<>0,W31=0),#VALUE!,Q31*W31) -> 0 | AE31: =SUMIF($G:$G,TEXT(AE$3,"000")&TEXT($L31,"000"),$E:$E) -> 0 | AF31: 32 | AG31: 0 | AH31: 0 | AI31: 0 | AK31: =ROUND(S31*(1+AK$1),2) -> 0 | AL31: =AL30 -> 27.98 | AM31: 0 | AN31: 0 | AO31: 0 | AQ31: 0 | AR31: 895.36 | AS31: 0 | AT31: 0 | AU31: 0 | AW31: 52 | AY31: 28.15 | BD31: =ROUND(AW31*$BD$2,2)+ROUND(AW31*$BD$1,2) -> 0.6 | BF31: 0.2 | BL31: 0 | BM31: 28.34374 | BN31: =AM31*$BL$1 -> 0 | BO31: 0 | BP31: 0 | BR31: =BL31-AX31 -> 0 | BS31: 0.19374 | BT31: 0 | BU31: 0 | BV31: 0
B32: 2 | C32: 042 | D32: 436T | E32: =38 -> 38 | G32: =IF(OR(ISBLANK(C32),ISBLANK(D32)),"",TEXT(C32,"000")&TEXT(D32,"000")) -> 042436T | I32: Double Light Emitting Diode (LED) | J32: Wood Pole | K32: 70W | L32: 441T | M32: 0 | N32: 5 | O32: 0 | P32: 0 | Q32: 0 | R32: =IF(SUM(M32:Q32)>0,0,1) -> 0 | T32: =T30-T88-T88 -> 16.93 | Y32: =IF(AND(M32<>0,S32=0),#VALUE!,M32*S32) -> 0 | Z32: =IF(AND(N32<>0,T32=0),#VALUE!,N32*T32) -> 84.65 | AA32: =IF(AND(O32<>0,U32=0),#VALUE!,O32*U32) -> 0 | AB32: =IF(AND(P32<>0,V32=0),#VALUE!,P32*V32) -> 0 | AC32: =IF(AND(Q32<>0,W32=0),#VALUE!,Q32*W32) -> 0 | AE32: 0 | AF32: 5 | AG32: 0 | AH32: 0 | AI32: 0 | AK32: =ROUND(S32*(1+AK$1),2) -> 0 | AL32: =AL30-AL88-AL88 -> 17.52 | AM32: 0 | AN32: 0 | AO32: 0 | AQ32: 0 | AR32: 87.6 | AS32: 0 | AT32: 0 | AU32: 0 | AW32: 52 | AY32: 22.86 | BD32: =ROUND(AW32*$BD$2,2)+ROUND(AW32*$BD$1,2) -> 0.6 | BF32: -5.11 | BL32: 0 | BM32: 17.74776 | BN32: 0 | BO32: 0 | BP32: 0 | BR32: 0 | BS32: -5.11224 | BT32: 0 | BU32: 0 | BV32: 0
B33: 2 | C33: 042 | D33: 438 | E33: 11 | G33: 042438 | I33: Double High-Pressure Sodium Vapor | J33: Pedestal Base | K33: 100W | L33: 442 | M33: 0 | N33: 1 | O33: 0 | P33: 0 | Q33: 0 | R33: =IF(SUM(M33:Q33)>0,0,1) -> 0 | S33: 0 | T33: 38.81 | U33: 0 | V33: 0 | W33: 0 | Z33: 38.81 | AC33: 0 | AE33: 0 | AF33: 1 | AG33: 0 | AH33: 0 | AI33: 0 | AK33: =ROUND(S33*(1+AK$1),2) -> 0 | AL33: =ROUND(T33*(1+AL$1),2) -> 39.64 | AM33: 0 | AN33: 0 | AO33: 0 | AR33: =IF(AND(AF33<>0,AL33=0),#VALUE!,AF33*AL33) -> 39.64 | AW33: 80 | AY33: 39.94 | BD33: =ROUND(AW33*$BD$2,2)+ROUND(AW33*$BD$1,2) -> 0.92 | BF33: 0.29 | BL33: 0 | BM33: 40.15532 | BN33: 0 | BO33: 0 | BP33: 0 | BR33: 0 | BS33: 0.21532 | BT33: 0 | BU33: 0 | BV33: 0
B34: 2 | C34: 042 | D34: 441 | E34: 4 | G34: 042441 | I34: Decorative Sodium Vapor | J34: Direct Burial | K34: Granville 100W | L34: 474 | M34: =SUMIF($G:$G,TEXT(M$3,"000")&TEXT($L34,"000"),$E:$E) -> 0 | N34: 246 | O34: 0 | P34: 0 | Q34: 0 | S34: 0 | T34: 24.49 | U34: 0 | V34: 0 | W34: 0 | Y34: 0 | Z34: 6024.54 | AA34: 0 | AB34: 0 | AC34: 0 | AE34: 0 | AF34: 246 | AG34: 0 | AH34: 0 | AI34: 0 | AK34: 0 | AL34: 25.01 | AM34: 0 | AN34: 0 | AO34: 0 | AQ34: =IF(AND(AE34<>0,AK34=0),#VALUE!,AE34*AK34) -> 0 | AR34: 6152.46 | AS34: =IF(AND(AG34<>0,AM34=0),#VALUE!,AG34*AM34) -> 0 | AT34: 0 | AU34: 0 | AV34: =SUM(AQ34:AU34)-SUM(Y34:AC34) -> 127.92 | AW34: 40 | AY34: 25.12 | BD34: 0.46 | BF34: 0.15 | BL34: 0 | BM34: 25.33513 | BN34: 0 | BO34: 0 | BP34: 0 | BR34: 0 | BS34: 0.21513 | BT34: 0 | BU34: 0 | BV34: 0
B35: 2 | C35: 042 | D35: 441L | E35: 32 | G35: =IF(OR(ISBLANK(C35),ISBLANK(D35)),"",TEXT(C35,"000")&TEXT(D35,"000")) -> 042441L | I35: Decorative Light Emitting Diode (LED) | J35: Direct Burial | K35: Granville 70W | L35: 474L | M35: 0 | N35: 3 | O35: 0 | P35: 0 | Q35: 0 | R35: =IF(SUM(M35:Q35)>0,0,1) -> 0 | S35: 0 | T35: =T34 -> 24.49 | U35: 0 | Y35: =IF(AND(M35<>0,S35=0),#VALUE!,M35*S35) -> 0 | Z35: =IF(AND(N35<>0,T35=0),#VALUE!,N35*T35) -> 73.47 | AA35: =IF(AND(O35<>0,U35=0),#VALUE!,O35*U35) -> 0 | AB35: =IF(AND(P35<>0,V35=0),#VALUE!,P35*V35) -> 0 | AC35: =IF(AND(Q35<>0,W35=0),#VALUE!,Q35*W35) -> 0 | AE35: =SUMIF($G:$G,TEXT(AE$3,"000")&TEXT($L35,"000"),$E:$E) -> 0 | AF35: 3 | AG35: 0 | AH35: 0 | AI35: 0 | AK35: =ROUND(S35*(1+AK$1),2) -> 0 | AL35: =AL34 -> 25.01 | AM35: 0 | AN35: 0 | AO35: 0 | AQ35: =IF(AND(AE35<>0,AK35=0),#VALUE!,AE35*AK35) -> 0 | AR35: 75.03 | AS35: 0 | AT35: 0 | AU35: 0 | AW35: 26 | AY35: 25 | BD35: =ROUND(AW35*$BD$2,2)+ROUND(AW35*$BD$1,2) -> 0.3 | BF35: 0.11 | BL35: 0 | BM35: 25.33513 | BN35: =AM35*$BL$1 -> 0 | BO35: 0 | BP35: 0 | BR35: =BL35-AX35 -> 0 | BS35: 0.33513 | BT35: 0 | BU35: 0 | BV35: 0
B36: 2 | C36: 042 | D36: 441T | E36: 5 | G36: =IF(OR(ISBLANK(C36),ISBLANK(D36)),"",TEXT(C36,"000")&TEXT(D36,"000")) -> 042441T | I36: Decorative Sodium Vapor | J36: No Pole | K36: Granville 100W | L36: 475 | M36: 0 | N36: 1 | O36: 0 | P36: 0 | Q36: 0 | R36: =IF(SUM(M36:Q36)>0,0,1) -> 0 | S36: 0 | T36: 18.8 | U36: 0 | V36: 0 | W36: 0 | Z36: 18.8 | AE36: 0 | AF36: 1 | AG36: 0 | AH36: 0 | AI36: 0 | AK36: =ROUND(S36*(1+AK$1),2) -> 0 | AL36: =ROUND(T36*(1+AL$1),2) -> 19.2 | AM36: =ROUND(U36*(1+AM$1),2) -> 0 | AN36: =ROUND(V36*(1+AN$1),2) -> 0 | AO36: =ROUND(W36*(1+AO$1),2) -> 0 | AR36: 19.2 | AW36: 40 | AY36: 19.36 | BD36: =ROUND(AW36*$BD$2,2)+ROUND(AW36*$BD$1,2) -> 0.46 | BF36: 0.14 | BL36: 0 | BM36: 19.4496 | BN36: 0 | BO36: 0 | BP36: 0 | BR36: 0 | BS36: 0.0896 | BT36: 0 | BU36: 0 | BV36: 0
B37: 2 | C37: 042 | D37: 442 | E37: 1 | G37: 042442 | I37: Decorative Sodium Vapor (Capital Only) | J37: Direct Burial | K37: Granville 100W | L37: 478 | M37: 0 | N37: 30 | O37: 0 | P37: 0 | Q37: 0 | S37: 0 | T37: 17.33 | U37: 0 | V37: 0 | W37: 0 | Y37: 0 | Z37: 519.9 | AA37: 0 | AB37: 0 | AC37: 0 | AE37: 0 | AF37: 30 | AG37: 0 | AH37: 0 | AI37: 0 | AK37: =ROUND(S37*(1+AK$1),2) -> 0 | AL37: 17.7 | AM37: 0 | AN37: 0 | AO37: 0 | AQ37: =IF(AND(AE37<>0,AK37=0),#VALUE!,AE37*AK37) -> 0 | AR37: 531 | AS37: =IF(AND(AG37<>0,AM37=0),#VALUE!,AG37*AM37) -> 0 | AT37: =IF(AND(AH37<>0,AN37=0),#VALUE!,AH37*AN37) -> 0 | AU37: =IF(AND(AI37<>0,AO37=0),#VALUE!,AI37*AO37) -> 0 | AV37: =SUM(AQ37:AU37)-SUM(Y37:AC37) -> 11.1 | AY37: 17.54 | BD37: 0 | BF37: 0.02 | BL37: =AK37*$BL$1 -> 0 | BM37: =AL37*$BL$1 -> 17.9301 | BN37: 0 | BO37: 0 | BP37: 0 | BR37: 0 | BS37: 0.3901 | BT37: 0 | BU37: 0 | BV37: 0
B38: 2 | C38: 042 | D38: 474 | E38: 246 | G38: 042474 | I38: Decorative Sodium Vapor | J38: Direct Burial | K38: Post Top 100W | L38: 484 | M38: 0 | N38: 159 | O38: 0 | P38: 0 | Q38: 0 | S38: 0 | T38: 23.31 | U38: 0 | V38: 0 | W38: 0 | Y38: 0 | Z38: 3706.29 | AA38: 0 | AB38: 0 | AC38: 0 | AE38: 0 | AF38: 159 | AG38: 0 | AH38: 0 | AI38: 0 | AK38: 0 | AL38: 23.81 | AM38: 0 | AN38: 0 | AO38: 0 | AQ38: 0 | AR38: 3785.79 | AS38: 0 | AT38: 0 | AU38: 0 | AV38: =SUM(AQ38:AU38)-SUM(Y38:AC38) -> 79.5 | AW38: 40 | AY38: 23.92 | BD38: 0.46 | BF38: 0.15 | BL38: 0 | BM38: 24.11953 | BN38: 0 | BO38: 0 | BP38: 0 | BR38: 0 | BS38: 0.19953 | BT38: 0 | BU38: 0 | BV38: 0
B39: 2 | C39: 042 | D39: 474L | E39: =3 -> 3 | G39: =IF(OR(ISBLANK(C39),ISBLANK(D39)),"",TEXT(C39,"000")&TEXT(D39,"000")) -> 042474L | I39: Decorative Light Emitting Diode (LED) | J39: Direct Burial | K39: Post Top 70W | L39: 484L | M39: 0 | N39: 1 | O39: 0 | P39: 0 | Q39: 0 | R39: =IF(SUM(M39:Q39)>0,0,1) -> 0 | S39: 0 | T39: =T38 -> 23.31 | U39: 0 | Y39: =IF(AND(M39<>0,S39=0),#VALUE!,M39*S39) -> 0 | Z39: =IF(AND(N39<>0,T39=0),#VALUE!,N39*T39) -> 23.31 | AA39: =IF(AND(O39<>0,U39=0),#VALUE!,O39*U39) -> 0 | AB39: =IF(AND(P39<>0,V39=0),#VALUE!,P39*V39) -> 0 | AC39: =IF(AND(Q39<>0,W39=0),#VALUE!,Q39*W39) -> 0 | AE39: =SUMIF($G:$G,TEXT(AE$3,"000")&TEXT($L39,"000"),$E:$E) -> 0 | AF39: 1 | AG39: 0 | AH39: 0 | AI39: 0 | AK39: =ROUND(S39*(1+AK$1),2) -> 0 | AL39: =AL38 -> 23.81 | AM39: 0 | AN39: 0 | AO39: 0 | AQ39: 0 | AR39: 23.81 | AS39: 0 | AT39: 0 | AU39: 0 | AW39: 26 | AY39: 23.8 | BD39: =ROUND(AW39*$BD$2,2)+ROUND(AW39*$BD$1,2) -> 0.3 | BF39: 0.11 | BL39: 0 | BM39: 24.11953 | BN39: =AM39*$BL$1 -> 0 | BO39: 0 | BP39: 0 | BR39: =BL39-AX39 -> 0 | BS39: =BM39-AY39 -> 0.31953 | BT39: =BN39-AZ39 -> 0 | BU39: =BO39-BA39 -> 0 | BV39: =BP39-BB39 -> 0
B40: 2 | C40: 042 | D40: 475 | E40: 1 | G40: 042475 | I40: LED (Dusk to Dawn) | J40: Dusk to Dawn | K40: 100W | L40: 495 | M40: 0 | N40: 0 | O40: 0 | P40: 0 | Q40: 44 | S40: 0 | T40: 0 | U40: 0 | V40: 0 | W40: 4.78 | Y40: 0 | Z40: 0 | AA40: 0 | AB40: 0 | AC40: 210.32 | AE40: 0 | AF40: 0 | AG40: 0 | AH40: 0 | AI40: 44 | AK40: 0 | AL40: 0 | AM40: 0 | AN40: 0 | AO40: 4.88 | AQ40: 0 | AR40: 0 | AS40: 0 | AT40: 0 | AU40: 214.72 | AW40: 49 | BB40: 5.24 | BD40: 0.57 | BI40: =ROUND((W40*$BE$2)+$BD40-BB40,2) -> 0.17 | BL40: 0 | BM40: 0 | BN40: 0 | BO40: 0 | BP40: 4.94344 | BR40: =BL40-AX40 -> 0 | BS40: 0 | BT40: 0 | BU40: 0 | BV40: -0.29656
B41: 3 | C41: 042 | D41: 478 | E41: 30 | G41: =IF(OR(ISBLANK(C41),ISBLANK(D41)),"",TEXT(C41,"000")&TEXT(D41,"000")) -> 042478 | I41: LED (Dusk to 11:00) | J41: Dusk to 11 PM | K41: 100W | L41: 499 | M41: 0 | N41: 0 | O41: 0 | P41: 0 | Q41: 45 | S41: 0 | T41: 0 | U41: 0 | V41: 0 | W41: 2.65 | Y41: 0 | Z41: 0 | AA41: 0 | AB41: 0 | AC41: 119.25 | AE41: 0 | AF41: 0 | AG41: 0 | AH41: 0 | AI41: 45 | AK41: 0 | AL41: 0 | AM41: 0 | AN41: 0 | AO41: 2.71 | AQ41: 0 | AR41: 0 | AS41: 0 | AT41: 0 | AU41: 121.95 | AW41: 21 | BB41: 2.85 | BD41: 0.25 | BI41: =ROUND((W41*$BE$2)+$BD41-BB41,2) -> 0.08 | BL41: 0 | BM41: 0 | BN41: 0 | BO41: 0 | BP41: 2.74523 | BR41: 0 | BS41: 0 | BT41: 0 | BU41: 0 | BV41: -0.10477
B42: 2 | C42: 042 | D42: 484 | E42: =159 -> 159 | G42: 042484 | I42: Single Mercury Vapor | J42: Wood Pole | K42: 10000 | L42: 511 | M42: 2 | N42: 0 | O42: 0 | P42: 0 | Q42: 0 | S42: 18.55 | T42: 0 | U42: 0 | V42: 0 | W42: 0 | Y42: 37.1 | Z42: 0 | AA42: 0 | AB42: 0 | AC42: 0 | AE42: 2 | AF42: =N42 -> 0 | AG42: =O42 -> 0 | AH42: =P42 -> 0 | AI42: =Q42 -> 0 | AK42: 18.95 | AL42: 0 | AM42: 0 | AN42: 0 | AO42: 0 | AQ42: 37.9 | AR42: 0 | AS42: 0 | AT42: 0 | AU42: 0 | AV42: =SUM(AQ42:AU42)-SUM(Y42:AC42) -> 0.8 | AW42: 111 | AX42: 19.69 | BD42: 1.28 | BE42: =ROUND((S42*$BE$2)+$BD42-AX42,2) -> 0.38 | BL42: 19.19635 | BM42: 0 | BN42: 0 | BO42: 0 | BP42: 0 | BR42: -0.49365 | BS42: 0 | BT42: 0 | BU42: 0 | BV42: 0
B43: 2 | C43: 042 | D43: 484L | E43: =1 -> 1 | G43: =IF(OR(ISBLANK(C43),ISBLANK(D43)),"",TEXT(C43,"000")&TEXT(D43,"000")) -> 042484L | I43: Mercury Vapor | J43: Dusk to Dawn | K43: 10000 | L43: 515 | M43: 0 | N43: 0 | O43: 0 | P43: 1 | Q43: 0 | S43: 0 | T43: 0 | U43: 0 | V43: 9.2 | W43: 0 | Y43: 0 | Z43: 0 | AA43: 0 | AB43: 9.2 | AC43: 0 | AE43: =SUMIF($G:$G,TEXT(AE$3,"000")&TEXT($L43,"000"),$E:$E) -> 0 | AF43: =SUMIF($G:$G,TEXT(AF$3,"000")&TEXT($L43,"000"),$E:$E) -> 0 | AG43: =SUMIF($G:$G,TEXT(AG$3,"000")&TEXT($L43,"000"),$E:$E) -> 0 | AH43: =SUMIF($G:$G,TEXT(AH$3,"000")&TEXT($L43,"000"),$E:$E) -> 1 | AI43: =SUMIF($G:$G,TEXT(AI$3,"000")&TEXT($L43,"000"),$E:$E) -> 0 | AK43: 0 | AL43: 0 | AM43: 0 | AN43: 9.4 | AO43: 0 | AQ43: 0 | AR43: 0 | AS43: 0 | AT43: 9.4 | AU43: 0 | AV43: =SUM(AQ43:AU43)-SUM(Y43:AC43) -> 0.2 | AW43: 111 | BA43: 10.23 | BD43: 1.28 | BH43: =ROUND((V43*$BE$2)+$BD43-BA43,2) -> 0.37 | BL43: 0 | BM43: 0 | BN43: 0 | BO43: 9.5222 | BP43: 0 | BR43: 0 | BS43: 0 | BT43: 0 | BU43: -0.7078 | BV43: 0
B44: 2 | C44: 042 | D44: 522 | E44: 0 | G44: 042522 | I44: Single High-Pressure Sodium Vapor | J44: Pedestal Base | K44: 200W | L44: 522 | M44: =SUMIF($G:$G,TEXT(M$3,"000")&TEXT($L44,"000"),$E:$E) -> 0 | N44: 0 | O44: 0 | P44: 0 | Q44: 0 | S44: 0 | T44: 56.52 | U44: 0 | V44: 0 | W44: 0 | Y44: 0 | Z44: 0 | AA44: 0 | AB44: 0 | AC44: 0 | AE44: 0 | AF44: 0 | AG44: 0 | AH44: 0 | AI44: 0 | AK44: 0 | AL44: 57.73 | AM44: 0 | AN44: 0 | AO44: 0 | AQ44: 0 | AR44: 0 | AS44: 0 | AT44: 0 | AU44: 0 | AV44: =SUM(AQ44:AU44)-SUM(Y44:AC44) -> 0 | AW44: 85 | AY44: 57.9 | BD44: 0.97 | BF44: =ROUND((T44*$BE$2)+$BD44-AY44,2) -> 0.32 | BL44: 0 | BM44: 58.48049 | BN44: 0 | BO44: 0 | BP44: 0 | BR44: 0 | BS44: 0.58049 | BT44: 0 | BU44: 0 | BV44: 0
B45: 2 | C45: 042 | D45: 531 | E45: 1312 | G45: 042531 | I45: Single High-Pressure Sodium Vapor | J45: Wood Pole | K45: 200W | L45: 531 | M45: 0 | N45: 1312 | O45: 2 | P45: 0 | Q45: 0 | S45: 0 | T45: 22.52 | U45: 11.14 | V45: 0 | W45: 0 | Y45: 0 | Z45: 29546.24 | AA45: 22.28 | AB45: 0 | AC45: 0 | AE45: 0 | AF45: 1312 | AG45: 2 | AH45: 0 | AI45: 0 | AK45: 0 | AL45: 23 | AM45: 11.38 | AN45: 0 | AO45: 0 | AQ45: 0 | AR45: 30176 | AS45: 22.76 | AT45: 0 | AU45: 0 | AV45: =SUM(AQ45:AU45)-SUM(Y45:AC45) -> 630.24 | AW45: 85 | AY45: 23.49 | AZ45: 11.97 | BD45: 0.97 | BF45: 0.29 | BG45: =ROUND((U45*$BE$2)+$BD45-AZ45,2) -> 0.28 | BL45: 0 | BM45: 23.299 | BN45: 11.52794 | BO45: 0 | BP45: 0 | BR45: 0 | BS45: -0.191 | BT45: -0.44206 | BU45: 0 | BV45: 0
B46: 2 | C46: 042 | D46: 531L | E46: 965 | G46: =IF(OR(ISBLANK(C46),ISBLANK(D46)),"",TEXT(C46,"000")&TEXT(D46,"000")) -> 042531L | I46: Single Light Emitting Diode (LED) | J46: Wood Pole | K46: 107W | L46: 531L | M46: 0 | N46: 965 | O46: 0 | P46: 0 | Q46: 0 | R46: =IF(SUM(M46:Q46)>0,0,1) -> 0 | S46: 0 | T46: =T45 -> 22.52 | U46: 0 | V46: 0 | Y46: =IF(AND(M46<>0,S46=0),#VALUE!,M46*S46) -> 0 | Z46: =IF(AND(N46<>0,T46=0),#VALUE!,N46*T46) -> 21731.8 | AA46: =IF(AND(O46<>0,U46=0),#VALUE!,O46*U46) -> 0 | AB46: =IF(AND(P46<>0,V46=0),#VALUE!,P46*V46) -> 0 | AC46: =IF(AND(Q46<>0,W46=0),#VALUE!,Q46*W46) -> 0 | AE46: =SUMIF($G:$G,TEXT(AE$3,"000")&TEXT($L46,"000"),$E:$E) -> 0 | AF46: =SUMIF($G:$G,TEXT(AF$3,"000")&TEXT($L46,"000"),$E:$E) -> 965 | AG46: =SUMIF($G:$G,TEXT(AG$3,"000")&TEXT($L46,"000"),$E:$E) -> 0 | AH46: =SUMIF($G:$G,TEXT(AH$3,"000")&TEXT($L46,"000"),$E:$E) -> 0 | AI46: =SUMIF($G:$G,TEXT(AI$3,"000")&TEXT($L46,"000"),$E:$E) -> 0 | AK46: =ROUND(S46*(1+AK$1),2) -> 0 | AL46: =AL45 -> 23 | AM46: 0 | AN46: 0 | AO46: 0 | AQ46: 0 | AR46: 22195 | AS46: 0 | AT46: 0 | AU46: 0 | AW46: 39 | AY46: 23.12 | BD46: =ROUND(AW46*$BD$2,2)+ROUND(AW46*$BD$1,2) -> 0.44 | BF46: 0.13 | BL46: 0 | BM46: 23.299 | BN46: =AM46*$BL$1 -> 0 | BO46: =AN46*$BL$1 -> 0 | BP46: =AO46*$BL$1 -> 0 | BR46: =BL46-AX46 -> 0 | BS46: =BM46-AY46 -> 0.179 | BT46: =BN46-AZ46 -> 0 | BU46: =BO46-BA46 -> 0 | BV46: =BP46-BB46 -> 0
B47: 2 | C47: 042 | D47: 531T | E47: 142 | G47: =IF(OR(ISBLANK(C47),ISBLANK(D47)),"",TEXT(C47,"000")&TEXT(D47,"000")) -> 042531T | I47: Single Light Emitting Diode (LED) | J47: Wood Pole | K47: 107W | L47: 531T | M47: 0 | N47: 142 | O47: 0 | P47: 0 | Q47: 0 | S47: 0 | T47: =T45-T89 -> 16.99 | V47: 0 | W47: 0 | Y47: =IF(AND(M47<>0,S47=0),#VALUE!,M47*S47) -> 0 | Z47: =IF(AND(N47<>0,T47=0),#VALUE!,N47*T47) -> 2412.58 | AA47: =IF(AND(O47<>0,U47=0),#VALUE!,O47*U47) -> 0 | AB47: =IF(AND(P47<>0,V47=0),#VALUE!,P47*V47) -> 0 | AC47: =IF(AND(Q47<>0,W47=0),#VALUE!,Q47*W47) -> 0 | AE47: =M47 -> 0 | AF47: =N47 -> 142 | AG47: =O47 -> 0 | AH47: =P47 -> 0 | AI47: =Q47 -> 0 | AK47: =ROUND(S47*(1+AK$1),2) -> 0 | AL47: =AL46-AL89 -> 17.47 | AM47: 0 | AN47: 0 | AO47: 0 | AQ47: 0 | AR47: 2480.74 | AS47: 0 | AT47: 0 | AU47: 0 | AV47: =SUM(AQ47:AU47)-SUM(Y47:AC47) -> 68.16 | AW47: 39 | AY47: 17.53 | BD47: =ROUND(AW47*$BD$2,2)+ROUND(AW47*$BD$1,2) -> 0.44 | BF47: 0.12 | BL47: 0 | BM47: 17.69711 | BN47: =AM47*$BL$1 -> 0 | BO47: =AN47*$BL$1 -> 0 | BP47: =AO47*$BL$1 -> 0 | BR47: =BL47-AX47 -> 0 | BS47: =BM47-AY47 -> 0.16711 | BT47: =BN47-AZ47 -> 0 | BU47: =BO47-BA47 -> 0 | BV47: =BP47-BB47 -> 0
B48: 2 | C48: 042 | D48: 532 | E48: 467 | G48: 042532 | I48: Single High-Pressure Sodium Vapor | J48: Pedestal Base | K48: 200W | L48: 532 | M48: 0 | N48: 467 | O48: 106 | P48: 0 | Q48: 0 | S48: 0 | T48: 33.36 | U48: 11.14 | V48: 0 | W48: 0 | Y48: 0 | Z48: 15579.12 | AA48: 1180.84 | AB48: 0 | AC48: 0 | AE48: 0 | AF48: 467 | AG48: 106 | AH48: 0 | AI48: 0 | AK48: 0 | AL48: 34.07 | AM48: 11.38 | AN48: 0 | AO48: 0 | AQ48: 0 | AR48: 15910.69 | AS48: 1206.28 | AT48: 0 | AU48: 0 | AV48: =SUM(AQ48:AU48)-SUM(Y48:AC48) -> 357.01 | AW48: 85 | AY48: 34.46 | AZ48: 11.97 | BD48: 0.97 | BF48: 0.3 | BG48: =ROUND((U48*$BE$2)+$BD48-AZ48,2) -> 0.28 | BL48: 0 | BM48: 34.51291 | BN48: 11.52794 | BO48: 0 | BP48: 0 | BR48: 0 | BS48: 0.05291 | BT48: -0.44206 | BU48: 0 | BV48: 0
B49: 2 | C49: 042 | D49: 532L | E49: 398 | G49: =IF(OR(ISBLANK(C49),ISBLANK(D49)),"",TEXT(C49,"000")&TEXT(D49,"000")) -> 042532L | I49: Single Light Emitting Diode (LED) | J49: Pedestal Base | K49: 107W | L49: 532L | M49: 0 | N49: 398 | O49: 0 | P49: 0 | Q49: 0 | R49: =IF(SUM(M49:Q49)>0,0,1) -> 0 | S49: 0 | T49: =T48 -> 33.36 | U49: 0 | V49: 0 | Y49: =IF(AND(M49<>0,S49=0),#VALUE!,M49*S49) -> 0 | Z49: =IF(AND(N49<>0,T49=0),#VALUE!,N49*T49) -> 13277.28 | AA49: =IF(AND(O49<>0,U49=0),#VALUE!,O49*U49) -> 0 | AB49: =IF(AND(P49<>0,V49=0),#VALUE!,P49*V49) -> 0 | AC49: =IF(AND(Q49<>0,W49=0),#VALUE!,Q49*W49) -> 0 | AE49: =SUMIF($G:$G,TEXT(AE$3,"000")&TEXT($L49,"000"),$E:$E) -> 0 | AF49: =SUMIF($G:$G,TEXT(AF$3,"000")&TEXT($L49,"000"),$E:$E) -> 398 | AG49: =SUMIF($G:$G,TEXT(AG$3,"000")&TEXT($L49,"000"),$E:$E) -> 0 | AH49: =SUMIF($G:$G,TEXT(AH$3,"000")&TEXT($L49,"000"),$E:$E) -> 0 | AI49: =SUMIF($G:$G,TEXT(AI$3,"000")&TEXT($L49,"000"),$E:$E) -> 0 | AK49: =ROUND(S49*(1+AK$1),2) -> 0 | AL49: =AL48 -> 34.07 | AM49: 0 | AN49: 0 | AO49: 0 | AQ49: 0 | AR49: 13559.86 | AS49: 0 | AT49: 0 | AU49: 0 | AW49: 39 | AY49: 34.09 | BD49: =ROUND(AW49*$BD$2,2)+ROUND(AW49*$BD$1,2) -> 0.44 | BF49: 0.14 | BL49: 0 | BM49: 34.51291 | BN49: =AM49*$BL$1 -> 0 | BO49: =AN49*$BL$1 -> 0 | BP49: =AO49*$BL$1 -> 0 | BR49: =BL49-AX49 -> 0 | BS49: =BM49-AY49 -> 0.42291 | BT49: =BN49-AZ49 -> 0 | BU49: =BO49-BA49 -> 0 | BV49: =BP49-BB49 -> 0
B50: 2 | C50: 042 | D50: 532T | E50: 30 | G50: =IF(OR(ISBLANK(C50),ISBLANK(D50)),"",TEXT(C50,"000")&TEXT(D50,"000")) -> 042532T | I50: Single Light Emitting Diode (LED) | J50: Pedestal Base | K50: 107W | L50: 532T | M50: 0 | N50: 30 | O50: 0 | P50: 0 | Q50: 0 | S50: 0 | T50: =T48-T89 -> 27.83 | V50: 0 | W50: 0 | Y50: =IF(AND(M50<>0,S50=0),#VALUE!,M50*S50) -> 0 | Z50: =IF(AND(N50<>0,T50=0),#VALUE!,N50*T50) -> 834.9 | AA50: =IF(AND(O50<>0,U50=0),#VALUE!,O50*U50) -> 0 | AB50: =IF(AND(P50<>0,V50=0),#VALUE!,P50*V50) -> 0 | AC50: =IF(AND(Q50<>0,W50=0),#VALUE!,Q50*W50) -> 0 | AE50: =M50 -> 0 | AF50: =N50 -> 30 | AG50: =O50 -> 0 | AH50: =P50 -> 0 | AI50: =Q50 -> 0 | AK50: =ROUND(S50*(1+AK$1),2) -> 0 | AL50: =AL49-AL89 -> 28.54 | AM50: 0 | AN50: 0 | AO50: 0 | AQ50: 0 | AR50: 856.2 | AS50: 0 | AT50: 0 | AU50: 0 | AV50: =SUM(AQ50:AU50)-SUM(Y50:AC50) -> 21.3 | AW50: 39 | AY50: 28.5 | BD50: =ROUND(AW50*$BD$2,2)+ROUND(AW50*$BD$1,2) -> 0.44 | BF50: 0.13 | BL50: 0 | BM50: 28.91102 | BN50: =AM50*$BL$1 -> 0 | BO50: =AN50*$BL$1 -> 0 | BP50: =AO50*$BL$1 -> 0 | BR50: =BL50-AX50 -> 0 | BS50: =BM50-AY50 -> 0.41102 | BT50: =BN50-AZ50 -> 0 | BU50: =BO50-BA50 -> 0 | BV50: =BP50-BB50 -> 0
B51: 2 | C51: 042 | D51: 533 | E51: 67 | G51: 042533 | I51: Single High-Pressure Sodium Vapor | J51: Direct Burial | K51: 200W | L51: 533 | M51: 0 | N51: 67 | O51: 2 | P51: 0 | Q51: 0 | S51: 0 | T51: 33.36 | U51: 11.14 | V51: 0 | W51: 0 | Y51: 0 | Z51: 2235.12 | AA51: 22.28 | AB51: 0 | AC51: 0 | AE51: 0 | AF51: 67 | AG51: 2 | AH51: 0 | AI51: 0 | AK51: 0 | AL51: 34.07 | AM51: 11.38 | AN51: 0 | AO51: 0 | AQ51: 0 | AR51: 2282.69 | AS51: 22.76 | AT51: 0 | AU51: 0 | AV51: =SUM(AQ51:AU51)-SUM(Y51:AC51) -> 48.05 | AW51: 85 | AY51: 34.46 | AZ51: 11.97 | BD51: 0.97 | BF51: 0.3 | BG51: =ROUND((U51*$BE$2)+$BD51-AZ51,2) -> 0.28 | BL51: 0 | BM51: 34.51291 | BN51: 11.52794 | BO51: 0 | BP51: 0 | BR51: 0 | BS51: 0.05291 | BT51: -0.44206 | BU51: 0 | BV51: 0
B52: 2 | C52: 042 | D52: 533L | E52: 6 | G52: =IF(OR(ISBLANK(C52),ISBLANK(D52)),"",TEXT(C52,"000")&TEXT(D52,"000")) -> 042533L | I52: Single Light Emitting Diode (LED) | J52: Direct Burial | K52: 107W | L52: 533L | M52: 0 | N52: 6 | O52: 0 | P52: 0 | Q52: 0 | R52: =IF(SUM(M52:Q52)>0,0,1) -> 0 | S52: 0 | T52: =T51 -> 33.36 | U52: 0 | V52: 0 | Y52: =IF(AND(M52<>0,S52=0),#VALUE!,M52*S52) -> 0 | Z52: =IF(AND(N52<>0,T52=0),#VALUE!,N52*T52) -> 200.16 | AA52: =IF(AND(O52<>0,U52=0),#VALUE!,O52*U52) -> 0 | AB52: =IF(AND(P52<>0,V52=0),#VALUE!,P52*V52) -> 0 | AC52: =IF(AND(Q52<>0,W52=0),#VALUE!,Q52*W52) -> 0 | AE52: =SUMIF($G:$G,TEXT(AE$3,"000")&TEXT($L52,"000"),$E:$E) -> 0 | AF52: =SUMIF($G:$G,TEXT(AF$3,"000")&TEXT($L52,"000"),$E:$E) -> 6 | AG52: =SUMIF($G:$G,TEXT(AG$3,"000")&TEXT($L52,"000"),$E:$E) -> 0 | AH52: =SUMIF($G:$G,TEXT(AH$3,"000")&TEXT($L52,"000"),$E:$E) -> 0 | AI52: =SUMIF($G:$G,TEXT(AI$3,"000")&TEXT($L52,"000"),$E:$E) -> 0 | AK52: =ROUND(S52*(1+AK$1),2) -> 0 | AL52: =AL51 -> 34.07 | AM52: 0 | AN52: 0 | AO52: 0 | AQ52: 0 | AR52: 204.42 | AS52: 0 | AT52: 0 | AU52: 0 | AW52: 39 | AY52: 34.09 | BD52: =ROUND(AW52*$BD$2,2)+ROUND(AW52*$BD$1,2) -> 0.44 | BF52: 0.14 | BL52: 0 | BM52: 34.51291 | BN52: =AM52*$BL$1 -> 0 | BO52: =AN52*$BL$1 -> 0 | BP52: =AO52*$BL$1 -> 0 | BR52: =BL52-AX52 -> 0 | BS52: =BM52-AY52 -> 0.42291 | BT52: =BN52-AZ52 -> 0 | BU52: =BO52-BA52 -> 0 | BV52: =BP52-BB52 -> 0
B53: 2 | C53: 042 | D53: 533T | E53: 4 | G53: =IF(OR(ISBLANK(C53),ISBLANK(D53)),"",TEXT(C53,"000")&TEXT(D53,"000")) -> 042533T | I53: Single Light Emitting Diode (LED) | J53: Direct Burial | K53: 107W | L53: 533T | M53: 0 | N53: 4 | O53: 0 | P53: 0 | Q53: 0 | S53: 0 | T53: =T51-T89 -> 27.83 | V53: 0 | W53: 0 | Y53: =IF(AND(M53<>0,S53=0),#VALUE!,M53*S53) -> 0 | Z53: =IF(AND(N53<>0,T53=0),#VALUE!,N53*T53) -> 111.32 | AA53: =IF(AND(O53<>0,U53=0),#VALUE!,O53*U53) -> 0 | AB53: =IF(AND(P53<>0,V53=0),#VALUE!,P53*V53) -> 0 | AC53: =IF(AND(Q53<>0,W53=0),#VALUE!,Q53*W53) -> 0 | AE53: =M53 -> 0 | AF53: =N53 -> 4 | AG53: =O53 -> 0 | AH53: =P53 -> 0 | AI53: =Q53 -> 0 | AK53: =ROUND(S53*(1+AK$1),2) -> 0 | AL53: =AL52-AL89 -> 28.54 | AM53: 0 | AN53: 0 | AO53: 0 | AQ53: 0 | AR53: 114.16 | AS53: 0 | AT53: 0 | AU53: 0 | AV53: =SUM(AQ53:AU53)-SUM(Y53:AC53) -> 2.84 | AW53: 39 | AY53: 28.5 | BD53: =ROUND(AW53*$BD$2,2)+ROUND(AW53*$BD$1,2) -> 0.44 | BF53: 0.13 | BL53: 0 | BM53: 28.91102 | BN53: =AM53*$BL$1 -> 0 | BO53: =AN53*$BL$1 -> 0 | BP53: =AO53*$BL$1 -> 0 | BR53: =BL53-AX53 -> 0 | BS53: =BM53-AY53 -> 0.41102 | BT53: =BN53-AZ53 -> 0 | BU53: =BO53-BA53 -> 0 | BV53: =BP53-BB53 -> 0
B54: 2 | C54: 042 | D54: 535 | E54: 395 | G54: 042535 | I54: Single High-Pressure Sodium Vapor | J54: No Pole / Dusk to Dawn (046) | K54: 200W | L54: 535 | M54: =SUMIF($G:$G,TEXT(M$3,"000")&TEXT($L54,"000"),$E:$E) -> 0 | N54: 395 | O54: 15 | P54: 0 | Q54: 142 | S54: 0 | T54: 18.54 | U54: 11.14 | V54: 0 | W54: 8.8 | Y54: 0 | Z54: 7323.3 | AA54: 167.1 | AB54: 0 | AC54: 1249.6 | AE54: 0 | AF54: 395 | AG54: 15 | AH54: 0 | AI54: 142 | AK54: 0 | AL54: 18.94 | AM54: 11.38 | AN54: 0 | AO54: 8.99 | AQ54: 0 | AR54: 7481.3 | AS54: 170.7 | AT54: 0 | AU54: 1276.58 | AV54: =SUM(AQ54:AU54)-SUM(Y54:AC54) -> 188.58 | AW54: 85 | AY54: 19.46 | AZ54: 11.97 | BB54: 9.61 | BD54: 0.97 | BF54: 0.29 | BG54: =ROUND((U54*$BE$2)+$BD54-AZ54,2) -> 0.28 | BI54: =ROUND((W54*$BE$2)+$BD54-BB54,2) -> 0.27 | BL54: 0 | BM54: 19.18622 | BN54: 11.52794 | BO54: 0 | BP54: 9.10687 | BR54: 0 | BS54: -0.27378 | BT54: -0.44206 | BU54: 0 | BV54: -0.50313
B55: 2 | C55: 042 | D55: 535L | E55: 433 | G55: =IF(OR(ISBLANK(C55),ISBLANK(D55)),"",TEXT(C55,"000")&TEXT(D55,"000")) -> 042535L | I55: Single Light Emitting Diode (LED) | J55: No Pole / Dusk to Dawn (046) | K55: 107W | L55: 535L | M55: 0 | N55: 433 | O55: 0 | P55: 0 | Q55: 0 | R55: =IF(SUM(M55:Q55)>0,0,1) -> 0 | S55: 0 | T55: =T54 -> 18.54 | U55: 0 | V55: 0 | Y55: =IF(AND(M55<>0,S55=0),#VALUE!,M55*S55) -> 0 | Z55: =IF(AND(N55<>0,T55=0),#VALUE!,N55*T55) -> 8027.82 | AA55: =IF(AND(O55<>0,U55=0),#VALUE!,O55*U55) -> 0 | AB55: =IF(AND(P55<>0,V55=0),#VALUE!,P55*V55) -> 0 | AC55: =IF(AND(Q55<>0,W55=0),#VALUE!,Q55*W55) -> 0 | AE55: =SUMIF($G:$G,TEXT(AE$3,"000")&TEXT($L55,"000"),$E:$E) -> 0 | AF55: =SUMIF($G:$G,TEXT(AF$3,"000")&TEXT($L55,"000"),$E:$E) -> 433 | AG55: =SUMIF($G:$G,TEXT(AG$3,"000")&TEXT($L55,"000"),$E:$E) -> 0 | AH55: =SUMIF($G:$G,TEXT(AH$3,"000")&TEXT($L55,"000"),$E:$E) -> 0 | AI55: =SUMIF($G:$G,TEXT(AI$3,"000")&TEXT($L55,"000"),$E:$E) -> 0 | AK55: =ROUND(S55*(1+AK$1),2) -> 0 | AL55: =AL54 -> 18.94 | AM55: 0 | AN55: 0 | AO55: 0 | AQ55: 0 | AR55: 8201.02 | AS55: 0 | AT55: 0 | AU55: 0 | AW55: 39 | AY55: 19.09 | BD55: =ROUND(AW55*$BD$2,2)+ROUND(AW55*$BD$1,2) -> 0.44 | BF55: 0.13 | BL55: 0 | BM55: 19.18622 | BN55: =AM55*$BL$1 -> 0 | BO55: =AN55*$BL$1 -> 0 | BP55: =AO55*$BL$1 -> 0 | BR55: =BL55-AX55 -> 0 | BS55: =BM55-AY55 -> 0.09622 | BT55: =BN55-AZ55 -> 0 | BU55: =BO55-BA55 -> 0 | BV55: =BP55-BB55 -> 0
B56: 2 | C56: 042 | D56: 535T | E56: 168 | G56: =IF(OR(ISBLANK(C56),ISBLANK(D56)),"",TEXT(C56,"000")&TEXT(D56,"000")) -> 042535T | I56: Single Light Emitting Diode (LED) | J56: No Pole / Dusk to Dawn (046) | K56: 107W | L56: 535T | M56: 0 | N56: 168 | O56: 0 | P56: 0 | Q56: 0 | S56: 0 | T56: =T54-T89 -> 13.01 | V56: 0 | Y56: =IF(AND(M56<>0,S56=0),#VALUE!,M56*S56) -> 0 | Z56: =IF(AND(N56<>0,T56=0),#VALUE!,N56*T56) -> 2185.68 | AA56: =IF(AND(O56<>0,U56=0),#VALUE!,O56*U56) -> 0 | AB56: =IF(AND(P56<>0,V56=0),#VALUE!,P56*V56) -> 0 | AC56: =IF(AND(Q56<>0,W56=0),#VALUE!,Q56*W56) -> 0 | AE56: =M56 -> 0 | AF56: =N56 -> 168 | AG56: =O56 -> 0 | AH56: =P56 -> 0 | AI56: =Q56 -> 0 | AK56: =ROUND(S56*(1+AK$1),2) -> 0 | AL56: =AL55-AL89 -> 13.41 | AM56: 0 | AN56: 0 | AO56: 0 | AQ56: 0 | AR56: 2252.88 | AS56: 0 | AT56: 0 | AU56: 0 | AV56: =SUM(AQ56:AU56)-SUM(Y56:AC56) -> 67.2 | AW56: 39 | AY56: 13.5 | BD56: =ROUND(AW56*$BD$2,2)+ROUND(AW56*$BD$1,2) -> 0.44 | BF56: 0.12 | BL56: 0 | BM56: 13.58433 | BN56: =AM56*$BL$1 -> 0 | BO56: =AN56*$BL$1 -> 0 | BP56: =AO56*$BL$1 -> 0 | BR56: =BL56-AX56 -> 0 | BS56: =BM56-AY56 -> 0.08433 | BT56: =BN56-AZ56 -> 0 | BU56: =BO56-BA56 -> 0 | BV56: =BP56-BB56 -> 0
B57: 2 | C57: 042 | D57: 536 | E57: 432 | G57: 042536 | I57: Single High-Pressure Sodium Vapor | J57: Developer Contributed | K57: 200W | L57: 536 | M57: 0 | N57: 432 | O57: 0 | P57: 0 | Q57: 0 | S57: 0 | T57: 22.52 | U57: 0 | V57: 0 | W57: 0 | Y57: 0 | Z57: 9728.64 | AA57: 0 | AB57: 0 | AC57: 0 | AE57: 0 | AF57: 432 | AG57: 0 | AH57: 0 | AI57: 0 | AK57: 0 | AL57: =AL45 -> 23 | AM57: 0 | AN57: 0 | AO57: 0 | AQ57: 0 | AR57: 9936 | AS57: 0 | AT57: 0 | AU57: 0 | AV57: =SUM(AQ57:AU57)-SUM(Y57:AC57) -> 207.36 | AW57: 85 | AY57: 23.49 | BD57: 0.97 | BF57: 0.29 | BL57: 0 | BM57: 23.299 | BN57: 0 | BO57: 0 | BP57: 0 | BR57: 0 | BS57: -0.191 | BT57: 0 | BU57: 0 | BV57: 0
B58: 2 | C58: 042 | D58: 536L | E58: 169 | G58: =IF(OR(ISBLANK(C58),ISBLANK(D58)),"",TEXT(C58,"000")&TEXT(D58,"000")) -> 042536L | I58: Single Light Emitting Diode (LED) | J58: Developer Contributed | K58: 107W | L58: 536L | M58: 0 | N58: 169 | O58: 0 | P58: 0 | Q58: 0 | R58: =IF(SUM(M58:Q58)>0,0,1) -> 0 | S58: 0 | T58: =T57 -> 22.52 | U58: 0 | V58: 0 | Y58: =IF(AND(M58<>0,S58=0),#VALUE!,M58*S58) -> 0 | Z58: =IF(AND(N58<>0,T58=0),#VALUE!,N58*T58) -> 3805.88 | AA58: =IF(AND(O58<>0,U58=0),#VALUE!,O58*U58) -> 0 | AB58: =IF(AND(P58<>0,V58=0),#VALUE!,P58*V58) -> 0 | AC58: =IF(AND(Q58<>0,W58=0),#VALUE!,Q58*W58) -> 0 | AE58: =SUMIF($G:$G,TEXT(AE$3,"000")&TEXT($L58,"000"),$E:$E) -> 0 | AF58: =SUMIF($G:$G,TEXT(AF$3,"000")&TEXT($L58,"000"),$E:$E) -> 169 | AG58: =SUMIF($G:$G,TEXT(AG$3,"000")&TEXT($L58,"000"),$E:$E) -> 0 | AH58: =SUMIF($G:$G,TEXT(AH$3,"000")&TEXT($L58,"000"),$E:$E) -> 0 | AI58: =SUMIF($G:$G,TEXT(AI$3,"000")&TEXT($L58,"000"),$E:$E) -> 0 | AK58: =ROUND(S58*(1+AK$1),2) -> 0 | AL58: =AL57 -> 23 | AM58: 0 | AN58: 0 | AO58: 0 | AQ58: 0 | AR58: 3887 | AS58: 0 | AT58: 0 | AU58: 0 | AW58: 39 | AY58: 23.12 | BD58: =ROUND(AW58*$BD$2,2)+ROUND(AW58*$BD$1,2) -> 0.44 | BF58: 0.13 | BL58: 0 | BM58: 23.299 | BN58: =AM58*$BL$1 -> 0 | BO58: =AN58*$BL$1 -> 0 | BP58: =AO58*$BL$1 -> 0 | BR58: =BL58-AX58 -> 0 | BS58: =BM58-AY58 -> 0.179 | BT58: =BN58-AZ58 -> 0 | BU58: =BO58-BA58 -> 0 | BV58: =BP58-BB58 -> 0
B59: 2 | C59: 042 | D59: 536T | E59: 55 | G59: =IF(OR(ISBLANK(C59),ISBLANK(D59)),"",TEXT(C59,"000")&TEXT(D59,"000")) -> 042536T | I59: Single Light Emitting Diode (LED) | J59: Developer Contributed | K59: 107W | L59: 536T | M59: 0 | N59: 55 | O59: 0 | P59: 0 | Q59: 0 | S59: 0 | T59: =T57-T89 -> 16.99 | U59: 0 | V59: 0 | W59: 0 | Y59: =IF(AND(M59<>0,S59=0),#VALUE!,M59*S59) -> 0 | Z59: =IF(AND(N59<>0,T59=0),#VALUE!,N59*T59) -> 934.45 | AA59: =IF(AND(O59<>0,U59=0),#VALUE!,O59*U59) -> 0 | AB59: =IF(AND(P59<>0,V59=0),#VALUE!,P59*V59) -> 0 | AC59: =IF(AND(Q59<>0,W59=0),#VALUE!,Q59*W59) -> 0 | AE59: =M59 -> 0 | AF59: =N59 -> 55 | AG59: =O59 -> 0 | AH59: =P59 -> 0 | AI59: =Q59 -> 0 | AK59: =ROUND(S59*(1+AK$1),2) -> 0 | AL59: =AL58-AL89 -> 17.47 | AM59: 0 | AN59: 0 | AO59: 0 | AQ59: 0 | AR59: 960.85 | AS59: 0 | AT59: 0 | AU59: 0 | AV59: =SUM(AQ59:AU59)-SUM(Y59:AC59) -> 26.4 | AW59: 39 | AY59: 17.53 | BD59: =ROUND(AW59*$BD$2,2)+ROUND(AW59*$BD$1,2) -> 0.44 | BF59: 0.12 | BL59: 0 | BM59: 17.69711 | BN59: =AM59*$BL$1 -> 0 | BO59: =AN59*$BL$1 -> 0 | BP59: =AO59*$BL$1 -> 0 | BR59: =BL59-AX59 -> 0 | BS59: =BM59-AY59 -> 0.16711 | BT59: =BN59-AZ59 -> 0 | BU59: =BO59-BA59 -> 0 | BV59: =BP59-BB59 -> 0
B60: 2 | C60: 042 | D60: 538 | E60: 20 | G60: =IF(OR(ISBLANK(C60),ISBLANK(D60)),"",TEXT(C60,"000")&TEXT(D60,"000")) -> 042538 | I60: Single High-Pressure Sodium Vapor (Capital Only) | J60: Direct Burial | K60: 200W | L60: 538 | M60: 0 | N60: 20 | O60: 0 | P60: 0 | Q60: 0 | S60: 0 | T60: 22.23 | U60: 0 | V60: 0 | W60: 0 | Y60: 0 | Z60: 444.6 | AA60: 0 | AB60: 0 | AC60: 0 | AE60: 0 | AF60: 20 | AG60: 0 | AH60: 0 | AI60: 0 | AK60: 0 | AL60: =ROUND(T60*(1+AL$1),2) -> 22.71 | AM60: 0 | AN60: 0 | AO60: 0 | AQ60: 0 | AR60: 454.2 | AS60: 0 | AT60: 0 | AU60: 0 | AW60: 85 | AY60: 23.2 | BD60: 0.97 | BF60: 0.29 | BL60: 0 | BM60: 23.00523 | BN60: 0 | BO60: 0 | BP60: 0 | BR60: 0 | BS60: -0.19477 | BT60: 0 | BU60: 0 | BV60: 0
B61: 2 | C61: 042 | D61: 541 | E61: 5 | G61: =IF(OR(ISBLANK(C61),ISBLANK(D61)),"",TEXT(C61,"000")&TEXT(D61,"000")) -> 042541 | I61: Double High-Pressure Sodium Vapor | J61: Wood Pole | K61: 200W | L61: 541 | M61: 0 | N61: 5 | O61: 0 | P61: 0 | Q61: 0 | S61: 0 | T61: 45.07 | U61: 0 | V61: 0 | W61: 0 | Y61: 0 | Z61: 225.35 | AA61: 0 | AB61: 0 | AC61: 0 | AE61: 0 | AF61: 5 | AG61: 0 | AH61: 0 | AI61: 0 | AK61: 0 | AL61: 46.03 | AM61: 0 | AN61: 0 | AO61: 0 | AQ61: 0 | AR61: 230.15 | AS61: 0 | AT61: 0 | AU61: 0 | AV61: =SUM(AQ61:AU61)-SUM(Y61:AC61) -> 4.8 | AW61: 170 | AY61: 47.03 | BD61: 1.96 | BF61: 0.59 | BL61: 0 | BM61: 46.62839 | BN61: 0 | BO61: 0 | BP61: 0 | BR61: 0 | BS61: -0.40161 | BT61: 0 | BU61: 0 | BV61: 0
B62: 2 | C62: 042 | D62: 541L | E62: =5 -> 5 | G62: =IF(OR(ISBLANK(C62),ISBLANK(D62)),"",TEXT(C62,"000")&TEXT(D62,"000")) -> 042541L | I62: Double Light Emitting Diode (LED) | J62: Wood Pole | K62: 107W | L62: 541L | M62: 0 | N62: 5 | O62: 0 | P62: 0 | Q62: 0 | R62: =IF(SUM(M62:Q62)>0,0,1) -> 0 | S62: 0 | T62: =T61 -> 45.07 | U62: 0 | V62: 0 | Y62: =IF(AND(M62<>0,S62=0),#VALUE!,M62*S62) -> 0 | Z62: =IF(AND(N62<>0,T62=0),#VALUE!,N62*T62) -> 225.35 | AA62: =IF(AND(O62<>0,U62=0),#VALUE!,O62*U62) -> 0 | AB62: =IF(AND(P62<>0,V62=0),#VALUE!,P62*V62) -> 0 | AC62: =IF(AND(Q62<>0,W62=0),#VALUE!,Q62*W62) -> 0 | AE62: =SUMIF($G:$G,TEXT(AE$3,"000")&TEXT($L62,"000"),$E:$E) -> 0 | AF62: =SUMIF($G:$G,TEXT(AF$3,"000")&TEXT($L62,"000"),$E:$E) -> 5 | AG62: =SUMIF($G:$G,TEXT(AG$3,"000")&TEXT($L62,"000"),$E:$E) -> 0 | AH62: =SUMIF($G:$G,TEXT(AH$3,"000")&TEXT($L62,"000"),$E:$E) -> 0 | AI62: =SUMIF($G:$G,TEXT(AI$3,"000")&TEXT($L62,"000"),$E:$E) -> 0 | AK62: =ROUND(S62*(1+AK$1),2) -> 0 | AL62: =AL61 -> 46.03 | AM62: 0 | AN62: 0 | AO62: 0 | AQ62: 0 | AR62: 230.15 | AS62: 0 | AT62: 0 | AU62: 0 | AW62: 78 | AY62: 46.26 | BD62: =ROUND(AW62*$BD$2,2)+ROUND(AW62*$BD$1,2) -> 0.9 | BF62: 0.3 | BL62: 0 | BM62: 46.62839 | BN62: =AM62*$BL$1 -> 0 | BO62: =AN62*$BL$1 -> 0 | BP62: =AO62*$BL$1 -> 0 | BR62: =BL62-AX62 -> 0 | BS62: =BM62-AY62 -> 0.36839 | BT62: =BN62-AZ62 -> 0 | BU62: =BO62-BA62 -> 0 | BV62: =BP62-BB62 -> 0
B63: 2 | C63: 042 | D63: 541T | E63: 1 | G63: =IF(OR(ISBLANK(C63),ISBLANK(D63)),"",TEXT(C63,"000")&TEXT(D63,"000")) -> 042541T | I63: Double Light Emitting Diode (LED) | J63: Wood Pole | K63: 107W | L63: 541T | M63: 0 | N63: 1 | O63: 0 | P63: 0 | Q63: 0 | S63: 0 | T63: =T61-T89-T89 -> 34.01 | U63: 0 | V63: 0 | W63: 0 | Y63: =IF(AND(M63<>0,S63=0),#VALUE!,M63*S63) -> 0 | Z63: =IF(AND(N63<>0,T63=0),#VALUE!,N63*T63) -> 34.01 | AA63: =IF(AND(O63<>0,U63=0),#VALUE!,O63*U63) -> 0 | AB63: =IF(AND(P63<>0,V63=0),#VALUE!,P63*V63) -> 0 | AC63: =IF(AND(Q63<>0,W63=0),#VALUE!,Q63*W63) -> 0 | AE63: =M63 -> 0 | AF63: =N63 -> 1 | AG63: =O63 -> 0 | AH63: =P63 -> 0 | AI63: =Q63 -> 0 | AK63: =ROUND(S63*(1+AK$1),2) -> 0 | AL63: =AL61-AL89-AL89 -> 34.97 | AM63: 0 | AN63: 0 | AO63: 0 | AQ63: 0 | AR63: 34.97 | AS63: 0 | AT63: 0 | AU63: 0 | AV63: =SUM(AQ63:AU63)-SUM(Y63:AC63) -> 0.96 | AW63: 78 | AY63: 40.66 | BD63: =ROUND(AW63*$BD$2,2)+ROUND(AW63*$BD$1,2) -> 0.9 | BF63: -5.31 | BL63: 0 | BM63: 35.42461 | BN63: =AM63*$BL$1 -> 0 | BO63: =AN63*$BL$1 -> 0 | BP63: =AO63*$BL$1 -> 0 | BR63: =BL63-AX63 -> 0 | BS63: =BM63-AY63 -> -5.23539 | BT63: =BN63-AZ63 -> 0 | BU63: =BO63-BA63 -> 0 | BV63: =BP63-BB63 -> 0
B64: 2 | C64: 042 | D64: 542 | E64: =13 -> 13 | G64: 042542 | I64: Double High-Pressure Sodium Vapor | J64: Pedestal Base | K64: 200W | L64: 542 | M64: =SUMIF($G:$G,TEXT(M$3,"000")&TEXT($L64,"000"),$E:$E) -> 0 | N64: 13 | O64: 0 | P64: 0 | Q64: 0 | S64: 0 | T64: 56.52 | U64: 20.48 | V64: 0 | W64: 0 | Y64: 0 | Z64: 734.76 | AA64: 0 | AB64: 0 | AC64: 0 | AE64: 0 | AF64: 13 | AG64: 0 | AH64: 0 | AI64: 0 | AK64: 0 | AL64: 57.73 | AM64: 20.92 | AN64: 0 | AO64: 0 | AQ64: 0 | AR64: 750.49 | AS64: 0 | AT64: 0 | AU64: 0 | AV64: =SUM(AQ64:AU64)-SUM(Y64:AC64) -> 15.73 | AW64: 170 | AY64: 58.61 | AZ64: 22.14 | BD64: 1.96 | BF64: 0.6 | BG64: =ROUND((U64*$BE$2)+$BD64-AZ64,2) -> 0.57 | BL64: 0 | BM64: 58.48049 | BN64: 21.19196 | BO64: 0 | BP64: 0 | BR64: 0 | BS64: -0.12951 | BT64: -0.94804 | BU64: 0 | BV64: 0
B65: 2 | C65: 042 | D65: 542L | E65: 10 | G65: =IF(OR(ISBLANK(C65),ISBLANK(D65)),"",TEXT(C65,"000")&TEXT(D65,"000")) -> 042542L | I65: Double Light Emitting Diode (LED) | J65: Pedestal Base | K65: 107W | L65: 542L | M65: 0 | N65: 10 | O65: 0 | P65: 0 | Q65: 0 | R65: =IF(SUM(M65:Q65)>0,0,1) -> 0 | S65: 0 | T65: =T64 -> 56.52 | U65: 0 | V65: 0 | Y65: =IF(AND(M65<>0,S65=0),#VALUE!,M65*S65) -> 0 | Z65: =IF(AND(N65<>0,T65=0),#VALUE!,N65*T65) -> 565.2 | AA65: =IF(AND(O65<>0,U65=0),#VALUE!,O65*U65) -> 0 | AB65: =IF(AND(P65<>0,V65=0),#VALUE!,P65*V65) -> 0 | AC65: =IF(AND(Q65<>0,W65=0),#VALUE!,Q65*W65) -> 0 | AE65: =SUMIF($G:$G,TEXT(AE$3,"000")&TEXT($L65,"000"),$E:$E) -> 0 | AF65: =SUMIF($G:$G,TEXT(AF$3,"000")&TEXT($L65,"000"),$E:$E) -> 10 | AG65: =SUMIF($G:$G,TEXT(AG$3,"000")&TEXT($L65,"000"),$E:$E) -> 0 | AH65: =SUMIF($G:$G,TEXT(AH$3,"000")&TEXT($L65,"000"),$E:$E) -> 0 | AI65: =SUMIF($G:$G,TEXT(AI$3,"000")&TEXT($L65,"000"),$E:$E) -> 0 | AK65: 0 | AL65: =AL64 -> 57.73 | AM65: 0 | AN65: 0 | AO65: 0 | AQ65: 0 | AR65: =IF(AND(AF65<>0,AL65=0),#VALUE!,AF65*AL65) -> 577.3 | AS65: 0 | AT65: 0 | AU65: 0 | AW65: 78 | AY65: 57.84 | BD65: 0.9 | BF65: 0.31 | BL65: 0 | BM65: 58.48049 | BN65: 0 | BO65: 0 | BP65: 0 | BR65: 0 | BS65: 0.64049 | BT65: 0 | BU65: 0 | BV65: 0
B66: 2 | C66: 042 | D66: 542T | E66: 1 | G66: =IF(OR(ISBLANK(C66),ISBLANK(D66)),"",TEXT(C66,"000")&TEXT(D66,"000")) -> 042542T | I66: Double Light Emitting Diode (LED) | J66: Pedestal Base | K66: 107W | L66: 542T | M66: 0 | N66: 1 | O66: 0 | P66: 0 | Q66: 0 | S66: 0 | T66: =T64-T89-T89 -> 45.46 | V66: 0 | W66: 0 | Y66: =IF(AND(M66<>0,S66=0),#VALUE!,M66*S66) -> 0 | Z66: =IF(AND(N66<>0,T66=0),#VALUE!,N66*T66) -> 45.46 | AA66: =IF(AND(O66<>0,U66=0),#VALUE!,O66*U66) -> 0 | AB66: =IF(AND(P66<>0,V66=0),#VALUE!,P66*V66) -> 0 | AC66: =IF(AND(Q66<>0,W66=0),#VALUE!,Q66*W66) -> 0 | AE66: =M66 -> 0 | AF66: =N66 -> 1 | AG66: =O66 -> 0 | AH66: =P66 -> 0 | AI66: =Q66 -> 0 | AK66: =ROUND(S66*(1+AK$1),2) -> 0 | AL66: =AL65-AL89-AL89 -> 46.67 | AM66: 0 | AN66: 0 | AO66: 0 | AQ66: 0 | AR66: 46.67 | AS66: 0 | AT66: 0 | AU66: 0 | AV66: =SUM(AQ66:AU66)-SUM(Y66:AC66) -> 1.21 | AW66: 170 | AY66: 52.25 | BD66: =ROUND(AW66*$BD$2,2)+ROUND(AW66*$BD$1,2) -> 1.96 | BF66: -4.24 | BL66: 0 | BM66: 47.27671 | BN66: =AM66*$BL$1 -> 0 | BO66: =AN66*$BL$1 -> 0 | BP66: =AO66*$BL$1 -> 0 | BR66: =BL66-AX66 -> 0 | BS66: =BM66-AY66 -> -4.97329 | BT66: =BN66-AZ66 -> 0 | BU66: =BO66-BA66 -> 0 | BV66: =BP66-BB66 -> 0
B67: 2 | C67: 042 | D67: 546T | E67: 1 | G67: =IF(OR(ISBLANK(C67),ISBLANK(D67)),"",TEXT(C67,"000")&TEXT(D67,"000")) -> 042546T | I67: Double Light Emitting Diode (LED) | J67: Developer Contributed | K67: 107W | L67: 546T | M67: 0 | N67: 1 | O67: 0 | P67: 0 | Q67: 0 | S67: 0 | T67: =T61-T89-T89 -> 34.01 | V67: 0 | W67: 0 | Y67: =IF(AND(M67<>0,S67=0),#VALUE!,M67*S67) -> 0 | Z67: =IF(AND(N67<>0,T67=0),#VALUE!,N67*T67) -> 34.01 | AA67: =IF(AND(O67<>0,U67=0),#VALUE!,O67*U67) -> 0 | AB67: =IF(AND(P67<>0,V67=0),#VALUE!,P67*V67) -> 0 | AC67: =IF(AND(Q67<>0,W67=0),#VALUE!,Q67*W67) -> 0 | AE67: =M67 -> 0 | AF67: =N67 -> 1 | AG67: =O67 -> 0 | AH67: =P67 -> 0 | AI67: =Q67 -> 0 | AK67: =ROUND(S67*(1+AK$1),2) -> 0 | AL67: =AL61-AL89-AL89 -> 34.97 | AM67: 0 | AN67: 0 | AO67: 0 | AQ67: 0 | AR67: 34.97 | AS67: 0 | AT67: 0 | AU67: 0 | AV67: 0.96 | AW67: 170 | AY67: 40.66 | BD67: =ROUND(AW67*$BD$2,2)+ROUND(AW67*$BD$1,2) -> 1.96 | BF67: -4.25 | BL67: 0 | BM67: 35.42461 | BN67: =AM67*$BL$1 -> 0 | BO67: =AN67*$BL$1 -> 0 | BP67: =AO67*$BL$1 -> 0 | BR67: =BL67-AX67 -> 0 | BS67: =BM67-AY67 -> -5.23539 | BT67: =BN67-AZ67 -> 0 | BU67: =BO67-BA67 -> 0 | BV67: =BP67-BB67 -> 0
B68: 2 | C68: 042 | D68: 631 | E68: 103 | G68: 042631 | I68: Single Mercury Vapor | J68: Wood Pole | K68: 20000 | L68: 611 | M68: 9 | N68: 0 | O68: 0 | P68: 0 | Q68: 0 | S68: 26.28 | T68: 0 | U68: 0 | V68: 0 | W68: 0 | Y68: =IF(AND(M68<>0,S68=0),#VALUE!,M68*S68) -> 236.52 | Z68: 0 | AA68: 0 | AB68: 0 | AC68: 0 | AE68: 9 | AF68: 0 | AG68: 0 | AH68: 0 | AI68: 0 | AK68: 26.84 | AL68: 0 | AM68: =ROUND(U68*(1+AM$1),2) -> 0 | AN68: =ROUND(V68*(1+AN$1),2) -> 0 | AO68: =ROUND(W68*(1+AO$1),2) -> 0 | AQ68: 241.56 | AR68: 0 | AS68: 0 | AT68: 0 | AU68: 0 | AV68: 5.04 | AW68: 182 | AX68: 28.1 | BD68: 2.09 | BE68: =ROUND((S68*$BE$2)+$BD68-AX68,2) -> 0.61 | BL68: 27.18892 | BM68: 0 | BN68: 0 | BO68: 0 | BP68: 0 | BR68: -0.91108 | BS68: 0 | BT68: 0 | BU68: 0 | BV68: 0
B69: 2 | C69: 042 | D69: 632 | E69: 101 | G69: 042632 | I69: Mercury Vapor | J69: Dusk to Dawn | K69: 20000 | L69: 615 | M69: 0 | N69: 0 | O69: 0 | P69: 254 | Q69: 0 | S69: 0 | T69: 0 | U69: 0 | V69: 14.22 | W69: 0 | Y69: 0 | Z69: 0 | AA69: 0 | AB69: 3611.88 | AC69: 0 | AE69: 0 | AF69: 0 | AG69: 0 | AH69: 254 | AI69: 0 | AK69: 0 | AL69: 0 | AM69: 0 | AN69: 14.52 | AO69: 0 | AQ69: =IF(AND(AE69<>0,AK69=0),#VALUE!,AE69*AK69) -> 0 | AR69: 0 | AS69: =IF(AND(AG69<>0,AM69=0),#VALUE!,AG69*AM69) -> 0 | AT69: =IF(AND(AH69<>0,AN69=0),#VALUE!,AH69*AN69) -> 3688.08 | AU69: =IF(AND(AI69<>0,AO69=0),#VALUE!,AI69*AO69) -> 0 | AV69: 76.2 | AW69: 182 | BA69: 15.89 | BD69: =ROUND(AW69*$BD$2,2)+ROUND(AW69*$BD$1,2) -> 2.09 | BH69: =ROUND((V69*$BE$2)+$BD69-BA69,2) -> 0.6 | BL69: =AK69*$BL$1 -> 0 | BM69: =AL69*$BL$1 -> 0 | BN69: 0 | BO69: 14.70876 | BP69: 0 | BR69: 0 | BS69: 0 | BT69: 0 | BU69: -1.18124 | BV69: 0
B70: 2 | C70: 042 | D70: 633 | E70: 52 | G70: 042633 | I70: Single High-Pressure Sodium Vapor | J70: Wood Pole | K70: 250W | L70: 631 | M70: 0 | N70: 103 | O70: 0 | P70: 0 | Q70: 0 | S70: 0 | T70: 26.56 | U70: 12.96 | V70: 0 | W70: 0 | Y70: 0 | Z70: 2735.68 | AA70: 0 | AB70: 0 | AC70: 0 | AE70: 0 | AF70: 103 | AG70: 0 | AH70: 0 | AI70: 0 | AK70: 0 | AL70: 27.13 | AM70: 13.24 | AN70: 0 | AO70: 0 | AQ70: 0 | AR70: 2794.39 | AS70: 0 | AT70: 0 | AU70: 0 | AV70: 58.71 | AW70: 107 | AY70: 27.76 | AZ70: 14 | BD70: 1.23 | BF70: =ROUND((T70*$BE$2)+$BD70-AY70,2) -> 0.38 | BG70: 0.36 | BL70: 0 | BM70: 27.48269 | BN70: 13.41212 | BO70: 0 | BP70: 0 | BR70: 0 | BS70: -0.27731 | BT70: -0.58788 | BU70: 0 | BV70: 0
B71: 2 | C71: 042 | D71: 636 | E71: 21 | G71: 042636 | I71: Single High-Pressure Sodium Vapor | J71: Pedestal Base | K71: 250W | L71: 632 | M71: 0 | N71: 101 | O71: 5 | P71: 0 | Q71: 0 | S71: 0 | T71: 37.4 | U71: 12.96 | V71: 0 | W71: 0 | Y71: 0 | Z71: 3777.4 | AA71: 64.8 | AB71: 0 | AC71: 0 | AE71: 0 | AF71: 101 | AG71: 5 | AH71: 0 | AI71: 0 | AK71: 0 | AL71: 38.2 | AM71: 13.24 | AN71: 0 | AO71: 0 | AQ71: 0 | AR71: 3858.2 | AS71: 66.2 | AT71: 0 | AU71: 0 | AV71: 82.2 | AW71: 107 | AY71: 38.73 | AZ71: 14 | BD71: 1.23 | BF71: 0.39 | BG71: 0.36 | BL71: 0 | BM71: 38.6966 | BN71: 13.41212 | BO71: 0 | BP71: 0 | BR71: 0 | BS71: -0.0334 | BT71: -0.58788 | BU71: 0 | BV71: 0
B72: 2 | C72: 042 | D72: 831 | E72: 75 | G72: 042831 | I72: Single High-Pressure Sodium Vapor | J72: Direct Burial | K72: 250W | L72: 633 | M72: 0 | N72: 52 | O72: 0 | P72: 0 | Q72: 0 | S72: 0 | T72: 37.4 | U72: 12.96 | V72: 0 | W72: 0 | Y72: 0 | Z72: 1944.8 | AA72: 0 | AB72: 0 | AC72: 0 | AE72: 0 | AF72: 52 | AG72: 0 | AH72: 0 | AI72: 0 | AK72: 0 | AL72: 38.2 | AM72: 13.24 | AN72: 0 | AO72: 0 | AQ72: 0 | AR72: 1986.4 | AS72: 0 | AT72: 0 | AU72: 0 | AV72: 41.6 | AW72: 107 | AY72: 38.73 | AZ72: 14 | BD72: 1.23 | BF72: 0.39 | BG72: 0.36 | BL72: 0 | BM72: 38.6966 | BN72: 13.41212 | BO72: 0 | BP72: 0 | BR72: 0 | BS72: -0.0334 | BT72: -0.58788 | BU72: 0 | BV72: 0
B73: 2 | C73: 042 | D73: 831T | E73: 8 | G73: =IF(OR(ISBLANK(C73),ISBLANK(D73)),"",TEXT(C73,"000")&TEXT(D73,"000")) -> 042831T | I73: Single High-Pressure Sodium Vapor | J73: Dusk to Dawn (046) | K73: 250W | L73: 635 | M73: 0 | N73: 0 | O73: 1 | P73: 0 | Q73: 268 | S73: 0 | T73: 0 | U73: 12.96 | V73: 0 | W73: 10.6 | Y73: 0 | Z73: 0 | AA73: 12.96 | AB73: 0 | AC73: 2840.8 | AE73: 0 | AF73: 0 | AG73: 1 | AH73: 0 | AI73: 268 | AK73: 0 | AL73: 0 | AM73: 13.24 | AN73: 0 | AO73: 10.83 | AQ73: 0 | AR73: 0 | AS73: 13.24 | AT73: 0 | AU73: 2902.44 | AV73: 61.92 | AW73: 107 | AZ73: 14 | BB73: 11.61 | BD73: 1.23 | BG73: =ROUND((U73*$BE$2)+$BD73-AZ73,2) -> 0.36 | BI73: =ROUND((W73*$BE$2)+$BD73-BB73,2) -> 0.36 | BL73: 0 | BM73: 0 | BN73: 13.41212 | BO73: 0 | BP73: 10.97079 | BR73: 0 | BS73: 0 | BT73: -0.58788 | BU73: 0 | BV73: -0.63921
B74: 2 | C74: 042 | D74: 832 | E74: 4 | G74: 042832 | I74: Single High-Pressure Sodium Vapor | J74: Developer Contributed | K74: 250W | L74: 636 | M74: =SUMIF($G:$G,TEXT(M$3,"000")&TEXT($L74,"000"),$E:$E) -> 0 | N74: 21 | O74: 0 | P74: 0 | Q74: 0 | S74: 0 | T74: 26.56 | U74: 0 | V74: 0 | W74: 0 | Y74: 0 | Z74: 557.76 | AA74: 0 | AB74: 0 | AC74: 0 | AE74: 0 | AF74: 21 | AG74: 0 | AH74: 0 | AI74: 0 | AK74: 0 | AL74: =AL70 -> 27.13 | AM74: 0 | AN74: 0 | AO74: 0 | AQ74: 0 | AR74: 569.73 | AS74: 0 | AT74: 0 | AU74: 0 | AV74: 11.97 | AW74: 107 | AY74: 27.76 | BD74: 1.23 | BF74: =ROUND((T74*$BE$2)+$BD74-AY74,2) -> 0.38 | BL74: 0 | BM74: 27.48269 | BN74: 0 | BO74: 0 | BP74: 0 | BR74: 0 | BS74: -0.27731 | BT74: 0 | BU74: 0 | BV74: 0
B75: 2 | C75: 042 | D75: 835 | E75: 9 | G75: =IF(OR(ISBLANK(C75),ISBLANK(D75)),"",TEXT(C75,"000")&TEXT(D75,"000")) -> 042835 | I75: Mercury Vapor | J75: Dusk to Dawn | K75: 35000 | L75: 715 | M75: 0 | N75: 0 | O75: 0 | P75: 6 | Q75: 0 | S75: 0 | T75: 0 | U75: 0 | V75: 23.08 | W75: 0 | Y75: 0 | Z75: 0 | AA75: 0 | AB75: 138.48 | AC75: 0 | AE75: 0 | AF75: 0 | AG75: 0 | AH75: 6 | AI75: 0 | AK75: 0 | AL75: =ROUND(T75*(1+AL$1),2) -> 0 | AM75: 0 | AN75: 23.57 | AO75: 0 | AQ75: 0 | AR75: 0 | AS75: 0 | AT75: 141.42 | AU75: 0 | AV75: 2.94 | AW75: 285 | BA75: 25.71 | BD75: 3.27 | BH75: =ROUND((V75*$BE$2)+$BD75-BA75,2) -> 0.94 | BL75: 0 | BM75: 0 | BN75: 0 | BO75: 23.87641 | BP75: 0 | BR75: 0 | BS75: 0 | BT75: 0 | BU75: -1.83359 | BV75: 0
B76: 2 | C76: 042 | D76: 835T | E76: 3 | G76: =IF(OR(ISBLANK(C76),ISBLANK(D76)),"",TEXT(C76,"000")&TEXT(D76,"000")) -> 042835T | I76: Single High-Pressure Sodium Vapor | J76: Pedestal Base | K76: 310W | L76: 732 | M76: 0 | N76: 0 | O76: 25 | P76: 0 | Q76: 0 | S76: 0 | T76: 0 | U76: 15.19 | V76: 0 | W76: 0 | Y76: 0 | Z76: 0 | AA76: 379.75 | AB76: 0 | AC76: 0 | AE76: 0 | AF76: 0 | AG76: 25 | AH76: 0 | AI76: 0 | AK76: 0 | AL76: 0 | AM76: 15.52 | AN76: 0 | AO76: 0 | AQ76: 0 | AR76: 0 | AS76: 388 | AT76: 0 | AU76: 0 | AV76: 8.25 | AW76: 133 | AZ76: 16.47 | BD76: 1.53 | BG76: =ROUND((U76*$BE$2)+$BD76-AZ76,2) -> 0.45 | BL76: 0 | BM76: 0 | BN76: 15.72176 | BO76: 0 | BP76: 0 | BR76: 0 | BS76: 0 | BT76: -0.74824 | BU76: 0 | BV76: 0
B77: 2 | C77: 042 | D77: 836 | E77: 3 | G77: 042836 | I77: Single High-Pressure Sodium Vapor | J77: No Pole / Dusk to Dawn (046) | K77: 310W | L77: 735 | M77: 0 | N77: 0 | O77: 3 | P77: 0 | Q77: 285 | S77: 0 | T77: 0 | U77: 15.19 | V77: 0 | W77: 12.79 | Y77: 0 | Z77: 0 | AA77: 45.57 | AB77: 0 | AC77: 3645.15 | AE77: 0 | AF77: 0 | AG77: 3 | AH77: 0 | AI77: 285 | AK77: 0 | AL77: 0 | AM77: 15.52 | AN77: 0 | AO77: 13.06 | AQ77: 0 | AR77: 0 | AS77: 46.56 | AT77: 0 | AU77: 3722.1 | AV77: 77.94 | AW77: 133 | AZ77: 16.47 | BB77: 14.04 | BD77: 1.53 | BG77: =ROUND((U77*$BE$2)+$BD77-AZ77,2) -> 0.45 | BI77: =ROUND((W77*$BE$2)+$BD77-BB77,2) -> 0.45 | BL77: 0 | BM77: 0 | BN77: 15.72176 | BO77: 0 | BP77: 13.22978 | BR77: 0 | BS77: 0 | BT77: -0.74824 | BU77: 0 | BV77: -0.81022
B78: 2 | C78: 042 | D78: 842 | E78: 3 | G78: 042842 | I78: Mercury Vapor | J78: Dusk to 1 AM | K78: 55000 | L78: 819 | M78: 0 | N78: 0 | O78: 0 | P78: 0 | Q78: 0 | S78: 0 | T78: 0 | U78: 0 | V78: 21.87 | W78: 0 | Y78: 0 | Z78: 0 | AA78: 0 | AB78: 0 | AC78: 0 | AE78: 0 | AF78: 0 | AG78: 0 | AH78: 0 | AI78: 0 | AK78: 0 | AL78: 0 | AM78: 0 | AN78: 22.34 | AO78: 0 | AQ78: 0 | AR78: 0 | AS78: 0 | AT78: 0 | AU78: 0 | AV78: 0 | AW78: 417 | BA78: 25.57 | BD78: 4.8 | BH78: =ROUND((V78*$BE$2)+$BD78-BA78,2) -> 1.38 | BL78: 0 | BM78: 0 | BN78: 0 | BO78: 22.63042 | BP78: 0 | BR78: 0 | BS78: 0 | BT78: 0 | BU78: -2.93958 | BV78: 0
E79: =SUM(E13:E78) -> 22435 | I79: Single High-Pressure Sodium Vapor | J79: Wood Pole | K79: 400W | L79: 831 | M79: 0 | N79: 75 | O79: 0 | P79: 0 | Q79: 0 | S79: 0 | T79: 33.65 | U79: 19.51 | V79: 0 | W79: 0 | Y79: 0 | Z79: =IF(AND(N79<>0,T79=0),#VALUE!,N79*T79) -> 2523.75 | AA79: 0 | AB79: 0 | AC79: 0 | AE79: 0 | AF79: 75 | AG79: 0 | AH79: 0 | AI79: 0 | AK79: 0 | AL79: 34.37 | AM79: 19.93 | AN79: 0 | AO79: 0 | AQ79: 0 | AR79: 2577.75 | AS79: 0 | AT79: 0 | AU79: 0 | AV79: 54 | AW79: 169 | AY79: 35.46 | AZ79: 21.15 | BD79: 1.94 | BF79: =ROUND((T79*$BE$2)+$BD79-AY79,2) -> 0.57 | BG79: =ROUND((U79*$BE$2)+$BD79-AZ79,2) -> 0.55 | BL79: 0 | BM79: 34.81681 | BN79: 20.18909 | BO79: 0 | BP79: 0 | BR79: 0 | BS79: -0.64319 | BT79: -0.96091 | BU79: 0 | BV79: 0
I80: Single Light Emitting Diode (LED) | J80: Wood Pole | K80: 248W | L80: 831T | M80: 0 | N80: 8 | O80: 0 | P80: 0 | Q80: 0 | S80: 0 | T80: =T79-T90 -> 25.73 | V80: 0 | W80: 0 | Y80: =IF(AND(M80<>0,S80=0),#VALUE!,M80*S80) -> 0 | Z80: =IF(AND(N80<>0,T80=0),#VALUE!,N80*T80) -> 205.84 | AA80: =IF(AND(O80<>0,U80=0),#VALUE!,O80*U80) -> 0 | AB80: =IF(AND(P80<>0,V80=0),#VALUE!,P80*V80) -> 0 | AC80: =IF(AND(Q80<>0,W80=0),#VALUE!,Q80*W80) -> 0 | AE80: =M80 -> 0 | AF80: =N80 -> 8 | AG80: =O80 -> 0 | AH80: =P80 -> 0 | AI80: =Q80 -> 0 | AK80: =ROUND(S80*(1+AK$1),2) -> 0 | AL80: =AL79-AL90 -> 26.45 | AM80: 0 | AN80: 0 | AO80: 0 | AQ80: 0 | AR80: 211.6 | AS80: 0 | AT80: 0 | AU80: 0 | AV80: 5.76 | AW80: 83 | AY80: 26.73 | BD80: =ROUND(AW80*$BD$2,2)+ROUND(AW80*$BD$1,2) -> 0.96 | BF80: =ROUND((T80*$BE$2)+$BD80-AY80,2) -> 0.29 | BL80: 0 | BM80: 26.79385 | BN80: =AM80*$BL$1 -> 0 | BO80: =AN80*$BL$1 -> 0 | BP80: =AO80*$BL$1 -> 0 | BR80: =BL80-AX80 -> 0 | BS80: =BM80-AY80 -> 0.06385 | BT80: =BN80-AZ80 -> 0 | BU80: =BO80-BA80 -> 0 | BV80: =BP80-BB80 -> 0
B81: 2 | C81: 044 | D81: 431 | E81: 7 | G81: =IF(OR(ISBLANK(C81),ISBLANK(D81)),"",TEXT(C81,"000")&TEXT(D81,"000")) -> 044431 | I81: Single High-Pressure Sodium Vapor | J81: Pedestal Base | K81: 400W | L81: 832 | M81: 0 | N81: 4 | O81: 31 | P81: 0 | Q81: 0 | S81: 0 | T81: 49.88 | U81: 19.51 | V81: 0 | W81: 0 | Y81: 0 | Z81: =IF(AND(N81<>0,T81=0),#VALUE!,N81*T81) -> 199.52 | AA81: 604.81 | AB81: 0 | AC81: 0 | AE81: 0 | AF81: 4 | AG81: 31 | AH81: 0 | AI81: 0 | AK81: 0 | AL81: =ROUND(T81*(1+AL$1),2) -> 50.95 | AM81: 19.93 | AN81: 0 | AO81: 0 | AQ81: 0 | AR81: 203.8 | AS81: 617.83 | AT81: 0 | AU81: 0 | AV81: 17.3 | AW81: 169 | AY81: 51.88 | AZ81: 21.15 | BD81: 1.94 | BF81: 0.59 | BG81: =ROUND((U81*$BE$2)+$BD81-AZ81,2) -> 0.55 | BL81: 0 | BM81: 51.61235 | BN81: 20.18909 | BO81: 0 | BP81: 0 | BR81: 0 | BS81: -0.26765 | BT81: -0.96091 | BU81: 0 | BV81: 0
B82: 2 | C82: 044 | D82: 432 | E82: 20 | G82: 044432 | I82: Single High-Pressure Sodium Vapor | J82: No Pole / Dusk to Dawn (046) | K82: 400W | L82: 835 | M82: 0 | N82: 9 | O82: 13 | P82: 0 | Q82: 57 | S82: 0 | T82: 26.33 | U82: 19.51 | V82: 0 | W82: 16.22 | Y82: 0 | Z82: 236.97 | AA82: 253.63 | AB82: 0 | AC82: 924.54 | AE82: 0 | AF82: 9 | AG82: 13 | AH82: 0 | AI82: 57 | AK82: 0 | AL82: 26.89 | AM82: 19.93 | AN82: 0 | AO82: 16.57 | AQ82: 0 | AR82: 242.01 | AS82: 259.09 | AT82: 0 | AU82: 944.49 | AV82: 30.45 | AW82: 169 | AY82: 28.05 | AZ82: 21.15 | BB82: 17.82 | BD82: 1.94 | BF82: 0.56 | BG82: =ROUND((U82*$BE$2)+$BD82-AZ82,2) -> 0.55 | BI82: =ROUND((W82*$BE$2)+$BD82-BB82,2) -> 0.55 | BL82: 0 | BM82: 27.23957 | BN82: 20.18909 | BO82: 0 | BP82: 16.78541 | BR82: 0 | BS82: -0.81043 | BT82: -0.96091 | BU82: 0 | BV82: -1.03459
B83: 2 | C83: 044 | D83: 433 | E83: 10 | G83: 044433 | I83: Single Light Emitting Diode (LED) | J83: No Pole / Dusk to Dawn (046) | K83: 248W | L83: 835T | M83: 0 | N83: 3 | O83: 0 | P83: 0 | Q83: 0 | S83: 0 | T83: =T82-T90 -> 18.41 | V83: 0 | Y83: =IF(AND(M83<>0,S83=0),#VALUE!,M83*S83) -> 0 | Z83: =IF(AND(N83<>0,T83=0),#VALUE!,N83*T83) -> 55.23 | AA83: =IF(AND(O83<>0,U83=0),#VALUE!,O83*U83) -> 0 | AB83: =IF(AND(P83<>0,V83=0),#VALUE!,P83*V83) -> 0 | AC83: =IF(AND(Q83<>0,W83=0),#VALUE!,Q83*W83) -> 0 | AE83: =M83 -> 0 | AF83: =N83 -> 3 | AG83: =O83 -> 0 | AH83: =P83 -> 0 | AI83: =Q83 -> 0 | AK83: =ROUND(S83*(1+AK$1),2) -> 0 | AL83: =AL82-AL90 -> 18.97 | AM83: 0 | AN83: 0 | AO83: 0 | AQ83: 0 | AR83: 56.91 | AS83: 0 | AT83: 0 | AU83: 0 | AV83: 1.68 | AW83: 83 | AY83: 19.32 | BD83: =ROUND(AW83*$BD$2,2)+ROUND(AW83*$BD$1,2) -> 0.96 | BF83: 0.29 | BL83: 0 | BM83: 19.21661 | BN83: =AM83*$BL$1 -> 0 | BO83: =AN83*$BL$1 -> 0 | BP83: =AO83*$BL$1 -> 0 | BR83: =BL83-AX83 -> 0 | BS83: =BM83-AY83 -> -0.10339 | BT83: =BN83-AZ83 -> 0 | BU83: =BO83-BA83 -> 0 | BV83: =BP83-BB83 -> 0
B84: 2 | C84: 044 | D84: 435 | E84: 46 | G84: 044435 | I84: Single High-Pressure Sodium Vapor | J84: Developer Contributed | K84: 400W | L84: 836 | M84: 0 | N84: 3 | O84: 0 | P84: 0 | Q84: 0 | S84: 0 | T84: 33.65 | U84: 0 | V84: 0 | W84: 0 | Y84: 0 | Z84: 100.95 | AA84: 0 | AB84: 0 | AC84: 0 | AE84: 0 | AF84: 3 | AG84: 0 | AH84: 0 | AI84: 0 | AK84: 0 | AL84: =AL79 -> 34.37 | AM84: 0 | AN84: 0 | AO84: 0 | AQ84: 0 | AR84: 103.11 | AS84: 0 | AT84: 0 | AU84: 0 | AV84: 2.16 | AW84: 169 | AY84: 35.46 | BD84: 1.94 | BF84: 0.57 | BL84: 0 | BM84: 34.81681 | BN84: 0 | BO84: 0 | BP84: 0 | BR84: 0 | BS84: -0.64319 | BT84: 0 | BU84: 0 | BV84: 0
B85: 2 | C85: 044 | D85: 531 | E85: 2 | G85: 044531 | I85: Double High-Pressure Sodium Vapor | J85: Pedestal Base | K85: 400W | L85: 842 | M85: 0 | N85: 3 | O85: 0 | P85: 0 | Q85: 0 | S85: 0 | T85: 88.2 | U85: 0 | V85: 0 | W85: 0 | Y85: 0 | Z85: 264.6 | AA85: 0 | AB85: 0 | AC85: 0 | AE85: 0 | AF85: 3 | AG85: 0 | AH85: 0 | AI85: 0 | AK85: 0 | AL85: =ROUND(T85*(1+AL$1),2) -> 90.09 | AM85: 0 | AN85: 0 | AO85: 0 | AQ85: 0 | AR85: 270.27 | AS85: 0 | AT85: 0 | AU85: 0 | AV85: 5.67 | AW85: 338 | AY85: 92.05 | BD85: 3.89 | BF85: 1.19 | BL85: 0 | BM85: 91.26117 | BN85: 0 | BO85: 0 | BP85: 0 | BR85: 0 | BS85: -0.78883 | BT85: 0 | BU85: 0 | BV85: 0
B86: 2 | C86: 044 | D86: 532 | E86: 106 | G86: 044532 | I86: Double High-Pressure Sodium Vapor | J86: No Pole | K86: 400W | L86: 845 | M86: 0 | N86: 0 | O86: 1 | P86: 0 | Q86: 0 | S86: 0 | T86: 0 | U86: 36.55 | V86: 0 | W86: 0 | Y86: =IF(AND(M86<>0,S86=0),#VALUE!,M86*S86) -> 0 | Z86: 0 | AA86: 36.55 | AB86: 0 | AC86: 0 | AE86: 0 | AF86: 0 | AG86: 1 | AH86: 0 | AI86: 0 | AK86: 0 | AL86: 0 | AM86: 37.33 | AN86: 0 | AO86: 0 | AQ86: 0 | AR86: 0 | AS86: 37.33 | AT86: 0 | AU86: 0 | AV86: 0.78 | AW86: 338 | AZ86: 39.77 | BD86: 3.89 | BG86: =ROUND((U86*$BE$2)+$BD86-AZ86,2) -> 1.15 | BL86: 0 | BM86: 0 | BN86: 37.81529 | BO86: 0 | BP86: 0 | BR86: 0 | BS86: 0 | BT86: -1.95471 | BU86: 0 | BV86: 0
B87: 2 | C87: 044 | D87: 533 | E87: 2 | G87: 044533 | I87: Single High-Pressure Sodium Vapor | J87: Dust to Dawn (046) | K87: 150W | L87: 935 | M87: 0 | N87: 0 | O87: 0 | P87: 0 | Q87: 103 | S87: 0 | T87: 0 | U87: 0 | V87: 0 | W87: 6.57 | Y87: =IF(AND(M87<>0,S87=0),#VALUE!,M87*S87) -> 0 | Z87: 0 | AA87: 0 | AB87: 0 | AC87: 676.71 | AE87: 0 | AF87: 0 | AG87: 0 | AH87: 0 | AI87: 103 | AK87: =ROUND(S87*(1+AK$1),2) -> 0 | AL87: 0 | AM87: 0 | AN87: 0 | AO87: 6.71 | AQ87: 0 | AR87: 0 | AS87: 0 | AT87: 0 | AU87: 691.13 | AV87: 14.42 | AW87: 62 | BB87: 7.16 | BD87: 0.71 | BI87: =ROUND((W87*$BE$2)+$BD87-BB87,2) -> 0.21 | BL87: 0 | BM87: 0 | BN87: 0 | BO87: 0 | BP87: 6.79723 | BR87: 0 | BS87: 0 | BT87: 0 | BU87: 0 | BV87: -0.36277
B88: 2 | C88: 044 | D88: 535 | E88: 15 | G88: 044535 | I88: TIB Capital Offset | K88: 70W | T88: 5.23 | AL88: =ROUND(T88,2) -> 5.23 | BN88: =AL88*$BL$1 -> 5.29799 | BT88: 5.29799
B89: 2 | C89: 044 | D89: 632 | E89: 5 | G89: 044632 | I89: TIB Capital Offset | K89: 107W | T89: 5.53 | AL89: =ROUND(T89,2) -> 5.53 | BN89: =AL89*$BL$1 -> 5.60189 | BT89: 5.60189
B90: 2 | C90: 044 | D90: 635 | E90: 1 | G90: =IF(OR(ISBLANK(C90),ISBLANK(D90)),"",TEXT(C90,"000")&TEXT(D90,"000")) -> 044635 | I90: TIB Capital Offset | K90: 248W | S90: 0 | T90: 7.92 | V90: 0 | W90: 0 | AK90: 0 | AL90: 7.92 | AN90: =ROUND(V90*(1+AN$1),2) -> 0 | AO90: 0 | AV90: =SUM(AQ90:AU90)-SUM(Y90:AC90) -> 0 | BL90: =AK90*$BL$1 -> 0 | BM90: =#REF!*$BL$1 ->  | BN90: =AL90*$BL$1 -> 8.02296 | BO90: 0 | BP90: 0
B91: 2 | C91: 044 | D91: 732 | E91: 25 | G91: =IF(OR(ISBLANK(C91),ISBLANK(D91)),"",TEXT(C91,"000")&TEXT(D91,"000")) -> 044732 | K91: Total | M91: =SUM(M4:M90) -> 88 | N91: =SUM(N4:N90) -> 22435 | O91: =SUM(O4:O90) -> 287 | P91: =SUM(P4:P90) -> 343 | Q91: =SUM(Q4:Q90) -> 1098 | S91: 0 | T91: 0 | U91: 0 | V91: 0 | W91: 0 | Y91: =ROUND(SUM(Y4:Y90),2) -> 1356.75 | Z91: =ROUND(SUM(Z4:Z90),2) -> 378023.27 | AA91: =ROUND(SUM(AA4:AA90),2) -> 3384.02 | AB91: =ROUND(SUM(AB4:AB90),2) -> 4271.28 | AC91: =ROUND(SUM(AC4:AC90),2) -> 10312.89 | AE91: =SUM(AE4:AE90) -> 88 | AF91: =SUM(AF4:AF90) -> 22435 | AG91: =SUM(AG4:AG90) -> 287 | AH91: =SUM(AH4:AH90) -> 343 | AI91: =SUM(AI4:AI90) -> 1098 | AK91: 0 | AL91: 0 | AM91: =ROUND(U91*(1+AM$1),2) -> 0 | AN91: 0 | AO91: 0 | AQ91: =ROUND(SUM(AQ4:AQ90),2) -> 1385.79 | AR91: =ROUND(SUM(AR4:AR90),2) -> 386333.32 | AS91: =ROUND(SUM(AS4:AS90),2) -> 3456.65 | AT91: =ROUND(SUM(AT4:AT90),2) -> 4361.46 | AU91: =ROUND(SUM(AU4:AU90),2) -> 10533.41 | BL91: 0 | BM91: =AL91*$BL$1 -> 0 | BN91: 0 | BO91: 0 | BP91: 0
B92: 2 | C92: 044 | D92: 735 | E92: 3 | G92: 044735
B93: 2 | C93: 044 | D93: 832 | E93: 31 | G93: 044832 | I93: **TIB Capital Offset Rate is a the result of a state funded program that offset the cost of converting street lights to LED's. These lights are notated with a (T) at the end (for example "831T") The rate calculation is the corresponding street light rate (example "831") minus the TIB Capital Offset (ex. for 831T is code "831" $34.37 minus $7.92 = 26.45.
B94: 2 | C94: 044 | D94: 835 | E94: 13 | G94: 044835
B95: 2 | C95: 044 | D95: 845 | E95: 1 | G95: 044845
E96: =SUM(E81:E95) -> 287
B98: 2 | C98: 045 | D98: 415 | E98: 66 | G98: 045415
B99: 2 | C99: 045 | D99: 419 | E99: 16 | G99: =IF(OR(ISBLANK(C99),ISBLANK(D99)),"",TEXT(C99,"000")&TEXT(D99,"000")) -> 045419
B100: 2 | C100: 045 | D100: 515 | E100: 1 | G100: =IF(OR(ISBLANK(C100),ISBLANK(D100)),"",TEXT(C100,"000")&TEXT(D100,"000")) -> 045515 | Q100: =SUM(M91:Q91) -> 24251 | S100: 0 | T100: 0 | U100: 0 | V100: 0 | W100: 0 | AI100: =SUM(AE91:AI91) -> 24251 | AK100: 0 | AL100: 0 | AM100: 0 | AN100: 0 | AO100: 0 | AU100: =SUM(AQ91:AU91) -> 406070.63 | BL100: 0 | BM100: 0 | BN100: 0 | BO100: 0 | BP100: 0
B101: 2 | C101: 045 | D101: 615 | E101: 254 | G101: 045615 | I101: (1) from Street Light Report and Area Light Report | Q101: =ROUND(Q100-E117,0) -> 0 | S101: 0 | T101: 0 | U101: 0 | V101: 0 | W101: 0 | AC101: =SUM(Y91:AC91) -> 397348.21 | AI101: =AI100-Q100 -> 0 | AK101: 0 | AL101: 0 | AM101: 0 | AN101: 0 | AO101: 0 | AU101: =AU100/AC101-1 -> 0.02195157743 | BL101: =AK101*$BL$1 -> 0 | BM101: 0 | BN101: 0 | BO101: 0 | BP101: 0
B102: 2 | C102: 045 | D102: 715 | E102: 6 | G102: 045715 | S102: 0 | T102: 0 | U102: 0 | V102: 0 | W102: 0 | AK102: 0 | AL102: 0 | AM102: 0 | AN102: 0 | AO102: 0 | BL102: 0 | BM102: 0 | BN102: 0 | BO102: 0 | BP102: 0
B103: 2 | C103: 045 | D103: 819 | E103: 0 | G103: 045819 | I103: no customer count - taken out of exhibit to limit print range | S103: 0 | T103: 0 | U103: 0 | V103: 0 | W103: 0 | Y103: =Y91-Y102 -> 1356.75 | Z103: =Z91-Z102 -> 378023.27 | AA103: =AA91-AA102 -> 3384.02 | AB103: =AB91-AB102 -> 4271.28 | AC103: =AC91-AC102 -> 10312.89 | AK103: 0 | AL103: 0 | AM103: 0 | AN103: 0 | AO103: 0 | BL103: 0 | BM103: 0 | BN103: 0 | BO103: 0 | BP103: 0
E104: =SUM(E98:E103) -> 343 | I104: Single High-Pressure Sodium Vapor | J104: Dusk to 1 AM (046) | K104: 100W | L104: 439 | M104: =SUMIF($G:$G,TEXT(M$3,"000")&TEXT($L104,"000"),$E:$E) -> 0 | N104: =SUMIF($G:$G,TEXT(N$3,"000")&TEXT($L104,"000"),$E:$E) -> 0 | O104: =SUMIF($G:$G,TEXT(O$3,"000")&TEXT($L104,"000"),$E:$E) -> 0 | P104: =SUMIF($G:$G,TEXT(P$3,"000")&TEXT($L104,"000"),$E:$E) -> 0 | Q104: =SUMIF($G:$G,TEXT(Q$3,"000")&TEXT($L104,"000"),$E:$E) -> 0 | R104: =IF(SUM(M104:Q104)>0,0,1) -> 1 | AC104: =SUM(Y103:AC103) -> 397348.21 | AE104: =SUMIF($G:$G,TEXT(AE$3,"000")&TEXT($L104,"000"),$E:$E) -> 0 | AF104: =SUMIF($G:$G,TEXT(AF$3,"000")&TEXT($L104,"000"),$E:$E) -> 0 | AG104: =SUMIF($G:$G,TEXT(AG$3,"000")&TEXT($L104,"000"),$E:$E) -> 0 | AH104: =SUMIF($G:$G,TEXT(AH$3,"000")&TEXT($L104,"000"),$E:$E) -> 0 | AI104: =SUMIF($G:$G,TEXT(AI$3,"000")&TEXT($L104,"000"),$E:$E) -> 0 | AK104: 0 | AL104: 0 | AM104: 0 | AN104: 0 | AO104: 0 | BL104: 0 | BM104: 0 | BN104: 0 | BO104: 0 | BP104: 0 | BR104: 0 | BS104: 0 | BT104: 0 | BU104: 0 | BV104: 0
B106: 2 | C106: 046 | D106: 335 | E106: 64 | G106: 046335 | I106: Double High-Pressure Sodium Vapor | J106: Direct Burial | K106: 100W | L106: 443 | M106: =SUMIF($G:$G,TEXT(M$3,"000")&TEXT($L106,"000"),$E:$E) -> 0 | N106: 0 | O106: 0 | P106: 0 | Q106: 0 | R106: =IF(SUM(M106:Q106)>0,0,1) -> 1 | Y106: Surch Rate | AF106: =SUMIF($G:$G,TEXT(AF$3,"000")&TEXT($L106,"000"),$E:$E) -> 0 | AG106: 0 | AH106: 0 | AI106: 0 | AK106: 0 | AL106: 0 | AM106: =ROUND(U106*(1+AM$1),2) -> 0 | AN106: 0 | AO106: 0 | AQ106: =1+'Lighting summary'!D39 -> 1.012727629 | AT106: Billed | AU106: =AU100*AQ106 -> 411238.9462 | BL106: =AK106*$BL$1 -> 0 | BM106: 0 | BN106: 0 | BO106: 0 | BP106: 0 | BR106: 0 | BS106: 0 | BT106: 0 | BU106: 0 | BV106: 0
B107: 2 | C107: 046 | D107: 435 | E107: =89+1 -> 90 | G107: 046435 | I107: Double High-Pressure Sodium Vapor | J107: Developer Contributed | K107: 100W | L107: 446 | M107: 0 | N107: 0 | O107: 0 | P107: 0 | Q107: 0 | R107: =IF(SUM(M107:Q107)>0,0,1) -> 1 | Y107: =1+'Lighting summary'!I39 -> 1.013 | AB107: Billed | AC107: =AC101*$Y$107 -> 402513.7367 | AF107: 0 | AG107: 0 | AH107: 0 | AI107: 0 | AK107: 0 | AL107: 0 | AM107: 0 | AN107: 0 | AO107: 0 | BL107: 0 | BM107: 0 | BN107: 0 | BO107: 0 | BP107: 0 | BR107: 0 | BS107: 0 | BT107: 0 | BU107: 0 | BV107: 0
B108: 2 | C108: 046 | D108: 495 | E108: 44 | G108: =IF(OR(ISBLANK(C108),ISBLANK(D108)),"",TEXT(C108,"000")&TEXT(D108,"000")) -> 046495 | AB108: Actual | AC108: =SUM(Y102:AC102) -> 0 | AD108: Diff is Sch 93
B109: 2 | C109: 046 | D109: 499 | E109: 45 | G109: 046499 | AB109: Diff | AC109: =AC108-AC107 -> -402513.7367
B110: 2 | C110: 046 | D110: 535 | E110: 142 | G110: 046535
B111: 2 | C111: 046 | D111: 635 | E111: 268 | G111: 046635 | I111: Single High-Pressure Sodium Vapor | J111: Dusk to 1 AM (046) | K111: 200W | L111: 539 | M111: =SUMIF($G:$G,TEXT(M$3,"000")&TEXT($L111,"000"),$E:$E) -> 0 | N111: 0 | O111: 0 | P111: 0 | Q111: 0 | R111: =IF(SUM(M111:Q111)>0,0,1) -> 1 | AE111: =SUMIF($G:$G,TEXT(AE$3,"000")&TEXT($L111,"000"),$E:$E) -> 0 | AF111: 0 | AG111: 0 | AH111: 0 | AI111: 0 | AK111: 0 | AL111: 0 | AM111: =ROUND(U111*(1+AM$1),2) -> 0 | AN111: =ROUND(V111*(1+AN$1),2) -> 0 | AO111: =ROUND(W111*(1+AO$1),2) -> 0 | BL111: =AK111*$BL$1 -> 0 | BM111: =AL111*$BL$1 -> 0 | BN111: =AM111*$BL$1 -> 0 | BO111: =AN111*$BL$1 -> 0 | BP111: =AO111*$BL$1 -> 0 | BR111: 0 | BS111: 0 | BT111: 0 | BU111: 0 | BV111: 0
B112: 2 | C112: 046 | D112: 735 | E112: 285 | G112: 046735 | I112: Double High-Pressure Sodium Vapor | J112: Direct Burial | K112: 200W | L112: 543 | M112: 0 | N112: 0 | O112: 0 | P112: 0 | Q112: 0 | R112: 1 | AE112: 0 | AF112: 0 | AG112: 0 | AH112: 0 | AI112: 0 | AK112: 0 | AL112: 0 | AM112: 0 | AN112: 0 | AO112: 0 | BL112: 0 | BM112: 0 | BN112: 0 | BO112: 0 | BP112: 0 | BR112: 0 | BS112: 0 | BT112: 0 | BU112: 0 | BV112: 0
B113: 2 | C113: 046 | D113: 835 | E113: 57 | G113: 046835 | I113: Mercury Vapor | J113: Dusk to 1 AM | K113: 20000 | L113: 619 | M113: 0 | N113: 0 | O113: 0 | P113: 0 | Q113: 0 | R113: 1 | AE113: 0 | AF113: 0 | AG113: 0 | AH113: 0 | AI113: 0 | AK113: 0 | AL113: 0 | AM113: 0 | AN113: 0 | AO113: 0 | BL113: 0 | BM113: 0 | BN113: 0 | BO113: 0 | BP113: 0 | BR113: 0 | BS113: 0 | BT113: 0 | BU113: =BO113-BA113 -> 0 | BV113: 0
B114: 2 | C114: 046 | D114: 935 | E114: 103 | G114: 046935 | I114: Single High-Pressure Sodium Vapor | J114: Dusk to 1 AM (046) | K114: 250W | L114: 639 | M114: 0 | N114: 0 | O114: 0 | P114: 0 | Q114: 0 | R114: 1 | AE114: 0 | AF114: 0 | AG114: 0 | AH114: 0 | AI114: 0 | AK114: 0 | AL114: 0 | AM114: 0 | AN114: 0 | AO114: 0 | BL114: 0 | BM114: 0 | BN114: 0 | BO114: 0 | BP114: 0 | BR114: =BL114-AX114 -> 0 | BS114: 0 | BT114: 0 | BU114: 0 | BV114: 0
E115: =SUM(E106:E114) -> 1098 | I115: Double High-Pressure Sodium Vapor | J115: Pedestal Base | K115: 250W | L115: 642 | M115: 0 | N115: 0 | O115: 0 | P115: 0 | Q115: 0 | R115: 1 | AE115: 0 | AF115: 0 | AG115: 0 | AH115: 0 | AI115: 0 | AK115: 0 | AL115: 0 | AM115: 0 | AN115: 0 | AO115: 0 | BL115: 0 | BM115: 0 | BN115: 0 | BO115: 0 | BP115: 0 | BR115: 0 | BS115: 0 | BT115: 0 | BU115: 0 | BV115: 0
I116: Single High-Pressure Sodium Vapor | J116: Wood Pole | K116: 310W | L116: 731 | M116: 0 | N116: 0 | O116: 0 | P116: 0 | Q116: 0 | R116: 1 | AE116: 0 | AF116: 0 | AG116: 0 | AH116: 0 | AI116: 0 | AK116: 0 | AL116: 0 | AM116: 0 | AN116: 0 | AO116: 0 | BL116: 0 | BM116: 0 | BN116: 0 | BO116: 0 | BP116: 0 | BR116: 0 | BS116: 0 | BT116: 0 | BU116: 0 | BV116: 0
B117: 2 | E117: =E11+E79+E96+E104+E115 -> 24251 | F117: =F11+F79+F96+F104+F115 -> 0 | I117: Single High-Pressure Sodium Vapor | J117: Direct Burial | K117: 310W | L117: 733 | M117: 0 | N117: 0 | O117: 0 | P117: 0 | Q117: 0 | R117: =IF(SUM(M117:Q117)>0,0,1) -> 1 | AE117: 0 | AF117: 0 | AG117: 0 | AH117: 0 | AI117: 0 | AK117: 0 | AL117: 0 | AM117: 0 | AN117: 0 | AO117: 0 | BL117: 0 | BM117: 0 | BN117: 0 | BO117: 0 | BP117: 0 | BR117: 0 | BS117: 0 | BT117: 0 | BU117: 0 | BV117: 0
I118: Single High-Pressure Sodium Vapor | J118: Dusk to 1 AM (046) | K118: 310W | L118: 739 | M118: 0 | N118: 0 | O118: 0 | P118: 0 | Q118: 0 | R118: 1 | AE118: 0 | AF118: 0 | AG118: 0 | AH118: 0 | AI118: 0 | AK118: 0 | AL118: 0 | AM118: 0 | AN118: 0 | AO118: 0 | BL118: 0 | BM118: 0 | BN118: 0 | BO118: 0 | BP118: 0 | BR118: =BL118-AX118 -> 0 | BS118: =BM118-AY118 -> 0 | BT118: =BN118-AZ118 -> 0 | BU118: =BO118-BA118 -> 0 | BV118: =BP118-BB118 -> 0
D119: Street Light Summary total, WA | E119: =88+22435+287+343+1098 -> 24251 | I119: Double High-Pressure Sodium Vapor | J119: Pedestal Base | K119: 310W | L119: 742 | M119: 0 | N119: 0 | O119: 0 | P119: 0 | Q119: 0 | R119: 1 | AE119: 0 | AF119: 0 | AG119: 0 | AH119: 0 | AI119: 0 | AK119: 0 | AL119: 0 | AM119: 0 | AN119: 0 | AO119: 0 | BL119: 0 | BM119: 0 | BN119: 0 | BO119: 0 | BP119: 0 | BR119: 0 | BS119: 0 | BT119: 0 | BU119: 0 | BV119: 0
D120: Area Light Count, WA | E120: =5167+3606 -> 8773 | I120: Mercury Vapor | J120: Dusk to Dawn | K120: 55000 | L120: 815 | M120: 0 | N120: 0 | O120: 0 | P120: 0 | Q120: 0 | R120: 1 | AE120: 0 | AF120: 0 | AG120: 0 | AH120: 0 | AI120: 0 | AK120: 0 | AL120: 0 | AM120: 0 | AN120: 0 | AO120: 0 | BL120: 0 | BM120: 0 | BN120: 0 | BO120: 0 | BP120: 0 | BR120: 0 | BS120: 0 | BT120: 0 | BU120: 0 | BV120: 0
E121: =E119+E120 -> 33024 | I121: Single High-Pressure Sodium Vapor | J121: Direct Burial | K121: 400W | L121: 833 | M121: 0 | N121: 0 | O121: 0 | P121: 0 | Q121: 0 | R121: 1 | AE121: 0 | AF121: 0 | AG121: 0 | AH121: 0 | AI121: 0 | AK121: 0 | AL121: 0 | AM121: 0 | AN121: 0 | AO121: 0 | BL121: 0 | BM121: 0 | BN121: 0 | BO121: 0 | BP121: 0 | BR121: 0 | BS121: 0 | BT121: 0 | BU121: 0 | BV121: 0
E122: =E117+'Area Lts'!E72-E121 -> 0
I129: Decorative Light Emitting Diode (LED) | J129: No Pole | K129: Kim Light 70W | L129: 438L | M129: =SUMIF($G:$G,TEXT(M$3,"000")&TEXT($L129,"000"),$E:$E) -> 0 | N129: =SUMIF($G:$G,TEXT(N$3,"000")&TEXT($L129,"000"),$E:$E) -> 0 | O129: =SUMIF($G:$G,TEXT(O$3,"000")&TEXT($L129,"000"),$E:$E) -> 0 | P129: =SUMIF($G:$G,TEXT(P$3,"000")&TEXT($L129,"000"),$E:$E) -> 0 | Q129: =SUMIF($G:$G,TEXT(Q$3,"000")&TEXT($L129,"000"),$E:$E) -> 0 | R129: =IF(SUM(M129:Q129)>0,0,1) -> 1 | S129: 0 | T129: 14.06 | U129: 0 | AE129: =SUMIF($G:$G,TEXT(AE$3,"000")&TEXT($L129,"000"),$E:$E) -> 0 | AF129: =SUMIF($G:$G,TEXT(AF$3,"000")&TEXT($L129,"000"),$E:$E) -> 0 | AG129: =SUMIF($G:$G,TEXT(AG$3,"000")&TEXT($L129,"000"),$E:$E) -> 0 | AH129: =SUMIF($G:$G,TEXT(AH$3,"000")&TEXT($L129,"000"),$E:$E) -> 0 | AI129: =SUMIF($G:$G,TEXT(AI$3,"000")&TEXT($L129,"000"),$E:$E) -> 0 | AK129: =ROUND(S129*(1+AK$1),2) -> 0 | AL129: =AL29 -> 14.36 | AM129: =ROUND(U129*(1+AM$1),2) -> 0 | AN129: =ROUND(V129*(1+AN$1),2) -> 0 | AO129: =ROUND(W129*(1+AO$1),2) -> 0 | AW129: 26 | AY129: 14.53 | BD129: =ROUND(AW129*$BD$2,2)+ROUND(AW129*$BD$1,2) -> 0.3 | BF129: =ROUND((T129*$BE$2)+$BD129-AY129,2) -> 0.01 | BL129: =AK129*$BL$1 -> 0 | BM129: =AL129*$BL$1 -> 14.54668 | BN129: =AM129*$BL$1 -> 0 | BO129: =AN129*$BL$1 -> 0 | BP129: =AO129*$BL$1 -> 0 | BR129: =BL129-AX129 -> 0 | BS129: =BM129-AY129 -> 0.01668 | BT129: =BN129-AZ129 -> 0 | BU129: =BO129-BA129 -> 0 | BV129: =BP129-BB129 -> 0
I132: Double Light Emitting Diode (LED) | J132: Developer Contributed | K132: 107W | L132: 546L | AL132: =AL61 -> 46.03
I133: Single Light Emitting Diode (LED) | J133: Pedestal Base | K133: 107W | L133: 522L | M133: =SUMIF($G:$G,TEXT(M$3,"000")&TEXT($L133,"000"),$E:$E) -> 0 | N133: 0 | O133: 0 | P133: 0 | Q133: 0 | R133: 1 | S133: 0 | T133: 56.52 | U133: 0 | AE133: =SUMIF($G:$G,TEXT(AE$3,"000")&TEXT($L133,"000"),$E:$E) -> 0 | AF133: 0 | AG133: 0 | AH133: 0 | AI133: 0 | AK133: 0 | AL133: =AL44 -> 57.73 | AM133: =ROUND(U133*(1+AM$1),2) -> 0 | AN133: 0 | AO133: 0 | AW133: 39 | AY133: 58.48 | BD133: 0.44 | BF133: =ROUND((T133*$BE$2)+$BD133-AY133,2) -> -0.79 | BL133: =AK133*$BL$1 -> 0 | BM133: 58.48049 | BN133: 0 | BO133: 0 | BP133: 0 | BR133: 0 | BS133: 0.00049 | BT133: 0 | BU133: 0 | BV133: 0
I134: Double Light Emitting Diode (LED) | J134: Pedestal Base | K134: 70W | L134: 442L | M134: 0 | N134: 0 | O134: 0 | P134: 0 | Q134: 0 | R134: =IF(SUM(M134:Q134)>0,0,1) -> 1 | S134: 0 | T134: 38.81 | U134: 0 | V134: 0 | AE134: 0 | AF134: 0 | AG134: 0 | AH134: 0 | AI134: 0 | AK134: =ROUND(S134*(1+AK$1),2) -> 0 | AL134: =AL33 -> 39.64 | AM134: 0 | AN134: 0 | AO134: 0 | AW134: 39 | AY134: 40.13 | BD134: =ROUND(AW134*$BD$2,2)+ROUND(AW134*$BD$1,2) -> 0.44 | BF134: =ROUND((T134*$BE$2)+$BD134-AY134,2) -> -0.38 | BL134: 0 | BM134: 40.15532 | BN134: 0 | BO134: 0 | BP134: 0 | BR134: =BL134-AX134 -> 0 | BS134: =BM134-AY134 -> 0.02532 | BT134: =BN134-AZ134 -> 0 | BU134: =BO134-BA134 -> 0 | BV134: =BP134-BB134 -> 0
I135: Double Light Emitting Diode (LED) | J135: No Pole | K135: 70W | L135: 475L | M135: 0 | N135: 0 | O135: 0 | P135: 0 | Q135: 0 | R135: 1 | S135: 0 | T135: 18.8 | U135: 0 | V135: 0 | AE135: 0 | AF135: 0 | AG135: 0 | AH135: 0 | AI135: 0 | AK135: 0 | AL135: =AL36 -> 19.2 | AM135: 0 | AN135: 0 | AO135: 0 | AW135: 39 | AY135: 19.43 | BD135: 0.44 | BF135: =ROUND((T135*$BE$2)+$BD135-AY135,2) -> 0.05 | BL135: 0 | BM135: 19.4496 | BN135: 0 | BO135: 0 | BP135: 0 | BR135: 0 | BS135: 0.0196 | BT135: 0 | BU135: 0 | BV135: 0
I136: Single Light Emitting Diode (LED) | J136: Wood Pole | K136: 248W | L136: 831L | M136: 0 | N136: 0 | O136: 0 | P136: 0 | Q136: 0 | R136: =IF(SUM(M136:Q136)>0,0,1) -> 1 | S136: 0 | U136: 0 | V136: 0 | AE136: 0 | AF136: 0 | AG136: 0 | AH136: 0 | AI136: 0 | AK136: =ROUND(S136*(1+AK$1),2) -> 0 | AL136: =AL79 -> 34.37 | AM136: 0 | AN136: 0 | AO136: 0
I137: Single Light Emitting Diode (LED) | J137: Pedestal Base | K137: 248W | L137: 832L | M137: 0 | N137: 0 | O137: 0 | P137: 0 | Q137: 0 | R137: 1 | S137: 0 | U137: 0 | V137: 0 | AE137: 0 | AF137: 0 | AG137: 0 | AH137: 0 | AI137: 0 | AK137: 0 | AL137: =AL81 -> 50.95 | AM137: 0 | AN137: 0 | AO137: 0
I138: Single Light Emitting Diode (LED) | J138: No Pole / Dusk to Dawn (046) | K138: 248W | L138: 835L | M138: 0 | N138: 0 | O138: 0 | P138: 0 | Q138: 0 | R138: 1 | S138: 0 | U138: 0 | V138: 0 | AE138: 0 | AF138: 0 | AG138: 0 | AH138: 0 | AI138: 0 | AK138: 0 | AL138: =AL82 -> 26.89 | AM138: 0 | AN138: 0 | AO138: 0
I139: Single Light Emitting Diode (LED) | J139: Developer Contributed | K139: 248W | L139: 836L | M139: 0 | N139: 0 | O139: 0 | P139: 0 | Q139: 0 | R139: 1 | S139: 0 | U139: 0 | V139: 0 | AE139: 0 | AF139: 0 | AG139: 0 | AH139: 0 | AI139: 0 | AK139: 0 | AL139: =AL84 -> 34.37 | AM139: 0 | AN139: 0 | AO139: 0
I140: Double Light Emitting Diode (LED) | J140: Pedestal Base | K140: 248W | L140: 842L | M140: 0 | N140: 0 | O140: 0 | P140: 0 | Q140: 0 | R140: 1 | S140: 0 | U140: 0 | V140: 0 | AE140: 0 | AF140: 0 | AG140: 0 | AH140: 0 | AI140: 0 | AK140: 0 | AL140: =AL85 -> 90.09 | AM140: 0 | AN140: 0 | AO140: 0

Sheet Area Lts
A1: Area Light Summary | I1: WASHINGTON Area Lights | S1: Monthly Rev. | Z1: =SL_RateIncr -> 0 | AC1: % rate increase --> | AD1: ='Lighting summary'!L16 -> 0.0214 | AG1: Monthly Rev. | AJ1: -0.00081 | AK1: 0.01215 | AL1: =-0.00065 -> -0.00065 | AP1: compare input Present Billing Rates to calculated Present Billing Rates
A2: ='St Lts'!A2 -> R-120291 Report as of 1/1/17 | M2: # of Lights(1) | P2: Pres. Rates | S2: at Pres. Rates | V2: # of Lights(1) | AA2: # of Lights | AD2: Prop. Rates | AG2: at Prop. Rates | AK2: Pres. Billing Rates | AP2: ='St Lts'!BE2 -> 1.013 | AQ2: ='St Lts'!BF2 -> Sch 91 & 98 | AS2: New Billing Rates | AU2: ='Lighting summary'!I39 -> 0.013 | AV2: Increase
I3: Fixture Type | J3: Pole Facility | K3: Size | L3: Sched | M3: 047 | N3: 048 | P3: 047 | Q3: 048 | S3: 047 | T3: 048 | V3: 047 | W3: 048 | AA3: 047 | AB3: 048 | AD3: 047 | AE3: 048 | AG3: 047 | AH3: 048 | AJ3: kwh | AK3: 047 | AL3: 048 | AM3: Sch 59 | AN3: Sch 93 | AO3: Sch 98 | AP3: 047 | AQ3: 048 | AS3: 047 | AT3: 048 | AV3: 047 | AW3: 048
I4: Sodium Vapor | J4: Granville w/16' decorative pole | K4: 100W | L4: HAG | M4: =SUMIF($G:$G,TEXT(M$3,"000")&TEXT($L4,"000"),$E:$E) -> 6 | N4: 0 | P4: 29.35 | Q4: =P4 -> 29.35 | S4: =IF(AND(M4<>0,P4=0),#VALUE!,M4*P4) -> 176.1 | T4: =IF(AND(N4<>0,Q4=0),#VALUE!,N4*Q4) -> 0 | V4: =SUMIF($G:$G,TEXT(V$3,"000")&TEXT($L4,"000"),$E:$E) -> 6 | W4: 0 | AA4: =M4 -> 6 | AB4: =N4 -> 0 | AD4: =ROUND(P4*(1+AD$1),2) -> 29.98 | AE4: =AD4 -> 29.98 | AG4: =IF(AND(AA4<>0,AD4=0),#VALUE!,AA4*AD4) -> 179.88 | AH4: =IF(AND(AB4<>0,AE4=0),#VALUE!,AB4*AE4) -> 0 | AJ4: 40 | AK4: 30.04 | AL4: 30.02 | AM4: =ROUND($AJ$1*$AJ4,2) -> -0.03 | AN4: =ROUND($AK$1*$AJ4,2) -> 0.49 | AO4: =ROUND($AL$1*$AJ4,2) -> -0.03 | AP4: =ROUND(P4*$AP$2-AK4+AN4+AO4,2) -> 0.15 | AQ4: =ROUND(Q4*$AP$2-AL4+AM4+AN4+AO4,2) -> 0.14 | AS4: =AD4*$AU$2 -> 0.38974 | AT4: =AE4*$AU$2+AM4 -> 0.35974 | AV4: =AS4-AK4 -> -29.65026 | AW4: =AT4-AL4 -> -29.66026
B5: State | C5: Sched | D5: Rate Sub | E5: # of Lights | I5: Sodium Vapor | J5: Floodlight on existing standard | K5: 250W | L5: HAH | M5: 109 | N5: 8 | P5: 21.72 | Q5: =P5 -> 21.72 | S5: =IF(AND(M5<>0,P5=0),#VALUE!,M5*P5) -> 2367.48 | T5: 173.76 | V5: 109 | W5: 8 | AA5: =M5 -> 109 | AB5: 8 | AD5: 22.18 | AE5: =AD5 -> 22.18 | AG5: 2417.62 | AH5: 177.44 | AJ5: 107 | AK5: 22.86 | AL5: 22.81 | AM5: =ROUND($AJ$1*$AJ5,2) -> -0.09 | AN5: =ROUND($AK$1*$AJ5,2) -> 1.3 | AO5: =ROUND($AL$1*$AJ5,2) -> -0.07 | AP5: =ROUND(P5*$AP$2-AK5+AN5+AO5,2) -> 0.37 | AQ5: =ROUND(Q5*$AP$2-AL5+AM5+AN5+AO5,2) -> 0.33 | AS5: =AD5*$AU$2 -> 0.28834 | AT5: =AE5*$AU$2+AM5 -> 0.19834 | AV5: =AS5-AK5 -> -22.57166 | AW5: =AT5-AL5 -> -22.61166
I6: Sodium Vapor | J6: Kim light w/25' fiberglass pole | K6: 100W | L6: HAI | M6: 17 | N6: 2 | P6: 28.35 | Q6: 28.35 | S6: 481.95 | T6: 56.7 | V6: 17 | W6: 2 | AA6: 17 | AB6: 2 | AD6: 28.96 | AE6: =AD6 -> 28.96 | AG6: 492.32 | AH6: 57.92 | AJ6: 40 | AK6: 29.02 | AL6: 29 | AM6: -0.03 | AN6: 0.49 | AO6: -0.03 | AP6: 0.16 | AQ6: 0.15 | AS6: =AD6*$AU$2 -> 0.37648 | AT6: 0.34648 | AV6: -28.64352 | AW6: -28.65352
B7: WA | C7: 047 | D7: HAG | E7: 6 | G7: =IF(OR(ISBLANK(C7),ISBLANK(D7)),"",TEXT(C7,"000")&TEXT(D7,"000")) -> 047HAG | I7: Sodium Vapor | J7: Post Top w/16' decorative pole | K7: 100W | L7: HAP | M7: 0 | N7: 1 | P7: 27.99 | Q7: 27.99 | S7: 0 | T7: 27.99 | V7: 0 | W7: 1 | AA7: 0 | AB7: 1 | AD7: 28.59 | AE7: 28.59 | AG7: 0 | AH7: 28.59 | AJ7: 40 | AK7: 28.66 | AL7: 28.64 | AM7: -0.03 | AN7: 0.49 | AO7: -0.03 | AP7: 0.15 | AQ7: 0.14 | AS7: 0.37167 | AT7: 0.34167 | AV7: -28.28833 | AW7: -28.29833
B8: WA | C8: 047 | D8: HAH | E8: 109 | G8: =IF(OR(ISBLANK(C8),ISBLANK(D8)),"",TEXT(C8,"000")&TEXT(D8,"000")) -> 047HAH | I8: Sodium Vapor | J8: on existing standard | K8: 100W | L8: HPA | M8: 735 | N8: 901 | P8: 13.46 | Q8: 13.46 | S8: 9893.1 | T8: =IF(AND(N8<>0,Q8=0),#VALUE!,N8*Q8) -> 12127.46 | V8: 735 | W8: 901 | AA8: 735 | AB8: 901 | AD8: 13.75 | AE8: 13.75 | AG8: 10106.25 | AH8: 12388.75 | AJ8: 40 | AK8: 13.95 | AL8: 13.93 | AM8: -0.03 | AN8: 0.49 | AO8: -0.03 | AP8: =ROUND(P8*$AP$2,2)-AK8+AN8+AO8 -> 0.14 | AQ8: 0.13 | AS8: 0.17875 | AT8: 0.14875 | AV8: -13.77125 | AW8: -13.78125
B9: WA | C9: 047 | D9: HAI | E9: 17 | G9: =IF(OR(ISBLANK(C9),ISBLANK(D9)),"",TEXT(C9,"000")&TEXT(D9,"000")) -> 047HAI | I9: Sodium Vapor | J9: on existing standard | K9: 200W | L9: HPB | M9: 1245 | N9: 506 | P9: 19.12 | Q9: 19.12 | S9: 23804.4 | T9: 9674.72 | V9: 1245 | W9: 506 | AA9: 1245 | AB9: 506 | AD9: 19.53 | AE9: 19.53 | AG9: 24314.85 | AH9: 9882.18 | AJ9: 85 | AK9: 20.05 | AL9: 20.01 | AM9: -0.07 | AN9: 1.03 | AO9: -0.06 | AP9: 0.29 | AQ9: 0.26 | AS9: 0.25389 | AT9: 0.18389 | AV9: -19.79611 | AW9: -19.82611
B10: WA | C10: 047 | D10: HPA | E10: =611+124 -> 735 | G10: 047HPA | I10: Sodium Vapor | J10: on existing standard | K10: 400W | L10: HPC | M10: 174 | N10: 11 | P10: 26.41 | Q10: 26.41 | S10: 4595.34 | T10: 290.51 | V10: 174 | W10: 11 | AA10: 174 | AB10: 11 | AD10: 26.98 | AE10: 26.98 | AG10: 4694.52 | AH10: 296.78 | AJ10: 169 | AK10: 28.13 | AL10: 28.04 | AM10: -0.14 | AN10: =ROUND($AK$1*$AJ10,2) -> 2.05 | AO10: -0.11 | AP10: 0.56 | AQ10: 0.51 | AS10: 0.35074 | AT10: 0.21074 | AV10: -27.77926 | AW10: -27.82926
B11: WA | C11: 047 | D11: HPB | E11: =1151+94 -> 1245 | G11: 047HPB | I11: Sodium Vapor | J11: 35' wood pole | K11: 200W | L11: HPD | M11: 995 | N11: 229 | P11: 26.56 | Q11: 26.56 | S11: 26427.2 | T11: 6082.24 | V11: 995 | W11: 229 | AA11: 995 | AB11: 229 | AD11: 27.13 | AE11: 27.13 | AG11: 26994.35 | AH11: 6212.77 | AJ11: 85 | AK11: 27.58 | AL11: 27.54 | AM11: -0.07 | AN11: 1.03 | AO11: -0.06 | AP11: 0.3 | AQ11: 0.27 | AS11: 0.35269 | AT11: 0.28269 | AV11: -27.22731 | AW11: -27.25731
B12: WA | C12: 047 | D12: HPC | E12: =165+9 -> 174 | G12: 047HPC | I12: Sodium Vapor | J12: 35' wood pole | K12: 100W | L12: HPE | M12: 504 | N12: 338 | P12: 19.72 | Q12: 19.72 | S12: 9938.88 | T12: 6665.36 | V12: 504 | W12: 338 | AA12: 504 | AB12: 338 | AD12: 20.14 | AE12: 20.14 | AG12: 10150.56 | AH12: 6807.32 | AJ12: 40 | AK12: 20.29 | AL12: 20.27 | AM12: -0.03 | AN12: 0.49 | AO12: -0.03 | AP12: 0.15 | AQ12: 0.14 | AS12: 0.26182 | AT12: 0.23182 | AV12: -20.02818 | AW12: -20.03818
B13: WA | C13: 047 | D13: HPD | E13: =847+148 -> 995 | G13: 047HPD | I13: Sodium Vapor | J13: 35' wood pole | K13: 400W | L13: HPG | M13: 74 | N13: 6 | P13: 33.94 | Q13: 33.94 | S13: 2511.56 | T13: 203.64 | V13: 74 | W13: 6 | AA13: 74 | AB13: 6 | AD13: 34.67 | AE13: 34.67 | AG13: 2565.58 | AH13: 208.02 | AJ13: 169 | AK13: 35.75 | AL13: 35.66 | AM13: -0.14 | AN13: 2.05 | AO13: -0.11 | AP13: 0.57 | AQ13: 0.52 | AS13: 0.45071 | AT13: 0.31071 | AV13: -35.29929 | AW13: -35.34929
B14: WA | C14: 047 | D14: HPE | E14: =418+86 -> 504 | G14: 047HPE | I14: Sodium Vapor | J14: 30' steel pole | K14: 200W | L14: HPL | M14: 54 | N14: 12 | P14: 33.36 | Q14: 33.36 | S14: 1801.44 | T14: 400.32 | V14: 54 | W14: 12 | AA14: 54 | AB14: 12 | AD14: 34.07 | AE14: 34.07 | AG14: 1839.78 | AH14: 408.84 | AJ14: 85 | AK14: 34.46 | AL14: 34.42 | AM14: -0.07 | AN14: 1.03 | AO14: -0.06 | AP14: 0.3 | AQ14: 0.27 | AS14: 0.44291 | AT14: 0.37291 | AV14: -34.01709 | AW14: -34.04709
B15: WA | C15: 047 | D15: HPG | E15: =63+11 -> 74 | G15: 047HPG | I15: Sodium Vapor | J15: 25' steel pole | K15: 200W | L15: HPO | M15: 6 | N15: 13 | P15: 28.89 | Q15: 28.89 | S15: 173.34 | T15: 375.57 | V15: 6 | W15: 13 | AA15: 6 | AB15: 13 | AD15: 29.51 | AE15: 29.51 | AG15: 177.06 | AH15: 383.63 | AJ15: 85 | AK15: 29.94 | AL15: 29.9 | AM15: =ROUND($AJ$1*$AJ15,2) -> -0.07 | AN15: 1.03 | AO15: -0.06 | AP15: 0.3 | AQ15: 0.27 | AS15: 0.38363 | AT15: 0.31363 | AV15: -29.55637 | AW15: -29.58637
B16: WA | C16: 047 | D16: HPL | E16: =53+1 -> 54 | G16: 047HPL | I16: Sodium Vapor | J16: 20' fiberglass pole | K16: 100W | L16: HPS | M16: 103 | N16: 154 | P16: 19.72 | Q16: 19.72 | S16: 2031.16 | T16: 3036.88 | V16: 103 | W16: 154 | AA16: 103 | AB16: 154 | AD16: 20.14 | AE16: 20.14 | AG16: 2074.42 | AH16: 3101.56 | AJ16: 40 | AK16: 20.29 | AL16: 20.27 | AM16: -0.03 | AN16: 0.49 | AO16: =ROUND($AL$1*$AJ16,2) -> -0.03 | AP16: 0.15 | AQ16: 0.14 | AS16: 0.26182 | AT16: 0.23182 | AV16: -20.02818 | AW16: -20.03818
B17: WA | C17: 047 | D17: HPO | E17: 6 | G17: =IF(OR(ISBLANK(C17),ISBLANK(D17)),"",TEXT(C17,"000")&TEXT(D17,"000")) -> 047HPO | I17: Sodium Vapor | J17: 30' steel pole w/2 arms | K17: 200W | L17: HPY | M17: 15 | N17: 0 | P17: 56.52 | Q17: 56.52 | S17: 847.8 | T17: 0 | V17: 15 | W17: 0 | AA17: 15 | AB17: 0 | AD17: 57.73 | AE17: 57.73 | AG17: 865.95 | AH17: 0 | AJ17: 85 | AK17: 57.9 | AL17: 57.86 | AM17: -0.07 | AN17: 1.03 | AO17: -0.06 | AP17: 0.32 | AQ17: 0.29 | AS17: 0.75049 | AT17: 0.68049 | AV17: -57.14951 | AW17: -57.17951
B18: WA | C18: 047 | D18: HPS | E18: =101+2 -> 103 | G18: 047HPS | I18: Mercury Vapor | J18: on existing standard | K18: 7000 | L18: MVA | M18: 126 | N18: 332 | P18: 15.49 | Q18: 15.49 | S18: 1951.74 | T18: 5142.68 | V18: 126 | W18: 332 | AA18: 126 | AB18: 332 | AD18: 15.82 | AE18: 15.82 | AG18: 1993.32 | AH18: 5252.24 | AJ18: 80 | AK18: 16.34 | AL18: 16.3 | AM18: -0.06 | AN18: 0.97 | AO18: -0.05 | AP18: 0.27 | AQ18: 0.25 | AS18: 0.20566 | AT18: 0.14566 | AV18: -16.13434 | AW18: -16.15434
B19: WA | C19: 047 | D19: HPY | E19: 15 | G19: 047HPY | I19: Mercury Vapor | J19: on existing standard | K19: 10000 | L19: MVB | M19: 210 | N19: 341 | P19: 18.55 | Q19: 18.55 | S19: 3895.5 | T19: 6325.55 | V19: 210 | W19: 341 | AA19: 210 | AB19: 341 | AD19: 18.95 | AE19: 18.95 | AG19: 3979.5 | AH19: 6461.95 | AJ19: 111 | AK19: 19.69 | AL19: 19.63 | AM19: =ROUND($AJ$1*$AJ19,2) -> -0.09 | AN19: 1.35 | AO19: -0.07 | AP19: 0.38 | AQ19: 0.35 | AS19: 0.24635 | AT19: 0.15635 | AV19: -19.44365 | AW19: -19.47365
B20: WA | C20: 047 | D20: MVA | E20: 126 | G20: 047MVA | I20: Mercury Vapor | J20: on existing standard | K20: 20000 | L20: MVC | M20: 403 | N20: 25 | P20: 26.39 | Q20: 26.39 | S20: 10635.17 | T20: 659.75 | V20: 403 | W20: 25 | AA20: 403 | AB20: 25 | AD20: 26.95 | AE20: 26.95 | AG20: 10860.85 | AH20: 673.75 | AJ20: 182 | AK20: 28.21 | AL20: 28.12 | AM20: -0.15 | AN20: 2.21 | AO20: -0.12 | AP20: 0.61 | AQ20: 0.55 | AS20: 0.35035 | AT20: 0.20035 | AV20: -27.85965 | AW20: -27.91965
B21: WA | C21: 047 | D21: MVB | E21: 210 | G21: 047MVB | I21: Mercury Vapor | J21: 30' wood pole | K21: 7000 | L21: MVD | M21: 46 | N21: 126 | P21: 19.33 | Q21: 19.33 | S21: 889.18 | T21: 2435.58 | V21: 46 | W21: 126 | AA21: 46 | AB21: 126 | AD21: 19.74 | AE21: 19.74 | AG21: 908.04 | AH21: 2487.24 | AJ21: 80 | AK21: 20.22 | AL21: 20.18 | AM21: -0.06 | AN21: 0.97 | AO21: -0.05 | AP21: 0.28 | AQ21: 0.26 | AS21: 0.25662 | AT21: 0.19662 | AV21: -19.96338 | AW21: -19.98338
B22: WA | C22: 047 | D22: MVC | E22: 403 | G22: 047MVC | I22: Mercury Vapor | J22: 30' wood pole | K22: 10000 | L22: MVE | M22: 73 | N22: 79 | P22: 22.44 | Q22: 22.44 | S22: 1638.12 | T22: 1772.76 | V22: 73 | W22: 79 | AA22: 73 | AB22: 79 | AD22: 22.92 | AE22: 22.92 | AG22: 1673.16 | AH22: 1810.68 | AJ22: 111 | AK22: 23.63 | AL22: 23.57 | AM22: -0.09 | AN22: 1.35 | AO22: -0.07 | AP22: 0.38 | AQ22: 0.35 | AS22: 0.29796 | AT22: 0.20796 | AV22: -23.33204 | AW22: -23.36204
B23: WA | C23: 047 | D23: MVD | E23: 46 | G23: 047MVD | I23: Mercury Vapor | J23: 30' wood pole | K23: 20000 | L23: MVF | M23: 208 | N23: 24 | P23: 30.29 | Q23: 30.29 | S23: 6300.32 | T23: 726.96 | V23: 208 | W23: 24 | AA23: 208 | AB23: 24 | AD23: 30.94 | AE23: 30.94 | AG23: 6435.52 | AH23: 742.56 | AJ23: 182 | AK23: 32.16 | AL23: 32.07 | AM23: -0.15 | AN23: 2.21 | AO23: -0.12 | AP23: 0.61 | AQ23: 0.55 | AS23: 0.40222 | AT23: 0.25222 | AV23: -31.75778 | AW23: -31.81778
B24: WA | C24: 047 | D24: MVE | E24: 73 | G24: 047MVE | I24: Mercury Vapor | J24: 25' steel | K24: 7000 | L24: MVG | M24: =SUMIF($G:$G,TEXT(M$3,"000")&TEXT($L24,"000"),$E:$E) -> 0 | N24: 0 | P24: 25.19 | Q24: 25.19 | S24: 0 | T24: 0 | V24: =SUMIF($G:$G,TEXT(V$3,"000")&TEXT($L24,"000"),$E:$E) -> 0 | W24: 0 | AA24: 0 | AB24: 0 | AD24: 25.73 | AE24: 25.73 | AG24: 0 | AH24: 0 | AJ24: 80 | AK24: 26.15 | AL24: 26.11 | AM24: -0.06 | AN24: 0.97 | AO24: -0.05 | AP24: 0.29 | AQ24: 0.27 | AS24: 0.33449 | AT24: 0.27449 | AV24: -25.81551 | AW24: -25.83551
B25: WA | C25: 047 | D25: MVF | E25: 208 | G25: 047MVF | I25: Mercury Vapor | J25: 25' steel | K25: 10000 | L25: MVH | M25: 0 | N25: 22 | P25: 28.32 | Q25: 28.32 | S25: 0 | T25: 623.04 | V25: 0 | W25: 22 | AA25: 0 | AB25: 22 | AD25: 28.93 | AE25: 28.93 | AG25: 0 | AH25: 636.46 | AJ25: 111 | AK25: 29.58 | AL25: 29.52 | AM25: -0.09 | AN25: 1.35 | AO25: -0.07 | AP25: 0.39 | AQ25: 0.36 | AS25: 0.37609 | AT25: 0.28609 | AV25: -29.20391 | AW25: -29.23391
B26: WA | C26: 047 | D26: MVH | E26: 0 | G26: 047MVH | I26: Mercury Vapor | J26: 25' steel | K26: 20000 | L26: MVI | M26: 2 | N26: 0 | P26: 36.13 | Q26: 36.13 | S26: 72.26 | T26: 0 | V26: 2 | W26: 0 | AA26: 2 | AB26: 0 | AD26: 36.9 | AE26: 36.9 | AG26: 73.8 | AH26: 0 | AJ26: 182 | AK26: 38.07 | AL26: 37.98 | AM26: -0.15 | AN26: 2.21 | AO26: -0.12 | AP26: 0.62 | AQ26: 0.56 | AS26: 0.4797 | AT26: 0.3297 | AV26: -37.5903 | AW26: -37.6503
B27: WA | C27: 047 | D27: MVI | E27: 2 | G27: 047MVI | I27: Mercury Vapor | J27: 30' steel | K27: 7000 | L27: MVJ | M27: 2 | N27: 0 | P27: 26.42 | Q27: 26.42 | S27: 52.84 | T27: 0 | V27: 2 | W27: 0 | AA27: 2 | AB27: 0 | AD27: 26.99 | AE27: 26.99 | AG27: 53.98 | AH27: 0 | AJ27: 80 | AK27: 27.4 | AL27: 27.36 | AM27: -0.06 | AN27: 0.97 | AO27: -0.05 | AP27: 0.28 | AQ27: 0.26 | AS27: 0.35087 | AT27: 0.29087 | AV27: -27.04913 | AW27: -27.06913
B28: WA | C28: 047 | D28: MVJ | E28: 2 | G28: 047MVJ | I28: Mercury Vapor | J28: 30' steel | K28: 10000 | L28: MVK | M28: 2 | N28: 32 | P28: 29.53 | Q28: 29.53 | S28: 59.06 | T28: 944.96 | V28: 2 | W28: 32 | AA28: 2 | AB28: 32 | AD28: 30.16 | AE28: 30.16 | AG28: 60.32 | AH28: 965.12 | AJ28: 111 | AK28: 30.81 | AL28: 30.75 | AM28: -0.09 | AN28: 1.35 | AO28: -0.07 | AP28: 0.38 | AQ28: 0.35 | AS28: 0.39208 | AT28: 0.30208 | AV28: -30.41792 | AW28: -30.44792
